Workbook

Sheet Underlying Assumptions
B2: Detailed Business Case Tool
B3: =MID(CELL("filename",B3),FIND("]",CELL("filename",B3))+1,256) -> Underlying Assumptions
B5: December 2020
B8: BELOW YOU WILL FIND THE GENERAL ASSUMPTIONS OF THE TOOL. ALL ASSUMPTIONS ARE BASED ON INSIGHTS GAINED IN THE COURSE OF THE STUDY. Users can override preselected assumptions on the Input Sheets
C10: Item | D10: Assumption
C12: =Terms!D11 -> Residual Value | D12: Each component is assigned a "scrap value" which is assumed as a certain % share of the original purchase price and remains as value at the end of the components lifetime. Value of components is assumed to linearly decrease based on the overall mileage of use.
C13: =Terms!E9 -> E-Drive | D13: Cost of E-Drive is assumed to be equal for FCEV, BEV and Catenary vehicles. Therefore, maturity of E-Drive market for those propulsion types is dependent on assumed maturity of BEV market.
C14: =Terms!E22 -> Replacement Unit | D14: The model is based on the assumption that there is a maximum of one replacement unit for each component during 1st & 2nd life. If a replacement unit is integrated it is assumed that the "scrap value" is covering the workshop cost associated with the replacement. Replacement batteries, H2 tanks and catenary equipment will have the same characteristics as the original parts. Replacement drivetrains will have the consumption and cost characteristics of the current state of the year. of replacement
C15: Private Infrastructure | D15: If private charging is selected, OPEX for private charging/refuelling infrastructure is added to the TCO and energy/fuel surcharge costs are partly/entirely subtracted from the OPEX. Assumptions on cost of H2 refuelling infrastructure is based on estimates, since it is still a niche technology.
C16: Cumulated Cost | D16: In this model, all costs are cumulated over the lifetime, costs are hereby not discounted.
C17: CAPEX | D17: Since in this model cash flows are not discounted, CAPEX include all cost arising during 1st/1st&2nd life and not only cost occurring in the year of truck purchase.
C18: Chassis | D18: The price of the chassis is assumed to be the same for all propulsion types. Residual value for chassis is therefore not considered in this model.
C19: Consumption | D19: Consumption does not change over the lifetime of the truck.
C20: Alternative Fuel GVW | D20: Based on current regulation, trucks with alternative propulsion are assumed to receive a payload gratification of 1 tonne compared to equivalent diesel trucks.
C21: Annual Mileage | D21: The model's calculation logic and predefined parameters were selected in order to deliver the most significant results for long-haul applications with annual mileages between 60.000 - 140.000 km. The model is able to calculate values for lower or higher annual mileages, however some results thereby might need manual adjustments.

Sheet Version (hidden)
B2: Version log
B3: =MID(CELL("filename",B3),FIND("]",CELL("filename",B3))+1,256) -> Version
B5: From | C5: To | D5: Date | E5: Change | F5: Reason | G5: Worksheet | H5: Worksheet | I5: Worksheet | K5: Comment | L5: Changed by
B7: v146 | C7: v147 | D7: 2020-06-26 | E7: E-Drive Input: Hard copy values have been exchanged for links, so that client override is possible | F7: Bug fix | G7: ='Input_4x2_Trac 330kW'!B3 -> Input_4x2_Trac 330kW | H7: ='Input_6x2_Rig 270kW'!B3 -> Input_6x2_Rig 270kW | I7: ='Input_4x2_Rig 220kW'!B3 -> Input_4x2_Rig 220kW | L7: JR
B8: v147 | C8: v148 | D8: 2020-06-29 | E8: Efficiency FCEV vs. BEV for consumption (from 55% to 50%) | F8: Feedback AB member | G8: Inp_4x2_Trac 330kW' | H8: Inp_6x2_Rig 270kW' | I8: Inp_4x2_Rig 220kW | L8: JR
B9: v148 | C9: v149 | D9: 2020-06-30 | E9: Maintenance costs: BEV / Catenary -20% , FCEV -10% compared with Diesel | F9: Feedback AB member | G9: Inp_General | L9: AM
B10: v149 | C10: v150 | D10: 2020-07-01 | E10: H2 Tank Size - adapted to be dynamically calculated based on daily mileage+ factor | F10: Discussion MB/TZ | G10: Inp_4x2_Trac 330kW' | H10: Inp_6x2_Rig 270kW' | I10: Inp_4x2_Rig 220kW | L10: JR
B11: v150 | C11: v151 | D11: 2020-07-02 | E11: Updated load factors in order of use cases [%] 90, 80, 70 | F11: Feedback AB member | G11: Inp_4x2_Trac 330kW' | H11: Inp_6x2_Rig 270kW' | I11: Inp_4x2_Rig 220kW | L11: AM
B12: v151 | C12: v152 | D12: 2020-07-03 | E12: Updated consumption values according to model TZ | F12: Updated values | G12: Inp_4x2_Trac 330kW' | H12: Inp_6x2_Rig 270kW' | I12: Inp_4x2_Rig 220kW | L12: AM
B13: v152 | C13: v153 | D13: 2020-07-06 | E13: Update H2 cost | F13: Feedback AB member | G13: Inp_EnergyFuel | H13: - | I13: - | L13: TZ
B14: v152 | C14: v153 | D14: 2020-07-06 | E14: Updated FC cost | F14: Feedback AB member | G14: Inp_4x2_Trac 330kW' | H14: Inp_6x2_Rig 270kW' | I14: Inp_4x2_Rig 220kW | L14: TZ
B15: v153 | C15: v154 | D15: 2020-07-06 | E15: Formula adapted to prevent Error when selecting "Heterogeneous" as driving profile | F15: Bug fix | G15: ='Cockpit Details'!B3 -> Cockpit Details | L15: JR
B16: v155 | C16: v156 | D16: 2020-07-06 | E16: Formula adapted. error occured because Annual mileage was not correctly linked in worksheet | F16: Bug fix | G16: Inp_6x2_Rig 270kW' | L16: JR
B17: v156 | C17: v157 | D17: 2020-07-13 | E17: Annual Mileage extend range to cover lower and higher annual mileages | F17: Increase Functionality | G17: =List!B3 -> List | H17: =Cockpit!B3 -> Cockpit | L17: JR
B18: v157 | C18: v158 | D18: 2020-07-14 | E18: Correction to correctly sum up residual value of main and replacement components | F18: Bug fix | G18: =Cal_4x2_Trac!B3 -> Cal_4x2_Trac | H18: =Cal_6x2_Rig!B3 -> Cal_6x2_Rig | I18: =Cal_4x2_Rig!B3 -> Cal_4x2_Rig | L18: JR
B19: v158 | C19: v159 | D19: 2020-07-14 | E19: Continued bug fix regarding residua value | F19: Bug fix | G19: =Cal_4x2_Trac!B3 -> Cal_4x2_Trac | H19: =Cal_6x2_Rig!B3 -> Cal_6x2_Rig | I19: =Cal_4x2_Rig!B3 -> Cal_4x2_Rig | L19: JR
B20: v159 | C20: v160 | D20: 2020-07-15 | E20: Consumption values based on year of purchase | F20: Increase Functionality | G20: =Cal_4x2_Trac!B3 -> Cal_4x2_Trac | H20: =Cal_6x2_Rig!B3 -> Cal_6x2_Rig | I20: =Cal_4x2_Rig!B3 -> Cal_4x2_Rig | L20: JR
B21: v160 | C21: v161 | D21: 2020-07-16 | E21: Lifetime increase - 1.2m km to 1.4m km; 600k km to 700k km | F21: Account for powertrain exchange | G21: Inp_4x2_Trac 330kW' | H21: Inp_6x2_Rig 270kW' | I21: Inp_4x2_Rig 220kW | L21: TW
B22: v161 | C22: v162 | D22: 2020-07-16 | E22: Update small battery energy density | F22: Bug fix | G22: Inp_General | L22: TW
B23: v162 | C23: v163 | D23: 2020-08-13 | E23: Cockpit change to allow for Diesel Private Fueling | F23: Increase Functionality | G23: =Cockpit!B3 -> Cockpit | H23: ='Cockpit Details'!B3 -> Cockpit Details | L23: JR
B24: v163 | C24: v164 | D24: 2020-08-25 | E24: Change of CO2 values according to new source | F24: New source | G24: Inp_EnergyFuel | L24: AM
B25: v164 | C25: v165 | D25: 2020-09-16 | E25: Introduction of assumptions on private infrastructure costs for H2: 700 bar, LH2 | F25: New assumptions | G25: HRS_Calc | L25: AM
B26: v165 | C26: v166 | D26: 2020-09-22 | E26: Discusssed changes regarding Cockpit Details and Road toll caluclation | F26: Prepare for handover | G26: =Cockpit!B3 -> Cockpit | H26: ='Cockpit Details'!B3 -> Cockpit Details | L26: JR
B27: v166 | C27: v167 | D27: 2020-09-28 | E27: Road toll details for all trucks added | F27: Prepare for handover | G27: ='Cockpit Details'!B3 -> Cockpit Details | L27: JR
B28: v172 | E28: Final changes in Assumptions to inlcude FC Stack and Tank assumpitons per kg/kW

Sheet Output>
B2: =MID(CELL("filename",B2),FIND("]",CELL("filename",B2))+1,256) -> Output>

Sheet Cockpit
B2: Cockpit to adjust general settings | J2: Settings in light grey fields can be adapted by selecting desired parameters from the dropdown lists
B3: =MID(CELL("filename",B3),FIND("]",CELL("filename",B3))+1,256) -> Cockpit
B5: A. Optional settings
B7: 1 | C7: General Use Case | F7: 2 | G7: By technology | Q7: 3 | R7: By technology and time
C9: Annual Mileage [km/year] | I9: Infrastructure | K9: Energy/Fuel Taxation & Surcharges | N9: Motor Vehicle Tax | R9: Road Toll | Y9: Mass vs. niche market
C10: 140000 | D10: 4x2 Tractor | L10: Factor | O10: Factor | R10: 2023 | S10: Factor | T10: 2027 | U10: Factor | V10: 2030 | W10: Factor | Y10: 2023 | Z10: 2027 | AA10: 2030
C11: 95000 | D11: 6x2 Rigid | G11: =Terms!$B$7 -> Diesel | I11: Public 100:0 Private | K11: Average | L11: ='Cockpit Details'!H42 -> 1 | N11: Average | O11: ='Cockpit Details'!H60 -> 1 | R11: Average | S11: ='Cockpit Details'!H78 -> 1 | T11: Average | U11: ='Cockpit Details'!J78 -> 1 | V11: Average | W11: ='Cockpit Details'!L78 -> 1 | Y11: Always: Mass market
C12: 60000 | D12: 4x2 Rigid | G12: =Terms!$B$8 -> Diesel E-Fuels
G13: =Terms!$B$9 -> FCEV 350 bar | I13: Public 100:0 Private | K13: Average | L13: ='Cockpit Details'!H44 -> 1 | N13: Average | O13: ='Cockpit Details'!H62 -> 1 | R13: Average | S13: ='Cockpit Details'!H80 -> 1 | T13: Average | U13: ='Cockpit Details'!J80 -> 1 | V13: Average | W13: ='Cockpit Details'!L80 -> 1 | Y13: Niche | Z13: Rather Niche | AA13: Rather Mass
G14: =Terms!$B$10 -> FCEV 700 bar
C15: Homogenity of driving profile | G15: =Terms!$B$11 -> FCEV LH2
C16: Rather homogeneous | D16: 4x2 Tractor | G16: =Terms!$B$12 -> BEV | I16: Public 100:0 Private | K16: Average | L16: ='Cockpit Details'!H47 -> 1 | N16: Average | O16: ='Cockpit Details'!H65 -> 1 | R16: Average | S16: ='Cockpit Details'!H83 -> 1 | T16: Average | U16: ='Cockpit Details'!J83 -> 1 | V16: Average | W16: ='Cockpit Details'!L83 -> 1 | Y16: Niche | Z16: Rather Niche | AA16: Rather Mass
C17: Rather homogeneous | D17: 6x2 Rigid | G17: =Terms!$B$13 -> Catenary | I17: Public 100:0 Private | Y17: Niche | Z17: Rather Niche | AA17: Rather Mass
C18: Rather homogeneous | D18: 4x2 Rigid
K19: Include in calculation | N19: Include in calculation | R19: Include in calculation
L20: =INDEX('Cockpit Details'!B48:B49,MATCH('Cockpit Details'!D48,'Cockpit Details'!C48:C49,0)) -> Yes | O20: =INDEX('Cockpit Details'!B66:B67,MATCH('Cockpit Details'!D66,'Cockpit Details'!C66:C67,0)) -> Yes | S20: =INDEX('Cockpit Details'!B84:B85,MATCH('Cockpit Details'!D84,'Cockpit Details'!C84:C85,0)) -> Yes
B22: 4 | C22: Energy cost adaptions
C23: Energy/Fuel | E23: 23-'26 | G23: 27-'29 | I23: from '30 | L23: Tax | N23: 23-'26 | P23: 27-'29 | R23: from '30 | U23: Surcharges | W23: 23-'26 | Y23: 27-'29 | AA23: from '30
E24: % | F24: Result | G24: % | H24: Result | I24: % | J24: Result | N24: % | O24: Result | P24: % | Q24: Result | R24: % | S24: Result | W24: % | X24: Result | Y24: % | Z24: Result | AA24: % | AB24: Result
C25: =Terms!$B$7 -> Diesel | D25: EUR/l | E25: 0 | F25: =Input_EnergyFuel!E10 -> 0.4 | G25: 0 | H25: =Input_EnergyFuel!I10 -> 0.4 | I25: 0 | J25: =Input_EnergyFuel!L10 -> 0.4 | L25: =Terms!$B$7 -> Diesel | M25: EUR/l | N25: 0 | O25: =Input_EnergyFuel!E47*(1+N25) -> 0.6 | P25: 0 | Q25: =Input_EnergyFuel!I47*(1+P25) -> 0.6 | R25: 0 | S25: =Input_EnergyFuel!L47*(1+R25) -> 0.6 | U25: =Terms!$B$7 -> Diesel | V25: EUR/l | W25: 0 | X25: =Input_EnergyFuel!E73*(1+W25) -> 0.258 | Y25: 0 | Z25: =Input_EnergyFuel!I73*(1+Y25) -> 0.37 | AA25: 0 | AB25: =Input_EnergyFuel!L73*(1+AA25) -> 0.37
C26: =Terms!$B$8 -> Diesel E-Fuels | D26: EUR/l | E26: 0 | F26: =Input_EnergyFuel!E11 -> 2.32 | G26: 0 | H26: =Input_EnergyFuel!I11 -> 1.68 | I26: 0 | J26: =Input_EnergyFuel!L11 -> 1.2 | L26: =Terms!$B$8 -> Diesel E-Fuels | M26: EUR/l | N26: 0 | O26: =Input_EnergyFuel!E48*(1+N26) -> 0.6 | P26: 0 | Q26: =Input_EnergyFuel!I48*(1+P26) -> 0.6 | R26: 0 | S26: =Input_EnergyFuel!L48*(1+R26) -> 0.6 | U26: =Terms!$B$8 -> Diesel E-Fuels | V26: EUR/l | W26: 0 | X26: =Input_EnergyFuel!E74*(1+W26) -> 0.258 | Y26: 0 | Z26: =Input_EnergyFuel!I74*(1+Y26) -> 0.37 | AA26: 0 | AB26: =Input_EnergyFuel!L74*(1+AA26) -> 0.37
C27: =Terms!$B$9 -> FCEV 350 bar | D27: EUR/kg | E27: 0 | F27: =Input_EnergyFuel!E12 -> 3.15 | G27: 0 | H27: =Input_EnergyFuel!I12 -> 2.599015198 | I27: 0 | J27: =Input_EnergyFuel!L12 -> 2.25 | L27: =Terms!$B$9 -> FCEV 350 bar | M27: EUR/kg | N27: 0 | O27: =Input_EnergyFuel!E49*(1+N27) -> 0 | P27: 0 | Q27: =Input_EnergyFuel!I49*(1+P27) -> 0 | R27: 0 | S27: =Input_EnergyFuel!L49*(1+R27) -> 0 | U27: =Terms!$B$9 -> FCEV 350 bar | V27: EUR/kg | W27: 0 | X27: =Input_EnergyFuel!E75*(1+W27) -> 3.75 | Y27: 0 | Z27: =Input_EnergyFuel!I75*(1+Y27) -> 2.805678011 | AA27: 0 | AB27: =Input_EnergyFuel!L75*(1+AA27) -> 2.25
C28: =Terms!$B$10 -> FCEV 700 bar | D28: EUR/kg | E28: 0 | F28: =Input_EnergyFuel!E13 -> 3.15 | G28: 0 | H28: =Input_EnergyFuel!I13 -> 2.599015198 | I28: 0 | J28: =Input_EnergyFuel!L13 -> 2.25 | L28: =Terms!$B$10 -> FCEV 700 bar | M28: EUR/kg | N28: 0 | O28: =Input_EnergyFuel!E50*(1+N28) -> 0 | P28: 0 | Q28: =Input_EnergyFuel!I50*(1+P28) -> 0 | R28: 0 | S28: =Input_EnergyFuel!L50*(1+R28) -> 0 | U28: =Terms!$B$10 -> FCEV 700 bar | V28: EUR/kg | W28: 0 | X28: =Input_EnergyFuel!E76*(1+W28) -> 4.15 | Y28: 0 | Z28: =Input_EnergyFuel!I76*(1+Y28) -> 3.145802062 | AA28: 0 | AB28: =Input_EnergyFuel!L76*(1+AA28) -> 2.55
C29: =Terms!$B$11 -> FCEV LH2 | D29: EUR/kg | E29: 0 | F29: =Input_EnergyFuel!E14 -> 3.15 | G29: 0 | H29: =Input_EnergyFuel!I14 -> 2.599015198 | I29: 0 | J29: =Input_EnergyFuel!L14 -> 2.25 | L29: =Terms!$B$11 -> FCEV LH2 | M29: EUR/kg | N29: 0 | O29: =Input_EnergyFuel!E51*(1+N29) -> 0 | P29: 0 | Q29: =Input_EnergyFuel!I51*(1+P29) -> 0 | R29: 0 | S29: =Input_EnergyFuel!L51*(1+R29) -> 0 | U29: =Terms!$B$11 -> FCEV LH2 | V29: EUR/kg | W29: 0 | X29: =Input_EnergyFuel!E77*(1+W29) -> 4.55 | Y29: 0 | Z29: =Input_EnergyFuel!I77*(1+Y29) -> 3.278656216 | AA29: 0 | AB29: =Input_EnergyFuel!L77*(1+AA29) -> 2.55
C30: =Terms!$B$12 -> BEV | D30: EUR/kwh | E30: 0 | F30: =Input_EnergyFuel!E15 -> 0.05 | G30: 0 | H30: =Input_EnergyFuel!I15 -> 0.04428571429 | I30: 0 | J30: =Input_EnergyFuel!L15 -> 0.04 | L30: =Terms!$B$12 -> BEV | M30: EUR/kwh | N30: 0 | O30: =Input_EnergyFuel!E52*(1+N30) -> 0.1 | P30: 0 | Q30: =Input_EnergyFuel!I52*(1+P30) -> 0.1 | R30: 0 | S30: =Input_EnergyFuel!L52*(1+R30) -> 0.1 | U30: =Terms!$B$12 -> BEV | V30: EUR/kwh | W30: 0 | X30: =Input_EnergyFuel!E78*(1+W30) -> 0.15 | Y30: 0 | Z30: =Input_EnergyFuel!I78*(1+Y30) -> 0.09857142857 | AA30: 0 | AB30: =Input_EnergyFuel!L78*(1+AA30) -> 0.06
C31: =Terms!$B$13 -> Catenary | D31: EUR/kwh | E31: 0 | F31: =Input_EnergyFuel!E16 -> 0.05 | G31: 0 | H31: =Input_EnergyFuel!I16 -> 0.04428571429 | I31: 0 | J31: =Input_EnergyFuel!L16 -> 0.04 | L31: =Terms!$B$13 -> Catenary | M31: EUR/kwh | N31: 0 | O31: =Input_EnergyFuel!E53*(1+N31) -> 0.1 | P31: 0 | Q31: =Input_EnergyFuel!I53*(1+P31) -> 0.1 | R31: 0 | S31: =Input_EnergyFuel!L53*(1+R31) -> 0.1 | U31: =Terms!$B$13 -> Catenary | V31: EUR/kwh | W31: 0 | X31: =Input_EnergyFuel!E79*(1+W31) -> 0.36 | Y31: 0 | Z31: =Input_EnergyFuel!I79*(1+Y31) -> 0.36 | AA31: 0 | AB31: =Input_EnergyFuel!L79*(1+AA31) -> 0.36
B35: B. Output Summary
G37: 1st Life | S37: 1st & 2nd Life
G38: TCO [EUR/Truck] | K38: TCO [cent/tkm] | O38: CO2 Emission [gCO2/tkm] | S38: TCO [EUR/Truck] | W38: TCO [cent/tkm] | AA38: CO2 Emission [gCO2/tkm]
B39: 1 | C39: 4x2 Tractor
G40: 2023 | H40: 2027 | I40: 2030 | K40: 2023 | L40: 2027 | M40: 2030 | O40: 2023 | P40: 2027 | Q40: 2030 | S40: 2023 | T40: 2027 | U40: 2030 | W40: 2023 | X40: 2027 | Y40: 2030 | AA40: 2023 | AB40: 2027 | AC40: 2030
F41: =Terms!$B$7 -> Diesel | G41: =Cal_4x2_Trac!$I$247 -> 585643.3904 | H41: =Cal_4x2_Trac!$I$251 -> 584984.8905 | I41: =Cal_4x2_Trac!$I$254 -> 580645.9749 | K41: =100*G41/Cal_4x2_Trac!$I$237 -> 4.590581151 | L41: =100*H41/Cal_4x2_Trac!$I$241 -> 4.585419482 | M41: =100*I41/Cal_4x2_Trac!$I$244 -> 4.551408778 | O41: =Cal_4x2_Trac!$I$850/Cal_4x2_Trac!$I$237 -> 56.93248252 | P41: =Cal_4x2_Trac!$I$854/Cal_4x2_Trac!$I$241 -> 55.11111111 | Q41: =Cal_4x2_Trac!$I$857/Cal_4x2_Trac!$I$244 -> 54.27611446 | S41: =Cal_4x2_Trac!$J$247 -> 1116161.114 | T41: =Cal_4x2_Trac!$J$251 -> 1107067.031 | U41: =Cal_4x2_Trac!$J$254 -> 1098291.95 | W41: =100*S41/Cal_4x2_Trac!$J$237 -> 4.374529155 | X41: =100*T41/Cal_4x2_Trac!$J$241 -> 4.338887049 | Y41: =100*U41/Cal_4x2_Trac!$J$244 -> 4.304495198 | AA41: =Cal_4x2_Trac!$J$850/Cal_4x2_Trac!$J$237 -> 56.93248252 | AB41: =Cal_4x2_Trac!$J$854/Cal_4x2_Trac!$J$241 -> 55.11111111 | AC41: =Cal_4x2_Trac!$J$857/Cal_4x2_Trac!$J$244 -> 54.27611446
F42: =Terms!$B$8 -> Diesel E-Fuels | G42: =Cal_4x2_Trac!$I$1247 -> 944318.0303 | H42: =Cal_4x2_Trac!$I$1251 -> 800248.8905 | I42: =Cal_4x2_Trac!$I$1254 -> 751615.7354 | K42: =100*G42/Cal_4x2_Trac!$I$1237 -> 7.40206177 | L42: =100*H42/Cal_4x2_Trac!$I$1241 -> 6.27277202 | M42: =100*I42/Cal_4x2_Trac!$I$1244 -> 5.891559753 | O42: =Cal_4x2_Trac!$I$1850/Cal_4x2_Trac!$I$237 -> 0 | P42: =Cal_4x2_Trac!$I$1854/Cal_4x2_Trac!$I$241 -> 0 | Q42: =Cal_4x2_Trac!$I$1857/Cal_4x2_Trac!$I$244 -> 0 | S42: =Cal_4x2_Trac!$J$1247 -> 1675693.552 | T42: =Cal_4x2_Trac!$J$1251 -> 1495931.031 | U42: =Cal_4x2_Trac!$J$1254 -> 1440231.471 | W42: =100*S42/Cal_4x2_Trac!$J$1237 -> 6.567484038 | X42: =100*T42/Cal_4x2_Trac!$J$1241 -> 5.862947406 | Y42: =100*U42/Cal_4x2_Trac!$J$1244 -> 5.644646172 | AA42: =Cal_4x2_Trac!$J$1850/Cal_4x2_Trac!$J$237 -> 0 | AB42: =Cal_4x2_Trac!$J$1854/Cal_4x2_Trac!$J$241 -> 0 | AC42: =Cal_4x2_Trac!$J$1857/Cal_4x2_Trac!$J$244 -> 0
F43: =Terms!$B$9 -> FCEV 350 bar | G43: =Cal_4x2_Trac!$I$2247 -> 731179.738 | H43: =Cal_4x2_Trac!$I$2251 -> 595040.5984 | I43: =Cal_4x2_Trac!$I$2254 -> 547178.2196 | K43: =100*G43/Cal_4x2_Trac!$I$2237 -> 5.527727801 | L43: =100*H43/Cal_4x2_Trac!$I$2241 -> 4.476333008 | M43: =100*I43/Cal_4x2_Trac!$I$2244 -> 4.096709431 | O43: =Cal_4x2_Trac!$I$2850/Cal_4x2_Trac!$I$237 -> 0 | P43: =Cal_4x2_Trac!$I$2854/Cal_4x2_Trac!$I$241 -> 0 | Q43: =Cal_4x2_Trac!$I$2857/Cal_4x2_Trac!$I$244 -> 0 | S43: =Cal_4x2_Trac!$J$2247 -> 1319523.437 | T43: =Cal_4x2_Trac!$J$2251 -> 1108184.049 | U43: =Cal_4x2_Trac!$J$2254 -> 1031356.429 | W43: =100*S43/Cal_4x2_Trac!$J$2237 -> 4.987806698 | X43: =100*T43/Cal_4x2_Trac!$J$2241 -> 4.16828772 | Y43: =100*U43/Cal_4x2_Trac!$J$2244 -> 3.860869694 | AA43: =Cal_4x2_Trac!$J$2850/Cal_4x2_Trac!$J$237 -> 0 | AB43: =Cal_4x2_Trac!$J$2854/Cal_4x2_Trac!$J$241 -> 0 | AC43: =Cal_4x2_Trac!$J$2857/Cal_4x2_Trac!$J$244 -> 0
F44: =Terms!$B$10 -> FCEV 700 bar | G44: =Cal_4x2_Trac!$I$3247 -> 754200.1993 | H44: =Cal_4x2_Trac!$I$3251 -> 613470.907 | I44: =Cal_4x2_Trac!$I$3254 -> 564319.9568 | K44: =100*G44/Cal_4x2_Trac!$I$3237 -> 5.77814629 | L44: =100*H44/Cal_4x2_Trac!$I$3241 -> 4.674535475 | M44: =100*I44/Cal_4x2_Trac!$I$3244 -> 4.278454434 | O44: =Cal_4x2_Trac!$I$3850/Cal_4x2_Trac!$I$237 -> 0 | P44: =Cal_4x2_Trac!$I$3854/Cal_4x2_Trac!$I$241 -> 0 | Q44: =Cal_4x2_Trac!$I$3857/Cal_4x2_Trac!$I$244 -> 0 | S44: =Cal_4x2_Trac!$J$3247 -> 1362144.409 | T44: =Cal_4x2_Trac!$J$3251 -> 1144191.909 | U44: =Cal_4x2_Trac!$J$3254 -> 1065639.904 | W44: =100*S44/Cal_4x2_Trac!$J$3237 -> 5.21789153 | X44: =100*T44/Cal_4x2_Trac!$J$3241 -> 4.359265949 | Y44: =100*U44/Cal_4x2_Trac!$J$3244 -> 4.039633648 | AA44: =Cal_4x2_Trac!$J$3850/Cal_4x2_Trac!$J$237 -> 0 | AB44: =Cal_4x2_Trac!$J$3854/Cal_4x2_Trac!$J$241 -> 0 | AC44: =Cal_4x2_Trac!$J$3857/Cal_4x2_Trac!$J$244 -> 0
F45: =Terms!$B$11 -> FCEV LH2 | G45: =Cal_4x2_Trac!$I$4247 -> 751838.4632 | H45: =Cal_4x2_Trac!$I$4251 -> 603546.7278 | I45: =Cal_4x2_Trac!$I$4254 -> 554448.4771 | K45: =100*G45/Cal_4x2_Trac!$I$4237 -> 5.566177737 | L45: =100*H45/Cal_4x2_Trac!$I$4241 -> 4.449617485 | M45: =100*I45/Cal_4x2_Trac!$I$4244 -> 4.069859279 | O45: =Cal_4x2_Trac!$I$4850/Cal_4x2_Trac!$I$237 -> 0 | P45: =Cal_4x2_Trac!$I$4854/Cal_4x2_Trac!$I$241 -> 0 | Q45: =Cal_4x2_Trac!$I$4857/Cal_4x2_Trac!$I$244 -> 0 | S45: =Cal_4x2_Trac!$J$4247 -> 1344253.023 | T45: =Cal_4x2_Trac!$J$4251 -> 1121571.403 | U45: =Cal_4x2_Trac!$J$4254 -> 1045896.944 | W45: =100*S45/Cal_4x2_Trac!$J$4237 -> 4.976036487 | X45: =100*T45/Cal_4x2_Trac!$J$4241 -> 4.134363997 | Y45: =100*U45/Cal_4x2_Trac!$J$4244 -> 3.838637456 | AA45: =Cal_4x2_Trac!$J$4850/Cal_4x2_Trac!$J$237 -> 0 | AB45: =Cal_4x2_Trac!$J$4854/Cal_4x2_Trac!$J$241 -> 0 | AC45: =Cal_4x2_Trac!$J$4857/Cal_4x2_Trac!$J$244 -> 0
F46: =Terms!$B$12 -> BEV | G46: =Cal_4x2_Trac!$I$5247 -> 861873.371 | H46: =Cal_4x2_Trac!$I$5251 -> 695502.5828 | I46: =Cal_4x2_Trac!$I$5254 -> 617913.9692 | K46: =100*G46/Cal_4x2_Trac!$I$5237 -> 7.835941417 | L46: =100*H46/Cal_4x2_Trac!$I$5241 -> 6.062966979 | M46: =100*I46/Cal_4x2_Trac!$I$5244 -> 5.180296768 | O46: =Cal_4x2_Trac!$I$5850/Cal_4x2_Trac!$I$237 -> 0 | P46: =Cal_4x2_Trac!$I$5854/Cal_4x2_Trac!$I$241 -> 0 | Q46: =Cal_4x2_Trac!$I$5857/Cal_4x2_Trac!$I$244 -> 0 | S46: =Cal_4x2_Trac!$J$5247 -> 1515633.364 | T46: =Cal_4x2_Trac!$J$5251 -> 1264457.596 | U46: =Cal_4x2_Trac!$J$5254 -> 1172827.938 | W46: =100*S46/Cal_4x2_Trac!$J$5237 -> 6.724861761 | X46: =100*T46/Cal_4x2_Trac!$J$5241 -> 5.412847651 | Y46: =100*U46/Cal_4x2_Trac!$J$5244 -> 4.916215753 | AA46: =Cal_4x2_Trac!$J$5850/Cal_4x2_Trac!$J$237 -> 0 | AB46: =Cal_4x2_Trac!$J$5854/Cal_4x2_Trac!$J$241 -> 0 | AC46: =Cal_4x2_Trac!$J$5857/Cal_4x2_Trac!$J$244 -> 0
F47: =Terms!$B$13 -> Catenary | G47: =Cal_4x2_Trac!$I$6247 -> 769630.5855 | H47: =Cal_4x2_Trac!$I$6251 -> 730010.9799 | I47: =Cal_4x2_Trac!$I$6254 -> 711915.1059 | K47: =100*G47/Cal_4x2_Trac!$I$6237 -> 5.560180605 | L47: =100*H47/Cal_4x2_Trac!$I$6241 -> 5.255327127 | M47: =100*I47/Cal_4x2_Trac!$I$6244 -> 5.104632777 | O47: =Cal_4x2_Trac!$I$6850/Cal_4x2_Trac!$I$237 -> 0 | P47: =Cal_4x2_Trac!$I$6854/Cal_4x2_Trac!$I$241 -> 0 | Q47: =Cal_4x2_Trac!$I$6857/Cal_4x2_Trac!$I$244 -> 0 | S47: =Cal_4x2_Trac!$J$6247 -> 1471494.374 | T47: =Cal_4x2_Trac!$J$6251 -> 1395727.124 | U47: =Cal_4x2_Trac!$J$6254 -> 1360830.212 | W47: =100*S47/Cal_4x2_Trac!$J$6237 -> 5.315390678 | X47: =100*T47/Cal_4x2_Trac!$J$6241 -> 5.023898831 | Y47: =100*U47/Cal_4x2_Trac!$J$6244 -> 4.878768863 | AA47: =Cal_4x2_Trac!$J$6850/Cal_4x2_Trac!$J$237 -> 0 | AB47: =Cal_4x2_Trac!$J$6854/Cal_4x2_Trac!$J$241 -> 0 | AC47: =Cal_4x2_Trac!$J$6857/Cal_4x2_Trac!$J$244 -> 0
B50: 2 | C50: 6x2 Rigid
G51: 2023 | H51: 2027 | I51: 2030 | K51: 2023 | L51: 2027 | M51: 2030 | O51: 2023 | P51: 2027 | Q51: 2030 | S51: 2023 | T51: 2027 | U51: 2030 | W51: 2023 | X51: 2027 | Y51: 2030 | AA51: 2023 | AB51: 2027 | AC51: 2030
F52: =Terms!$B$7 -> Diesel | G52: =Cal_6x2_Rig!$I$247 -> 392079.0669 | H52: =Cal_6x2_Rig!$I$251 -> 391879.1274 | I52: =Cal_6x2_Rig!$I$254 -> 389404.2759 | K52: =100*G52/Cal_6x2_Rig!$I$237 -> 9.487696718 | L52: =100*H52/Cal_6x2_Rig!$I$241 -> 9.482858496 | M52: =100*I52/Cal_6x2_Rig!$I$244 -> 9.422970983 | O52: =Cal_6x2_Rig!$I$850/Cal_6x2_Rig!$I$237 -> 107.2551724 | P52: =Cal_6x2_Rig!$I$854/Cal_6x2_Rig!$I$241 -> 103.9034483 | Q52: =Cal_6x2_Rig!$I$857/Cal_6x2_Rig!$I$244 -> 102.4137931 | S52: =Cal_6x2_Rig!$J$247 -> 730959.81 | T52: =Cal_6x2_Rig!$J$251 -> 725744.8015 | U52: =Cal_6x2_Rig!$J$254 -> 720708.5517 | W52: =100*S52/Cal_6x2_Rig!$J$237 -> 8.844038838 | X52: =100*T52/Cal_6x2_Rig!$J$241 -> 8.780941337 | Y52: =100*U52/Cal_6x2_Rig!$J$244 -> 8.720006675 | AA52: =Cal_6x2_Rig!$J$850/Cal_6x2_Rig!$J$237 -> 107.2551724 | AB52: =Cal_6x2_Rig!$J$854/Cal_6x2_Rig!$J$241 -> 103.9034483 | AC52: =Cal_6x2_Rig!$J$857/Cal_6x2_Rig!$J$244 -> 102.4137931
F53: =Terms!$B$8 -> Diesel E-Fuels | G53: =Cal_6x2_Rig!$I$1247 -> 610959.0669 | H53: =Cal_6x2_Rig!$I$1251 -> 523343.9274 | I53: =Cal_6x2_Rig!$I$1254 -> 493904.2759 | K53: =100*G53/Cal_6x2_Rig!$I$1237 -> 14.78424844 | L53: =100*H53/Cal_6x2_Rig!$I$1241 -> 12.66409988 | M53: =100*I53/Cal_6x2_Rig!$I$1244 -> 11.95170661 | O53: =Cal_6x2_Rig!$I$1850/Cal_6x2_Rig!$I$237 -> 0 | P53: =Cal_6x2_Rig!$I$1854/Cal_6x2_Rig!$I$241 -> 0 | Q53: =Cal_6x2_Rig!$I$1857/Cal_6x2_Rig!$I$244 -> 0 | S53: =Cal_6x2_Rig!$J$1247 -> 1072412.61 | T53: =Cal_6x2_Rig!$J$1251 -> 963229.6015 | U53: =Cal_6x2_Rig!$J$1254 -> 929708.5517 | W53: =100*S53/Cal_6x2_Rig!$J$1237 -> 12.97534918 | X53: =100*T53/Cal_6x2_Rig!$J$1241 -> 11.65432065 | Y53: =100*U53/Cal_6x2_Rig!$J$1244 -> 11.24874231 | AA53: =Cal_6x2_Rig!$J$1850/Cal_6x2_Rig!$J$237 -> 0 | AB53: =Cal_6x2_Rig!$J$1854/Cal_6x2_Rig!$J$241 -> 0 | AC53: =Cal_6x2_Rig!$J$1857/Cal_6x2_Rig!$J$244 -> 0
F54: =Terms!$B$9 -> FCEV 350 bar | G54: =Cal_6x2_Rig!$I$2247 -> 472242.8628 | H54: =Cal_6x2_Rig!$I$2251 -> 392500.1956 | I54: =Cal_6x2_Rig!$I$2254 -> 365235.8263 | K54: =100*G54/Cal_6x2_Rig!$I$2237 -> 10.7249896 | L54: =100*H54/Cal_6x2_Rig!$I$2241 -> 8.848381851 | M54: =100*I54/Cal_6x2_Rig!$I$2244 -> 8.17408408 | O54: =Cal_6x2_Rig!$I$2850/Cal_6x2_Rig!$I$237 -> 0 | P54: =Cal_6x2_Rig!$I$2854/Cal_6x2_Rig!$I$241 -> 0 | Q54: =Cal_6x2_Rig!$I$2857/Cal_6x2_Rig!$I$244 -> 0 | S54: =Cal_6x2_Rig!$J$2247 -> 838238.6336 | T54: =Cal_6x2_Rig!$J$2251 -> 715504.9927 | U54: =Cal_6x2_Rig!$J$2254 -> 672371.6526 | W54: =100*S54/Cal_6x2_Rig!$J$2237 -> 9.518514025 | X54: =100*T54/Cal_6x2_Rig!$J$2241 -> 8.06504234 | Y54: =100*U54/Cal_6x2_Rig!$J$2244 -> 7.523936626 | AA54: =Cal_6x2_Rig!$J$2850/Cal_6x2_Rig!$J$237 -> 0 | AB54: =Cal_6x2_Rig!$J$2854/Cal_6x2_Rig!$J$241 -> 0 | AC54: =Cal_6x2_Rig!$J$2857/Cal_6x2_Rig!$J$244 -> 0
F55: =Terms!$B$10 -> FCEV 700 bar | G55: =Cal_6x2_Rig!$I$3247 -> 485777.3202 | H55: =Cal_6x2_Rig!$I$3251 -> 403421.4601 | I55: =Cal_6x2_Rig!$I$3254 -> 375433.5644 | K55: =100*G55/Cal_6x2_Rig!$I$3237 -> 11.19487317 | L55: =100*H55/Cal_6x2_Rig!$I$3241 -> 9.223181127 | M55: =100*I55/Cal_6x2_Rig!$I$3244 -> 8.518678875 | O55: =Cal_6x2_Rig!$I$3850/Cal_6x2_Rig!$I$237 -> 0 | P55: =Cal_6x2_Rig!$I$3854/Cal_6x2_Rig!$I$241 -> 0 | Q55: =Cal_6x2_Rig!$I$3857/Cal_6x2_Rig!$I$244 -> 0 | S55: =Cal_6x2_Rig!$J$3247 -> 863234.9904 | T55: =Cal_6x2_Rig!$J$3251 -> 736831.2398 | U55: =Cal_6x2_Rig!$J$3254 -> 692767.1287 | W55: =100*S55/Cal_6x2_Rig!$J$3237 -> 9.946744971 | X55: =100*T55/Cal_6x2_Rig!$J$3241 -> 8.422863751 | Y55: =100*U55/Cal_6x2_Rig!$J$3244 -> 7.859527311 | AA55: =Cal_6x2_Rig!$J$3850/Cal_6x2_Rig!$J$237 -> 0 | AB55: =Cal_6x2_Rig!$J$3854/Cal_6x2_Rig!$J$241 -> 0 | AC55: =Cal_6x2_Rig!$J$3857/Cal_6x2_Rig!$J$244 -> 0
F56: =Terms!$B$11 -> FCEV LH2 | G56: =Cal_6x2_Rig!$I$4247 -> 487194.4064 | H56: =Cal_6x2_Rig!$I$4251 -> 399550.3018 | I56: =Cal_6x2_Rig!$I$4254 -> 371107.9106 | K56: =100*G56/Cal_6x2_Rig!$I$4237 -> 10.81340092 | L56: =100*H56/Cal_6x2_Rig!$I$4241 -> 8.810766232 | M56: =100*I56/Cal_6x2_Rig!$I$4244 -> 8.127858578 | O56: =Cal_6x2_Rig!$I$4850/Cal_6x2_Rig!$I$237 -> 0 | P56: =Cal_6x2_Rig!$I$4854/Cal_6x2_Rig!$I$241 -> 0 | Q56: =Cal_6x2_Rig!$I$4857/Cal_6x2_Rig!$I$244 -> 0 | S56: =Cal_6x2_Rig!$J$4247 -> 858089.147 | T56: =Cal_6x2_Rig!$J$4251 -> 727410.5907 | U56: =Cal_6x2_Rig!$J$4254 -> 684115.8211 | W56: =100*S56/Cal_6x2_Rig!$J$4237 -> 9.522750926 | X56: =100*T56/Cal_6x2_Rig!$J$4241 -> 8.020322648 | Y56: =100*U56/Cal_6x2_Rig!$J$4244 -> 7.491616976 | AA56: =Cal_6x2_Rig!$J$4850/Cal_6x2_Rig!$J$237 -> 0 | AB56: =Cal_6x2_Rig!$J$4854/Cal_6x2_Rig!$J$241 -> 0 | AC56: =Cal_6x2_Rig!$J$4857/Cal_6x2_Rig!$J$244 -> 0
F57: =Terms!$B$12 -> BEV | G57: =Cal_6x2_Rig!$I$5247 -> 497431.3535 | H57: =Cal_6x2_Rig!$I$5251 -> 414342.437 | I57: =Cal_6x2_Rig!$I$5254 -> 377437.382 | K57: =100*G57/Cal_6x2_Rig!$I$5237 -> 13.52123037 | L57: =100*H57/Cal_6x2_Rig!$I$5241 -> 10.75807865 | M57: =100*I57/Cal_6x2_Rig!$I$5244 -> 9.396736948 | O57: =Cal_6x2_Rig!$I$5850/Cal_6x2_Rig!$I$237 -> 0 | P57: =Cal_6x2_Rig!$I$5854/Cal_6x2_Rig!$I$241 -> 0 | Q57: =Cal_6x2_Rig!$I$5857/Cal_6x2_Rig!$I$244 -> 0 | S57: =Cal_6x2_Rig!$J$5247 -> 878342.0611 | T57: =Cal_6x2_Rig!$J$5251 -> 756134.5182 | U57: =Cal_6x2_Rig!$J$5254 -> 701818.375 | W57: =100*S57/Cal_6x2_Rig!$J$5237 -> 11.65584148 | X57: =100*T57/Cal_6x2_Rig!$J$5241 -> 9.700967278 | Y57: =100*U57/Cal_6x2_Rig!$J$5244 -> 8.73628709 | AA57: =Cal_6x2_Rig!$J$5850/Cal_6x2_Rig!$J$237 -> 0 | AB57: =Cal_6x2_Rig!$J$5854/Cal_6x2_Rig!$J$241 -> 0 | AC57: =Cal_6x2_Rig!$J$5857/Cal_6x2_Rig!$J$244 -> 0
F58: =Terms!$B$13 -> Catenary | G58: =Cal_6x2_Rig!$I$6247 -> 506186.5946 | H58: =Cal_6x2_Rig!$I$6251 -> 480725.9452 | I58: =Cal_6x2_Rig!$I$6254 -> 469613.9619 | K58: =100*G58/Cal_6x2_Rig!$I$6237 -> 10.92883696 | L58: =100*H58/Cal_6x2_Rig!$I$6241 -> 10.32023974 | M58: =100*I58/Cal_6x2_Rig!$I$6244 -> 10.01729022 | O58: =Cal_6x2_Rig!$I$6850/Cal_6x2_Rig!$I$237 -> 0 | P58: =Cal_6x2_Rig!$I$6854/Cal_6x2_Rig!$I$241 -> 0 | Q58: =Cal_6x2_Rig!$I$6857/Cal_6x2_Rig!$I$244 -> 0 | S58: =Cal_6x2_Rig!$J$6247 -> 951639.1192 | T58: =Cal_6x2_Rig!$J$6251 -> 902622.5893 | U58: =Cal_6x2_Rig!$J$6254 -> 881127.9238 | W58: =100*S58/Cal_6x2_Rig!$J$6237 -> 10.27319657 | X58: =100*T58/Cal_6x2_Rig!$J$6241 -> 9.688765094 | Y58: =100*U58/Cal_6x2_Rig!$J$6244 -> 9.397627465 | AA58: =Cal_6x2_Rig!$J$6850/Cal_6x2_Rig!$J$237 -> 0 | AB58: =Cal_6x2_Rig!$J$6854/Cal_6x2_Rig!$J$241 -> 0 | AC58: =Cal_6x2_Rig!$J$6857/Cal_6x2_Rig!$J$244 -> 0
B60: 3 | C60: 4x2 Rigid
G61: 2023 | H61: 2027 | I61: 2030 | K61: 2023 | L61: 2027 | M61: 2030 | O61: 2023 | P61: 2027 | Q61: 2030 | S61: 2023 | T61: 2027 | U61: 2030 | W61: 2023 | X61: 2027 | Y61: 2030 | AA61: 2023 | AB61: 2027 | AC61: 2030
F62: =Terms!$B$7 -> Diesel | G62: =Cal_4x2_Rig!$I$247 -> 259966.9414 | H62: =Cal_4x2_Rig!$I$251 -> 260155.4765 | I62: =Cal_4x2_Rig!$I$254 -> 258616.5514 | K62: =100*G62/Cal_4x2_Rig!$I$237 -> 15.71984529 | L62: =100*H62/Cal_4x2_Rig!$I$241 -> 15.73124574 | M62: =100*I62/Cal_4x2_Rig!$I$244 -> 15.63818905 | O62: =Cal_4x2_Rig!$I$850/Cal_4x2_Rig!$I$237 -> 159.2816327 | P62: =Cal_4x2_Rig!$I$854/Cal_4x2_Rig!$I$241 -> 154.5795918 | Q62: =Cal_4x2_Rig!$I$857/Cal_4x2_Rig!$I$244 -> 152.2285714 | S62: =Cal_4x2_Rig!$J$247 -> 468349.1279 | T62: =Cal_4x2_Rig!$J$251 -> 465791.279 | U62: =Cal_4x2_Rig!$J$254 -> 462633.1028 | W62: =100*S62/Cal_4x2_Rig!$J$237 -> 14.16021551 | X62: =100*T62/Cal_4x2_Rig!$J$241 -> 14.08288069 | Y62: =100*U62/Cal_4x2_Rig!$J$244 -> 13.9873954 | AA62: =Cal_4x2_Rig!$J$850/Cal_4x2_Rig!$J$237 -> 159.2816327 | AB62: =Cal_4x2_Rig!$J$854/Cal_4x2_Rig!$J$241 -> 154.5795918 | AC62: =Cal_4x2_Rig!$J$857/Cal_4x2_Rig!$J$244 -> 152.2285714
F63: =Terms!$B$8 -> Diesel E-Fuels | G63: =Cal_4x2_Rig!$I$1247 -> 390046.9414 | H63: =Cal_4x2_Rig!$I$1251 -> 338424.2765 | I63: =Cal_4x2_Rig!$I$1254 -> 320776.5514 | K63: =100*G63/Cal_4x2_Rig!$I$1237 -> 23.58560492 | L63: =100*H63/Cal_4x2_Rig!$I$1241 -> 20.464053 | M63: =100*I63/Cal_4x2_Rig!$I$1244 -> 19.39691921 | O63: =Cal_4x2_Rig!$I$1850/Cal_4x2_Rig!$I$237 -> 0 | P63: =Cal_4x2_Rig!$I$1854/Cal_4x2_Rig!$I$241 -> 0 | Q63: =Cal_4x2_Rig!$I$1857/Cal_4x2_Rig!$I$244 -> 0 | S63: =Cal_4x2_Rig!$J$1247 -> 671273.9279 | T63: =Cal_4x2_Rig!$J$1251 -> 607180.079 | U63: =Cal_4x2_Rig!$J$1254 -> 586953.1028 | W63: =100*S63/Cal_4x2_Rig!$J$1237 -> 20.29550802 | X63: =100*T63/Cal_4x2_Rig!$J$1241 -> 18.35767435 | Y63: =100*U63/Cal_4x2_Rig!$J$1244 -> 17.74612556 | AA63: =Cal_4x2_Rig!$J$1850/Cal_4x2_Rig!$J$237 -> 0 | AB63: =Cal_4x2_Rig!$J$1854/Cal_4x2_Rig!$J$241 -> 0 | AC63: =Cal_4x2_Rig!$J$1857/Cal_4x2_Rig!$J$244 -> 0
F64: =Terms!$B$9 -> FCEV 350 bar | G64: =Cal_4x2_Rig!$I$2247 -> 301434.644 | H64: =Cal_4x2_Rig!$I$2251 -> 257061.4646 | I64: =Cal_4x2_Rig!$I$2254 -> 241625.9475 | K64: =100*G64/Cal_4x2_Rig!$I$2237 -> 16.71079279 | L64: =100*H64/Cal_4x2_Rig!$I$2241 -> 14.13008091 | M64: =100*I64/Cal_4x2_Rig!$I$2244 -> 13.16309258 | O64: =Cal_4x2_Rig!$I$2850/Cal_4x2_Rig!$I$237 -> 0 | P64: =Cal_4x2_Rig!$I$2854/Cal_4x2_Rig!$I$241 -> 0 | Q64: =Cal_4x2_Rig!$I$2857/Cal_4x2_Rig!$I$244 -> 0 | S64: =Cal_4x2_Rig!$J$2247 -> 520165.4025 | T64: =Cal_4x2_Rig!$J$2251 -> 452839.2818 | U64: =Cal_4x2_Rig!$J$2254 -> 428651.895 | W64: =100*S64/Cal_4x2_Rig!$J$2237 -> 14.41834313 | X64: =100*T64/Cal_4x2_Rig!$J$2241 -> 12.44576993 | Y64: =100*U64/Cal_4x2_Rig!$J$2244 -> 11.67586643 | AA64: =Cal_4x2_Rig!$J$2850/Cal_4x2_Rig!$J$237 -> 0 | AB64: =Cal_4x2_Rig!$J$2854/Cal_4x2_Rig!$J$241 -> 0 | AC64: =Cal_4x2_Rig!$J$2857/Cal_4x2_Rig!$J$244 -> 0
F65: =Terms!$B$10 -> FCEV 700 bar | G65: =Cal_4x2_Rig!$I$3247 -> 309202.3551 | H65: =Cal_4x2_Rig!$I$3251 -> 263398.5286 | I65: =Cal_4x2_Rig!$I$3254 -> 247535.0831 | K65: =100*G65/Cal_4x2_Rig!$I$3237 -> 17.34108193 | L65: =100*H65/Cal_4x2_Rig!$I$3241 -> 14.64075638 | M65: =100*I65/Cal_4x2_Rig!$I$3244 -> 13.63248435 | O65: =Cal_4x2_Rig!$I$3850/Cal_4x2_Rig!$I$237 -> 0 | P65: =Cal_4x2_Rig!$I$3854/Cal_4x2_Rig!$I$241 -> 0 | Q65: =Cal_4x2_Rig!$I$3857/Cal_4x2_Rig!$I$244 -> 0 | S65: =Cal_4x2_Rig!$J$3247 -> 534482.179 | T65: =Cal_4x2_Rig!$J$3251 -> 465208.6956 | U65: =Cal_4x2_Rig!$J$3254 -> 440470.1662 | W65: =100*S65/Cal_4x2_Rig!$J$3237 -> 14.98775656 | X65: =100*T65/Cal_4x2_Rig!$J$3241 -> 12.92909116 | Y65: =100*U65/Cal_4x2_Rig!$J$3244 -> 12.12899313 | AA65: =Cal_4x2_Rig!$J$3850/Cal_4x2_Rig!$J$237 -> 0 | AB65: =Cal_4x2_Rig!$J$3854/Cal_4x2_Rig!$J$241 -> 0 | AC65: =Cal_4x2_Rig!$J$3857/Cal_4x2_Rig!$J$244 -> 0
F66: =Terms!$B$11 -> FCEV LH2 | G66: =Cal_4x2_Rig!$I$4247 -> 311338.2126 | H66: =Cal_4x2_Rig!$I$4251 -> 262094.8229 | I66: =Cal_4x2_Rig!$I$4254 -> 245751.2558 | K66: =100*G66/Cal_4x2_Rig!$I$4237 -> 16.94760478 | L66: =100*H66/Cal_4x2_Rig!$I$4241 -> 14.15561371 | M66: =100*I66/Cal_4x2_Rig!$I$4244 -> 13.16003898 | O66: =Cal_4x2_Rig!$I$4850/Cal_4x2_Rig!$I$237 -> 0 | P66: =Cal_4x2_Rig!$I$4854/Cal_4x2_Rig!$I$241 -> 0 | Q66: =Cal_4x2_Rig!$I$4857/Cal_4x2_Rig!$I$244 -> 0 | S66: =Cal_4x2_Rig!$J$4247 -> 534061.7156 | T66: =Cal_4x2_Rig!$J$4251 -> 461610.7169 | U66: =Cal_4x2_Rig!$J$4254 -> 436902.5116 | W66: =100*S66/Cal_4x2_Rig!$J$4237 -> 14.53574685 | X66: =100*T66/Cal_4x2_Rig!$J$4241 -> 12.46568498 | Y66: =100*U66/Cal_4x2_Rig!$J$4244 -> 11.6981174 | AA66: =Cal_4x2_Rig!$J$4850/Cal_4x2_Rig!$J$237 -> 0 | AB66: =Cal_4x2_Rig!$J$4854/Cal_4x2_Rig!$J$241 -> 0 | AC66: =Cal_4x2_Rig!$J$4857/Cal_4x2_Rig!$J$244 -> 0
F67: =Terms!$B$12 -> BEV | G67: =Cal_4x2_Rig!$I$5247 -> 293197.6479 | H67: =Cal_4x2_Rig!$I$5251 -> 252453.9395 | I67: =Cal_4x2_Rig!$I$5254 -> 234989.7322 | K67: =100*G67/Cal_4x2_Rig!$I$5237 -> 18.1665153 | L67: =100*H67/Cal_4x2_Rig!$I$5241 -> 15.12196033 | M67: =100*I67/Cal_4x2_Rig!$I$5244 -> 13.63389157 | O67: =Cal_4x2_Rig!$I$5850/Cal_4x2_Rig!$I$237 -> 0 | P67: =Cal_4x2_Rig!$I$5854/Cal_4x2_Rig!$I$241 -> 0 | Q67: =Cal_4x2_Rig!$I$5857/Cal_4x2_Rig!$I$244 -> 0 | S67: =Cal_4x2_Rig!$J$5247 -> 511854.6494 | T67: =Cal_4x2_Rig!$J$5251 -> 444982.1528 | U67: =Cal_4x2_Rig!$J$5254 -> 415379.4643 | W67: =100*S67/Cal_4x2_Rig!$J$5237 -> 15.85724747 | X67: =100*T67/Cal_4x2_Rig!$J$5241 -> 13.32718847 | Y67: =100*U67/Cal_4x2_Rig!$J$5244 -> 12.04997028 | AA67: =Cal_4x2_Rig!$J$5850/Cal_4x2_Rig!$J$237 -> 0 | AB67: =Cal_4x2_Rig!$J$5854/Cal_4x2_Rig!$J$241 -> 0 | AC67: =Cal_4x2_Rig!$J$5857/Cal_4x2_Rig!$J$244 -> 0
F68: =Terms!$B$13 -> Catenary | G68: =Cal_4x2_Rig!$I$6247 -> 329260.5506 | H68: =Cal_4x2_Rig!$I$6251 -> 313491.7451 | I68: =Cal_4x2_Rig!$I$6254 -> 306320.4208 | K68: =100*G68/Cal_4x2_Rig!$I$6237 -> 17.57405894 | L68: =100*H68/Cal_4x2_Rig!$I$6241 -> 16.61159122 | M68: =100*I68/Cal_4x2_Rig!$I$6244 -> 16.09987246 | O68: =Cal_4x2_Rig!$I$6850/Cal_4x2_Rig!$I$237 -> 0 | P68: =Cal_4x2_Rig!$I$6854/Cal_4x2_Rig!$I$241 -> 0 | Q68: =Cal_4x2_Rig!$I$6857/Cal_4x2_Rig!$I$244 -> 0 | S68: =Cal_4x2_Rig!$J$6247 -> 602630.835 | T68: =Cal_4x2_Rig!$J$6251 -> 572009.6027 | U68: =Cal_4x2_Rig!$J$6254 -> 558040.8416 | W68: =100*S68/Cal_4x2_Rig!$J$6237 -> 16.08250639 | X68: =100*T68/Cal_4x2_Rig!$J$6241 -> 15.15508756 | Y68: =100*U68/Cal_4x2_Rig!$J$6244 -> 14.66501377 | AA68: =Cal_4x2_Rig!$J$6850/Cal_4x2_Rig!$J$237 -> 0 | AB68: =Cal_4x2_Rig!$J$6854/Cal_4x2_Rig!$J$241 -> 0 | AC68: =Cal_4x2_Rig!$J$6857/Cal_4x2_Rig!$J$244 -> 0

Sheet Cockpit Details
B2: Summary of the adjustments and factors of the cockpit selections
B3: =MID(CELL("filename",B3),FIND("]",CELL("filename",B3))+1,256) -> Cockpit Details | O3: Selected through Cockpit | S3: RB Assumption | W3: User override
A5: A | B5: General
B7: Annual Mileage | H7: Homogeneity of driving profile
H9: The homogenity of the driving profile has an impact on the required H2 tank size and battery capacity. If an average daily mileage of 100km is assumed based on the annual mileage input, a factor of 1,1 would mean that the model will provide the truck with enough tank/battery capacity to go 110 km without refuelling/charging.
C10: Mileage [km] | E10: Current selection | H10: Dropdown | I10: Input Parameter | J10: User override | K10: RB Assumption | M10: Current selection
B11: Min | C11: 40000 | E11: 4x2 Tractor | F11: =Cockpit!C10 -> 140000 | H11: Homogeneous | I11: =IFERROR(IF(J11="",K11,J11),"Please enter assumption") -> 1.1 | K11: 1.1 | M11: 4x2 Tractor | N11: =Cockpit!C16 -> Rather homogeneous | O11: =INDEX($I$11:$I$14,MATCH(N11,$H$11:$H$14,0)) -> 1.25
B12: Max | C12: 160000 | E12: 6x2 Rigid | F12: =Cockpit!C11 -> 95000 | H12: Rather homogeneous | I12: =IFERROR(IF(J12="",K12,J12),"Please enter assumption") -> 1.25 | K12: 1.25 | M12: 6x2 Rigid | N12: =Cockpit!C17 -> Rather homogeneous | O12: =INDEX($I$11:$I$14,MATCH(N12,$H$11:$H$14,0)) -> 1.25
E13: 4x2 Rigid | F13: =Cockpit!C12 -> 60000 | H13: Rather heterogeneous | I13: 1.5 | K13: 1.5 | M13: 4x2 Rigid | N13: =Cockpit!C18 -> Rather homogeneous | O13: =INDEX($I$11:$I$14,MATCH(N13,$H$11:$H$14,0)) -> 1.25
H14: Heterogeneous | I14: 1.75 | K14: 1.75
A18: B | B18: Refueling
B20: Public vs. Private Refueling
B22: In case that an option with private refuelling is selected, the model will add additional CAPEX to the TCO and will reduce the surcharges applied to the fuel. In case 100% private charging is assumed, the model will reduce the applied fuel surcharges to 0% and will add 100% of the Refuelling Infrastructure CAPEX to the TCO.
B24: Dropdown | D24: Factor | F24: Current selection | H24: Factor Infrastructure CAPEX | I24: Factor surcharges
B25: Public 100:0 Private | D25: 0 | F25: =Terms!$B$7 -> Diesel | G25: =Cockpit!I11 -> Public 100:0 Private | H25: =INDEX($B$25:$D$27,MATCH(G25,$B$25:$B$27,0),3) -> 0 | I25: =1-H25 -> 1
B26: Public 50:50 Private | D26: 0.5 | F26: =Terms!$B$8 -> Diesel E-Fuels | G26: =Cockpit!I11 -> Public 100:0 Private | H26: 0 | I26: =1-H26 -> 1
B27: Public 0:100 Private | D27: 1 | F27: =Terms!$B$9 -> FCEV 350 bar | G27: =Cockpit!I13 -> Public 100:0 Private | H27: 0 | I27: 1
F28: =Terms!$B$10 -> FCEV 700 bar | G28: =G27 -> Public 100:0 Private | H28: 0 | I28: 1
F29: =Terms!$B$11 -> FCEV LH2 | G29: =G27 -> Public 100:0 Private | H29: 0 | I29: 1
F30: =Terms!$B$12 -> BEV | G30: =Cockpit!I16 -> Public 100:0 Private | H30: 0 | I30: 1
F31: =Terms!$B$13 -> Catenary | G31: =Cockpit!I17 -> Public 100:0 Private | H31: 0 | I31: 1
A35: C | B35: Fuel/Energy cost
B37: Public vs. Private Refueling | N37: Resulting total energy cost per unit at current selection
B39: Energy/Fuel tax and surcharges can be adjusted in the cockpit. If a certain adjustment is selected for a propulsion technology, tax and surcharges are reduced/increased by the factor. Tax and surcharges will be entirely neglected by the model, if the user switches the scroll bar to discount tax and surcharges in the cockpit.
B41: Dropdown | D41: Factor | F41: Current selection | H41: Factor | N41: Fuel Type | P41: 2023 | Q41: 2024 | R41: 2025 | S41: 2026 | T41: 2027 | U41: 2028 | V41: 2029 | W41: 2030 | X41: 2031 | Y41: 2032 | Z41: 2033 | AA41: 2034 | AB41: 2035 | AC41: 2036 | AD41: 2037 | AE41: 2038 | AF41: 2039 | AG41: 2040
B42: Off | D42: 0 | F42: =Terms!$B$7 -> Diesel | G42: =IF(D48=C48,B42,Cockpit!K11) -> Average | H42: =INDEX($B$42:$D$45,MATCH(G42,$B$42:$B$45,0),MATCH("Factor",$B$41:$D$41)) -> 1 | N42: Diesel | O42: EUR/l | P42: =Input_EnergyFuel!E10+Input_EnergyFuel!E10*Input_EnergyFuel!E36*$D$48*$H42 -> 1.258 | Q42: =Input_EnergyFuel!F10+Input_EnergyFuel!F10*Input_EnergyFuel!F36*$D$48*$H42 -> 1.314 | R42: =Input_EnergyFuel!G10+Input_EnergyFuel!G10*Input_EnergyFuel!G36*$D$48*$H42 -> 1.37 | S42: =Input_EnergyFuel!H10+Input_EnergyFuel!H10*Input_EnergyFuel!H36*$D$48*$H42 -> 1.37 | T42: =Input_EnergyFuel!I10+Input_EnergyFuel!I10*Input_EnergyFuel!I36*$D$48*$H42 -> 1.37 | U42: =Input_EnergyFuel!J10+Input_EnergyFuel!J10*Input_EnergyFuel!J36*$D$48*$H42 -> 1.37 | V42: =Input_EnergyFuel!K10+Input_EnergyFuel!K10*Input_EnergyFuel!K36*$D$48*$H42 -> 1.37 | W42: =Input_EnergyFuel!L10+Input_EnergyFuel!L10*Input_EnergyFuel!L36*$D$48*$H42 -> 1.37 | X42: =Input_EnergyFuel!M10+Input_EnergyFuel!M10*Input_EnergyFuel!M36*$D$48*$H42 -> 1.37 | Y42: =Input_EnergyFuel!N10+Input_EnergyFuel!N10*Input_EnergyFuel!N36*$D$48*$H42 -> 1.37 | Z42: =Input_EnergyFuel!O10+Input_EnergyFuel!O10*Input_EnergyFuel!O36*$D$48*$H42 -> 1.37 | AA42: =Input_EnergyFuel!P10+Input_EnergyFuel!P10*Input_EnergyFuel!P36*$D$48*$H42 -> 1.37 | AB42: =Input_EnergyFuel!Q10+Input_EnergyFuel!Q10*Input_EnergyFuel!Q36*$D$48*$H42 -> 1.37 | AC42: =Input_EnergyFuel!R10+Input_EnergyFuel!R10*Input_EnergyFuel!R36*$D$48*$H42 -> 1.37 | AD42: =Input_EnergyFuel!S10+Input_EnergyFuel!S10*Input_EnergyFuel!S36*$D$48*$H42 -> 1.37 | AE42: =Input_EnergyFuel!T10+Input_EnergyFuel!T10*Input_EnergyFuel!T36*$D$48*$H42 -> 1.37 | AF42: =Input_EnergyFuel!U10+Input_EnergyFuel!U10*Input_EnergyFuel!U36*$D$48*$H42 -> 1.37 | AG42: =Input_EnergyFuel!V10+Input_EnergyFuel!V10*Input_EnergyFuel!V36*$D$48*$H42 -> 1.37
B43: Low | D43: 0.8 | F43: =Terms!$B$8 -> Diesel E-Fuels | G43: =G42 -> Average | H43: 1 | N43: Diesel E-Fuels | O43: EUR/l | P43: =Input_EnergyFuel!E11+Input_EnergyFuel!E11*Input_EnergyFuel!E37*$D$48*$H43 -> 3.178 | Q43: =Input_EnergyFuel!F11+Input_EnergyFuel!F11*Input_EnergyFuel!F37*$D$48*$H43 -> 3.074 | R43: =Input_EnergyFuel!G11+Input_EnergyFuel!G11*Input_EnergyFuel!G37*$D$48*$H43 -> 2.97 | S43: =Input_EnergyFuel!H11+Input_EnergyFuel!H11*Input_EnergyFuel!H37*$D$48*$H43 -> 2.81 | T43: =Input_EnergyFuel!I11+Input_EnergyFuel!I11*Input_EnergyFuel!I37*$D$48*$H43 -> 2.65 | U43: =Input_EnergyFuel!J11+Input_EnergyFuel!J11*Input_EnergyFuel!J37*$D$48*$H43 -> 2.49 | V43: =Input_EnergyFuel!K11+Input_EnergyFuel!K11*Input_EnergyFuel!K37*$D$48*$H43 -> 2.33 | W43: =Input_EnergyFuel!L11+Input_EnergyFuel!L11*Input_EnergyFuel!L37*$D$48*$H43 -> 2.17 | X43: =Input_EnergyFuel!M11+Input_EnergyFuel!M11*Input_EnergyFuel!M37*$D$48*$H43 -> 2.17 | Y43: =Input_EnergyFuel!N11+Input_EnergyFuel!N11*Input_EnergyFuel!N37*$D$48*$H43 -> 2.17 | Z43: =Input_EnergyFuel!O11+Input_EnergyFuel!O11*Input_EnergyFuel!O37*$D$48*$H43 -> 2.17 | AA43: =Input_EnergyFuel!P11+Input_EnergyFuel!P11*Input_EnergyFuel!P37*$D$48*$H43 -> 2.17 | AB43: =Input_EnergyFuel!Q11+Input_EnergyFuel!Q11*Input_EnergyFuel!Q37*$D$48*$H43 -> 2.17 | AC43: =Input_EnergyFuel!R11+Input_EnergyFuel!R11*Input_EnergyFuel!R37*$D$48*$H43 -> 2.17 | AD43: =Input_EnergyFuel!S11+Input_EnergyFuel!S11*Input_EnergyFuel!S37*$D$48*$H43 -> 2.17 | AE43: =Input_EnergyFuel!T11+Input_EnergyFuel!T11*Input_EnergyFuel!T37*$D$48*$H43 -> 2.17 | AF43: =Input_EnergyFuel!U11+Input_EnergyFuel!U11*Input_EnergyFuel!U37*$D$48*$H43 -> 2.17 | AG43: =Input_EnergyFuel!V11+Input_EnergyFuel!V11*Input_EnergyFuel!V37*$D$48*$H43 -> 2.17
B44: Average | D44: 1 | F44: =Terms!$B$9 -> FCEV 350 bar | G44: =IF(D48=C48,B42,Cockpit!K13) -> Average | H44: 1 | N44: FCEV 350 bar | O44: EUR/kg | P44: =Input_EnergyFuel!E12+Input_EnergyFuel!E12*Input_EnergyFuel!E38*$D$48*$H44 -> 6.9 | Q44: =Input_EnergyFuel!F12+Input_EnergyFuel!F12*Input_EnergyFuel!F38*$D$48*$H44 -> 6.491268596 | R44: =Input_EnergyFuel!G12+Input_EnergyFuel!G12*Input_EnergyFuel!G38*$D$48*$H44 -> 6.106748983 | S44: =Input_EnergyFuel!H12+Input_EnergyFuel!H12*Input_EnergyFuel!H38*$D$48*$H44 -> 5.745006941 | T44: =Input_EnergyFuel!I12+Input_EnergyFuel!I12*Input_EnergyFuel!I38*$D$48*$H44 -> 5.404693209 | U44: =Input_EnergyFuel!J12+Input_EnergyFuel!J12*Input_EnergyFuel!J38*$D$48*$H44 -> 5.084538449 | V44: =Input_EnergyFuel!K12+Input_EnergyFuel!K12*Input_EnergyFuel!K38*$D$48*$H44 -> 4.783348515 | W44: =Input_EnergyFuel!L12+Input_EnergyFuel!L12*Input_EnergyFuel!L38*$D$48*$H44 -> 4.5 | X44: =Input_EnergyFuel!M12+Input_EnergyFuel!M12*Input_EnergyFuel!M38*$D$48*$H44 -> 4.5 | Y44: =Input_EnergyFuel!N12+Input_EnergyFuel!N12*Input_EnergyFuel!N38*$D$48*$H44 -> 4.5 | Z44: =Input_EnergyFuel!O12+Input_EnergyFuel!O12*Input_EnergyFuel!O38*$D$48*$H44 -> 4.5 | AA44: =Input_EnergyFuel!P12+Input_EnergyFuel!P12*Input_EnergyFuel!P38*$D$48*$H44 -> 4.5 | AB44: =Input_EnergyFuel!Q12+Input_EnergyFuel!Q12*Input_EnergyFuel!Q38*$D$48*$H44 -> 4.5 | AC44: =Input_EnergyFuel!R12+Input_EnergyFuel!R12*Input_EnergyFuel!R38*$D$48*$H44 -> 4.5 | AD44: =Input_EnergyFuel!S12+Input_EnergyFuel!S12*Input_EnergyFuel!S38*$D$48*$H44 -> 4.5 | AE44: =Input_EnergyFuel!T12+Input_EnergyFuel!T12*Input_EnergyFuel!T38*$D$48*$H44 -> 4.5 | AF44: =Input_EnergyFuel!U12+Input_EnergyFuel!U12*Input_EnergyFuel!U38*$D$48*$H44 -> 4.5 | AG44: =Input_EnergyFuel!V12+Input_EnergyFuel!V12*Input_EnergyFuel!V38*$D$48*$H44 -> 4.5
B45: High | D45: 1.2 | F45: =Terms!$B$10 -> FCEV 700 bar | G45: =G44 -> Average | H45: 1 | N45: FCEV 700 bar | O45: EUR/kg | P45: =Input_EnergyFuel!E13+Input_EnergyFuel!E13*Input_EnergyFuel!E39*$D$48*$H45 -> 7.3 | Q45: =Input_EnergyFuel!F13+Input_EnergyFuel!F13*Input_EnergyFuel!F39*$D$48*$H45 -> 6.875609449 | R45: =Input_EnergyFuel!G13+Input_EnergyFuel!G13*Input_EnergyFuel!G39*$D$48*$H45 -> 6.475891136 | S45: =Input_EnergyFuel!H13+Input_EnergyFuel!H13*Input_EnergyFuel!H39*$D$48*$H45 -> 6.099410723 | T45: =Input_EnergyFuel!I13+Input_EnergyFuel!I13*Input_EnergyFuel!I39*$D$48*$H45 -> 5.74481726 | U45: =Input_EnergyFuel!J13+Input_EnergyFuel!J13*Input_EnergyFuel!J39*$D$48*$H45 -> 5.410838334 | V45: =Input_EnergyFuel!K13+Input_EnergyFuel!K13*Input_EnergyFuel!K39*$D$48*$H45 -> 5.096275503 | W45: =Input_EnergyFuel!L13+Input_EnergyFuel!L13*Input_EnergyFuel!L39*$D$48*$H45 -> 4.8 | X45: =Input_EnergyFuel!M13+Input_EnergyFuel!M13*Input_EnergyFuel!M39*$D$48*$H45 -> 4.8 | Y45: =Input_EnergyFuel!N13+Input_EnergyFuel!N13*Input_EnergyFuel!N39*$D$48*$H45 -> 4.8 | Z45: =Input_EnergyFuel!O13+Input_EnergyFuel!O13*Input_EnergyFuel!O39*$D$48*$H45 -> 4.8 | AA45: =Input_EnergyFuel!P13+Input_EnergyFuel!P13*Input_EnergyFuel!P39*$D$48*$H45 -> 4.8 | AB45: =Input_EnergyFuel!Q13+Input_EnergyFuel!Q13*Input_EnergyFuel!Q39*$D$48*$H45 -> 4.8 | AC45: =Input_EnergyFuel!R13+Input_EnergyFuel!R13*Input_EnergyFuel!R39*$D$48*$H45 -> 4.8 | AD45: =Input_EnergyFuel!S13+Input_EnergyFuel!S13*Input_EnergyFuel!S39*$D$48*$H45 -> 4.8 | AE45: =Input_EnergyFuel!T13+Input_EnergyFuel!T13*Input_EnergyFuel!T39*$D$48*$H45 -> 4.8 | AF45: =Input_EnergyFuel!U13+Input_EnergyFuel!U13*Input_EnergyFuel!U39*$D$48*$H45 -> 4.8 | AG45: =Input_EnergyFuel!V13+Input_EnergyFuel!V13*Input_EnergyFuel!V39*$D$48*$H45 -> 4.8
F46: =Terms!$B$11 -> FCEV LH2 | G46: =G44 -> Average | H46: 1 | N46: FCEV LH2 | O46: EUR/kg | P46: =Input_EnergyFuel!E14+Input_EnergyFuel!E14*Input_EnergyFuel!E40*$D$48*$H46 -> 7.7 | Q46: =Input_EnergyFuel!F14+Input_EnergyFuel!F14*Input_EnergyFuel!F40*$D$48*$H46 -> 7.197296094 | R46: =Input_EnergyFuel!G14+Input_EnergyFuel!G14*Input_EnergyFuel!G40*$D$48*$H46 -> 6.727411827 | S46: =Input_EnergyFuel!H14+Input_EnergyFuel!H14*Input_EnergyFuel!H40*$D$48*$H46 -> 6.288204528 | T46: =Input_EnergyFuel!I14+Input_EnergyFuel!I14*Input_EnergyFuel!I40*$D$48*$H46 -> 5.877671414 | U46: =Input_EnergyFuel!J14+Input_EnergyFuel!J14*Input_EnergyFuel!J40*$D$48*$H46 -> 5.493940456 | V46: =Input_EnergyFuel!K14+Input_EnergyFuel!K14*Input_EnergyFuel!K40*$D$48*$H46 -> 5.135261842 | W46: =Input_EnergyFuel!L14+Input_EnergyFuel!L14*Input_EnergyFuel!L40*$D$48*$H46 -> 4.8 | X46: =Input_EnergyFuel!M14+Input_EnergyFuel!M14*Input_EnergyFuel!M40*$D$48*$H46 -> 4.8 | Y46: =Input_EnergyFuel!N14+Input_EnergyFuel!N14*Input_EnergyFuel!N40*$D$48*$H46 -> 4.8 | Z46: =Input_EnergyFuel!O14+Input_EnergyFuel!O14*Input_EnergyFuel!O40*$D$48*$H46 -> 4.8 | AA46: =Input_EnergyFuel!P14+Input_EnergyFuel!P14*Input_EnergyFuel!P40*$D$48*$H46 -> 4.8 | AB46: =Input_EnergyFuel!Q14+Input_EnergyFuel!Q14*Input_EnergyFuel!Q40*$D$48*$H46 -> 4.8 | AC46: =Input_EnergyFuel!R14+Input_EnergyFuel!R14*Input_EnergyFuel!R40*$D$48*$H46 -> 4.8 | AD46: =Input_EnergyFuel!S14+Input_EnergyFuel!S14*Input_EnergyFuel!S40*$D$48*$H46 -> 4.8 | AE46: =Input_EnergyFuel!T14+Input_EnergyFuel!T14*Input_EnergyFuel!T40*$D$48*$H46 -> 4.8 | AF46: =Input_EnergyFuel!U14+Input_EnergyFuel!U14*Input_EnergyFuel!U40*$D$48*$H46 -> 4.8 | AG46: =Input_EnergyFuel!V14+Input_EnergyFuel!V14*Input_EnergyFuel!V40*$D$48*$H46 -> 4.8
C47: Dropdown | D47: Current selection | F47: =Terms!$B$12 -> BEV | G47: =IF(D48=C48,B42,Cockpit!K16) -> Average | H47: 1 | N47: BEV | O47: EUR/kwh | P47: =Input_EnergyFuel!E15+Input_EnergyFuel!E15*Input_EnergyFuel!E41*$D$48*$H47 -> 0.3 | Q47: =Input_EnergyFuel!F15+Input_EnergyFuel!F15*Input_EnergyFuel!F41*$D$48*$H47 -> 0.2857142857 | R47: =Input_EnergyFuel!G15+Input_EnergyFuel!G15*Input_EnergyFuel!G41*$D$48*$H47 -> 0.2714285714 | S47: =Input_EnergyFuel!H15+Input_EnergyFuel!H15*Input_EnergyFuel!H41*$D$48*$H47 -> 0.2571428571 | T47: =Input_EnergyFuel!I15+Input_EnergyFuel!I15*Input_EnergyFuel!I41*$D$48*$H47 -> 0.2428571429 | U47: =Input_EnergyFuel!J15+Input_EnergyFuel!J15*Input_EnergyFuel!J41*$D$48*$H47 -> 0.2285714286 | V47: =Input_EnergyFuel!K15+Input_EnergyFuel!K15*Input_EnergyFuel!K41*$D$48*$H47 -> 0.2142857143 | W47: =Input_EnergyFuel!L15+Input_EnergyFuel!L15*Input_EnergyFuel!L41*$D$48*$H47 -> 0.2 | X47: =Input_EnergyFuel!M15+Input_EnergyFuel!M15*Input_EnergyFuel!M41*$D$48*$H47 -> 0.2 | Y47: =Input_EnergyFuel!N15+Input_EnergyFuel!N15*Input_EnergyFuel!N41*$D$48*$H47 -> 0.2 | Z47: =Input_EnergyFuel!O15+Input_EnergyFuel!O15*Input_EnergyFuel!O41*$D$48*$H47 -> 0.2 | AA47: =Input_EnergyFuel!P15+Input_EnergyFuel!P15*Input_EnergyFuel!P41*$D$48*$H47 -> 0.2 | AB47: =Input_EnergyFuel!Q15+Input_EnergyFuel!Q15*Input_EnergyFuel!Q41*$D$48*$H47 -> 0.2 | AC47: =Input_EnergyFuel!R15+Input_EnergyFuel!R15*Input_EnergyFuel!R41*$D$48*$H47 -> 0.2 | AD47: =Input_EnergyFuel!S15+Input_EnergyFuel!S15*Input_EnergyFuel!S41*$D$48*$H47 -> 0.2 | AE47: =Input_EnergyFuel!T15+Input_EnergyFuel!T15*Input_EnergyFuel!T41*$D$48*$H47 -> 0.2 | AF47: =Input_EnergyFuel!U15+Input_EnergyFuel!U15*Input_EnergyFuel!U41*$D$48*$H47 -> 0.2 | AG47: =Input_EnergyFuel!V15+Input_EnergyFuel!V15*Input_EnergyFuel!V41*$D$48*$H47 -> 0.2
B48: No | C48: 0 | D48: 1 | F48: =Terms!$B$13 -> Catenary | G48: =G47 -> Average | H48: 1 | N48: Catenary | O48: EUR/kwh | P48: =Input_EnergyFuel!E16+Input_EnergyFuel!E16*Input_EnergyFuel!E42*$D$48*$H48 -> 0.51 | Q48: =Input_EnergyFuel!F16+Input_EnergyFuel!F16*Input_EnergyFuel!F42*$D$48*$H48 -> 0.5085714286 | R48: =Input_EnergyFuel!G16+Input_EnergyFuel!G16*Input_EnergyFuel!G42*$D$48*$H48 -> 0.5071428571 | S48: =Input_EnergyFuel!H16+Input_EnergyFuel!H16*Input_EnergyFuel!H42*$D$48*$H48 -> 0.5057142857 | T48: =Input_EnergyFuel!I16+Input_EnergyFuel!I16*Input_EnergyFuel!I42*$D$48*$H48 -> 0.5042857143 | U48: =Input_EnergyFuel!J16+Input_EnergyFuel!J16*Input_EnergyFuel!J42*$D$48*$H48 -> 0.5028571429 | V48: =Input_EnergyFuel!K16+Input_EnergyFuel!K16*Input_EnergyFuel!K42*$D$48*$H48 -> 0.5014285714 | W48: =Input_EnergyFuel!L16+Input_EnergyFuel!L16*Input_EnergyFuel!L42*$D$48*$H48 -> 0.5 | X48: =Input_EnergyFuel!M16+Input_EnergyFuel!M16*Input_EnergyFuel!M42*$D$48*$H48 -> 0.5 | Y48: =Input_EnergyFuel!N16+Input_EnergyFuel!N16*Input_EnergyFuel!N42*$D$48*$H48 -> 0.5 | Z48: =Input_EnergyFuel!O16+Input_EnergyFuel!O16*Input_EnergyFuel!O42*$D$48*$H48 -> 0.5 | AA48: =Input_EnergyFuel!P16+Input_EnergyFuel!P16*Input_EnergyFuel!P42*$D$48*$H48 -> 0.5 | AB48: =Input_EnergyFuel!Q16+Input_EnergyFuel!Q16*Input_EnergyFuel!Q42*$D$48*$H48 -> 0.5 | AC48: =Input_EnergyFuel!R16+Input_EnergyFuel!R16*Input_EnergyFuel!R42*$D$48*$H48 -> 0.5 | AD48: =Input_EnergyFuel!S16+Input_EnergyFuel!S16*Input_EnergyFuel!S42*$D$48*$H48 -> 0.5 | AE48: =Input_EnergyFuel!T16+Input_EnergyFuel!T16*Input_EnergyFuel!T42*$D$48*$H48 -> 0.5 | AF48: =Input_EnergyFuel!U16+Input_EnergyFuel!U16*Input_EnergyFuel!U42*$D$48*$H48 -> 0.5 | AG48: =Input_EnergyFuel!V16+Input_EnergyFuel!V16*Input_EnergyFuel!V42*$D$48*$H48 -> 0.5
B49: Yes | C49: 1
A53: D | B53: Motor Vehicle Tax
B55: Motor Vehicle Tax
B57: Motor vehicle tax can be reduced/increased by a factor selected in the cockpit.
B59: Dropdown | D59: Factor | F59: Current selection | H59: Factor
B60: Off | D60: 0 | F60: =Terms!$B$7 -> Diesel | G60: =IF(D66=C66,B60,Cockpit!N11) -> Average | H60: =INDEX($B$60:$D$63,MATCH(G60,$B$60:$B$63,0),MATCH("Factor",$B$59:$D$59)) -> 1
B61: Low | D61: 0.7 | F61: =Terms!$B$8 -> Diesel E-Fuels | G61: =G60 -> Average | H61: 1
B62: Average | D62: 1 | F62: =Terms!$B$9 -> FCEV 350 bar | G62: =IF(D66=C66,B60,Cockpit!N13) -> Average | H62: 1
B63: High | D63: 1.3 | F63: =Terms!$B$10 -> FCEV 700 bar | G63: =G62 -> Average | H63: 1
F64: =Terms!$B$11 -> FCEV LH2 | G64: =G62 -> Average | H64: 1
C65: Dropdown | D65: Current selection | F65: =Terms!$B$12 -> BEV | G65: =IF(D66=C66,B60,Cockpit!N16) -> Average | H65: 1
B66: No | C66: 0 | D66: 1 | F66: =Terms!$B$13 -> Catenary | G66: =G65 -> Average | H66: 1
B67: Yes | C67: 1
A71: E | B71: Road toll
B73: Road Toll | N73: Factor per year used in calculation | AI73: Resulting Road toll per km - 4x2 Tractor | BD73: Resulting Road toll per km - 6x2 Rigid | BY73: Resulting Road toll per km - 4x2 Rigid
B77: Dropdown | D77: Factor | F77: Current selection | G77: 2023 | H77: Factor | I77: 2027 | J77: Factor | K77: 2030 | L77: Factor | O77: 2023 | P77: 2024 | Q77: 2025 | R77: 2026 | S77: 2027 | T77: 2028 | U77: 2029 | V77: 2030 | W77: 2031 | X77: 2032 | Y77: 2033 | Z77: 2034 | AA77: 2035 | AB77: 2036 | AC77: 2037 | AD77: 2038 | AE77: 2039 | AF77: 2040 | AI77: Fuel Type | AK77: 2023 | AL77: 2024 | AM77: 2025 | AN77: 2026 | AO77: 2027 | AP77: 2028 | AQ77: 2029 | AR77: 2030 | AS77: 2031 | AT77: 2032 | AU77: 2033 | AV77: 2034 | AW77: 2035 | AX77: 2036 | AY77: 2037 | AZ77: 2038 | BA77: 2039 | BB77: 2040 | BD77: Fuel Type | BF77: 2023 | BG77: 2024 | BH77: 2025 | BI77: 2026 | BJ77: 2027 | BK77: 2028 | BL77: 2029 | BM77: 2030 | BN77: 2031 | BO77: 2032 | BP77: 2033 | BQ77: 2034 | BR77: 2035 | BS77: 2036 | BT77: 2037 | BU77: 2038 | BV77: 2039 | BW77: 2040 | BY77: Fuel Type | CA77: 2023 | CB77: 2024 | CC77: 2025 | CD77: 2026 | CE77: 2027 | CF77: 2028 | CG77: 2029 | CH77: 2030 | CI77: 2031 | CJ77: 2032 | CK77: 2033 | CL77: 2034 | CM77: 2035 | CN77: 2036 | CO77: 2037 | CP77: 2038 | CQ77: 2039 | CR77: 2040
B78: Off | D78: 0 | F78: =Terms!$B$7 -> Diesel | G78: =IF(D84=C84,B78,Cockpit!R11) -> Average | H78: =INDEX($B$78:$D$81,MATCH(G78,$B$78:$B$81,0),MATCH("Factor",$B$77:$D$77)) -> 1 | I78: =IF(D84=C84,B78,Cockpit!T11) -> Average | J78: =INDEX($B$78:$D$81,MATCH(I78,$B$78:$B$81,0),MATCH("Factor",$B$77:$D$77)) -> 1 | K78: =IF(D84=C84,B78,Cockpit!V11) -> Average | L78: =INDEX($B$78:$D$81,MATCH(K78,$B$78:$B$81,0),MATCH("Factor",$B$77:$D$77)) -> 1 | N78: =Terms!B7 -> Diesel | O78: =H78 -> 1 | P78: =O78 -> 1 | Q78: =O78 -> 1 | R78: =O78 -> 1 | S78: =J78 -> 1 | T78: =S78 -> 1 | U78: =S78 -> 1 | V78: =L78 -> 1 | W78: =V78 -> 1 | X78: =W78 -> 1 | Y78: 1 | Z78: 1 | AA78: 1 | AB78: 1 | AC78: 1 | AD78: 1 | AE78: 1 | AF78: 1 | AI78: =Terms!B7 -> Diesel | AJ78: EUR/km | AK78: =O78*'Input_4x2_Trac 330kW'!$E$203 -> 0.17 | AL78: =P78*'Input_4x2_Trac 330kW'!$E$203 -> 0.17 | AM78: =Q78*'Input_4x2_Trac 330kW'!$E$203 -> 0.17 | AN78: =R78*'Input_4x2_Trac 330kW'!$E$203 -> 0.17 | AO78: =S78*'Input_4x2_Trac 330kW'!$E$203 -> 0.17 | AP78: =T78*'Input_4x2_Trac 330kW'!$E$203 -> 0.17 | AQ78: =U78*'Input_4x2_Trac 330kW'!$E$203 -> 0.17 | AR78: =V78*'Input_4x2_Trac 330kW'!$E$203 -> 0.17 | AS78: =W78*'Input_4x2_Trac 330kW'!$E$203 -> 0.17 | AT78: =X78*'Input_4x2_Trac 330kW'!$E$203 -> 0.17 | AU78: =Y78*'Input_4x2_Trac 330kW'!$E$203 -> 0.17 | AV78: =Z78*'Input_4x2_Trac 330kW'!$E$203 -> 0.17 | AW78: =AA78*'Input_4x2_Trac 330kW'!$E$203 -> 0.17 | AX78: =AB78*'Input_4x2_Trac 330kW'!$E$203 -> 0.17 | AY78: =AC78*'Input_4x2_Trac 330kW'!$E$203 -> 0.17 | AZ78: =AD78*'Input_4x2_Trac 330kW'!$E$203 -> 0.17 | BA78: =AE78*'Input_4x2_Trac 330kW'!$E$203 -> 0.17 | BB78: =AF78*'Input_4x2_Trac 330kW'!$E$203 -> 0.17 | BD78: =Terms!B7 -> Diesel | BE78: EUR/km | BF78: =O78*'Input_6x2_Rig 270kW'!$E$203 -> 0.17 | BG78: =P78*'Input_6x2_Rig 270kW'!$E$203 -> 0.17 | BH78: =Q78*'Input_6x2_Rig 270kW'!$E$203 -> 0.17 | BI78: =R78*'Input_6x2_Rig 270kW'!$E$203 -> 0.17 | BJ78: =S78*'Input_6x2_Rig 270kW'!$E$203 -> 0.17 | BK78: =T78*'Input_6x2_Rig 270kW'!$E$203 -> 0.17 | BL78: =U78*'Input_6x2_Rig 270kW'!$E$203 -> 0.17 | BM78: =V78*'Input_6x2_Rig 270kW'!$E$203 -> 0.17 | BN78: =W78*'Input_6x2_Rig 270kW'!$E$203 -> 0.17 | BO78: =X78*'Input_6x2_Rig 270kW'!$E$203 -> 0.17 | BP78: =Y78*'Input_6x2_Rig 270kW'!$E$203 -> 0.17 | BQ78: =Z78*'Input_6x2_Rig 270kW'!$E$203 -> 0.17 | BR78: =AA78*'Input_6x2_Rig 270kW'!$E$203 -> 0.17 | BS78: =AB78*'Input_6x2_Rig 270kW'!$E$203 -> 0.17 | BT78: =AC78*'Input_6x2_Rig 270kW'!$E$203 -> 0.17 | BU78: =AD78*'Input_6x2_Rig 270kW'!$E$203 -> 0.17 | BV78: =AE78*'Input_6x2_Rig 270kW'!$E$203 -> 0.17 | BW78: =AF78*'Input_6x2_Rig 270kW'!$E$203 -> 0.17 | BY78: =Terms!B7 -> Diesel | BZ78: EUR/km | CA78: =O78*'Input_4x2_Rig 220kW'!$E$203 -> 0.17 | CB78: =P78*'Input_4x2_Rig 220kW'!$E$203 -> 0.17 | CC78: =Q78*'Input_4x2_Rig 220kW'!$E$203 -> 0.17 | CD78: =R78*'Input_4x2_Rig 220kW'!$E$203 -> 0.17 | CE78: =S78*'Input_4x2_Rig 220kW'!$E$203 -> 0.17 | CF78: =T78*'Input_4x2_Rig 220kW'!$E$203 -> 0.17 | CG78: =U78*'Input_4x2_Rig 220kW'!$E$203 -> 0.17 | CH78: =V78*'Input_4x2_Rig 220kW'!$E$203 -> 0.17 | CI78: =W78*'Input_4x2_Rig 220kW'!$E$203 -> 0.17 | CJ78: =X78*'Input_4x2_Rig 220kW'!$E$203 -> 0.17 | CK78: =Y78*'Input_4x2_Rig 220kW'!$E$203 -> 0.17 | CL78: =Z78*'Input_4x2_Rig 220kW'!$E$203 -> 0.17 | CM78: =AA78*'Input_4x2_Rig 220kW'!$E$203 -> 0.17 | CN78: =AB78*'Input_4x2_Rig 220kW'!$E$203 -> 0.17 | CO78: =AC78*'Input_4x2_Rig 220kW'!$E$203 -> 0.17 | CP78: =AD78*'Input_4x2_Rig 220kW'!$E$203 -> 0.17 | CQ78: =AE78*'Input_4x2_Rig 220kW'!$E$203 -> 0.17 | CR78: =AF78*'Input_4x2_Rig 220kW'!$E$203 -> 0.17
B79: Low | D79: 0.75 | F79: =Terms!$B$8 -> Diesel E-Fuels | G79: =G78 -> Average | H79: 1 | I79: =I78 -> Average | J79: 1 | K79: =K78 -> Average | L79: 1 | N79: =Terms!B8 -> Diesel E-Fuels | O79: 1 | P79: =O79 -> 1 | Q79: =O79 -> 1 | R79: =O79 -> 1 | S79: 1 | T79: =S79 -> 1 | U79: =S79 -> 1 | V79: 1 | W79: =V79 -> 1 | X79: 1 | Y79: 1 | Z79: 1 | AA79: 1 | AB79: 1 | AC79: 1 | AD79: 1 | AE79: 1 | AF79: 1 | AI79: =Terms!B8 -> Diesel E-Fuels | AJ79: EUR/km | AK79: =O79*'Input_4x2_Trac 330kW'!$E$203 -> 0.17 | AL79: =P79*'Input_4x2_Trac 330kW'!$E$203 -> 0.17 | AM79: =Q79*'Input_4x2_Trac 330kW'!$E$203 -> 0.17 | AN79: =R79*'Input_4x2_Trac 330kW'!$E$203 -> 0.17 | AO79: =S79*'Input_4x2_Trac 330kW'!$E$203 -> 0.17 | AP79: =T79*'Input_4x2_Trac 330kW'!$E$203 -> 0.17 | AQ79: =U79*'Input_4x2_Trac 330kW'!$E$203 -> 0.17 | AR79: =V79*'Input_4x2_Trac 330kW'!$E$203 -> 0.17 | AS79: =W79*'Input_4x2_Trac 330kW'!$E$203 -> 0.17 | AT79: =X79*'Input_4x2_Trac 330kW'!$E$203 -> 0.17 | AU79: =Y79*'Input_4x2_Trac 330kW'!$E$203 -> 0.17 | AV79: =Z79*'Input_4x2_Trac 330kW'!$E$203 -> 0.17 | AW79: =AA79*'Input_4x2_Trac 330kW'!$E$203 -> 0.17 | AX79: =AB79*'Input_4x2_Trac 330kW'!$E$203 -> 0.17 | AY79: =AC79*'Input_4x2_Trac 330kW'!$E$203 -> 0.17 | AZ79: =AD79*'Input_4x2_Trac 330kW'!$E$203 -> 0.17 | BA79: =AE79*'Input_4x2_Trac 330kW'!$E$203 -> 0.17 | BB79: =AF79*'Input_4x2_Trac 330kW'!$E$203 -> 0.17 | BD79: =Terms!B8 -> Diesel E-Fuels | BE79: EUR/km | BF79: =O79*'Input_6x2_Rig 270kW'!$E$203 -> 0.17 | BG79: =P79*'Input_6x2_Rig 270kW'!$E$203 -> 0.17 | BH79: =Q79*'Input_6x2_Rig 270kW'!$E$203 -> 0.17 | BI79: =R79*'Input_6x2_Rig 270kW'!$E$203 -> 0.17 | BJ79: =S79*'Input_6x2_Rig 270kW'!$E$203 -> 0.17 | BK79: =T79*'Input_6x2_Rig 270kW'!$E$203 -> 0.17 | BL79: =U79*'Input_6x2_Rig 270kW'!$E$203 -> 0.17 | BM79: =V79*'Input_6x2_Rig 270kW'!$E$203 -> 0.17 | BN79: =W79*'Input_6x2_Rig 270kW'!$E$203 -> 0.17 | BO79: =X79*'Input_6x2_Rig 270kW'!$E$203 -> 0.17 | BP79: =Y79*'Input_6x2_Rig 270kW'!$E$203 -> 0.17 | BQ79: =Z79*'Input_6x2_Rig 270kW'!$E$203 -> 0.17 | BR79: =AA79*'Input_6x2_Rig 270kW'!$E$203 -> 0.17 | BS79: =AB79*'Input_6x2_Rig 270kW'!$E$203 -> 0.17 | BT79: =AC79*'Input_6x2_Rig 270kW'!$E$203 -> 0.17 | BU79: =AD79*'Input_6x2_Rig 270kW'!$E$203 -> 0.17 | BV79: =AE79*'Input_6x2_Rig 270kW'!$E$203 -> 0.17 | BW79: =AF79*'Input_6x2_Rig 270kW'!$E$203 -> 0.17 | BY79: =Terms!B8 -> Diesel E-Fuels | BZ79: EUR/km | CA79: =O79*'Input_4x2_Rig 220kW'!$E$203 -> 0.17 | CB79: =P79*'Input_4x2_Rig 220kW'!$E$203 -> 0.17 | CC79: =Q79*'Input_4x2_Rig 220kW'!$E$203 -> 0.17 | CD79: =R79*'Input_4x2_Rig 220kW'!$E$203 -> 0.17 | CE79: =S79*'Input_4x2_Rig 220kW'!$E$203 -> 0.17 | CF79: =T79*'Input_4x2_Rig 220kW'!$E$203 -> 0.17 | CG79: =U79*'Input_4x2_Rig 220kW'!$E$203 -> 0.17 | CH79: =V79*'Input_4x2_Rig 220kW'!$E$203 -> 0.17 | CI79: =W79*'Input_4x2_Rig 220kW'!$E$203 -> 0.17 | CJ79: =X79*'Input_4x2_Rig 220kW'!$E$203 -> 0.17 | CK79: =Y79*'Input_4x2_Rig 220kW'!$E$203 -> 0.17 | CL79: =Z79*'Input_4x2_Rig 220kW'!$E$203 -> 0.17 | CM79: =AA79*'Input_4x2_Rig 220kW'!$E$203 -> 0.17 | CN79: =AB79*'Input_4x2_Rig 220kW'!$E$203 -> 0.17 | CO79: =AC79*'Input_4x2_Rig 220kW'!$E$203 -> 0.17 | CP79: =AD79*'Input_4x2_Rig 220kW'!$E$203 -> 0.17 | CQ79: =AE79*'Input_4x2_Rig 220kW'!$E$203 -> 0.17 | CR79: =AF79*'Input_4x2_Rig 220kW'!$E$203 -> 0.17
B80: Average | D80: 1 | F80: =Terms!$B$9 -> FCEV 350 bar | G80: =IF(D84=C84,B78,Cockpit!R13) -> Average | H80: 1 | I80: =IF(D84=C84,B78,Cockpit!T13) -> Average | J80: 1 | K80: =IF(D84=C84,B78,Cockpit!V13) -> Average | L80: 1 | N80: =Terms!B9 -> FCEV 350 bar | O80: 1 | P80: 1 | Q80: 1 | R80: 1 | S80: 1 | T80: 1 | U80: 1 | V80: 1 | W80: 1 | X80: 1 | Y80: 1 | Z80: 1 | AA80: 1 | AB80: 1 | AC80: 1 | AD80: 1 | AE80: 1 | AF80: 1 | AI80: =Terms!B9 -> FCEV 350 bar | AJ80: EUR/km | AK80: =O80*'Input_4x2_Trac 330kW'!$E$203 -> 0.17 | AL80: =P80*'Input_4x2_Trac 330kW'!$E$203 -> 0.17 | AM80: =Q80*'Input_4x2_Trac 330kW'!$E$203 -> 0.17 | AN80: =R80*'Input_4x2_Trac 330kW'!$E$203 -> 0.17 | AO80: =S80*'Input_4x2_Trac 330kW'!$E$203 -> 0.17 | AP80: =T80*'Input_4x2_Trac 330kW'!$E$203 -> 0.17 | AQ80: =U80*'Input_4x2_Trac 330kW'!$E$203 -> 0.17 | AR80: =V80*'Input_4x2_Trac 330kW'!$E$203 -> 0.17 | AS80: =W80*'Input_4x2_Trac 330kW'!$E$203 -> 0.17 | AT80: =X80*'Input_4x2_Trac 330kW'!$E$203 -> 0.17 | AU80: =Y80*'Input_4x2_Trac 330kW'!$E$203 -> 0.17 | AV80: =Z80*'Input_4x2_Trac 330kW'!$E$203 -> 0.17 | AW80: =AA80*'Input_4x2_Trac 330kW'!$E$203 -> 0.17 | AX80: =AB80*'Input_4x2_Trac 330kW'!$E$203 -> 0.17 | AY80: =AC80*'Input_4x2_Trac 330kW'!$E$203 -> 0.17 | AZ80: =AD80*'Input_4x2_Trac 330kW'!$E$203 -> 0.17 | BA80: =AE80*'Input_4x2_Trac 330kW'!$E$203 -> 0.17 | BB80: =AF80*'Input_4x2_Trac 330kW'!$E$203 -> 0.17 | BD80: =Terms!B9 -> FCEV 350 bar | BE80: EUR/km | BF80: =O80*'Input_6x2_Rig 270kW'!$E$203 -> 0.17 | BG80: =P80*'Input_6x2_Rig 270kW'!$E$203 -> 0.17 | BH80: =Q80*'Input_6x2_Rig 270kW'!$E$203 -> 0.17 | BI80: =R80*'Input_6x2_Rig 270kW'!$E$203 -> 0.17 | BJ80: =S80*'Input_6x2_Rig 270kW'!$E$203 -> 0.17 | BK80: =T80*'Input_6x2_Rig 270kW'!$E$203 -> 0.17 | BL80: =U80*'Input_6x2_Rig 270kW'!$E$203 -> 0.17 | BM80: =V80*'Input_6x2_Rig 270kW'!$E$203 -> 0.17 | BN80: =W80*'Input_6x2_Rig 270kW'!$E$203 -> 0.17 | BO80: =X80*'Input_6x2_Rig 270kW'!$E$203 -> 0.17 | BP80: =Y80*'Input_6x2_Rig 270kW'!$E$203 -> 0.17 | BQ80: =Z80*'Input_6x2_Rig 270kW'!$E$203 -> 0.17 | BR80: =AA80*'Input_6x2_Rig 270kW'!$E$203 -> 0.17 | BS80: =AB80*'Input_6x2_Rig 270kW'!$E$203 -> 0.17 | BT80: =AC80*'Input_6x2_Rig 270kW'!$E$203 -> 0.17 | BU80: =AD80*'Input_6x2_Rig 270kW'!$E$203 -> 0.17 | BV80: =AE80*'Input_6x2_Rig 270kW'!$E$203 -> 0.17 | BW80: =AF80*'Input_6x2_Rig 270kW'!$E$203 -> 0.17 | BY80: =Terms!B9 -> FCEV 350 bar | BZ80: EUR/km | CA80: =O80*'Input_4x2_Rig 220kW'!$E$203 -> 0.17 | CB80: =P80*'Input_4x2_Rig 220kW'!$E$203 -> 0.17 | CC80: =Q80*'Input_4x2_Rig 220kW'!$E$203 -> 0.17 | CD80: =R80*'Input_4x2_Rig 220kW'!$E$203 -> 0.17 | CE80: =S80*'Input_4x2_Rig 220kW'!$E$203 -> 0.17 | CF80: =T80*'Input_4x2_Rig 220kW'!$E$203 -> 0.17 | CG80: =U80*'Input_4x2_Rig 220kW'!$E$203 -> 0.17 | CH80: =V80*'Input_4x2_Rig 220kW'!$E$203 -> 0.17 | CI80: =W80*'Input_4x2_Rig 220kW'!$E$203 -> 0.17 | CJ80: =X80*'Input_4x2_Rig 220kW'!$E$203 -> 0.17 | CK80: =Y80*'Input_4x2_Rig 220kW'!$E$203 -> 0.17 | CL80: =Z80*'Input_4x2_Rig 220kW'!$E$203 -> 0.17 | CM80: =AA80*'Input_4x2_Rig 220kW'!$E$203 -> 0.17 | CN80: =AB80*'Input_4x2_Rig 220kW'!$E$203 -> 0.17 | CO80: =AC80*'Input_4x2_Rig 220kW'!$E$203 -> 0.17 | CP80: =AD80*'Input_4x2_Rig 220kW'!$E$203 -> 0.17 | CQ80: =AE80*'Input_4x2_Rig 220kW'!$E$203 -> 0.17 | CR80: =AF80*'Input_4x2_Rig 220kW'!$E$203 -> 0.17
B81: High | D81: 1.25 | F81: =Terms!$B$10 -> FCEV 700 bar | G81: =G80 -> Average | H81: 1 | I81: =I80 -> Average | J81: 1 | K81: =K80 -> Average | L81: 1 | N81: =Terms!B10 -> FCEV 700 bar | O81: 1 | P81: 1 | Q81: 1 | R81: 1 | S81: 1 | T81: 1 | U81: 1 | V81: 1 | W81: 1 | X81: 1 | Y81: 1 | Z81: 1 | AA81: 1 | AB81: 1 | AC81: 1 | AD81: 1 | AE81: 1 | AF81: 1 | AI81: =Terms!B10 -> FCEV 700 bar | AJ81: EUR/km | AK81: =O81*'Input_4x2_Trac 330kW'!$E$203 -> 0.17 | AL81: =P81*'Input_4x2_Trac 330kW'!$E$203 -> 0.17 | AM81: =Q81*'Input_4x2_Trac 330kW'!$E$203 -> 0.17 | AN81: =R81*'Input_4x2_Trac 330kW'!$E$203 -> 0.17 | AO81: =S81*'Input_4x2_Trac 330kW'!$E$203 -> 0.17 | AP81: =T81*'Input_4x2_Trac 330kW'!$E$203 -> 0.17 | AQ81: =U81*'Input_4x2_Trac 330kW'!$E$203 -> 0.17 | AR81: =V81*'Input_4x2_Trac 330kW'!$E$203 -> 0.17 | AS81: =W81*'Input_4x2_Trac 330kW'!$E$203 -> 0.17 | AT81: =X81*'Input_4x2_Trac 330kW'!$E$203 -> 0.17 | AU81: =Y81*'Input_4x2_Trac 330kW'!$E$203 -> 0.17 | AV81: =Z81*'Input_4x2_Trac 330kW'!$E$203 -> 0.17 | AW81: =AA81*'Input_4x2_Trac 330kW'!$E$203 -> 0.17 | AX81: =AB81*'Input_4x2_Trac 330kW'!$E$203 -> 0.17 | AY81: =AC81*'Input_4x2_Trac 330kW'!$E$203 -> 0.17 | AZ81: =AD81*'Input_4x2_Trac 330kW'!$E$203 -> 0.17 | BA81: =AE81*'Input_4x2_Trac 330kW'!$E$203 -> 0.17 | BB81: =AF81*'Input_4x2_Trac 330kW'!$E$203 -> 0.17 | BD81: =Terms!B10 -> FCEV 700 bar | BE81: EUR/km | BF81: =O81*'Input_6x2_Rig 270kW'!$E$203 -> 0.17 | BG81: =P81*'Input_6x2_Rig 270kW'!$E$203 -> 0.17 | BH81: =Q81*'Input_6x2_Rig 270kW'!$E$203 -> 0.17 | BI81: =R81*'Input_6x2_Rig 270kW'!$E$203 -> 0.17 | BJ81: =S81*'Input_6x2_Rig 270kW'!$E$203 -> 0.17 | BK81: =T81*'Input_6x2_Rig 270kW'!$E$203 -> 0.17 | BL81: =U81*'Input_6x2_Rig 270kW'!$E$203 -> 0.17 | BM81: =V81*'Input_6x2_Rig 270kW'!$E$203 -> 0.17 | BN81: =W81*'Input_6x2_Rig 270kW'!$E$203 -> 0.17 | BO81: =X81*'Input_6x2_Rig 270kW'!$E$203 -> 0.17 | BP81: =Y81*'Input_6x2_Rig 270kW'!$E$203 -> 0.17 | BQ81: =Z81*'Input_6x2_Rig 270kW'!$E$203 -> 0.17 | BR81: =AA81*'Input_6x2_Rig 270kW'!$E$203 -> 0.17 | BS81: =AB81*'Input_6x2_Rig 270kW'!$E$203 -> 0.17 | BT81: =AC81*'Input_6x2_Rig 270kW'!$E$203 -> 0.17 | BU81: =AD81*'Input_6x2_Rig 270kW'!$E$203 -> 0.17 | BV81: =AE81*'Input_6x2_Rig 270kW'!$E$203 -> 0.17 | BW81: =AF81*'Input_6x2_Rig 270kW'!$E$203 -> 0.17 | BY81: =Terms!B10 -> FCEV 700 bar | BZ81: EUR/km | CA81: =O81*'Input_4x2_Rig 220kW'!$E$203 -> 0.17 | CB81: =P81*'Input_4x2_Rig 220kW'!$E$203 -> 0.17 | CC81: =Q81*'Input_4x2_Rig 220kW'!$E$203 -> 0.17 | CD81: =R81*'Input_4x2_Rig 220kW'!$E$203 -> 0.17 | CE81: =S81*'Input_4x2_Rig 220kW'!$E$203 -> 0.17 | CF81: =T81*'Input_4x2_Rig 220kW'!$E$203 -> 0.17 | CG81: =U81*'Input_4x2_Rig 220kW'!$E$203 -> 0.17 | CH81: =V81*'Input_4x2_Rig 220kW'!$E$203 -> 0.17 | CI81: =W81*'Input_4x2_Rig 220kW'!$E$203 -> 0.17 | CJ81: =X81*'Input_4x2_Rig 220kW'!$E$203 -> 0.17 | CK81: =Y81*'Input_4x2_Rig 220kW'!$E$203 -> 0.17 | CL81: =Z81*'Input_4x2_Rig 220kW'!$E$203 -> 0.17 | CM81: =AA81*'Input_4x2_Rig 220kW'!$E$203 -> 0.17 | CN81: =AB81*'Input_4x2_Rig 220kW'!$E$203 -> 0.17 | CO81: =AC81*'Input_4x2_Rig 220kW'!$E$203 -> 0.17 | CP81: =AD81*'Input_4x2_Rig 220kW'!$E$203 -> 0.17 | CQ81: =AE81*'Input_4x2_Rig 220kW'!$E$203 -> 0.17 | CR81: =AF81*'Input_4x2_Rig 220kW'!$E$203 -> 0.17
F82: =Terms!$B$11 -> FCEV LH2 | G82: =G80 -> Average | H82: 1 | I82: =I80 -> Average | J82: 1 | K82: =K80 -> Average | L82: 1 | N82: =Terms!B11 -> FCEV LH2 | O82: 1 | P82: 1 | Q82: 1 | R82: 1 | S82: 1 | T82: 1 | U82: 1 | V82: 1 | W82: 1 | X82: 1 | Y82: 1 | Z82: 1 | AA82: 1 | AB82: 1 | AC82: 1 | AD82: 1 | AE82: 1 | AF82: 1 | AI82: =Terms!B11 -> FCEV LH2 | AJ82: EUR/km | AK82: =O82*'Input_4x2_Trac 330kW'!$E$203 -> 0.17 | AL82: =P82*'Input_4x2_Trac 330kW'!$E$203 -> 0.17 | AM82: =Q82*'Input_4x2_Trac 330kW'!$E$203 -> 0.17 | AN82: =R82*'Input_4x2_Trac 330kW'!$E$203 -> 0.17 | AO82: =S82*'Input_4x2_Trac 330kW'!$E$203 -> 0.17 | AP82: =T82*'Input_4x2_Trac 330kW'!$E$203 -> 0.17 | AQ82: =U82*'Input_4x2_Trac 330kW'!$E$203 -> 0.17 | AR82: =V82*'Input_4x2_Trac 330kW'!$E$203 -> 0.17 | AS82: =W82*'Input_4x2_Trac 330kW'!$E$203 -> 0.17 | AT82: =X82*'Input_4x2_Trac 330kW'!$E$203 -> 0.17 | AU82: =Y82*'Input_4x2_Trac 330kW'!$E$203 -> 0.17 | AV82: =Z82*'Input_4x2_Trac 330kW'!$E$203 -> 0.17 | AW82: =AA82*'Input_4x2_Trac 330kW'!$E$203 -> 0.17 | AX82: =AB82*'Input_4x2_Trac 330kW'!$E$203 -> 0.17 | AY82: =AC82*'Input_4x2_Trac 330kW'!$E$203 -> 0.17 | AZ82: =AD82*'Input_4x2_Trac 330kW'!$E$203 -> 0.17 | BA82: =AE82*'Input_4x2_Trac 330kW'!$E$203 -> 0.17 | BB82: =AF82*'Input_4x2_Trac 330kW'!$E$203 -> 0.17 | BD82: =Terms!B11 -> FCEV LH2 | BE82: EUR/km | BF82: =O82*'Input_6x2_Rig 270kW'!$E$203 -> 0.17 | BG82: =P82*'Input_6x2_Rig 270kW'!$E$203 -> 0.17 | BH82: =Q82*'Input_6x2_Rig 270kW'!$E$203 -> 0.17 | BI82: =R82*'Input_6x2_Rig 270kW'!$E$203 -> 0.17 | BJ82: =S82*'Input_6x2_Rig 270kW'!$E$203 -> 0.17 | BK82: =T82*'Input_6x2_Rig 270kW'!$E$203 -> 0.17 | BL82: =U82*'Input_6x2_Rig 270kW'!$E$203 -> 0.17 | BM82: =V82*'Input_6x2_Rig 270kW'!$E$203 -> 0.17 | BN82: =W82*'Input_6x2_Rig 270kW'!$E$203 -> 0.17 | BO82: =X82*'Input_6x2_Rig 270kW'!$E$203 -> 0.17 | BP82: =Y82*'Input_6x2_Rig 270kW'!$E$203 -> 0.17 | BQ82: =Z82*'Input_6x2_Rig 270kW'!$E$203 -> 0.17 | BR82: =AA82*'Input_6x2_Rig 270kW'!$E$203 -> 0.17 | BS82: =AB82*'Input_6x2_Rig 270kW'!$E$203 -> 0.17 | BT82: =AC82*'Input_6x2_Rig 270kW'!$E$203 -> 0.17 | BU82: =AD82*'Input_6x2_Rig 270kW'!$E$203 -> 0.17 | BV82: =AE82*'Input_6x2_Rig 270kW'!$E$203 -> 0.17 | BW82: =AF82*'Input_6x2_Rig 270kW'!$E$203 -> 0.17 | BY82: =Terms!B11 -> FCEV LH2 | BZ82: EUR/km | CA82: =O82*'Input_4x2_Rig 220kW'!$E$203 -> 0.17 | CB82: =P82*'Input_4x2_Rig 220kW'!$E$203 -> 0.17 | CC82: =Q82*'Input_4x2_Rig 220kW'!$E$203 -> 0.17 | CD82: =R82*'Input_4x2_Rig 220kW'!$E$203 -> 0.17 | CE82: =S82*'Input_4x2_Rig 220kW'!$E$203 -> 0.17 | CF82: =T82*'Input_4x2_Rig 220kW'!$E$203 -> 0.17 | CG82: =U82*'Input_4x2_Rig 220kW'!$E$203 -> 0.17 | CH82: =V82*'Input_4x2_Rig 220kW'!$E$203 -> 0.17 | CI82: =W82*'Input_4x2_Rig 220kW'!$E$203 -> 0.17 | CJ82: =X82*'Input_4x2_Rig 220kW'!$E$203 -> 0.17 | CK82: =Y82*'Input_4x2_Rig 220kW'!$E$203 -> 0.17 | CL82: =Z82*'Input_4x2_Rig 220kW'!$E$203 -> 0.17 | CM82: =AA82*'Input_4x2_Rig 220kW'!$E$203 -> 0.17 | CN82: =AB82*'Input_4x2_Rig 220kW'!$E$203 -> 0.17 | CO82: =AC82*'Input_4x2_Rig 220kW'!$E$203 -> 0.17 | CP82: =AD82*'Input_4x2_Rig 220kW'!$E$203 -> 0.17 | CQ82: =AE82*'Input_4x2_Rig 220kW'!$E$203 -> 0.17 | CR82: =AF82*'Input_4x2_Rig 220kW'!$E$203 -> 0.17
C83: Dropdown | D83: Current selection | F83: =Terms!$B$12 -> BEV | G83: =IF(D84=C84,B78,Cockpit!R16) -> Average | H83: 1 | I83: =IF(D84=C84,B78,Cockpit!T16) -> Average | J83: 1 | K83: =IF(D84=C84,B78,Cockpit!V16) -> Average | L83: 1 | N83: =Terms!B12 -> BEV | O83: 1 | P83: 1 | Q83: 1 | R83: 1 | S83: 1 | T83: 1 | U83: 1 | V83: 1 | W83: 1 | X83: 1 | Y83: 1 | Z83: 1 | AA83: 1 | AB83: 1 | AC83: 1 | AD83: 1 | AE83: 1 | AF83: 1 | AI83: =Terms!B12 -> BEV | AJ83: EUR/km | AK83: =O83*'Input_4x2_Trac 330kW'!$E$203 -> 0.17 | AL83: =P83*'Input_4x2_Trac 330kW'!$E$203 -> 0.17 | AM83: =Q83*'Input_4x2_Trac 330kW'!$E$203 -> 0.17 | AN83: =R83*'Input_4x2_Trac 330kW'!$E$203 -> 0.17 | AO83: =S83*'Input_4x2_Trac 330kW'!$E$203 -> 0.17 | AP83: =T83*'Input_4x2_Trac 330kW'!$E$203 -> 0.17 | AQ83: =U83*'Input_4x2_Trac 330kW'!$E$203 -> 0.17 | AR83: =V83*'Input_4x2_Trac 330kW'!$E$203 -> 0.17 | AS83: =W83*'Input_4x2_Trac 330kW'!$E$203 -> 0.17 | AT83: =X83*'Input_4x2_Trac 330kW'!$E$203 -> 0.17 | AU83: =Y83*'Input_4x2_Trac 330kW'!$E$203 -> 0.17 | AV83: =Z83*'Input_4x2_Trac 330kW'!$E$203 -> 0.17 | AW83: =AA83*'Input_4x2_Trac 330kW'!$E$203 -> 0.17 | AX83: =AB83*'Input_4x2_Trac 330kW'!$E$203 -> 0.17 | AY83: =AC83*'Input_4x2_Trac 330kW'!$E$203 -> 0.17 | AZ83: =AD83*'Input_4x2_Trac 330kW'!$E$203 -> 0.17 | BA83: =AE83*'Input_4x2_Trac 330kW'!$E$203 -> 0.17 | BB83: =AF83*'Input_4x2_Trac 330kW'!$E$203 -> 0.17 | BD83: =Terms!B12 -> BEV | BE83: EUR/km | BF83: =O83*'Input_6x2_Rig 270kW'!$E$203 -> 0.17 | BG83: =P83*'Input_6x2_Rig 270kW'!$E$203 -> 0.17 | BH83: =Q83*'Input_6x2_Rig 270kW'!$E$203 -> 0.17 | BI83: =R83*'Input_6x2_Rig 270kW'!$E$203 -> 0.17 | BJ83: =S83*'Input_6x2_Rig 270kW'!$E$203 -> 0.17 | BK83: =T83*'Input_6x2_Rig 270kW'!$E$203 -> 0.17 | BL83: =U83*'Input_6x2_Rig 270kW'!$E$203 -> 0.17 | BM83: =V83*'Input_6x2_Rig 270kW'!$E$203 -> 0.17 | BN83: =W83*'Input_6x2_Rig 270kW'!$E$203 -> 0.17 | BO83: =X83*'Input_6x2_Rig 270kW'!$E$203 -> 0.17 | BP83: =Y83*'Input_6x2_Rig 270kW'!$E$203 -> 0.17 | BQ83: =Z83*'Input_6x2_Rig 270kW'!$E$203 -> 0.17 | BR83: =AA83*'Input_6x2_Rig 270kW'!$E$203 -> 0.17 | BS83: =AB83*'Input_6x2_Rig 270kW'!$E$203 -> 0.17 | BT83: =AC83*'Input_6x2_Rig 270kW'!$E$203 -> 0.17 | BU83: =AD83*'Input_6x2_Rig 270kW'!$E$203 -> 0.17 | BV83: =AE83*'Input_6x2_Rig 270kW'!$E$203 -> 0.17 | BW83: =AF83*'Input_6x2_Rig 270kW'!$E$203 -> 0.17 | BY83: =Terms!B12 -> BEV | BZ83: EUR/km | CA83: =O83*'Input_4x2_Rig 220kW'!$E$203 -> 0.17 | CB83: =P83*'Input_4x2_Rig 220kW'!$E$203 -> 0.17 | CC83: =Q83*'Input_4x2_Rig 220kW'!$E$203 -> 0.17 | CD83: =R83*'Input_4x2_Rig 220kW'!$E$203 -> 0.17 | CE83: =S83*'Input_4x2_Rig 220kW'!$E$203 -> 0.17 | CF83: =T83*'Input_4x2_Rig 220kW'!$E$203 -> 0.17 | CG83: =U83*'Input_4x2_Rig 220kW'!$E$203 -> 0.17 | CH83: =V83*'Input_4x2_Rig 220kW'!$E$203 -> 0.17 | CI83: =W83*'Input_4x2_Rig 220kW'!$E$203 -> 0.17 | CJ83: =X83*'Input_4x2_Rig 220kW'!$E$203 -> 0.17 | CK83: =Y83*'Input_4x2_Rig 220kW'!$E$203 -> 0.17 | CL83: =Z83*'Input_4x2_Rig 220kW'!$E$203 -> 0.17 | CM83: =AA83*'Input_4x2_Rig 220kW'!$E$203 -> 0.17 | CN83: =AB83*'Input_4x2_Rig 220kW'!$E$203 -> 0.17 | CO83: =AC83*'Input_4x2_Rig 220kW'!$E$203 -> 0.17 | CP83: =AD83*'Input_4x2_Rig 220kW'!$E$203 -> 0.17 | CQ83: =AE83*'Input_4x2_Rig 220kW'!$E$203 -> 0.17 | CR83: =AF83*'Input_4x2_Rig 220kW'!$E$203 -> 0.17
B84: No | C84: 0 | D84: 1 | F84: =Terms!$B$13 -> Catenary | G84: =G83 -> Average | H84: 1 | I84: =I83 -> Average | J84: 1 | K84: =K83 -> Average | L84: 1 | N84: =Terms!B13 -> Catenary | O84: 1 | P84: 1 | Q84: 1 | R84: 1 | S84: 1 | T84: 1 | U84: 1 | V84: 1 | W84: 1 | X84: 1 | Y84: 1 | Z84: 1 | AA84: 1 | AB84: 1 | AC84: 1 | AD84: 1 | AE84: 1 | AF84: 1 | AI84: =Terms!B13 -> Catenary | AJ84: EUR/km | AK84: =O84*'Input_4x2_Trac 330kW'!$E$203 -> 0.17 | AL84: =P84*'Input_4x2_Trac 330kW'!$E$203 -> 0.17 | AM84: =Q84*'Input_4x2_Trac 330kW'!$E$203 -> 0.17 | AN84: =R84*'Input_4x2_Trac 330kW'!$E$203 -> 0.17 | AO84: =S84*'Input_4x2_Trac 330kW'!$E$203 -> 0.17 | AP84: =T84*'Input_4x2_Trac 330kW'!$E$203 -> 0.17 | AQ84: =U84*'Input_4x2_Trac 330kW'!$E$203 -> 0.17 | AR84: =V84*'Input_4x2_Trac 330kW'!$E$203 -> 0.17 | AS84: =W84*'Input_4x2_Trac 330kW'!$E$203 -> 0.17 | AT84: =X84*'Input_4x2_Trac 330kW'!$E$203 -> 0.17 | AU84: =Y84*'Input_4x2_Trac 330kW'!$E$203 -> 0.17 | AV84: =Z84*'Input_4x2_Trac 330kW'!$E$203 -> 0.17 | AW84: =AA84*'Input_4x2_Trac 330kW'!$E$203 -> 0.17 | AX84: =AB84*'Input_4x2_Trac 330kW'!$E$203 -> 0.17 | AY84: =AC84*'Input_4x2_Trac 330kW'!$E$203 -> 0.17 | AZ84: =AD84*'Input_4x2_Trac 330kW'!$E$203 -> 0.17 | BA84: =AE84*'Input_4x2_Trac 330kW'!$E$203 -> 0.17 | BB84: =AF84*'Input_4x2_Trac 330kW'!$E$203 -> 0.17 | BD84: =Terms!B13 -> Catenary | BE84: EUR/km | BF84: =O84*'Input_6x2_Rig 270kW'!$E$203 -> 0.17 | BG84: =P84*'Input_6x2_Rig 270kW'!$E$203 -> 0.17 | BH84: =Q84*'Input_6x2_Rig 270kW'!$E$203 -> 0.17 | BI84: =R84*'Input_6x2_Rig 270kW'!$E$203 -> 0.17 | BJ84: =S84*'Input_6x2_Rig 270kW'!$E$203 -> 0.17 | BK84: =T84*'Input_6x2_Rig 270kW'!$E$203 -> 0.17 | BL84: =U84*'Input_6x2_Rig 270kW'!$E$203 -> 0.17 | BM84: =V84*'Input_6x2_Rig 270kW'!$E$203 -> 0.17 | BN84: =W84*'Input_6x2_Rig 270kW'!$E$203 -> 0.17 | BO84: =X84*'Input_6x2_Rig 270kW'!$E$203 -> 0.17 | BP84: =Y84*'Input_6x2_Rig 270kW'!$E$203 -> 0.17 | BQ84: =Z84*'Input_6x2_Rig 270kW'!$E$203 -> 0.17 | BR84: =AA84*'Input_6x2_Rig 270kW'!$E$203 -> 0.17 | BS84: =AB84*'Input_6x2_Rig 270kW'!$E$203 -> 0.17 | BT84: =AC84*'Input_6x2_Rig 270kW'!$E$203 -> 0.17 | BU84: =AD84*'Input_6x2_Rig 270kW'!$E$203 -> 0.17 | BV84: =AE84*'Input_6x2_Rig 270kW'!$E$203 -> 0.17 | BW84: =AF84*'Input_6x2_Rig 270kW'!$E$203 -> 0.17 | BY84: =Terms!B13 -> Catenary | BZ84: EUR/km | CA84: =O84*'Input_4x2_Rig 220kW'!$E$203 -> 0.17 | CB84: =P84*'Input_4x2_Rig 220kW'!$E$203 -> 0.17 | CC84: =Q84*'Input_4x2_Rig 220kW'!$E$203 -> 0.17 | CD84: =R84*'Input_4x2_Rig 220kW'!$E$203 -> 0.17 | CE84: =S84*'Input_4x2_Rig 220kW'!$E$203 -> 0.17 | CF84: =T84*'Input_4x2_Rig 220kW'!$E$203 -> 0.17 | CG84: =U84*'Input_4x2_Rig 220kW'!$E$203 -> 0.17 | CH84: =V84*'Input_4x2_Rig 220kW'!$E$203 -> 0.17 | CI84: =W84*'Input_4x2_Rig 220kW'!$E$203 -> 0.17 | CJ84: =X84*'Input_4x2_Rig 220kW'!$E$203 -> 0.17 | CK84: =Y84*'Input_4x2_Rig 220kW'!$E$203 -> 0.17 | CL84: =Z84*'Input_4x2_Rig 220kW'!$E$203 -> 0.17 | CM84: =AA84*'Input_4x2_Rig 220kW'!$E$203 -> 0.17 | CN84: =AB84*'Input_4x2_Rig 220kW'!$E$203 -> 0.17 | CO84: =AC84*'Input_4x2_Rig 220kW'!$E$203 -> 0.17 | CP84: =AD84*'Input_4x2_Rig 220kW'!$E$203 -> 0.17 | CQ84: =AE84*'Input_4x2_Rig 220kW'!$E$203 -> 0.17 | CR84: =AF84*'Input_4x2_Rig 220kW'!$E$203 -> 0.17
B85: Yes | C85: 1
A89: E | B89: Maturity of Technology
B91: Technology as mass market or niche market application | N91: State of technology used in calculation
B95: Dropdown | F95: Current selection | G95: 2023 | I95: 2027 | K95: 2030 | O95: 2023 | P95: 2024 | Q95: 2025 | R95: 2026 | S95: 2027 | T95: 2028 | U95: 2029 | V95: 2030 | W95: 2031 | X95: 2032 | Y95: 2033 | Z95: 2034 | AA95: 2035 | AB95: 2036 | AC95: 2037 | AD95: 2038 | AE95: 2039 | AF95: 2040
B96: =Terms!G7 -> Niche | F96: =Terms!$B$7 -> Diesel | G96: =List!$H$11 -> Mass | I96: =List!$H$11 -> Mass | K96: =List!$H$11 -> Mass | N96: =Terms!B7 -> Diesel | O96: =G96 -> Mass | P96: =O96 -> Mass | Q96: =O96 -> Mass | R96: =O96 -> Mass | S96: =I96 -> Mass | T96: =S96 -> Mass | U96: =S96 -> Mass | V96: =K96 -> Mass | W96: =V96 -> Mass | X96: =W96 -> Mass | Y96: Mass | Z96: Mass | AA96: Mass | AB96: Mass | AC96: Mass | AD96: Mass | AE96: Mass | AF96: Mass
B97: =Terms!G8 -> Rather Niche | F97: =Terms!$B$8 -> Diesel E-Fuels | G97: =List!$H$11 -> Mass | I97: =List!$H$11 -> Mass | K97: =List!$H$11 -> Mass | N97: =Terms!B8 -> Diesel E-Fuels | O97: Mass | P97: =O97 -> Mass | Q97: =O97 -> Mass | R97: =O97 -> Mass | S97: Mass | T97: =S97 -> Mass | U97: =S97 -> Mass | V97: Mass | W97: =V97 -> Mass | X97: Mass | Y97: Mass | Z97: Mass | AA97: Mass | AB97: Mass | AC97: Mass | AD97: Mass | AE97: Mass | AF97: Mass
B98: =Terms!G9 -> Rather Mass | F98: =Terms!$B$9 -> FCEV 350 bar | G98: =Cockpit!Y13 -> Niche | I98: =Cockpit!Z13 -> Rather Niche | K98: =Cockpit!AA13 -> Rather Mass | N98: =Terms!B9 -> FCEV 350 bar | O98: Niche | P98: Niche | Q98: Niche | R98: Niche | S98: Rather Niche | T98: Rather Niche | U98: Rather Niche | V98: Rather Mass | W98: Rather Mass | X98: Rather Mass | Y98: Rather Mass | Z98: Rather Mass | AA98: Rather Mass | AB98: Rather Mass | AC98: Rather Mass | AD98: Rather Mass | AE98: Rather Mass | AF98: Rather Mass
B99: =Terms!G10 -> Mass | F99: =Terms!$B$10 -> FCEV 700 bar | G99: =G98 -> Niche | I99: =I98 -> Rather Niche | K99: =K98 -> Rather Mass | N99: =Terms!B10 -> FCEV 700 bar | O99: Niche | P99: Niche | Q99: Niche | R99: Niche | S99: Rather Niche | T99: Rather Niche | U99: Rather Niche | V99: Rather Mass | W99: Rather Mass | X99: Rather Mass | Y99: Rather Mass | Z99: Rather Mass | AA99: Rather Mass | AB99: Rather Mass | AC99: Rather Mass | AD99: Rather Mass | AE99: Rather Mass | AF99: Rather Mass
F100: =Terms!$B$11 -> FCEV LH2 | G100: =G98 -> Niche | I100: =I98 -> Rather Niche | K100: =K98 -> Rather Mass | N100: =Terms!B11 -> FCEV LH2 | O100: Niche | P100: Niche | Q100: Niche | R100: Niche | S100: Rather Niche | T100: Rather Niche | U100: Rather Niche | V100: Rather Mass | W100: Rather Mass | X100: Rather Mass | Y100: Rather Mass | Z100: Rather Mass | AA100: Rather Mass | AB100: Rather Mass | AC100: Rather Mass | AD100: Rather Mass | AE100: Rather Mass | AF100: Rather Mass
F101: =Terms!$B$12 -> BEV | G101: =Cockpit!Y16 -> Niche | I101: =Cockpit!Z16 -> Rather Niche | K101: =Cockpit!AA16 -> Rather Mass | N101: =Terms!B12 -> BEV | O101: Niche | P101: Niche | Q101: Niche | R101: Niche | S101: Rather Niche | T101: Rather Niche | U101: Rather Niche | V101: Rather Mass | W101: Rather Mass | X101: Rather Mass | Y101: Rather Mass | Z101: Rather Mass | AA101: Rather Mass | AB101: Rather Mass | AC101: Rather Mass | AD101: Rather Mass | AE101: Rather Mass | AF101: Rather Mass
F102: =Terms!$B$13 -> Catenary | G102: =Cockpit!Y17 -> Niche | I102: =Cockpit!Z17 -> Rather Niche | K102: =Cockpit!AA17 -> Rather Mass | N102: =Terms!B13 -> Catenary | O102: Niche | P102: Niche | Q102: Niche | R102: Niche | S102: Rather Niche | T102: Rather Niche | U102: Rather Niche | V102: Rather Mass | W102: Rather Mass | X102: Rather Mass | Y102: Rather Mass | Z102: Rather Mass | AA102: Rather Mass | AB102: Rather Mass | AC102: Rather Mass | AD102: Rather Mass | AE102: Rather Mass | AF102: Rather Mass

Sheet Calculation> (hidden)
B2: =MID(CELL("filename",B2),FIND("]",CELL("filename",B2))+1,256) -> Calculation>

Sheet Cal_4x2_Trac (hidden)
B2: Detailed TCO Calculation
B3: =MID(CELL("filename",B3),FIND("]",CELL("filename",B3))+1,256) -> Cal_4x2_Trac
C6: =Terms!$C$7 -> 4x2 Tractor | F6: PT Type | G6: Year of Deployment | I6: 1st life | J6: 1&2nd life | K6: 2022 | L6: 2023 | M6: 2024 | N6: 2025 | O6: 2026 | P6: 2027 | Q6: 2028 | R6: 2029 | S6: 2030 | T6: 2031 | U6: 2032 | V6: 2033 | W6: 2034 | X6: 2035 | Y6: 2036 | Z6: 2037 | AA6: 2038 | AB6: 2039 | AC6: 2040 | AE6: Identifier | AF6: Identifier | AG6: Identifier | AH6: Identifier | AI6: Identifier | AJ6: Identifier
B8: 1 | C8: =Terms!$B$7 -> Diesel | AE8: =C8 -> Diesel | AH8: =G8 -> 0 | AJ8: =AE8&AF8&AH8 -> Diesel0
AE9: =C8 -> Diesel | AH9: =G9 -> 0 | AJ9: =AE9&AF9&AH9 -> Diesel0
C10: =Terms!$H$8 -> Required Base Calculations | AE10: =C8 -> Diesel | AH10: 0 | AJ10: Diesel0
C11: =Terms!$H$9 -> Annual Mileage | G11: 2023 | H11: =Terms!$I$10 -> [km] | I11: =IFERROR(SUMIFS(L11:AC11,$L$6:$AC$6,">="&$G11,$L$6:$AC$6,"<"&$G11+Input_General!$E$22),"Error") -> 700000 | J11: =IFERROR(SUMIFS(L11:AC11,$L$6:$AC$6,">="&$G11,$L$6:$AC$6,"<"&$G11+Input_General!$F$22),"Error") -> 1400000 | L11: =INDEX('Cockpit Details'!$E$11:$F$15,MATCH($C$6,'Cockpit Details'!$E$11:$E$13,0),2) -> 140000 | M11: =INDEX('Cockpit Details'!$E$11:$F$15,MATCH($C$6,'Cockpit Details'!$E$11:$E$13,0),2) -> 140000 | N11: =INDEX('Cockpit Details'!$E$11:$F$15,MATCH($C$6,'Cockpit Details'!$E$11:$E$13,0),2) -> 140000 | O11: =INDEX('Cockpit Details'!$E$11:$F$15,MATCH($C$6,'Cockpit Details'!$E$11:$E$13,0),2) -> 140000 | P11: =INDEX('Cockpit Details'!$E$11:$F$15,MATCH($C$6,'Cockpit Details'!$E$11:$E$13,0),2) -> 140000 | Q11: =INDEX('Cockpit Details'!$E$11:$F$15,MATCH($C$6,'Cockpit Details'!$E$11:$E$13,0),2) -> 140000 | R11: =INDEX('Cockpit Details'!$E$11:$F$15,MATCH($C$6,'Cockpit Details'!$E$11:$E$13,0),2) -> 140000 | S11: =INDEX('Cockpit Details'!$E$11:$F$15,MATCH($C$6,'Cockpit Details'!$E$11:$E$13,0),2) -> 140000 | T11: =INDEX('Cockpit Details'!$E$11:$F$15,MATCH($C$6,'Cockpit Details'!$E$11:$E$13,0),2) -> 140000 | U11: =INDEX('Cockpit Details'!$E$11:$F$15,MATCH($C$6,'Cockpit Details'!$E$11:$E$13,0),2) -> 140000 | V11: =INDEX('Cockpit Details'!$E$11:$F$15,MATCH($C$6,'Cockpit Details'!$E$11:$E$13,0),2) -> 140000 | W11: =INDEX('Cockpit Details'!$E$11:$F$15,MATCH($C$6,'Cockpit Details'!$E$11:$E$13,0),2) -> 140000 | X11: =INDEX('Cockpit Details'!$E$11:$F$15,MATCH($C$6,'Cockpit Details'!$E$11:$E$13,0),2) -> 140000 | Y11: =INDEX('Cockpit Details'!$E$11:$F$15,MATCH($C$6,'Cockpit Details'!$E$11:$E$13,0),2) -> 140000 | Z11: =INDEX('Cockpit Details'!$E$11:$F$15,MATCH($C$6,'Cockpit Details'!$E$11:$E$13,0),2) -> 140000 | AA11: =INDEX('Cockpit Details'!$E$11:$F$15,MATCH($C$6,'Cockpit Details'!$E$11:$E$13,0),2) -> 140000 | AB11: =INDEX('Cockpit Details'!$E$11:$F$15,MATCH($C$6,'Cockpit Details'!$E$11:$E$13,0),2) -> 140000 | AC11: =INDEX('Cockpit Details'!$E$11:$F$15,MATCH($C$6,'Cockpit Details'!$E$11:$E$13,0),2) -> 140000 | AE11: =C8 -> Diesel | AH11: 2023 | AJ11: Diesel2023
C12: =Terms!$H$10 -> Range Requirements | H12: =Terms!$I$10 -> [km] | L12: =L11/(Input_General!$E$10/INDEX('Cockpit Details'!$M$11:$O$13,MATCH($C$6,'Cockpit Details'!$M$11:$M$13,0),3)) -> 700 | M12: =M11/(Input_General!$E$10/INDEX('Cockpit Details'!$M$11:$O$13,MATCH($C$6,'Cockpit Details'!$M$11:$M$13,0),3)) -> 700 | N12: =N11/(Input_General!$E$10/INDEX('Cockpit Details'!$M$11:$O$13,MATCH($C$6,'Cockpit Details'!$M$11:$M$13,0),3)) -> 700 | O12: =O11/(Input_General!$E$10/INDEX('Cockpit Details'!$M$11:$O$13,MATCH($C$6,'Cockpit Details'!$M$11:$M$13,0),3)) -> 700 | P12: =P11/(Input_General!$E$10/INDEX('Cockpit Details'!$M$11:$O$13,MATCH($C$6,'Cockpit Details'!$M$11:$M$13,0),3)) -> 700 | Q12: =Q11/(Input_General!$E$10/INDEX('Cockpit Details'!$M$11:$O$13,MATCH($C$6,'Cockpit Details'!$M$11:$M$13,0),3)) -> 700 | R12: =R11/(Input_General!$E$10/INDEX('Cockpit Details'!$M$11:$O$13,MATCH($C$6,'Cockpit Details'!$M$11:$M$13,0),3)) -> 700 | S12: =S11/(Input_General!$E$10/INDEX('Cockpit Details'!$M$11:$O$13,MATCH($C$6,'Cockpit Details'!$M$11:$M$13,0),3)) -> 700 | T12: =T11/(Input_General!$E$10/INDEX('Cockpit Details'!$M$11:$O$13,MATCH($C$6,'Cockpit Details'!$M$11:$M$13,0),3)) -> 700 | U12: =U11/(Input_General!$E$10/INDEX('Cockpit Details'!$M$11:$O$13,MATCH($C$6,'Cockpit Details'!$M$11:$M$13,0),3)) -> 700 | V12: =V11/(Input_General!$E$10/INDEX('Cockpit Details'!$M$11:$O$13,MATCH($C$6,'Cockpit Details'!$M$11:$M$13,0),3)) -> 700 | W12: =W11/(Input_General!$E$10/INDEX('Cockpit Details'!$M$11:$O$13,MATCH($C$6,'Cockpit Details'!$M$11:$M$13,0),3)) -> 700 | X12: =X11/(Input_General!$E$10/INDEX('Cockpit Details'!$M$11:$O$13,MATCH($C$6,'Cockpit Details'!$M$11:$M$13,0),3)) -> 700 | Y12: =Y11/(Input_General!$E$10/INDEX('Cockpit Details'!$M$11:$O$13,MATCH($C$6,'Cockpit Details'!$M$11:$M$13,0),3)) -> 700 | Z12: =Z11/(Input_General!$E$10/INDEX('Cockpit Details'!$M$11:$O$13,MATCH($C$6,'Cockpit Details'!$M$11:$M$13,0),3)) -> 700 | AA12: =AA11/(Input_General!$E$10/INDEX('Cockpit Details'!$M$11:$O$13,MATCH($C$6,'Cockpit Details'!$M$11:$M$13,0),3)) -> 700 | AB12: =AB11/(Input_General!$E$10/INDEX('Cockpit Details'!$M$11:$O$13,MATCH($C$6,'Cockpit Details'!$M$11:$M$13,0),3)) -> 700 | AC12: =AC11/(Input_General!$E$10/INDEX('Cockpit Details'!$M$11:$O$13,MATCH($C$6,'Cockpit Details'!$M$11:$M$13,0),3)) -> 700 | AE12: =C8 -> Diesel | AH12: 0 | AJ12: Diesel0
AE13: =C8 -> Diesel | AH13: 0 | AJ13: Diesel0
C14: =Terms!$H$11 -> Cumulated Mileage | AE14: =C8 -> Diesel | AH14: 0 | AJ14: Diesel0
F15: =C8 -> Diesel | G15: 2023 | H15: =Terms!$I$10 -> [km] | L15: =IFERROR(SUMIFS($L11:$AC11,$L$6:$AC$6,">="&$G15,$L$6:$AC$6,"<="&L$6,$L$6:$AC$6,"<"&$G15+Input_General!$F$22),"Error") -> 140000 | M15: =IFERROR(SUMIFS($L11:$AC11,$L$6:$AC$6,">="&$G15,$L$6:$AC$6,"<="&M$6,$L$6:$AC$6,"<"&$G15+Input_General!$F$22),"Error") -> 280000 | N15: =IFERROR(SUMIFS($L11:$AC11,$L$6:$AC$6,">="&$G15,$L$6:$AC$6,"<="&N$6,$L$6:$AC$6,"<"&$G15+Input_General!$F$22),"Error") -> 420000 | O15: =IFERROR(SUMIFS($L11:$AC11,$L$6:$AC$6,">="&$G15,$L$6:$AC$6,"<="&O$6,$L$6:$AC$6,"<"&$G15+Input_General!$F$22),"Error") -> 560000 | P15: =IFERROR(SUMIFS($L11:$AC11,$L$6:$AC$6,">="&$G15,$L$6:$AC$6,"<="&P$6,$L$6:$AC$6,"<"&$G15+Input_General!$F$22),"Error") -> 700000 | Q15: =IFERROR(SUMIFS($L11:$AC11,$L$6:$AC$6,">="&$G15,$L$6:$AC$6,"<="&Q$6,$L$6:$AC$6,"<"&$G15+Input_General!$F$22),"Error") -> 840000 | R15: =IFERROR(SUMIFS($L11:$AC11,$L$6:$AC$6,">="&$G15,$L$6:$AC$6,"<="&R$6,$L$6:$AC$6,"<"&$G15+Input_General!$F$22),"Error") -> 980000 | S15: =IFERROR(SUMIFS($L11:$AC11,$L$6:$AC$6,">="&$G15,$L$6:$AC$6,"<="&S$6,$L$6:$AC$6,"<"&$G15+Input_General!$F$22),"Error") -> 1120000 | T15: =IFERROR(SUMIFS($L11:$AC11,$L$6:$AC$6,">="&$G15,$L$6:$AC$6,"<="&T$6,$L$6:$AC$6,"<"&$G15+Input_General!$F$22),"Error") -> 1260000 | U15: =IFERROR(SUMIFS($L11:$AC11,$L$6:$AC$6,">="&$G15,$L$6:$AC$6,"<="&U$6,$L$6:$AC$6,"<"&$G15+Input_General!$F$22),"Error") -> 1400000 | V15: =IFERROR(SUMIFS($L11:$AC11,$L$6:$AC$6,">="&$G15,$L$6:$AC$6,"<="&V$6,$L$6:$AC$6,"<"&$G15+Input_General!$F$22),"Error") -> 1400000 | W15: =IFERROR(SUMIFS($L11:$AC11,$L$6:$AC$6,">="&$G15,$L$6:$AC$6,"<="&W$6,$L$6:$AC$6,"<"&$G15+Input_General!$F$22),"Error") -> 1400000 | X15: =IFERROR(SUMIFS($L11:$AC11,$L$6:$AC$6,">="&$G15,$L$6:$AC$6,"<="&X$6,$L$6:$AC$6,"<"&$G15+Input_General!$F$22),"Error") -> 1400000 | Y15: =IFERROR(SUMIFS($L11:$AC11,$L$6:$AC$6,">="&$G15,$L$6:$AC$6,"<="&Y$6,$L$6:$AC$6,"<"&$G15+Input_General!$F$22),"Error") -> 1400000 | Z15: =IFERROR(SUMIFS($L11:$AC11,$L$6:$AC$6,">="&$G15,$L$6:$AC$6,"<="&Z$6,$L$6:$AC$6,"<"&$G15+Input_General!$F$22),"Error") -> 1400000 | AA15: =IFERROR(SUMIFS($L11:$AC11,$L$6:$AC$6,">="&$G15,$L$6:$AC$6,"<="&AA$6,$L$6:$AC$6,"<"&$G15+Input_General!$F$22),"Error") -> 1400000 | AB15: =IFERROR(SUMIFS($L11:$AC11,$L$6:$AC$6,">="&$G15,$L$6:$AC$6,"<="&AB$6,$L$6:$AC$6,"<"&$G15+Input_General!$F$22),"Error") -> 1400000 | AC15: =IFERROR(SUMIFS($L11:$AC11,$L$6:$AC$6,">="&$G15,$L$6:$AC$6,"<="&AC$6,$L$6:$AC$6,"<"&$G15+Input_General!$F$22),"Error") -> 1400000 | AE15: =C8 -> Diesel | AH15: 2023 | AJ15: Diesel2023
F16: =C8 -> Diesel | G16: 2024 | H16: =Terms!$I$10 -> [km] | L16: =IFERROR(SUMIFS($L11:$AC11,$L$6:$AC$6,">="&$G16,$L$6:$AC$6,"<="&L$6,$L$6:$AC$6,"<"&$G16+Input_General!$F$22),"Error") -> 0 | M16: =IFERROR(SUMIFS($L11:$AC11,$L$6:$AC$6,">="&$G16,$L$6:$AC$6,"<="&M$6,$L$6:$AC$6,"<"&$G16+Input_General!$F$22),"Error") -> 140000 | N16: =IFERROR(SUMIFS($L11:$AC11,$L$6:$AC$6,">="&$G16,$L$6:$AC$6,"<="&N$6,$L$6:$AC$6,"<"&$G16+Input_General!$F$22),"Error") -> 280000 | O16: =IFERROR(SUMIFS($L11:$AC11,$L$6:$AC$6,">="&$G16,$L$6:$AC$6,"<="&O$6,$L$6:$AC$6,"<"&$G16+Input_General!$F$22),"Error") -> 420000 | P16: =IFERROR(SUMIFS($L11:$AC11,$L$6:$AC$6,">="&$G16,$L$6:$AC$6,"<="&P$6,$L$6:$AC$6,"<"&$G16+Input_General!$F$22),"Error") -> 560000 | Q16: =IFERROR(SUMIFS($L11:$AC11,$L$6:$AC$6,">="&$G16,$L$6:$AC$6,"<="&Q$6,$L$6:$AC$6,"<"&$G16+Input_General!$F$22),"Error") -> 700000 | R16: =IFERROR(SUMIFS($L11:$AC11,$L$6:$AC$6,">="&$G16,$L$6:$AC$6,"<="&R$6,$L$6:$AC$6,"<"&$G16+Input_General!$F$22),"Error") -> 840000 | S16: =IFERROR(SUMIFS($L11:$AC11,$L$6:$AC$6,">="&$G16,$L$6:$AC$6,"<="&S$6,$L$6:$AC$6,"<"&$G16+Input_General!$F$22),"Error") -> 980000 | T16: =IFERROR(SUMIFS($L11:$AC11,$L$6:$AC$6,">="&$G16,$L$6:$AC$6,"<="&T$6,$L$6:$AC$6,"<"&$G16+Input_General!$F$22),"Error") -> 1120000 | U16: =IFERROR(SUMIFS($L11:$AC11,$L$6:$AC$6,">="&$G16,$L$6:$AC$6,"<="&U$6,$L$6:$AC$6,"<"&$G16+Input_General!$F$22),"Error") -> 1260000 | V16: =IFERROR(SUMIFS($L11:$AC11,$L$6:$AC$6,">="&$G16,$L$6:$AC$6,"<="&V$6,$L$6:$AC$6,"<"&$G16+Input_General!$F$22),"Error") -> 1400000 | W16: =IFERROR(SUMIFS($L11:$AC11,$L$6:$AC$6,">="&$G16,$L$6:$AC$6,"<="&W$6,$L$6:$AC$6,"<"&$G16+Input_General!$F$22),"Error") -> 1400000 | X16: =IFERROR(SUMIFS($L11:$AC11,$L$6:$AC$6,">="&$G16,$L$6:$AC$6,"<="&X$6,$L$6:$AC$6,"<"&$G16+Input_General!$F$22),"Error") -> 1400000 | Y16: =IFERROR(SUMIFS($L11:$AC11,$L$6:$AC$6,">="&$G16,$L$6:$AC$6,"<="&Y$6,$L$6:$AC$6,"<"&$G16+Input_General!$F$22),"Error") -> 1400000 | Z16: =IFERROR(SUMIFS($L11:$AC11,$L$6:$AC$6,">="&$G16,$L$6:$AC$6,"<="&Z$6,$L$6:$AC$6,"<"&$G16+Input_General!$F$22),"Error") -> 1400000 | AA16: =IFERROR(SUMIFS($L11:$AC11,$L$6:$AC$6,">="&$G16,$L$6:$AC$6,"<="&AA$6,$L$6:$AC$6,"<"&$G16+Input_General!$F$22),"Error") -> 1400000 | AB16: =IFERROR(SUMIFS($L11:$AC11,$L$6:$AC$6,">="&$G16,$L$6:$AC$6,"<="&AB$6,$L$6:$AC$6,"<"&$G16+Input_General!$F$22),"Error") -> 1400000 | AC16: =IFERROR(SUMIFS($L11:$AC11,$L$6:$AC$6,">="&$G16,$L$6:$AC$6,"<="&AC$6,$L$6:$AC$6,"<"&$G16+Input_General!$F$22),"Error") -> 1400000 | AE16: =C8 -> Diesel | AH16: 2024 | AJ16: Diesel2024
F17: =C8 -> Diesel | G17: 2025 | H17: =Terms!$I$10 -> [km] | L17: =IFERROR(SUMIFS($L11:$AC11,$L$6:$AC$6,">="&$G17,$L$6:$AC$6,"<="&L$6,$L$6:$AC$6,"<"&$G17+Input_General!$F$22),"Error") -> 0 | M17: =IFERROR(SUMIFS($L11:$AC11,$L$6:$AC$6,">="&$G17,$L$6:$AC$6,"<="&M$6,$L$6:$AC$6,"<"&$G17+Input_General!$F$22),"Error") -> 0 | N17: =IFERROR(SUMIFS($L11:$AC11,$L$6:$AC$6,">="&$G17,$L$6:$AC$6,"<="&N$6,$L$6:$AC$6,"<"&$G17+Input_General!$F$22),"Error") -> 140000 | O17: =IFERROR(SUMIFS($L11:$AC11,$L$6:$AC$6,">="&$G17,$L$6:$AC$6,"<="&O$6,$L$6:$AC$6,"<"&$G17+Input_General!$F$22),"Error") -> 280000 | P17: =IFERROR(SUMIFS($L11:$AC11,$L$6:$AC$6,">="&$G17,$L$6:$AC$6,"<="&P$6,$L$6:$AC$6,"<"&$G17+Input_General!$F$22),"Error") -> 420000 | Q17: =IFERROR(SUMIFS($L11:$AC11,$L$6:$AC$6,">="&$G17,$L$6:$AC$6,"<="&Q$6,$L$6:$AC$6,"<"&$G17+Input_General!$F$22),"Error") -> 560000 | R17: =IFERROR(SUMIFS($L11:$AC11,$L$6:$AC$6,">="&$G17,$L$6:$AC$6,"<="&R$6,$L$6:$AC$6,"<"&$G17+Input_General!$F$22),"Error") -> 700000 | S17: =IFERROR(SUMIFS($L11:$AC11,$L$6:$AC$6,">="&$G17,$L$6:$AC$6,"<="&S$6,$L$6:$AC$6,"<"&$G17+Input_General!$F$22),"Error") -> 840000 | T17: =IFERROR(SUMIFS($L11:$AC11,$L$6:$AC$6,">="&$G17,$L$6:$AC$6,"<="&T$6,$L$6:$AC$6,"<"&$G17+Input_General!$F$22),"Error") -> 980000 | U17: =IFERROR(SUMIFS($L11:$AC11,$L$6:$AC$6,">="&$G17,$L$6:$AC$6,"<="&U$6,$L$6:$AC$6,"<"&$G17+Input_General!$F$22),"Error") -> 1120000 | V17: =IFERROR(SUMIFS($L11:$AC11,$L$6:$AC$6,">="&$G17,$L$6:$AC$6,"<="&V$6,$L$6:$AC$6,"<"&$G17+Input_General!$F$22),"Error") -> 1260000 | W17: =IFERROR(SUMIFS($L11:$AC11,$L$6:$AC$6,">="&$G17,$L$6:$AC$6,"<="&W$6,$L$6:$AC$6,"<"&$G17+Input_General!$F$22),"Error") -> 1400000 | X17: =IFERROR(SUMIFS($L11:$AC11,$L$6:$AC$6,">="&$G17,$L$6:$AC$6,"<="&X$6,$L$6:$AC$6,"<"&$G17+Input_General!$F$22),"Error") -> 1400000 | Y17: =IFERROR(SUMIFS($L11:$AC11,$L$6:$AC$6,">="&$G17,$L$6:$AC$6,"<="&Y$6,$L$6:$AC$6,"<"&$G17+Input_General!$F$22),"Error") -> 1400000 | Z17: =IFERROR(SUMIFS($L11:$AC11,$L$6:$AC$6,">="&$G17,$L$6:$AC$6,"<="&Z$6,$L$6:$AC$6,"<"&$G17+Input_General!$F$22),"Error") -> 1400000 | AA17: =IFERROR(SUMIFS($L11:$AC11,$L$6:$AC$6,">="&$G17,$L$6:$AC$6,"<="&AA$6,$L$6:$AC$6,"<"&$G17+Input_General!$F$22),"Error") -> 1400000 | AB17: =IFERROR(SUMIFS($L11:$AC11,$L$6:$AC$6,">="&$G17,$L$6:$AC$6,"<="&AB$6,$L$6:$AC$6,"<"&$G17+Input_General!$F$22),"Error") -> 1400000 | AC17: =IFERROR(SUMIFS($L11:$AC11,$L$6:$AC$6,">="&$G17,$L$6:$AC$6,"<="&AC$6,$L$6:$AC$6,"<"&$G17+Input_General!$F$22),"Error") -> 1400000 | AE17: =C8 -> Diesel | AH17: 2025 | AJ17: Diesel2025
F18: =C8 -> Diesel | G18: 2026 | H18: =Terms!$I$10 -> [km] | L18: =IFERROR(SUMIFS($L11:$AC11,$L$6:$AC$6,">="&$G18,$L$6:$AC$6,"<="&L$6,$L$6:$AC$6,"<"&$G18+Input_General!$F$22),"Error") -> 0 | M18: =IFERROR(SUMIFS($L11:$AC11,$L$6:$AC$6,">="&$G18,$L$6:$AC$6,"<="&M$6,$L$6:$AC$6,"<"&$G18+Input_General!$F$22),"Error") -> 0 | N18: =IFERROR(SUMIFS($L11:$AC11,$L$6:$AC$6,">="&$G18,$L$6:$AC$6,"<="&N$6,$L$6:$AC$6,"<"&$G18+Input_General!$F$22),"Error") -> 0 | O18: =IFERROR(SUMIFS($L11:$AC11,$L$6:$AC$6,">="&$G18,$L$6:$AC$6,"<="&O$6,$L$6:$AC$6,"<"&$G18+Input_General!$F$22),"Error") -> 140000 | P18: =IFERROR(SUMIFS($L11:$AC11,$L$6:$AC$6,">="&$G18,$L$6:$AC$6,"<="&P$6,$L$6:$AC$6,"<"&$G18+Input_General!$F$22),"Error") -> 280000 | Q18: =IFERROR(SUMIFS($L11:$AC11,$L$6:$AC$6,">="&$G18,$L$6:$AC$6,"<="&Q$6,$L$6:$AC$6,"<"&$G18+Input_General!$F$22),"Error") -> 420000 | R18: =IFERROR(SUMIFS($L11:$AC11,$L$6:$AC$6,">="&$G18,$L$6:$AC$6,"<="&R$6,$L$6:$AC$6,"<"&$G18+Input_General!$F$22),"Error") -> 560000 | S18: =IFERROR(SUMIFS($L11:$AC11,$L$6:$AC$6,">="&$G18,$L$6:$AC$6,"<="&S$6,$L$6:$AC$6,"<"&$G18+Input_General!$F$22),"Error") -> 700000 | T18: =IFERROR(SUMIFS($L11:$AC11,$L$6:$AC$6,">="&$G18,$L$6:$AC$6,"<="&T$6,$L$6:$AC$6,"<"&$G18+Input_General!$F$22),"Error") -> 840000 | U18: =IFERROR(SUMIFS($L11:$AC11,$L$6:$AC$6,">="&$G18,$L$6:$AC$6,"<="&U$6,$L$6:$AC$6,"<"&$G18+Input_General!$F$22),"Error") -> 980000 | V18: =IFERROR(SUMIFS($L11:$AC11,$L$6:$AC$6,">="&$G18,$L$6:$AC$6,"<="&V$6,$L$6:$AC$6,"<"&$G18+Input_General!$F$22),"Error") -> 1120000 | W18: =IFERROR(SUMIFS($L11:$AC11,$L$6:$AC$6,">="&$G18,$L$6:$AC$6,"<="&W$6,$L$6:$AC$6,"<"&$G18+Input_General!$F$22),"Error") -> 1260000 | X18: =IFERROR(SUMIFS($L11:$AC11,$L$6:$AC$6,">="&$G18,$L$6:$AC$6,"<="&X$6,$L$6:$AC$6,"<"&$G18+Input_General!$F$22),"Error") -> 1400000 | Y18: =IFERROR(SUMIFS($L11:$AC11,$L$6:$AC$6,">="&$G18,$L$6:$AC$6,"<="&Y$6,$L$6:$AC$6,"<"&$G18+Input_General!$F$22),"Error") -> 1400000 | Z18: =IFERROR(SUMIFS($L11:$AC11,$L$6:$AC$6,">="&$G18,$L$6:$AC$6,"<="&Z$6,$L$6:$AC$6,"<"&$G18+Input_General!$F$22),"Error") -> 1400000 | AA18: =IFERROR(SUMIFS($L11:$AC11,$L$6:$AC$6,">="&$G18,$L$6:$AC$6,"<="&AA$6,$L$6:$AC$6,"<"&$G18+Input_General!$F$22),"Error") -> 1400000 | AB18: =IFERROR(SUMIFS($L11:$AC11,$L$6:$AC$6,">="&$G18,$L$6:$AC$6,"<="&AB$6,$L$6:$AC$6,"<"&$G18+Input_General!$F$22),"Error") -> 1400000 | AC18: =IFERROR(SUMIFS($L11:$AC11,$L$6:$AC$6,">="&$G18,$L$6:$AC$6,"<="&AC$6,$L$6:$AC$6,"<"&$G18+Input_General!$F$22),"Error") -> 1400000 | AE18: =C8 -> Diesel | AH18: 2026 | AJ18: Diesel2026
F19: =C8 -> Diesel | G19: 2027 | H19: =Terms!$I$10 -> [km] | L19: =IFERROR(SUMIFS($L11:$AC11,$L$6:$AC$6,">="&$G19,$L$6:$AC$6,"<="&L$6,$L$6:$AC$6,"<"&$G19+Input_General!$F$22),"Error") -> 0 | M19: =IFERROR(SUMIFS($L11:$AC11,$L$6:$AC$6,">="&$G19,$L$6:$AC$6,"<="&M$6,$L$6:$AC$6,"<"&$G19+Input_General!$F$22),"Error") -> 0 | N19: =IFERROR(SUMIFS($L11:$AC11,$L$6:$AC$6,">="&$G19,$L$6:$AC$6,"<="&N$6,$L$6:$AC$6,"<"&$G19+Input_General!$F$22),"Error") -> 0 | O19: =IFERROR(SUMIFS($L11:$AC11,$L$6:$AC$6,">="&$G19,$L$6:$AC$6,"<="&O$6,$L$6:$AC$6,"<"&$G19+Input_General!$F$22),"Error") -> 0 | P19: =IFERROR(SUMIFS($L11:$AC11,$L$6:$AC$6,">="&$G19,$L$6:$AC$6,"<="&P$6,$L$6:$AC$6,"<"&$G19+Input_General!$F$22),"Error") -> 140000 | Q19: =IFERROR(SUMIFS($L11:$AC11,$L$6:$AC$6,">="&$G19,$L$6:$AC$6,"<="&Q$6,$L$6:$AC$6,"<"&$G19+Input_General!$F$22),"Error") -> 280000 | R19: =IFERROR(SUMIFS($L11:$AC11,$L$6:$AC$6,">="&$G19,$L$6:$AC$6,"<="&R$6,$L$6:$AC$6,"<"&$G19+Input_General!$F$22),"Error") -> 420000 | S19: =IFERROR(SUMIFS($L11:$AC11,$L$6:$AC$6,">="&$G19,$L$6:$AC$6,"<="&S$6,$L$6:$AC$6,"<"&$G19+Input_General!$F$22),"Error") -> 560000 | T19: =IFERROR(SUMIFS($L11:$AC11,$L$6:$AC$6,">="&$G19,$L$6:$AC$6,"<="&T$6,$L$6:$AC$6,"<"&$G19+Input_General!$F$22),"Error") -> 700000 | U19: =IFERROR(SUMIFS($L11:$AC11,$L$6:$AC$6,">="&$G19,$L$6:$AC$6,"<="&U$6,$L$6:$AC$6,"<"&$G19+Input_General!$F$22),"Error") -> 840000 | V19: =IFERROR(SUMIFS($L11:$AC11,$L$6:$AC$6,">="&$G19,$L$6:$AC$6,"<="&V$6,$L$6:$AC$6,"<"&$G19+Input_General!$F$22),"Error") -> 980000 | W19: =IFERROR(SUMIFS($L11:$AC11,$L$6:$AC$6,">="&$G19,$L$6:$AC$6,"<="&W$6,$L$6:$AC$6,"<"&$G19+Input_General!$F$22),"Error") -> 1120000 | X19: =IFERROR(SUMIFS($L11:$AC11,$L$6:$AC$6,">="&$G19,$L$6:$AC$6,"<="&X$6,$L$6:$AC$6,"<"&$G19+Input_General!$F$22),"Error") -> 1260000 | Y19: =IFERROR(SUMIFS($L11:$AC11,$L$6:$AC$6,">="&$G19,$L$6:$AC$6,"<="&Y$6,$L$6:$AC$6,"<"&$G19+Input_General!$F$22),"Error") -> 1400000 | Z19: =IFERROR(SUMIFS($L11:$AC11,$L$6:$AC$6,">="&$G19,$L$6:$AC$6,"<="&Z$6,$L$6:$AC$6,"<"&$G19+Input_General!$F$22),"Error") -> 1400000 | AA19: =IFERROR(SUMIFS($L11:$AC11,$L$6:$AC$6,">="&$G19,$L$6:$AC$6,"<="&AA$6,$L$6:$AC$6,"<"&$G19+Input_General!$F$22),"Error") -> 1400000 | AB19: =IFERROR(SUMIFS($L11:$AC11,$L$6:$AC$6,">="&$G19,$L$6:$AC$6,"<="&AB$6,$L$6:$AC$6,"<"&$G19+Input_General!$F$22),"Error") -> 1400000 | AC19: =IFERROR(SUMIFS($L11:$AC11,$L$6:$AC$6,">="&$G19,$L$6:$AC$6,"<="&AC$6,$L$6:$AC$6,"<"&$G19+Input_General!$F$22),"Error") -> 1400000 | AE19: =C8 -> Diesel | AH19: 2027 | AJ19: Diesel2027
F20: =C8 -> Diesel | G20: 2028 | H20: =Terms!$I$10 -> [km] | L20: =IFERROR(SUMIFS($L11:$AC11,$L$6:$AC$6,">="&$G20,$L$6:$AC$6,"<="&L$6,$L$6:$AC$6,"<"&$G20+Input_General!$F$22),"Error") -> 0 | M20: =IFERROR(SUMIFS($L11:$AC11,$L$6:$AC$6,">="&$G20,$L$6:$AC$6,"<="&M$6,$L$6:$AC$6,"<"&$G20+Input_General!$F$22),"Error") -> 0 | N20: =IFERROR(SUMIFS($L11:$AC11,$L$6:$AC$6,">="&$G20,$L$6:$AC$6,"<="&N$6,$L$6:$AC$6,"<"&$G20+Input_General!$F$22),"Error") -> 0 | O20: =IFERROR(SUMIFS($L11:$AC11,$L$6:$AC$6,">="&$G20,$L$6:$AC$6,"<="&O$6,$L$6:$AC$6,"<"&$G20+Input_General!$F$22),"Error") -> 0 | P20: =IFERROR(SUMIFS($L11:$AC11,$L$6:$AC$6,">="&$G20,$L$6:$AC$6,"<="&P$6,$L$6:$AC$6,"<"&$G20+Input_General!$F$22),"Error") -> 0 | Q20: =IFERROR(SUMIFS($L11:$AC11,$L$6:$AC$6,">="&$G20,$L$6:$AC$6,"<="&Q$6,$L$6:$AC$6,"<"&$G20+Input_General!$F$22),"Error") -> 140000 | R20: =IFERROR(SUMIFS($L11:$AC11,$L$6:$AC$6,">="&$G20,$L$6:$AC$6,"<="&R$6,$L$6:$AC$6,"<"&$G20+Input_General!$F$22),"Error") -> 280000 | S20: =IFERROR(SUMIFS($L11:$AC11,$L$6:$AC$6,">="&$G20,$L$6:$AC$6,"<="&S$6,$L$6:$AC$6,"<"&$G20+Input_General!$F$22),"Error") -> 420000 | T20: =IFERROR(SUMIFS($L11:$AC11,$L$6:$AC$6,">="&$G20,$L$6:$AC$6,"<="&T$6,$L$6:$AC$6,"<"&$G20+Input_General!$F$22),"Error") -> 560000 | U20: =IFERROR(SUMIFS($L11:$AC11,$L$6:$AC$6,">="&$G20,$L$6:$AC$6,"<="&U$6,$L$6:$AC$6,"<"&$G20+Input_General!$F$22),"Error") -> 700000 | V20: =IFERROR(SUMIFS($L11:$AC11,$L$6:$AC$6,">="&$G20,$L$6:$AC$6,"<="&V$6,$L$6:$AC$6,"<"&$G20+Input_General!$F$22),"Error") -> 840000 | W20: =IFERROR(SUMIFS($L11:$AC11,$L$6:$AC$6,">="&$G20,$L$6:$AC$6,"<="&W$6,$L$6:$AC$6,"<"&$G20+Input_General!$F$22),"Error") -> 980000 | X20: =IFERROR(SUMIFS($L11:$AC11,$L$6:$AC$6,">="&$G20,$L$6:$AC$6,"<="&X$6,$L$6:$AC$6,"<"&$G20+Input_General!$F$22),"Error") -> 1120000 | Y20: =IFERROR(SUMIFS($L11:$AC11,$L$6:$AC$6,">="&$G20,$L$6:$AC$6,"<="&Y$6,$L$6:$AC$6,"<"&$G20+Input_General!$F$22),"Error") -> 1260000 | Z20: =IFERROR(SUMIFS($L11:$AC11,$L$6:$AC$6,">="&$G20,$L$6:$AC$6,"<="&Z$6,$L$6:$AC$6,"<"&$G20+Input_General!$F$22),"Error") -> 1400000 | AA20: =IFERROR(SUMIFS($L11:$AC11,$L$6:$AC$6,">="&$G20,$L$6:$AC$6,"<="&AA$6,$L$6:$AC$6,"<"&$G20+Input_General!$F$22),"Error") -> 1400000 | AB20: =IFERROR(SUMIFS($L11:$AC11,$L$6:$AC$6,">="&$G20,$L$6:$AC$6,"<="&AB$6,$L$6:$AC$6,"<"&$G20+Input_General!$F$22),"Error") -> 1400000 | AC20: =IFERROR(SUMIFS($L11:$AC11,$L$6:$AC$6,">="&$G20,$L$6:$AC$6,"<="&AC$6,$L$6:$AC$6,"<"&$G20+Input_General!$F$22),"Error") -> 1400000 | AE20: =C8 -> Diesel | AH20: 2028 | AJ20: Diesel2028
F21: =C8 -> Diesel | G21: 2029 | H21: =Terms!$I$10 -> [km] | L21: =IFERROR(SUMIFS($L11:$AC11,$L$6:$AC$6,">="&$G21,$L$6:$AC$6,"<="&L$6,$L$6:$AC$6,"<"&$G21+Input_General!$F$22),"Error") -> 0 | M21: =IFERROR(SUMIFS($L11:$AC11,$L$6:$AC$6,">="&$G21,$L$6:$AC$6,"<="&M$6,$L$6:$AC$6,"<"&$G21+Input_General!$F$22),"Error") -> 0 | N21: =IFERROR(SUMIFS($L11:$AC11,$L$6:$AC$6,">="&$G21,$L$6:$AC$6,"<="&N$6,$L$6:$AC$6,"<"&$G21+Input_General!$F$22),"Error") -> 0 | O21: =IFERROR(SUMIFS($L11:$AC11,$L$6:$AC$6,">="&$G21,$L$6:$AC$6,"<="&O$6,$L$6:$AC$6,"<"&$G21+Input_General!$F$22),"Error") -> 0 | P21: =IFERROR(SUMIFS($L11:$AC11,$L$6:$AC$6,">="&$G21,$L$6:$AC$6,"<="&P$6,$L$6:$AC$6,"<"&$G21+Input_General!$F$22),"Error") -> 0 | Q21: =IFERROR(SUMIFS($L11:$AC11,$L$6:$AC$6,">="&$G21,$L$6:$AC$6,"<="&Q$6,$L$6:$AC$6,"<"&$G21+Input_General!$F$22),"Error") -> 0 | R21: =IFERROR(SUMIFS($L11:$AC11,$L$6:$AC$6,">="&$G21,$L$6:$AC$6,"<="&R$6,$L$6:$AC$6,"<"&$G21+Input_General!$F$22),"Error") -> 140000 | S21: =IFERROR(SUMIFS($L11:$AC11,$L$6:$AC$6,">="&$G21,$L$6:$AC$6,"<="&S$6,$L$6:$AC$6,"<"&$G21+Input_General!$F$22),"Error") -> 280000 | T21: =IFERROR(SUMIFS($L11:$AC11,$L$6:$AC$6,">="&$G21,$L$6:$AC$6,"<="&T$6,$L$6:$AC$6,"<"&$G21+Input_General!$F$22),"Error") -> 420000 | U21: =IFERROR(SUMIFS($L11:$AC11,$L$6:$AC$6,">="&$G21,$L$6:$AC$6,"<="&U$6,$L$6:$AC$6,"<"&$G21+Input_General!$F$22),"Error") -> 560000 | V21: =IFERROR(SUMIFS($L11:$AC11,$L$6:$AC$6,">="&$G21,$L$6:$AC$6,"<="&V$6,$L$6:$AC$6,"<"&$G21+Input_General!$F$22),"Error") -> 700000 | W21: =IFERROR(SUMIFS($L11:$AC11,$L$6:$AC$6,">="&$G21,$L$6:$AC$6,"<="&W$6,$L$6:$AC$6,"<"&$G21+Input_General!$F$22),"Error") -> 840000 | X21: =IFERROR(SUMIFS($L11:$AC11,$L$6:$AC$6,">="&$G21,$L$6:$AC$6,"<="&X$6,$L$6:$AC$6,"<"&$G21+Input_General!$F$22),"Error") -> 980000 | Y21: =IFERROR(SUMIFS($L11:$AC11,$L$6:$AC$6,">="&$G21,$L$6:$AC$6,"<="&Y$6,$L$6:$AC$6,"<"&$G21+Input_General!$F$22),"Error") -> 1120000 | Z21: =IFERROR(SUMIFS($L11:$AC11,$L$6:$AC$6,">="&$G21,$L$6:$AC$6,"<="&Z$6,$L$6:$AC$6,"<"&$G21+Input_General!$F$22),"Error") -> 1260000 | AA21: =IFERROR(SUMIFS($L11:$AC11,$L$6:$AC$6,">="&$G21,$L$6:$AC$6,"<="&AA$6,$L$6:$AC$6,"<"&$G21+Input_General!$F$22),"Error") -> 1400000 | AB21: =IFERROR(SUMIFS($L11:$AC11,$L$6:$AC$6,">="&$G21,$L$6:$AC$6,"<="&AB$6,$L$6:$AC$6,"<"&$G21+Input_General!$F$22),"Error") -> 1400000 | AC21: =IFERROR(SUMIFS($L11:$AC11,$L$6:$AC$6,">="&$G21,$L$6:$AC$6,"<="&AC$6,$L$6:$AC$6,"<"&$G21+Input_General!$F$22),"Error") -> 1400000 | AE21: =C8 -> Diesel | AH21: 2029 | AJ21: Diesel2029
F22: =C8 -> Diesel | G22: 2030 | H22: =Terms!$I$10 -> [km] | L22: =IFERROR(SUMIFS($L11:$AC11,$L$6:$AC$6,">="&$G22,$L$6:$AC$6,"<="&L$6,$L$6:$AC$6,"<"&$G22+Input_General!$F$22),"Error") -> 0 | M22: =IFERROR(SUMIFS($L11:$AC11,$L$6:$AC$6,">="&$G22,$L$6:$AC$6,"<="&M$6,$L$6:$AC$6,"<"&$G22+Input_General!$F$22),"Error") -> 0 | N22: =IFERROR(SUMIFS($L11:$AC11,$L$6:$AC$6,">="&$G22,$L$6:$AC$6,"<="&N$6,$L$6:$AC$6,"<"&$G22+Input_General!$F$22),"Error") -> 0 | O22: =IFERROR(SUMIFS($L11:$AC11,$L$6:$AC$6,">="&$G22,$L$6:$AC$6,"<="&O$6,$L$6:$AC$6,"<"&$G22+Input_General!$F$22),"Error") -> 0 | P22: =IFERROR(SUMIFS($L11:$AC11,$L$6:$AC$6,">="&$G22,$L$6:$AC$6,"<="&P$6,$L$6:$AC$6,"<"&$G22+Input_General!$F$22),"Error") -> 0 | Q22: =IFERROR(SUMIFS($L11:$AC11,$L$6:$AC$6,">="&$G22,$L$6:$AC$6,"<="&Q$6,$L$6:$AC$6,"<"&$G22+Input_General!$F$22),"Error") -> 0 | R22: =IFERROR(SUMIFS($L11:$AC11,$L$6:$AC$6,">="&$G22,$L$6:$AC$6,"<="&R$6,$L$6:$AC$6,"<"&$G22+Input_General!$F$22),"Error") -> 0 | S22: =IFERROR(SUMIFS($L11:$AC11,$L$6:$AC$6,">="&$G22,$L$6:$AC$6,"<="&S$6,$L$6:$AC$6,"<"&$G22+Input_General!$F$22),"Error") -> 140000 | T22: =IFERROR(SUMIFS($L11:$AC11,$L$6:$AC$6,">="&$G22,$L$6:$AC$6,"<="&T$6,$L$6:$AC$6,"<"&$G22+Input_General!$F$22),"Error") -> 280000 | U22: =IFERROR(SUMIFS($L11:$AC11,$L$6:$AC$6,">="&$G22,$L$6:$AC$6,"<="&U$6,$L$6:$AC$6,"<"&$G22+Input_General!$F$22),"Error") -> 420000 | V22: =IFERROR(SUMIFS($L11:$AC11,$L$6:$AC$6,">="&$G22,$L$6:$AC$6,"<="&V$6,$L$6:$AC$6,"<"&$G22+Input_General!$F$22),"Error") -> 560000 | W22: =IFERROR(SUMIFS($L11:$AC11,$L$6:$AC$6,">="&$G22,$L$6:$AC$6,"<="&W$6,$L$6:$AC$6,"<"&$G22+Input_General!$F$22),"Error") -> 700000 | X22: =IFERROR(SUMIFS($L11:$AC11,$L$6:$AC$6,">="&$G22,$L$6:$AC$6,"<="&X$6,$L$6:$AC$6,"<"&$G22+Input_General!$F$22),"Error") -> 840000 | Y22: =IFERROR(SUMIFS($L11:$AC11,$L$6:$AC$6,">="&$G22,$L$6:$AC$6,"<="&Y$6,$L$6:$AC$6,"<"&$G22+Input_General!$F$22),"Error") -> 980000 | Z22: =IFERROR(SUMIFS($L11:$AC11,$L$6:$AC$6,">="&$G22,$L$6:$AC$6,"<="&Z$6,$L$6:$AC$6,"<"&$G22+Input_General!$F$22),"Error") -> 1120000 | AA22: =IFERROR(SUMIFS($L11:$AC11,$L$6:$AC$6,">="&$G22,$L$6:$AC$6,"<="&AA$6,$L$6:$AC$6,"<"&$G22+Input_General!$F$22),"Error") -> 1260000 | AB22: =IFERROR(SUMIFS($L11:$AC11,$L$6:$AC$6,">="&$G22,$L$6:$AC$6,"<="&AB$6,$L$6:$AC$6,"<"&$G22+Input_General!$F$22),"Error") -> 1400000 | AC22: =IFERROR(SUMIFS($L11:$AC11,$L$6:$AC$6,">="&$G22,$L$6:$AC$6,"<="&AC$6,$L$6:$AC$6,"<"&$G22+Input_General!$F$22),"Error") -> 1400000 | AE22: =C8 -> Diesel | AH22: 2030 | AJ22: Diesel2030
AE23: =C8 -> Diesel | AH23: 0 | AJ23: Diesel0
C24: =Terms!$E$22 -> Replacement Unit | AE24: =C8 -> Diesel | AH24: 0 | AJ24: Diesel0
AE25: =C8 -> Diesel | AH25: 0 | AJ25: Diesel0
C26: ="Year of original "&C27 -> Year of original Diesel Drivetrain | AE26: =C8 -> Diesel | AH26: 0 | AJ26: Diesel0
C27: =Terms!$E$8 -> Diesel Drivetrain | D27: =INDEX(Allocations!$R$21:$U$28,MATCH(F27,Allocations!$R$21:$R$28,0),MATCH(C27,Allocations!$R$21:$U$21,0)) -> 1 | F27: =C8 -> Diesel | G27: 2023 | K27: 0 | L27: =IF($D27=0,0,IF(L$6>=$G27,IF(L37=0,$G27,0),0)) -> 2023 | M27: =IF($D27=0,0,IF(M$6>=$G27,IF(M37=0,$G27,0),0)) -> 2023 | N27: 2023 | O27: 2023 | P27: 2023 | Q27: 2023 | R27: 2023 | S27: 2023 | T27: 2023 | U27: 2023 | V27: 2023 | W27: 2023 | X27: 2023 | Y27: 2023 | Z27: 2023 | AA27: 2023 | AB27: 2023 | AC27: 2023 | AE27: =C8 -> Diesel | AH27: 2023 | AJ27: Diesel2023
C28: =Terms!$E$8 -> Diesel Drivetrain | D28: =D27 -> 1 | F28: =C8 -> Diesel | G28: 2024 | K28: 0 | L28: =IF($D28=0,0,IF(L$6>=$G28,IF(L38=0,$G28,0),0)) -> 0 | M28: 2024 | N28: 2024 | O28: 2024 | P28: 2024 | Q28: 2024 | R28: 2024 | S28: 2024 | T28: 2024 | U28: 2024 | V28: 2024 | W28: 2024 | X28: 2024 | Y28: 2024 | Z28: 2024 | AA28: 2024 | AB28: 2024 | AC28: 2024 | AE28: =C8 -> Diesel | AH28: 2024 | AJ28: Diesel2024
C29: =Terms!$E$8 -> Diesel Drivetrain | D29: =D27 -> 1 | F29: =C8 -> Diesel | G29: 2025 | K29: 0 | L29: =IF($D29=0,0,IF(L$6>=$G29,IF(L39=0,$G29,0),0)) -> 0 | M29: 0 | N29: 2025 | O29: 2025 | P29: 2025 | Q29: 2025 | R29: 2025 | S29: 2025 | T29: 2025 | U29: 2025 | V29: 2025 | W29: 2025 | X29: 2025 | Y29: 2025 | Z29: 2025 | AA29: 2025 | AB29: 2025 | AC29: 2025 | AE29: =C8 -> Diesel | AH29: 2025 | AJ29: Diesel2025
C30: =Terms!$E$8 -> Diesel Drivetrain | D30: =D27 -> 1 | F30: =C8 -> Diesel | G30: 2026 | K30: 0 | L30: =IF($D30=0,0,IF(L$6>=$G30,IF(L40=0,$G30,0),0)) -> 0 | M30: 0 | N30: 0 | O30: 2026 | P30: 2026 | Q30: 2026 | R30: 2026 | S30: 2026 | T30: 2026 | U30: 2026 | V30: 2026 | W30: 2026 | X30: 2026 | Y30: 2026 | Z30: 2026 | AA30: 2026 | AB30: 2026 | AC30: 2026 | AE30: =C8 -> Diesel | AH30: 2026 | AJ30: Diesel2026
C31: =Terms!$E$8 -> Diesel Drivetrain | D31: =D27 -> 1 | F31: =C8 -> Diesel | G31: 2027 | K31: 0 | L31: =IF($D31=0,0,IF(L$6>=$G31,IF(L41=0,$G31,0),0)) -> 0 | M31: 0 | N31: 0 | O31: 0 | P31: 2027 | Q31: 2027 | R31: 2027 | S31: 2027 | T31: 2027 | U31: 2027 | V31: 2027 | W31: 2027 | X31: 2027 | Y31: 2027 | Z31: 2027 | AA31: 2027 | AB31: 2027 | AC31: 2027 | AE31: =C8 -> Diesel | AH31: 2027 | AJ31: Diesel2027
C32: =Terms!$E$8 -> Diesel Drivetrain | D32: =D27 -> 1 | F32: =C8 -> Diesel | G32: 2028 | K32: 0 | L32: =IF($D32=0,0,IF(L$6>=$G32,IF(L42=0,$G32,0),0)) -> 0 | M32: 0 | N32: 0 | O32: 0 | P32: 0 | Q32: 2028 | R32: 2028 | S32: 2028 | T32: 2028 | U32: 2028 | V32: 2028 | W32: 2028 | X32: 2028 | Y32: 2028 | Z32: 2028 | AA32: 2028 | AB32: 2028 | AC32: 2028 | AE32: =C8 -> Diesel | AH32: 2028 | AJ32: Diesel2028
C33: =Terms!$E$8 -> Diesel Drivetrain | D33: =D27 -> 1 | F33: =C8 -> Diesel | G33: 2029 | K33: 0 | L33: =IF($D33=0,0,IF(L$6>=$G33,IF(L43=0,$G33,0),0)) -> 0 | M33: 0 | N33: 0 | O33: 0 | P33: 0 | Q33: 0 | R33: 2029 | S33: 2029 | T33: 2029 | U33: 2029 | V33: 2029 | W33: 2029 | X33: 2029 | Y33: 2029 | Z33: 2029 | AA33: 2029 | AB33: 2029 | AC33: 2029 | AE33: =C8 -> Diesel | AH33: 2029 | AJ33: Diesel2029
C34: =Terms!$E$8 -> Diesel Drivetrain | D34: =D27 -> 1 | F34: =C8 -> Diesel | G34: 2030 | K34: 0 | L34: =IF($D34=0,0,IF(L$6>=$G34,IF(L44=0,$G34,0),0)) -> 0 | M34: 0 | N34: 0 | O34: 0 | P34: 0 | Q34: 0 | R34: 0 | S34: 2030 | T34: 2030 | U34: 2030 | V34: 2030 | W34: 2030 | X34: 2030 | Y34: 2030 | Z34: 2030 | AA34: 2030 | AB34: 2030 | AC34: 2030 | AE34: =C8 -> Diesel | AH34: 2030 | AJ34: Diesel2030
AE35: =C8 -> Diesel | AH35: 0 | AJ35: Diesel0
C36: ="Year of replacement "&C37 -> Year of replacement Diesel Drivetrain | AE36: =C8 -> Diesel | AH36: 0 | AJ36: Diesel0
C37: =Terms!$E$8 -> Diesel Drivetrain | D37: =INDEX(Allocations!$R$21:$U$28,MATCH(F37,Allocations!$R$21:$R$28,0),MATCH(C37,Allocations!$R$21:$U$21,0)) -> 1 | F37: =C8 -> Diesel | G37: 2023 | K37: 0 | L37: =IF(K37>0,K37,IF(L15>INDEX('Input_4x2_Trac 330kW'!$E$68:$E$76,MATCH($C37,'Input_4x2_Trac 330kW'!$C$68:$C$76,0)),L$6,0)) -> 0 | M37: =IF(L37>0,L37,IF(M15>INDEX('Input_4x2_Trac 330kW'!$E$68:$E$76,MATCH($C37,'Input_4x2_Trac 330kW'!$C$68:$C$76,0)),M$6,0)) -> 0 | N37: =IF(M37>0,M37,IF(N15>INDEX('Input_4x2_Trac 330kW'!$E$68:$E$76,MATCH($C37,'Input_4x2_Trac 330kW'!$C$68:$C$76,0)),N$6,0)) -> 0 | O37: =IF(N37>0,N37,IF(O15>INDEX('Input_4x2_Trac 330kW'!$E$68:$E$76,MATCH($C37,'Input_4x2_Trac 330kW'!$C$68:$C$76,0)),O$6,0)) -> 0 | P37: =IF(O37>0,O37,IF(P15>INDEX('Input_4x2_Trac 330kW'!$E$68:$E$76,MATCH($C37,'Input_4x2_Trac 330kW'!$C$68:$C$76,0)),P$6,0)) -> 0 | Q37: =IF(P37>0,P37,IF(Q15>INDEX('Input_4x2_Trac 330kW'!$E$68:$E$76,MATCH($C37,'Input_4x2_Trac 330kW'!$C$68:$C$76,0)),Q$6,0)) -> 0 | R37: =IF(Q37>0,Q37,IF(R15>INDEX('Input_4x2_Trac 330kW'!$E$68:$E$76,MATCH($C37,'Input_4x2_Trac 330kW'!$C$68:$C$76,0)),R$6,0)) -> 0 | S37: =IF(R37>0,R37,IF(S15>INDEX('Input_4x2_Trac 330kW'!$E$68:$E$76,MATCH($C37,'Input_4x2_Trac 330kW'!$C$68:$C$76,0)),S$6,0)) -> 0 | T37: =IF(S37>0,S37,IF(T15>INDEX('Input_4x2_Trac 330kW'!$E$68:$E$76,MATCH($C37,'Input_4x2_Trac 330kW'!$C$68:$C$76,0)),T$6,0)) -> 0 | U37: =IF(T37>0,T37,IF(U15>INDEX('Input_4x2_Trac 330kW'!$E$68:$E$76,MATCH($C37,'Input_4x2_Trac 330kW'!$C$68:$C$76,0)),U$6,0)) -> 0 | V37: =IF(U37>0,U37,IF(V15>INDEX('Input_4x2_Trac 330kW'!$E$68:$E$76,MATCH($C37,'Input_4x2_Trac 330kW'!$C$68:$C$76,0)),V$6,0)) -> 0 | W37: =IF(V37>0,V37,IF(W15>INDEX('Input_4x2_Trac 330kW'!$E$68:$E$76,MATCH($C37,'Input_4x2_Trac 330kW'!$C$68:$C$76,0)),W$6,0)) -> 0 | X37: =IF(W37>0,W37,IF(X15>INDEX('Input_4x2_Trac 330kW'!$E$68:$E$76,MATCH($C37,'Input_4x2_Trac 330kW'!$C$68:$C$76,0)),X$6,0)) -> 0 | Y37: =IF(X37>0,X37,IF(Y15>INDEX('Input_4x2_Trac 330kW'!$E$68:$E$76,MATCH($C37,'Input_4x2_Trac 330kW'!$C$68:$C$76,0)),Y$6,0)) -> 0 | Z37: =IF(Y37>0,Y37,IF(Z15>INDEX('Input_4x2_Trac 330kW'!$E$68:$E$76,MATCH($C37,'Input_4x2_Trac 330kW'!$C$68:$C$76,0)),Z$6,0)) -> 0 | AA37: =IF(Z37>0,Z37,IF(AA15>INDEX('Input_4x2_Trac 330kW'!$E$68:$E$76,MATCH($C37,'Input_4x2_Trac 330kW'!$C$68:$C$76,0)),AA$6,0)) -> 0 | AB37: =IF(AA37>0,AA37,IF(AB15>INDEX('Input_4x2_Trac 330kW'!$E$68:$E$76,MATCH($C37,'Input_4x2_Trac 330kW'!$C$68:$C$76,0)),AB$6,0)) -> 0 | AC37: =IF(AB37>0,AB37,IF(AC15>INDEX('Input_4x2_Trac 330kW'!$E$68:$E$76,MATCH($C37,'Input_4x2_Trac 330kW'!$C$68:$C$76,0)),AC$6,0)) -> 0 | AE37: =C8 -> Diesel | AH37: 2023 | AJ37: Diesel2023
C38: =Terms!$E$8 -> Diesel Drivetrain | D38: =D37 -> 1 | F38: =C8 -> Diesel | G38: 2024 | K38: 0 | L38: =IF(K38>0,K38,IF(L16>INDEX('Input_4x2_Trac 330kW'!$E$68:$E$76,MATCH($C38,'Input_4x2_Trac 330kW'!$C$68:$C$76,0)),L$6,0)) -> 0 | M38: =IF(L38>0,L38,IF(M16>INDEX('Input_4x2_Trac 330kW'!$E$68:$E$76,MATCH($C38,'Input_4x2_Trac 330kW'!$C$68:$C$76,0)),M$6,0)) -> 0 | N38: =IF(M38>0,M38,IF(N16>INDEX('Input_4x2_Trac 330kW'!$E$68:$E$76,MATCH($C38,'Input_4x2_Trac 330kW'!$C$68:$C$76,0)),N$6,0)) -> 0 | O38: =IF(N38>0,N38,IF(O16>INDEX('Input_4x2_Trac 330kW'!$E$68:$E$76,MATCH($C38,'Input_4x2_Trac 330kW'!$C$68:$C$76,0)),O$6,0)) -> 0 | P38: =IF(O38>0,O38,IF(P16>INDEX('Input_4x2_Trac 330kW'!$E$68:$E$76,MATCH($C38,'Input_4x2_Trac 330kW'!$C$68:$C$76,0)),P$6,0)) -> 0 | Q38: =IF(P38>0,P38,IF(Q16>INDEX('Input_4x2_Trac 330kW'!$E$68:$E$76,MATCH($C38,'Input_4x2_Trac 330kW'!$C$68:$C$76,0)),Q$6,0)) -> 0 | R38: =IF(Q38>0,Q38,IF(R16>INDEX('Input_4x2_Trac 330kW'!$E$68:$E$76,MATCH($C38,'Input_4x2_Trac 330kW'!$C$68:$C$76,0)),R$6,0)) -> 0 | S38: =IF(R38>0,R38,IF(S16>INDEX('Input_4x2_Trac 330kW'!$E$68:$E$76,MATCH($C38,'Input_4x2_Trac 330kW'!$C$68:$C$76,0)),S$6,0)) -> 0 | T38: =IF(S38>0,S38,IF(T16>INDEX('Input_4x2_Trac 330kW'!$E$68:$E$76,MATCH($C38,'Input_4x2_Trac 330kW'!$C$68:$C$76,0)),T$6,0)) -> 0 | U38: =IF(T38>0,T38,IF(U16>INDEX('Input_4x2_Trac 330kW'!$E$68:$E$76,MATCH($C38,'Input_4x2_Trac 330kW'!$C$68:$C$76,0)),U$6,0)) -> 0 | V38: =IF(U38>0,U38,IF(V16>INDEX('Input_4x2_Trac 330kW'!$E$68:$E$76,MATCH($C38,'Input_4x2_Trac 330kW'!$C$68:$C$76,0)),V$6,0)) -> 0 | W38: =IF(V38>0,V38,IF(W16>INDEX('Input_4x2_Trac 330kW'!$E$68:$E$76,MATCH($C38,'Input_4x2_Trac 330kW'!$C$68:$C$76,0)),W$6,0)) -> 0 | X38: =IF(W38>0,W38,IF(X16>INDEX('Input_4x2_Trac 330kW'!$E$68:$E$76,MATCH($C38,'Input_4x2_Trac 330kW'!$C$68:$C$76,0)),X$6,0)) -> 0 | Y38: =IF(X38>0,X38,IF(Y16>INDEX('Input_4x2_Trac 330kW'!$E$68:$E$76,MATCH($C38,'Input_4x2_Trac 330kW'!$C$68:$C$76,0)),Y$6,0)) -> 0 | Z38: =IF(Y38>0,Y38,IF(Z16>INDEX('Input_4x2_Trac 330kW'!$E$68:$E$76,MATCH($C38,'Input_4x2_Trac 330kW'!$C$68:$C$76,0)),Z$6,0)) -> 0 | AA38: =IF(Z38>0,Z38,IF(AA16>INDEX('Input_4x2_Trac 330kW'!$E$68:$E$76,MATCH($C38,'Input_4x2_Trac 330kW'!$C$68:$C$76,0)),AA$6,0)) -> 0 | AB38: =IF(AA38>0,AA38,IF(AB16>INDEX('Input_4x2_Trac 330kW'!$E$68:$E$76,MATCH($C38,'Input_4x2_Trac 330kW'!$C$68:$C$76,0)),AB$6,0)) -> 0 | AC38: =IF(AB38>0,AB38,IF(AC16>INDEX('Input_4x2_Trac 330kW'!$E$68:$E$76,MATCH($C38,'Input_4x2_Trac 330kW'!$C$68:$C$76,0)),AC$6,0)) -> 0 | AE38: =C8 -> Diesel | AH38: 2024 | AJ38: Diesel2024
C39: =Terms!$E$8 -> Diesel Drivetrain | D39: =D37 -> 1 | F39: =C8 -> Diesel | G39: 2025 | K39: 0 | L39: =IF(K39>0,K39,IF(L17>INDEX('Input_4x2_Trac 330kW'!$E$68:$E$76,MATCH($C39,'Input_4x2_Trac 330kW'!$C$68:$C$76,0)),L$6,0)) -> 0 | M39: =IF(L39>0,L39,IF(M17>INDEX('Input_4x2_Trac 330kW'!$E$68:$E$76,MATCH($C39,'Input_4x2_Trac 330kW'!$C$68:$C$76,0)),M$6,0)) -> 0 | N39: =IF(M39>0,M39,IF(N17>INDEX('Input_4x2_Trac 330kW'!$E$68:$E$76,MATCH($C39,'Input_4x2_Trac 330kW'!$C$68:$C$76,0)),N$6,0)) -> 0 | O39: =IF(N39>0,N39,IF(O17>INDEX('Input_4x2_Trac 330kW'!$E$68:$E$76,MATCH($C39,'Input_4x2_Trac 330kW'!$C$68:$C$76,0)),O$6,0)) -> 0 | P39: =IF(O39>0,O39,IF(P17>INDEX('Input_4x2_Trac 330kW'!$E$68:$E$76,MATCH($C39,'Input_4x2_Trac 330kW'!$C$68:$C$76,0)),P$6,0)) -> 0 | Q39: =IF(P39>0,P39,IF(Q17>INDEX('Input_4x2_Trac 330kW'!$E$68:$E$76,MATCH($C39,'Input_4x2_Trac 330kW'!$C$68:$C$76,0)),Q$6,0)) -> 0 | R39: =IF(Q39>0,Q39,IF(R17>INDEX('Input_4x2_Trac 330kW'!$E$68:$E$76,MATCH($C39,'Input_4x2_Trac 330kW'!$C$68:$C$76,0)),R$6,0)) -> 0 | S39: =IF(R39>0,R39,IF(S17>INDEX('Input_4x2_Trac 330kW'!$E$68:$E$76,MATCH($C39,'Input_4x2_Trac 330kW'!$C$68:$C$76,0)),S$6,0)) -> 0 | T39: =IF(S39>0,S39,IF(T17>INDEX('Input_4x2_Trac 330kW'!$E$68:$E$76,MATCH($C39,'Input_4x2_Trac 330kW'!$C$68:$C$76,0)),T$6,0)) -> 0 | U39: =IF(T39>0,T39,IF(U17>INDEX('Input_4x2_Trac 330kW'!$E$68:$E$76,MATCH($C39,'Input_4x2_Trac 330kW'!$C$68:$C$76,0)),U$6,0)) -> 0 | V39: =IF(U39>0,U39,IF(V17>INDEX('Input_4x2_Trac 330kW'!$E$68:$E$76,MATCH($C39,'Input_4x2_Trac 330kW'!$C$68:$C$76,0)),V$6,0)) -> 0 | W39: =IF(V39>0,V39,IF(W17>INDEX('Input_4x2_Trac 330kW'!$E$68:$E$76,MATCH($C39,'Input_4x2_Trac 330kW'!$C$68:$C$76,0)),W$6,0)) -> 0 | X39: =IF(W39>0,W39,IF(X17>INDEX('Input_4x2_Trac 330kW'!$E$68:$E$76,MATCH($C39,'Input_4x2_Trac 330kW'!$C$68:$C$76,0)),X$6,0)) -> 0 | Y39: =IF(X39>0,X39,IF(Y17>INDEX('Input_4x2_Trac 330kW'!$E$68:$E$76,MATCH($C39,'Input_4x2_Trac 330kW'!$C$68:$C$76,0)),Y$6,0)) -> 0 | Z39: =IF(Y39>0,Y39,IF(Z17>INDEX('Input_4x2_Trac 330kW'!$E$68:$E$76,MATCH($C39,'Input_4x2_Trac 330kW'!$C$68:$C$76,0)),Z$6,0)) -> 0 | AA39: =IF(Z39>0,Z39,IF(AA17>INDEX('Input_4x2_Trac 330kW'!$E$68:$E$76,MATCH($C39,'Input_4x2_Trac 330kW'!$C$68:$C$76,0)),AA$6,0)) -> 0 | AB39: =IF(AA39>0,AA39,IF(AB17>INDEX('Input_4x2_Trac 330kW'!$E$68:$E$76,MATCH($C39,'Input_4x2_Trac 330kW'!$C$68:$C$76,0)),AB$6,0)) -> 0 | AC39: =IF(AB39>0,AB39,IF(AC17>INDEX('Input_4x2_Trac 330kW'!$E$68:$E$76,MATCH($C39,'Input_4x2_Trac 330kW'!$C$68:$C$76,0)),AC$6,0)) -> 0 | AE39: =C8 -> Diesel | AH39: 2025 | AJ39: Diesel2025
C40: =Terms!$E$8 -> Diesel Drivetrain | D40: =D37 -> 1 | F40: =C8 -> Diesel | G40: 2026 | K40: 0 | L40: =IF(K40>0,K40,IF(L18>INDEX('Input_4x2_Trac 330kW'!$E$68:$E$76,MATCH($C40,'Input_4x2_Trac 330kW'!$C$68:$C$76,0)),L$6,0)) -> 0 | M40: =IF(L40>0,L40,IF(M18>INDEX('Input_4x2_Trac 330kW'!$E$68:$E$76,MATCH($C40,'Input_4x2_Trac 330kW'!$C$68:$C$76,0)),M$6,0)) -> 0 | N40: =IF(M40>0,M40,IF(N18>INDEX('Input_4x2_Trac 330kW'!$E$68:$E$76,MATCH($C40,'Input_4x2_Trac 330kW'!$C$68:$C$76,0)),N$6,0)) -> 0 | O40: =IF(N40>0,N40,IF(O18>INDEX('Input_4x2_Trac 330kW'!$E$68:$E$76,MATCH($C40,'Input_4x2_Trac 330kW'!$C$68:$C$76,0)),O$6,0)) -> 0 | P40: =IF(O40>0,O40,IF(P18>INDEX('Input_4x2_Trac 330kW'!$E$68:$E$76,MATCH($C40,'Input_4x2_Trac 330kW'!$C$68:$C$76,0)),P$6,0)) -> 0 | Q40: =IF(P40>0,P40,IF(Q18>INDEX('Input_4x2_Trac 330kW'!$E$68:$E$76,MATCH($C40,'Input_4x2_Trac 330kW'!$C$68:$C$76,0)),Q$6,0)) -> 0 | R40: =IF(Q40>0,Q40,IF(R18>INDEX('Input_4x2_Trac 330kW'!$E$68:$E$76,MATCH($C40,'Input_4x2_Trac 330kW'!$C$68:$C$76,0)),R$6,0)) -> 0 | S40: =IF(R40>0,R40,IF(S18>INDEX('Input_4x2_Trac 330kW'!$E$68:$E$76,MATCH($C40,'Input_4x2_Trac 330kW'!$C$68:$C$76,0)),S$6,0)) -> 0 | T40: =IF(S40>0,S40,IF(T18>INDEX('Input_4x2_Trac 330kW'!$E$68:$E$76,MATCH($C40,'Input_4x2_Trac 330kW'!$C$68:$C$76,0)),T$6,0)) -> 0 | U40: =IF(T40>0,T40,IF(U18>INDEX('Input_4x2_Trac 330kW'!$E$68:$E$76,MATCH($C40,'Input_4x2_Trac 330kW'!$C$68:$C$76,0)),U$6,0)) -> 0 | V40: =IF(U40>0,U40,IF(V18>INDEX('Input_4x2_Trac 330kW'!$E$68:$E$76,MATCH($C40,'Input_4x2_Trac 330kW'!$C$68:$C$76,0)),V$6,0)) -> 0 | W40: =IF(V40>0,V40,IF(W18>INDEX('Input_4x2_Trac 330kW'!$E$68:$E$76,MATCH($C40,'Input_4x2_Trac 330kW'!$C$68:$C$76,0)),W$6,0)) -> 0 | X40: =IF(W40>0,W40,IF(X18>INDEX('Input_4x2_Trac 330kW'!$E$68:$E$76,MATCH($C40,'Input_4x2_Trac 330kW'!$C$68:$C$76,0)),X$6,0)) -> 0 | Y40: =IF(X40>0,X40,IF(Y18>INDEX('Input_4x2_Trac 330kW'!$E$68:$E$76,MATCH($C40,'Input_4x2_Trac 330kW'!$C$68:$C$76,0)),Y$6,0)) -> 0 | Z40: =IF(Y40>0,Y40,IF(Z18>INDEX('Input_4x2_Trac 330kW'!$E$68:$E$76,MATCH($C40,'Input_4x2_Trac 330kW'!$C$68:$C$76,0)),Z$6,0)) -> 0 | AA40: =IF(Z40>0,Z40,IF(AA18>INDEX('Input_4x2_Trac 330kW'!$E$68:$E$76,MATCH($C40,'Input_4x2_Trac 330kW'!$C$68:$C$76,0)),AA$6,0)) -> 0 | AB40: =IF(AA40>0,AA40,IF(AB18>INDEX('Input_4x2_Trac 330kW'!$E$68:$E$76,MATCH($C40,'Input_4x2_Trac 330kW'!$C$68:$C$76,0)),AB$6,0)) -> 0 | AC40: =IF(AB40>0,AB40,IF(AC18>INDEX('Input_4x2_Trac 330kW'!$E$68:$E$76,MATCH($C40,'Input_4x2_Trac 330kW'!$C$68:$C$76,0)),AC$6,0)) -> 0 | AE40: =C8 -> Diesel | AH40: 2026 | AJ40: Diesel2026
C41: =Terms!$E$8 -> Diesel Drivetrain | D41: =D37 -> 1 | F41: =C8 -> Diesel | G41: 2027 | K41: 0 | L41: =IF(K41>0,K41,IF(L19>INDEX('Input_4x2_Trac 330kW'!$E$68:$E$76,MATCH($C41,'Input_4x2_Trac 330kW'!$C$68:$C$76,0)),L$6,0)) -> 0 | M41: =IF(L41>0,L41,IF(M19>INDEX('Input_4x2_Trac 330kW'!$E$68:$E$76,MATCH($C41,'Input_4x2_Trac 330kW'!$C$68:$C$76,0)),M$6,0)) -> 0 | N41: =IF(M41>0,M41,IF(N19>INDEX('Input_4x2_Trac 330kW'!$E$68:$E$76,MATCH($C41,'Input_4x2_Trac 330kW'!$C$68:$C$76,0)),N$6,0)) -> 0 | O41: =IF(N41>0,N41,IF(O19>INDEX('Input_4x2_Trac 330kW'!$E$68:$E$76,MATCH($C41,'Input_4x2_Trac 330kW'!$C$68:$C$76,0)),O$6,0)) -> 0 | P41: =IF(O41>0,O41,IF(P19>INDEX('Input_4x2_Trac 330kW'!$E$68:$E$76,MATCH($C41,'Input_4x2_Trac 330kW'!$C$68:$C$76,0)),P$6,0)) -> 0 | Q41: =IF(P41>0,P41,IF(Q19>INDEX('Input_4x2_Trac 330kW'!$E$68:$E$76,MATCH($C41,'Input_4x2_Trac 330kW'!$C$68:$C$76,0)),Q$6,0)) -> 0 | R41: =IF(Q41>0,Q41,IF(R19>INDEX('Input_4x2_Trac 330kW'!$E$68:$E$76,MATCH($C41,'Input_4x2_Trac 330kW'!$C$68:$C$76,0)),R$6,0)) -> 0 | S41: =IF(R41>0,R41,IF(S19>INDEX('Input_4x2_Trac 330kW'!$E$68:$E$76,MATCH($C41,'Input_4x2_Trac 330kW'!$C$68:$C$76,0)),S$6,0)) -> 0 | T41: =IF(S41>0,S41,IF(T19>INDEX('Input_4x2_Trac 330kW'!$E$68:$E$76,MATCH($C41,'Input_4x2_Trac 330kW'!$C$68:$C$76,0)),T$6,0)) -> 0 | U41: =IF(T41>0,T41,IF(U19>INDEX('Input_4x2_Trac 330kW'!$E$68:$E$76,MATCH($C41,'Input_4x2_Trac 330kW'!$C$68:$C$76,0)),U$6,0)) -> 0 | V41: =IF(U41>0,U41,IF(V19>INDEX('Input_4x2_Trac 330kW'!$E$68:$E$76,MATCH($C41,'Input_4x2_Trac 330kW'!$C$68:$C$76,0)),V$6,0)) -> 0 | W41: =IF(V41>0,V41,IF(W19>INDEX('Input_4x2_Trac 330kW'!$E$68:$E$76,MATCH($C41,'Input_4x2_Trac 330kW'!$C$68:$C$76,0)),W$6,0)) -> 0 | X41: =IF(W41>0,W41,IF(X19>INDEX('Input_4x2_Trac 330kW'!$E$68:$E$76,MATCH($C41,'Input_4x2_Trac 330kW'!$C$68:$C$76,0)),X$6,0)) -> 0 | Y41: =IF(X41>0,X41,IF(Y19>INDEX('Input_4x2_Trac 330kW'!$E$68:$E$76,MATCH($C41,'Input_4x2_Trac 330kW'!$C$68:$C$76,0)),Y$6,0)) -> 0 | Z41: =IF(Y41>0,Y41,IF(Z19>INDEX('Input_4x2_Trac 330kW'!$E$68:$E$76,MATCH($C41,'Input_4x2_Trac 330kW'!$C$68:$C$76,0)),Z$6,0)) -> 0 | AA41: =IF(Z41>0,Z41,IF(AA19>INDEX('Input_4x2_Trac 330kW'!$E$68:$E$76,MATCH($C41,'Input_4x2_Trac 330kW'!$C$68:$C$76,0)),AA$6,0)) -> 0 | AB41: =IF(AA41>0,AA41,IF(AB19>INDEX('Input_4x2_Trac 330kW'!$E$68:$E$76,MATCH($C41,'Input_4x2_Trac 330kW'!$C$68:$C$76,0)),AB$6,0)) -> 0 | AC41: =IF(AB41>0,AB41,IF(AC19>INDEX('Input_4x2_Trac 330kW'!$E$68:$E$76,MATCH($C41,'Input_4x2_Trac 330kW'!$C$68:$C$76,0)),AC$6,0)) -> 0 | AE41: =C8 -> Diesel | AH41: 2027 | AJ41: Diesel2027
C42: =Terms!$E$8 -> Diesel Drivetrain | D42: =D37 -> 1 | F42: =C8 -> Diesel | G42: 2028 | K42: 0 | L42: =IF(K42>0,K42,IF(L20>INDEX('Input_4x2_Trac 330kW'!$E$68:$E$76,MATCH($C42,'Input_4x2_Trac 330kW'!$C$68:$C$76,0)),L$6,0)) -> 0 | M42: =IF(L42>0,L42,IF(M20>INDEX('Input_4x2_Trac 330kW'!$E$68:$E$76,MATCH($C42,'Input_4x2_Trac 330kW'!$C$68:$C$76,0)),M$6,0)) -> 0 | N42: =IF(M42>0,M42,IF(N20>INDEX('Input_4x2_Trac 330kW'!$E$68:$E$76,MATCH($C42,'Input_4x2_Trac 330kW'!$C$68:$C$76,0)),N$6,0)) -> 0 | O42: =IF(N42>0,N42,IF(O20>INDEX('Input_4x2_Trac 330kW'!$E$68:$E$76,MATCH($C42,'Input_4x2_Trac 330kW'!$C$68:$C$76,0)),O$6,0)) -> 0 | P42: =IF(O42>0,O42,IF(P20>INDEX('Input_4x2_Trac 330kW'!$E$68:$E$76,MATCH($C42,'Input_4x2_Trac 330kW'!$C$68:$C$76,0)),P$6,0)) -> 0 | Q42: =IF(P42>0,P42,IF(Q20>INDEX('Input_4x2_Trac 330kW'!$E$68:$E$76,MATCH($C42,'Input_4x2_Trac 330kW'!$C$68:$C$76,0)),Q$6,0)) -> 0 | R42: =IF(Q42>0,Q42,IF(R20>INDEX('Input_4x2_Trac 330kW'!$E$68:$E$76,MATCH($C42,'Input_4x2_Trac 330kW'!$C$68:$C$76,0)),R$6,0)) -> 0 | S42: =IF(R42>0,R42,IF(S20>INDEX('Input_4x2_Trac 330kW'!$E$68:$E$76,MATCH($C42,'Input_4x2_Trac 330kW'!$C$68:$C$76,0)),S$6,0)) -> 0 | T42: =IF(S42>0,S42,IF(T20>INDEX('Input_4x2_Trac 330kW'!$E$68:$E$76,MATCH($C42,'Input_4x2_Trac 330kW'!$C$68:$C$76,0)),T$6,0)) -> 0 | U42: =IF(T42>0,T42,IF(U20>INDEX('Input_4x2_Trac 330kW'!$E$68:$E$76,MATCH($C42,'Input_4x2_Trac 330kW'!$C$68:$C$76,0)),U$6,0)) -> 0 | V42: =IF(U42>0,U42,IF(V20>INDEX('Input_4x2_Trac 330kW'!$E$68:$E$76,MATCH($C42,'Input_4x2_Trac 330kW'!$C$68:$C$76,0)),V$6,0)) -> 0 | W42: =IF(V42>0,V42,IF(W20>INDEX('Input_4x2_Trac 330kW'!$E$68:$E$76,MATCH($C42,'Input_4x2_Trac 330kW'!$C$68:$C$76,0)),W$6,0)) -> 0 | X42: =IF(W42>0,W42,IF(X20>INDEX('Input_4x2_Trac 330kW'!$E$68:$E$76,MATCH($C42,'Input_4x2_Trac 330kW'!$C$68:$C$76,0)),X$6,0)) -> 0 | Y42: =IF(X42>0,X42,IF(Y20>INDEX('Input_4x2_Trac 330kW'!$E$68:$E$76,MATCH($C42,'Input_4x2_Trac 330kW'!$C$68:$C$76,0)),Y$6,0)) -> 0 | Z42: =IF(Y42>0,Y42,IF(Z20>INDEX('Input_4x2_Trac 330kW'!$E$68:$E$76,MATCH($C42,'Input_4x2_Trac 330kW'!$C$68:$C$76,0)),Z$6,0)) -> 0 | AA42: =IF(Z42>0,Z42,IF(AA20>INDEX('Input_4x2_Trac 330kW'!$E$68:$E$76,MATCH($C42,'Input_4x2_Trac 330kW'!$C$68:$C$76,0)),AA$6,0)) -> 0 | AB42: =IF(AA42>0,AA42,IF(AB20>INDEX('Input_4x2_Trac 330kW'!$E$68:$E$76,MATCH($C42,'Input_4x2_Trac 330kW'!$C$68:$C$76,0)),AB$6,0)) -> 0 | AC42: =IF(AB42>0,AB42,IF(AC20>INDEX('Input_4x2_Trac 330kW'!$E$68:$E$76,MATCH($C42,'Input_4x2_Trac 330kW'!$C$68:$C$76,0)),AC$6,0)) -> 0 | AE42: =C8 -> Diesel | AH42: 2028 | AJ42: Diesel2028
C43: =Terms!$E$8 -> Diesel Drivetrain | D43: =D37 -> 1 | F43: =C8 -> Diesel | G43: 2029 | K43: 0 | L43: =IF(K43>0,K43,IF(L21>INDEX('Input_4x2_Trac 330kW'!$E$68:$E$76,MATCH($C43,'Input_4x2_Trac 330kW'!$C$68:$C$76,0)),L$6,0)) -> 0 | M43: =IF(L43>0,L43,IF(M21>INDEX('Input_4x2_Trac 330kW'!$E$68:$E$76,MATCH($C43,'Input_4x2_Trac 330kW'!$C$68:$C$76,0)),M$6,0)) -> 0 | N43: =IF(M43>0,M43,IF(N21>INDEX('Input_4x2_Trac 330kW'!$E$68:$E$76,MATCH($C43,'Input_4x2_Trac 330kW'!$C$68:$C$76,0)),N$6,0)) -> 0 | O43: =IF(N43>0,N43,IF(O21>INDEX('Input_4x2_Trac 330kW'!$E$68:$E$76,MATCH($C43,'Input_4x2_Trac 330kW'!$C$68:$C$76,0)),O$6,0)) -> 0 | P43: =IF(O43>0,O43,IF(P21>INDEX('Input_4x2_Trac 330kW'!$E$68:$E$76,MATCH($C43,'Input_4x2_Trac 330kW'!$C$68:$C$76,0)),P$6,0)) -> 0 | Q43: =IF(P43>0,P43,IF(Q21>INDEX('Input_4x2_Trac 330kW'!$E$68:$E$76,MATCH($C43,'Input_4x2_Trac 330kW'!$C$68:$C$76,0)),Q$6,0)) -> 0 | R43: =IF(Q43>0,Q43,IF(R21>INDEX('Input_4x2_Trac 330kW'!$E$68:$E$76,MATCH($C43,'Input_4x2_Trac 330kW'!$C$68:$C$76,0)),R$6,0)) -> 0 | S43: =IF(R43>0,R43,IF(S21>INDEX('Input_4x2_Trac 330kW'!$E$68:$E$76,MATCH($C43,'Input_4x2_Trac 330kW'!$C$68:$C$76,0)),S$6,0)) -> 0 | T43: =IF(S43>0,S43,IF(T21>INDEX('Input_4x2_Trac 330kW'!$E$68:$E$76,MATCH($C43,'Input_4x2_Trac 330kW'!$C$68:$C$76,0)),T$6,0)) -> 0 | U43: =IF(T43>0,T43,IF(U21>INDEX('Input_4x2_Trac 330kW'!$E$68:$E$76,MATCH($C43,'Input_4x2_Trac 330kW'!$C$68:$C$76,0)),U$6,0)) -> 0 | V43: =IF(U43>0,U43,IF(V21>INDEX('Input_4x2_Trac 330kW'!$E$68:$E$76,MATCH($C43,'Input_4x2_Trac 330kW'!$C$68:$C$76,0)),V$6,0)) -> 0 | W43: =IF(V43>0,V43,IF(W21>INDEX('Input_4x2_Trac 330kW'!$E$68:$E$76,MATCH($C43,'Input_4x2_Trac 330kW'!$C$68:$C$76,0)),W$6,0)) -> 0 | X43: =IF(W43>0,W43,IF(X21>INDEX('Input_4x2_Trac 330kW'!$E$68:$E$76,MATCH($C43,'Input_4x2_Trac 330kW'!$C$68:$C$76,0)),X$6,0)) -> 0 | Y43: =IF(X43>0,X43,IF(Y21>INDEX('Input_4x2_Trac 330kW'!$E$68:$E$76,MATCH($C43,'Input_4x2_Trac 330kW'!$C$68:$C$76,0)),Y$6,0)) -> 0 | Z43: =IF(Y43>0,Y43,IF(Z21>INDEX('Input_4x2_Trac 330kW'!$E$68:$E$76,MATCH($C43,'Input_4x2_Trac 330kW'!$C$68:$C$76,0)),Z$6,0)) -> 0 | AA43: =IF(Z43>0,Z43,IF(AA21>INDEX('Input_4x2_Trac 330kW'!$E$68:$E$76,MATCH($C43,'Input_4x2_Trac 330kW'!$C$68:$C$76,0)),AA$6,0)) -> 0 | AB43: =IF(AA43>0,AA43,IF(AB21>INDEX('Input_4x2_Trac 330kW'!$E$68:$E$76,MATCH($C43,'Input_4x2_Trac 330kW'!$C$68:$C$76,0)),AB$6,0)) -> 0 | AC43: =IF(AB43>0,AB43,IF(AC21>INDEX('Input_4x2_Trac 330kW'!$E$68:$E$76,MATCH($C43,'Input_4x2_Trac 330kW'!$C$68:$C$76,0)),AC$6,0)) -> 0 | AE43: =C8 -> Diesel | AH43: 2029 | AJ43: Diesel2029
C44: =Terms!$E$8 -> Diesel Drivetrain | D44: =D37 -> 1 | F44: =C8 -> Diesel | G44: 2030 | K44: 0 | L44: =IF(K44>0,K44,IF(L22>INDEX('Input_4x2_Trac 330kW'!$E$68:$E$76,MATCH($C44,'Input_4x2_Trac 330kW'!$C$68:$C$76,0)),L$6,0)) -> 0 | M44: =IF(L44>0,L44,IF(M22>INDEX('Input_4x2_Trac 330kW'!$E$68:$E$76,MATCH($C44,'Input_4x2_Trac 330kW'!$C$68:$C$76,0)),M$6,0)) -> 0 | N44: =IF(M44>0,M44,IF(N22>INDEX('Input_4x2_Trac 330kW'!$E$68:$E$76,MATCH($C44,'Input_4x2_Trac 330kW'!$C$68:$C$76,0)),N$6,0)) -> 0 | O44: =IF(N44>0,N44,IF(O22>INDEX('Input_4x2_Trac 330kW'!$E$68:$E$76,MATCH($C44,'Input_4x2_Trac 330kW'!$C$68:$C$76,0)),O$6,0)) -> 0 | P44: =IF(O44>0,O44,IF(P22>INDEX('Input_4x2_Trac 330kW'!$E$68:$E$76,MATCH($C44,'Input_4x2_Trac 330kW'!$C$68:$C$76,0)),P$6,0)) -> 0 | Q44: =IF(P44>0,P44,IF(Q22>INDEX('Input_4x2_Trac 330kW'!$E$68:$E$76,MATCH($C44,'Input_4x2_Trac 330kW'!$C$68:$C$76,0)),Q$6,0)) -> 0 | R44: =IF(Q44>0,Q44,IF(R22>INDEX('Input_4x2_Trac 330kW'!$E$68:$E$76,MATCH($C44,'Input_4x2_Trac 330kW'!$C$68:$C$76,0)),R$6,0)) -> 0 | S44: =IF(R44>0,R44,IF(S22>INDEX('Input_4x2_Trac 330kW'!$E$68:$E$76,MATCH($C44,'Input_4x2_Trac 330kW'!$C$68:$C$76,0)),S$6,0)) -> 0 | T44: =IF(S44>0,S44,IF(T22>INDEX('Input_4x2_Trac 330kW'!$E$68:$E$76,MATCH($C44,'Input_4x2_Trac 330kW'!$C$68:$C$76,0)),T$6,0)) -> 0 | U44: =IF(T44>0,T44,IF(U22>INDEX('Input_4x2_Trac 330kW'!$E$68:$E$76,MATCH($C44,'Input_4x2_Trac 330kW'!$C$68:$C$76,0)),U$6,0)) -> 0 | V44: =IF(U44>0,U44,IF(V22>INDEX('Input_4x2_Trac 330kW'!$E$68:$E$76,MATCH($C44,'Input_4x2_Trac 330kW'!$C$68:$C$76,0)),V$6,0)) -> 0 | W44: =IF(V44>0,V44,IF(W22>INDEX('Input_4x2_Trac 330kW'!$E$68:$E$76,MATCH($C44,'Input_4x2_Trac 330kW'!$C$68:$C$76,0)),W$6,0)) -> 0 | X44: =IF(W44>0,W44,IF(X22>INDEX('Input_4x2_Trac 330kW'!$E$68:$E$76,MATCH($C44,'Input_4x2_Trac 330kW'!$C$68:$C$76,0)),X$6,0)) -> 0 | Y44: =IF(X44>0,X44,IF(Y22>INDEX('Input_4x2_Trac 330kW'!$E$68:$E$76,MATCH($C44,'Input_4x2_Trac 330kW'!$C$68:$C$76,0)),Y$6,0)) -> 0 | Z44: =IF(Y44>0,Y44,IF(Z22>INDEX('Input_4x2_Trac 330kW'!$E$68:$E$76,MATCH($C44,'Input_4x2_Trac 330kW'!$C$68:$C$76,0)),Z$6,0)) -> 0 | AA44: =IF(Z44>0,Z44,IF(AA22>INDEX('Input_4x2_Trac 330kW'!$E$68:$E$76,MATCH($C44,'Input_4x2_Trac 330kW'!$C$68:$C$76,0)),AA$6,0)) -> 0 | AB44: =IF(AA44>0,AA44,IF(AB22>INDEX('Input_4x2_Trac 330kW'!$E$68:$E$76,MATCH($C44,'Input_4x2_Trac 330kW'!$C$68:$C$76,0)),AB$6,0)) -> 0 | AC44: =IF(AB44>0,AB44,IF(AC22>INDEX('Input_4x2_Trac 330kW'!$E$68:$E$76,MATCH($C44,'Input_4x2_Trac 330kW'!$C$68:$C$76,0)),AC$6,0)) -> 0 | AE44: =C8 -> Diesel | AH44: 2030 | AJ44: Diesel2030
AE45: =C8 -> Diesel | AH45: 0 | AJ45: Diesel0
C46: ="Year of original "&C47 -> Year of original E-Drive | AE46: =C8 -> Diesel | AH46: 0 | AJ46: Diesel0
C47: =Terms!$E$9 -> E-Drive | D47: =INDEX(Allocations!$R$21:$U$28,MATCH(F47,Allocations!$R$21:$R$28,0),MATCH(C47,Allocations!$R$21:$U$21,0)) -> 0 | F47: =C8 -> Diesel | G47: 2023 | K47: 0 | L47: =IF($D47=0,0,IF(L$6>=$G47,IF(L57=0,$G47,0),0)) -> 0 | M47: 0 | N47: 0 | O47: 0 | P47: 0 | Q47: 0 | R47: 0 | S47: 0 | T47: 0 | U47: 0 | V47: 0 | W47: 0 | X47: 0 | Y47: 0 | Z47: 0 | AA47: 0 | AB47: 0 | AC47: 0 | AE47: =C8 -> Diesel | AH47: 2023 | AJ47: Diesel2023
C48: =Terms!$E$9 -> E-Drive | D48: =D47 -> 0 | F48: =C8 -> Diesel | G48: 2024 | K48: 0 | L48: =IF($D48=0,0,IF(L$6>=$G48,IF(L58=0,$G48,0),0)) -> 0 | M48: 0 | N48: 0 | O48: 0 | P48: 0 | Q48: 0 | R48: 0 | S48: 0 | T48: 0 | U48: 0 | V48: 0 | W48: 0 | X48: 0 | Y48: 0 | Z48: 0 | AA48: 0 | AB48: 0 | AC48: 0 | AE48: =C8 -> Diesel | AH48: 2024 | AJ48: Diesel2024
C49: =Terms!$E$9 -> E-Drive | D49: =D47 -> 0 | F49: =C8 -> Diesel | G49: 2025 | K49: 0 | L49: =IF($D49=0,0,IF(L$6>=$G49,IF(L59=0,$G49,0),0)) -> 0 | M49: 0 | N49: 0 | O49: 0 | P49: 0 | Q49: 0 | R49: 0 | S49: 0 | T49: 0 | U49: 0 | V49: 0 | W49: 0 | X49: 0 | Y49: 0 | Z49: 0 | AA49: 0 | AB49: 0 | AC49: 0 | AE49: =C8 -> Diesel | AH49: 2025 | AJ49: Diesel2025
C50: =Terms!$E$9 -> E-Drive | D50: =D47 -> 0 | F50: =C8 -> Diesel | G50: 2026 | K50: 0 | L50: =IF($D50=0,0,IF(L$6>=$G50,IF(L60=0,$G50,0),0)) -> 0 | M50: 0 | N50: 0 | O50: 0 | P50: 0 | Q50: 0 | R50: 0 | S50: 0 | T50: 0 | U50: 0 | V50: 0 | W50: 0 | X50: 0 | Y50: 0 | Z50: 0 | AA50: 0 | AB50: 0 | AC50: 0 | AE50: =C8 -> Diesel | AH50: 2026 | AJ50: Diesel2026
C51: =Terms!$E$9 -> E-Drive | D51: =D47 -> 0 | F51: =C8 -> Diesel | G51: 2027 | K51: 0 | L51: =IF($D51=0,0,IF(L$6>=$G51,IF(L61=0,$G51,0),0)) -> 0 | M51: 0 | N51: 0 | O51: 0 | P51: 0 | Q51: 0 | R51: 0 | S51: 0 | T51: 0 | U51: 0 | V51: 0 | W51: 0 | X51: 0 | Y51: 0 | Z51: 0 | AA51: 0 | AB51: 0 | AC51: 0 | AE51: =C8 -> Diesel | AH51: 2027 | AJ51: Diesel2027
C52: =Terms!$E$9 -> E-Drive | D52: =D47 -> 0 | F52: =C8 -> Diesel | G52: 2028 | K52: 0 | L52: =IF($D52=0,0,IF(L$6>=$G52,IF(L62=0,$G52,0),0)) -> 0 | M52: 0 | N52: 0 | O52: 0 | P52: 0 | Q52: 0 | R52: 0 | S52: 0 | T52: 0 | U52: 0 | V52: 0 | W52: 0 | X52: 0 | Y52: 0 | Z52: 0 | AA52: 0 | AB52: 0 | AC52: 0 | AE52: =C8 -> Diesel | AH52: 2028 | AJ52: Diesel2028
C53: =Terms!$E$9 -> E-Drive | D53: =D47 -> 0 | F53: =C8 -> Diesel | G53: 2029 | K53: 0 | L53: =IF($D53=0,0,IF(L$6>=$G53,IF(L63=0,$G53,0),0)) -> 0 | M53: 0 | N53: 0 | O53: 0 | P53: 0 | Q53: 0 | R53: 0 | S53: 0 | T53: 0 | U53: 0 | V53: 0 | W53: 0 | X53: 0 | Y53: 0 | Z53: 0 | AA53: 0 | AB53: 0 | AC53: 0 | AE53: =C8 -> Diesel | AH53: 2029 | AJ53: Diesel2029
C54: =Terms!$E$9 -> E-Drive | D54: =D47 -> 0 | F54: =C8 -> Diesel | G54: 2030 | K54: 0 | L54: =IF($D54=0,0,IF(L$6>=$G54,IF(L64=0,$G54,0),0)) -> 0 | M54: 0 | N54: 0 | O54: 0 | P54: 0 | Q54: 0 | R54: 0 | S54: 0 | T54: 0 | U54: 0 | V54: 0 | W54: 0 | X54: 0 | Y54: 0 | Z54: 0 | AA54: 0 | AB54: 0 | AC54: 0 | AE54: =C8 -> Diesel | AH54: 2030 | AJ54: Diesel2030
AE55: =C8 -> Diesel | AH55: 0 | AJ55: Diesel0
C56: ="Year of replacement "&C57 -> Year of replacement E-Drive | AE56: =C8 -> Diesel | AH56: 0 | AJ56: Diesel0
C57: =Terms!$E$9 -> E-Drive | D57: =INDEX(Allocations!$R$21:$U$28,MATCH(F57,Allocations!$R$21:$R$28,0),MATCH(C57,Allocations!$R$21:$U$21,0)) -> 0 | F57: =C8 -> Diesel | G57: 2023 | K57: 0 | L57: =IF(K57>0,K57,IF(L15>INDEX('Input_4x2_Trac 330kW'!$E$68:$E$76,MATCH($C57,'Input_4x2_Trac 330kW'!$C$68:$C$76,0)),L$6,0)) -> 0 | M57: =IF(L57>0,L57,IF(M15>INDEX('Input_4x2_Trac 330kW'!$E$68:$E$76,MATCH($C57,'Input_4x2_Trac 330kW'!$C$68:$C$76,0)),M$6,0)) -> 0 | N57: =IF(M57>0,M57,IF(N15>INDEX('Input_4x2_Trac 330kW'!$E$68:$E$76,MATCH($C57,'Input_4x2_Trac 330kW'!$C$68:$C$76,0)),N$6,0)) -> 0 | O57: =IF(N57>0,N57,IF(O15>INDEX('Input_4x2_Trac 330kW'!$E$68:$E$76,MATCH($C57,'Input_4x2_Trac 330kW'!$C$68:$C$76,0)),O$6,0)) -> 0 | P57: =IF(O57>0,O57,IF(P15>INDEX('Input_4x2_Trac 330kW'!$E$68:$E$76,MATCH($C57,'Input_4x2_Trac 330kW'!$C$68:$C$76,0)),P$6,0)) -> 0 | Q57: =IF(P57>0,P57,IF(Q15>INDEX('Input_4x2_Trac 330kW'!$E$68:$E$76,MATCH($C57,'Input_4x2_Trac 330kW'!$C$68:$C$76,0)),Q$6,0)) -> 0 | R57: =IF(Q57>0,Q57,IF(R15>INDEX('Input_4x2_Trac 330kW'!$E$68:$E$76,MATCH($C57,'Input_4x2_Trac 330kW'!$C$68:$C$76,0)),R$6,0)) -> 0 | S57: =IF(R57>0,R57,IF(S15>INDEX('Input_4x2_Trac 330kW'!$E$68:$E$76,MATCH($C57,'Input_4x2_Trac 330kW'!$C$68:$C$76,0)),S$6,0)) -> 0 | T57: =IF(S57>0,S57,IF(T15>INDEX('Input_4x2_Trac 330kW'!$E$68:$E$76,MATCH($C57,'Input_4x2_Trac 330kW'!$C$68:$C$76,0)),T$6,0)) -> 0 | U57: =IF(T57>0,T57,IF(U15>INDEX('Input_4x2_Trac 330kW'!$E$68:$E$76,MATCH($C57,'Input_4x2_Trac 330kW'!$C$68:$C$76,0)),U$6,0)) -> 0 | V57: =IF(U57>0,U57,IF(V15>INDEX('Input_4x2_Trac 330kW'!$E$68:$E$76,MATCH($C57,'Input_4x2_Trac 330kW'!$C$68:$C$76,0)),V$6,0)) -> 0 | W57: =IF(V57>0,V57,IF(W15>INDEX('Input_4x2_Trac 330kW'!$E$68:$E$76,MATCH($C57,'Input_4x2_Trac 330kW'!$C$68:$C$76,0)),W$6,0)) -> 0 | X57: =IF(W57>0,W57,IF(X15>INDEX('Input_4x2_Trac 330kW'!$E$68:$E$76,MATCH($C57,'Input_4x2_Trac 330kW'!$C$68:$C$76,0)),X$6,0)) -> 0 | Y57: =IF(X57>0,X57,IF(Y15>INDEX('Input_4x2_Trac 330kW'!$E$68:$E$76,MATCH($C57,'Input_4x2_Trac 330kW'!$C$68:$C$76,0)),Y$6,0)) -> 0 | Z57: =IF(Y57>0,Y57,IF(Z15>INDEX('Input_4x2_Trac 330kW'!$E$68:$E$76,MATCH($C57,'Input_4x2_Trac 330kW'!$C$68:$C$76,0)),Z$6,0)) -> 0 | AA57: =IF(Z57>0,Z57,IF(AA15>INDEX('Input_4x2_Trac 330kW'!$E$68:$E$76,MATCH($C57,'Input_4x2_Trac 330kW'!$C$68:$C$76,0)),AA$6,0)) -> 0 | AB57: =IF(AA57>0,AA57,IF(AB15>INDEX('Input_4x2_Trac 330kW'!$E$68:$E$76,MATCH($C57,'Input_4x2_Trac 330kW'!$C$68:$C$76,0)),AB$6,0)) -> 0 | AC57: =IF(AB57>0,AB57,IF(AC15>INDEX('Input_4x2_Trac 330kW'!$E$68:$E$76,MATCH($C57,'Input_4x2_Trac 330kW'!$C$68:$C$76,0)),AC$6,0)) -> 0 | AE57: =C8 -> Diesel | AH57: 2023 | AJ57: Diesel2023
C58: =Terms!$E$9 -> E-Drive | D58: =D57 -> 0 | F58: =C8 -> Diesel | G58: 2024 | K58: 0 | L58: =IF(K58>0,K58,IF(L16>INDEX('Input_4x2_Trac 330kW'!$E$68:$E$76,MATCH($C58,'Input_4x2_Trac 330kW'!$C$68:$C$76,0)),L$6,0)) -> 0 | M58: =IF(L58>0,L58,IF(M16>INDEX('Input_4x2_Trac 330kW'!$E$68:$E$76,MATCH($C58,'Input_4x2_Trac 330kW'!$C$68:$C$76,0)),M$6,0)) -> 0 | N58: =IF(M58>0,M58,IF(N16>INDEX('Input_4x2_Trac 330kW'!$E$68:$E$76,MATCH($C58,'Input_4x2_Trac 330kW'!$C$68:$C$76,0)),N$6,0)) -> 0 | O58: =IF(N58>0,N58,IF(O16>INDEX('Input_4x2_Trac 330kW'!$E$68:$E$76,MATCH($C58,'Input_4x2_Trac 330kW'!$C$68:$C$76,0)),O$6,0)) -> 0 | P58: =IF(O58>0,O58,IF(P16>INDEX('Input_4x2_Trac 330kW'!$E$68:$E$76,MATCH($C58,'Input_4x2_Trac 330kW'!$C$68:$C$76,0)),P$6,0)) -> 0 | Q58: =IF(P58>0,P58,IF(Q16>INDEX('Input_4x2_Trac 330kW'!$E$68:$E$76,MATCH($C58,'Input_4x2_Trac 330kW'!$C$68:$C$76,0)),Q$6,0)) -> 0 | R58: =IF(Q58>0,Q58,IF(R16>INDEX('Input_4x2_Trac 330kW'!$E$68:$E$76,MATCH($C58,'Input_4x2_Trac 330kW'!$C$68:$C$76,0)),R$6,0)) -> 0 | S58: =IF(R58>0,R58,IF(S16>INDEX('Input_4x2_Trac 330kW'!$E$68:$E$76,MATCH($C58,'Input_4x2_Trac 330kW'!$C$68:$C$76,0)),S$6,0)) -> 0 | T58: =IF(S58>0,S58,IF(T16>INDEX('Input_4x2_Trac 330kW'!$E$68:$E$76,MATCH($C58,'Input_4x2_Trac 330kW'!$C$68:$C$76,0)),T$6,0)) -> 0 | U58: =IF(T58>0,T58,IF(U16>INDEX('Input_4x2_Trac 330kW'!$E$68:$E$76,MATCH($C58,'Input_4x2_Trac 330kW'!$C$68:$C$76,0)),U$6,0)) -> 0 | V58: =IF(U58>0,U58,IF(V16>INDEX('Input_4x2_Trac 330kW'!$E$68:$E$76,MATCH($C58,'Input_4x2_Trac 330kW'!$C$68:$C$76,0)),V$6,0)) -> 0 | W58: =IF(V58>0,V58,IF(W16>INDEX('Input_4x2_Trac 330kW'!$E$68:$E$76,MATCH($C58,'Input_4x2_Trac 330kW'!$C$68:$C$76,0)),W$6,0)) -> 0 | X58: =IF(W58>0,W58,IF(X16>INDEX('Input_4x2_Trac 330kW'!$E$68:$E$76,MATCH($C58,'Input_4x2_Trac 330kW'!$C$68:$C$76,0)),X$6,0)) -> 0 | Y58: =IF(X58>0,X58,IF(Y16>INDEX('Input_4x2_Trac 330kW'!$E$68:$E$76,MATCH($C58,'Input_4x2_Trac 330kW'!$C$68:$C$76,0)),Y$6,0)) -> 0 | Z58: =IF(Y58>0,Y58,IF(Z16>INDEX('Input_4x2_Trac 330kW'!$E$68:$E$76,MATCH($C58,'Input_4x2_Trac 330kW'!$C$68:$C$76,0)),Z$6,0)) -> 0 | AA58: =IF(Z58>0,Z58,IF(AA16>INDEX('Input_4x2_Trac 330kW'!$E$68:$E$76,MATCH($C58,'Input_4x2_Trac 330kW'!$C$68:$C$76,0)),AA$6,0)) -> 0 | AB58: =IF(AA58>0,AA58,IF(AB16>INDEX('Input_4x2_Trac 330kW'!$E$68:$E$76,MATCH($C58,'Input_4x2_Trac 330kW'!$C$68:$C$76,0)),AB$6,0)) -> 0 | AC58: =IF(AB58>0,AB58,IF(AC16>INDEX('Input_4x2_Trac 330kW'!$E$68:$E$76,MATCH($C58,'Input_4x2_Trac 330kW'!$C$68:$C$76,0)),AC$6,0)) -> 0 | AE58: =C8 -> Diesel | AH58: 2024 | AJ58: Diesel2024
C59: =Terms!$E$9 -> E-Drive | D59: =D57 -> 0 | F59: =C8 -> Diesel | G59: 2025 | K59: 0 | L59: =IF(K59>0,K59,IF(L17>INDEX('Input_4x2_Trac 330kW'!$E$68:$E$76,MATCH($C59,'Input_4x2_Trac 330kW'!$C$68:$C$76,0)),L$6,0)) -> 0 | M59: =IF(L59>0,L59,IF(M17>INDEX('Input_4x2_Trac 330kW'!$E$68:$E$76,MATCH($C59,'Input_4x2_Trac 330kW'!$C$68:$C$76,0)),M$6,0)) -> 0 | N59: =IF(M59>0,M59,IF(N17>INDEX('Input_4x2_Trac 330kW'!$E$68:$E$76,MATCH($C59,'Input_4x2_Trac 330kW'!$C$68:$C$76,0)),N$6,0)) -> 0 | O59: =IF(N59>0,N59,IF(O17>INDEX('Input_4x2_Trac 330kW'!$E$68:$E$76,MATCH($C59,'Input_4x2_Trac 330kW'!$C$68:$C$76,0)),O$6,0)) -> 0 | P59: =IF(O59>0,O59,IF(P17>INDEX('Input_4x2_Trac 330kW'!$E$68:$E$76,MATCH($C59,'Input_4x2_Trac 330kW'!$C$68:$C$76,0)),P$6,0)) -> 0 | Q59: =IF(P59>0,P59,IF(Q17>INDEX('Input_4x2_Trac 330kW'!$E$68:$E$76,MATCH($C59,'Input_4x2_Trac 330kW'!$C$68:$C$76,0)),Q$6,0)) -> 0 | R59: =IF(Q59>0,Q59,IF(R17>INDEX('Input_4x2_Trac 330kW'!$E$68:$E$76,MATCH($C59,'Input_4x2_Trac 330kW'!$C$68:$C$76,0)),R$6,0)) -> 0 | S59: =IF(R59>0,R59,IF(S17>INDEX('Input_4x2_Trac 330kW'!$E$68:$E$76,MATCH($C59,'Input_4x2_Trac 330kW'!$C$68:$C$76,0)),S$6,0)) -> 0 | T59: =IF(S59>0,S59,IF(T17>INDEX('Input_4x2_Trac 330kW'!$E$68:$E$76,MATCH($C59,'Input_4x2_Trac 330kW'!$C$68:$C$76,0)),T$6,0)) -> 0 | U59: =IF(T59>0,T59,IF(U17>INDEX('Input_4x2_Trac 330kW'!$E$68:$E$76,MATCH($C59,'Input_4x2_Trac 330kW'!$C$68:$C$76,0)),U$6,0)) -> 0 | V59: =IF(U59>0,U59,IF(V17>INDEX('Input_4x2_Trac 330kW'!$E$68:$E$76,MATCH($C59,'Input_4x2_Trac 330kW'!$C$68:$C$76,0)),V$6,0)) -> 0 | W59: =IF(V59>0,V59,IF(W17>INDEX('Input_4x2_Trac 330kW'!$E$68:$E$76,MATCH($C59,'Input_4x2_Trac 330kW'!$C$68:$C$76,0)),W$6,0)) -> 0 | X59: =IF(W59>0,W59,IF(X17>INDEX('Input_4x2_Trac 330kW'!$E$68:$E$76,MATCH($C59,'Input_4x2_Trac 330kW'!$C$68:$C$76,0)),X$6,0)) -> 0 | Y59: =IF(X59>0,X59,IF(Y17>INDEX('Input_4x2_Trac 330kW'!$E$68:$E$76,MATCH($C59,'Input_4x2_Trac 330kW'!$C$68:$C$76,0)),Y$6,0)) -> 0 | Z59: =IF(Y59>0,Y59,IF(Z17>INDEX('Input_4x2_Trac 330kW'!$E$68:$E$76,MATCH($C59,'Input_4x2_Trac 330kW'!$C$68:$C$76,0)),Z$6,0)) -> 0 | AA59: =IF(Z59>0,Z59,IF(AA17>INDEX('Input_4x2_Trac 330kW'!$E$68:$E$76,MATCH($C59,'Input_4x2_Trac 330kW'!$C$68:$C$76,0)),AA$6,0)) -> 0 | AB59: =IF(AA59>0,AA59,IF(AB17>INDEX('Input_4x2_Trac 330kW'!$E$68:$E$76,MATCH($C59,'Input_4x2_Trac 330kW'!$C$68:$C$76,0)),AB$6,0)) -> 0 | AC59: =IF(AB59>0,AB59,IF(AC17>INDEX('Input_4x2_Trac 330kW'!$E$68:$E$76,MATCH($C59,'Input_4x2_Trac 330kW'!$C$68:$C$76,0)),AC$6,0)) -> 0 | AE59: =C8 -> Diesel | AH59: 2025 | AJ59: Diesel2025
C60: =Terms!$E$9 -> E-Drive | D60: =D57 -> 0 | F60: =C8 -> Diesel | G60: 2026 | K60: 0 | L60: =IF(K60>0,K60,IF(L18>INDEX('Input_4x2_Trac 330kW'!$E$68:$E$76,MATCH($C60,'Input_4x2_Trac 330kW'!$C$68:$C$76,0)),L$6,0)) -> 0 | M60: =IF(L60>0,L60,IF(M18>INDEX('Input_4x2_Trac 330kW'!$E$68:$E$76,MATCH($C60,'Input_4x2_Trac 330kW'!$C$68:$C$76,0)),M$6,0)) -> 0 | N60: =IF(M60>0,M60,IF(N18>INDEX('Input_4x2_Trac 330kW'!$E$68:$E$76,MATCH($C60,'Input_4x2_Trac 330kW'!$C$68:$C$76,0)),N$6,0)) -> 0 | O60: =IF(N60>0,N60,IF(O18>INDEX('Input_4x2_Trac 330kW'!$E$68:$E$76,MATCH($C60,'Input_4x2_Trac 330kW'!$C$68:$C$76,0)),O$6,0)) -> 0 | P60: =IF(O60>0,O60,IF(P18>INDEX('Input_4x2_Trac 330kW'!$E$68:$E$76,MATCH($C60,'Input_4x2_Trac 330kW'!$C$68:$C$76,0)),P$6,0)) -> 0 | Q60: =IF(P60>0,P60,IF(Q18>INDEX('Input_4x2_Trac 330kW'!$E$68:$E$76,MATCH($C60,'Input_4x2_Trac 330kW'!$C$68:$C$76,0)),Q$6,0)) -> 0 | R60: =IF(Q60>0,Q60,IF(R18>INDEX('Input_4x2_Trac 330kW'!$E$68:$E$76,MATCH($C60,'Input_4x2_Trac 330kW'!$C$68:$C$76,0)),R$6,0)) -> 0 | S60: =IF(R60>0,R60,IF(S18>INDEX('Input_4x2_Trac 330kW'!$E$68:$E$76,MATCH($C60,'Input_4x2_Trac 330kW'!$C$68:$C$76,0)),S$6,0)) -> 0 | T60: =IF(S60>0,S60,IF(T18>INDEX('Input_4x2_Trac 330kW'!$E$68:$E$76,MATCH($C60,'Input_4x2_Trac 330kW'!$C$68:$C$76,0)),T$6,0)) -> 0 | U60: =IF(T60>0,T60,IF(U18>INDEX('Input_4x2_Trac 330kW'!$E$68:$E$76,MATCH($C60,'Input_4x2_Trac 330kW'!$C$68:$C$76,0)),U$6,0)) -> 0 | V60: =IF(U60>0,U60,IF(V18>INDEX('Input_4x2_Trac 330kW'!$E$68:$E$76,MATCH($C60,'Input_4x2_Trac 330kW'!$C$68:$C$76,0)),V$6,0)) -> 0 | W60: =IF(V60>0,V60,IF(W18>INDEX('Input_4x2_Trac 330kW'!$E$68:$E$76,MATCH($C60,'Input_4x2_Trac 330kW'!$C$68:$C$76,0)),W$6,0)) -> 0 | X60: =IF(W60>0,W60,IF(X18>INDEX('Input_4x2_Trac 330kW'!$E$68:$E$76,MATCH($C60,'Input_4x2_Trac 330kW'!$C$68:$C$76,0)),X$6,0)) -> 0 | Y60: =IF(X60>0,X60,IF(Y18>INDEX('Input_4x2_Trac 330kW'!$E$68:$E$76,MATCH($C60,'Input_4x2_Trac 330kW'!$C$68:$C$76,0)),Y$6,0)) -> 0 | Z60: =IF(Y60>0,Y60,IF(Z18>INDEX('Input_4x2_Trac 330kW'!$E$68:$E$76,MATCH($C60,'Input_4x2_Trac 330kW'!$C$68:$C$76,0)),Z$6,0)) -> 0 | AA60: =IF(Z60>0,Z60,IF(AA18>INDEX('Input_4x2_Trac 330kW'!$E$68:$E$76,MATCH($C60,'Input_4x2_Trac 330kW'!$C$68:$C$76,0)),AA$6,0)) -> 0 | AB60: =IF(AA60>0,AA60,IF(AB18>INDEX('Input_4x2_Trac 330kW'!$E$68:$E$76,MATCH($C60,'Input_4x2_Trac 330kW'!$C$68:$C$76,0)),AB$6,0)) -> 0 | AC60: =IF(AB60>0,AB60,IF(AC18>INDEX('Input_4x2_Trac 330kW'!$E$68:$E$76,MATCH($C60,'Input_4x2_Trac 330kW'!$C$68:$C$76,0)),AC$6,0)) -> 0 | AE60: =C8 -> Diesel | AH60: 2026 | AJ60: Diesel2026
C61: =Terms!$E$9 -> E-Drive | D61: =D57 -> 0 | F61: =C8 -> Diesel | G61: 2027 | K61: 0 | L61: =IF(K61>0,K61,IF(L19>INDEX('Input_4x2_Trac 330kW'!$E$68:$E$76,MATCH($C61,'Input_4x2_Trac 330kW'!$C$68:$C$76,0)),L$6,0)) -> 0 | M61: =IF(L61>0,L61,IF(M19>INDEX('Input_4x2_Trac 330kW'!$E$68:$E$76,MATCH($C61,'Input_4x2_Trac 330kW'!$C$68:$C$76,0)),M$6,0)) -> 0 | N61: =IF(M61>0,M61,IF(N19>INDEX('Input_4x2_Trac 330kW'!$E$68:$E$76,MATCH($C61,'Input_4x2_Trac 330kW'!$C$68:$C$76,0)),N$6,0)) -> 0 | O61: =IF(N61>0,N61,IF(O19>INDEX('Input_4x2_Trac 330kW'!$E$68:$E$76,MATCH($C61,'Input_4x2_Trac 330kW'!$C$68:$C$76,0)),O$6,0)) -> 0 | P61: =IF(O61>0,O61,IF(P19>INDEX('Input_4x2_Trac 330kW'!$E$68:$E$76,MATCH($C61,'Input_4x2_Trac 330kW'!$C$68:$C$76,0)),P$6,0)) -> 0 | Q61: =IF(P61>0,P61,IF(Q19>INDEX('Input_4x2_Trac 330kW'!$E$68:$E$76,MATCH($C61,'Input_4x2_Trac 330kW'!$C$68:$C$76,0)),Q$6,0)) -> 0 | R61: =IF(Q61>0,Q61,IF(R19>INDEX('Input_4x2_Trac 330kW'!$E$68:$E$76,MATCH($C61,'Input_4x2_Trac 330kW'!$C$68:$C$76,0)),R$6,0)) -> 0 | S61: =IF(R61>0,R61,IF(S19>INDEX('Input_4x2_Trac 330kW'!$E$68:$E$76,MATCH($C61,'Input_4x2_Trac 330kW'!$C$68:$C$76,0)),S$6,0)) -> 0 | T61: =IF(S61>0,S61,IF(T19>INDEX('Input_4x2_Trac 330kW'!$E$68:$E$76,MATCH($C61,'Input_4x2_Trac 330kW'!$C$68:$C$76,0)),T$6,0)) -> 0 | U61: =IF(T61>0,T61,IF(U19>INDEX('Input_4x2_Trac 330kW'!$E$68:$E$76,MATCH($C61,'Input_4x2_Trac 330kW'!$C$68:$C$76,0)),U$6,0)) -> 0 | V61: =IF(U61>0,U61,IF(V19>INDEX('Input_4x2_Trac 330kW'!$E$68:$E$76,MATCH($C61,'Input_4x2_Trac 330kW'!$C$68:$C$76,0)),V$6,0)) -> 0 | W61: =IF(V61>0,V61,IF(W19>INDEX('Input_4x2_Trac 330kW'!$E$68:$E$76,MATCH($C61,'Input_4x2_Trac 330kW'!$C$68:$C$76,0)),W$6,0)) -> 0 | X61: =IF(W61>0,W61,IF(X19>INDEX('Input_4x2_Trac 330kW'!$E$68:$E$76,MATCH($C61,'Input_4x2_Trac 330kW'!$C$68:$C$76,0)),X$6,0)) -> 0 | Y61: =IF(X61>0,X61,IF(Y19>INDEX('Input_4x2_Trac 330kW'!$E$68:$E$76,MATCH($C61,'Input_4x2_Trac 330kW'!$C$68:$C$76,0)),Y$6,0)) -> 0 | Z61: =IF(Y61>0,Y61,IF(Z19>INDEX('Input_4x2_Trac 330kW'!$E$68:$E$76,MATCH($C61,'Input_4x2_Trac 330kW'!$C$68:$C$76,0)),Z$6,0)) -> 0 | AA61: =IF(Z61>0,Z61,IF(AA19>INDEX('Input_4x2_Trac 330kW'!$E$68:$E$76,MATCH($C61,'Input_4x2_Trac 330kW'!$C$68:$C$76,0)),AA$6,0)) -> 0 | AB61: =IF(AA61>0,AA61,IF(AB19>INDEX('Input_4x2_Trac 330kW'!$E$68:$E$76,MATCH($C61,'Input_4x2_Trac 330kW'!$C$68:$C$76,0)),AB$6,0)) -> 0 | AC61: =IF(AB61>0,AB61,IF(AC19>INDEX('Input_4x2_Trac 330kW'!$E$68:$E$76,MATCH($C61,'Input_4x2_Trac 330kW'!$C$68:$C$76,0)),AC$6,0)) -> 0 | AE61: =C8 -> Diesel | AH61: 2027 | AJ61: Diesel2027
C62: =Terms!$E$9 -> E-Drive | D62: =D57 -> 0 | F62: =C8 -> Diesel | G62: 2028 | K62: 0 | L62: =IF(K62>0,K62,IF(L20>INDEX('Input_4x2_Trac 330kW'!$E$68:$E$76,MATCH($C62,'Input_4x2_Trac 330kW'!$C$68:$C$76,0)),L$6,0)) -> 0 | M62: =IF(L62>0,L62,IF(M20>INDEX('Input_4x2_Trac 330kW'!$E$68:$E$76,MATCH($C62,'Input_4x2_Trac 330kW'!$C$68:$C$76,0)),M$6,0)) -> 0 | N62: =IF(M62>0,M62,IF(N20>INDEX('Input_4x2_Trac 330kW'!$E$68:$E$76,MATCH($C62,'Input_4x2_Trac 330kW'!$C$68:$C$76,0)),N$6,0)) -> 0 | O62: =IF(N62>0,N62,IF(O20>INDEX('Input_4x2_Trac 330kW'!$E$68:$E$76,MATCH($C62,'Input_4x2_Trac 330kW'!$C$68:$C$76,0)),O$6,0)) -> 0 | P62: =IF(O62>0,O62,IF(P20>INDEX('Input_4x2_Trac 330kW'!$E$68:$E$76,MATCH($C62,'Input_4x2_Trac 330kW'!$C$68:$C$76,0)),P$6,0)) -> 0 | Q62: =IF(P62>0,P62,IF(Q20>INDEX('Input_4x2_Trac 330kW'!$E$68:$E$76,MATCH($C62,'Input_4x2_Trac 330kW'!$C$68:$C$76,0)),Q$6,0)) -> 0 | R62: =IF(Q62>0,Q62,IF(R20>INDEX('Input_4x2_Trac 330kW'!$E$68:$E$76,MATCH($C62,'Input_4x2_Trac 330kW'!$C$68:$C$76,0)),R$6,0)) -> 0 | S62: =IF(R62>0,R62,IF(S20>INDEX('Input_4x2_Trac 330kW'!$E$68:$E$76,MATCH($C62,'Input_4x2_Trac 330kW'!$C$68:$C$76,0)),S$6,0)) -> 0 | T62: =IF(S62>0,S62,IF(T20>INDEX('Input_4x2_Trac 330kW'!$E$68:$E$76,MATCH($C62,'Input_4x2_Trac 330kW'!$C$68:$C$76,0)),T$6,0)) -> 0 | U62: =IF(T62>0,T62,IF(U20>INDEX('Input_4x2_Trac 330kW'!$E$68:$E$76,MATCH($C62,'Input_4x2_Trac 330kW'!$C$68:$C$76,0)),U$6,0)) -> 0 | V62: =IF(U62>0,U62,IF(V20>INDEX('Input_4x2_Trac 330kW'!$E$68:$E$76,MATCH($C62,'Input_4x2_Trac 330kW'!$C$68:$C$76,0)),V$6,0)) -> 0 | W62: =IF(V62>0,V62,IF(W20>INDEX('Input_4x2_Trac 330kW'!$E$68:$E$76,MATCH($C62,'Input_4x2_Trac 330kW'!$C$68:$C$76,0)),W$6,0)) -> 0 | X62: =IF(W62>0,W62,IF(X20>INDEX('Input_4x2_Trac 330kW'!$E$68:$E$76,MATCH($C62,'Input_4x2_Trac 330kW'!$C$68:$C$76,0)),X$6,0)) -> 0 | Y62: =IF(X62>0,X62,IF(Y20>INDEX('Input_4x2_Trac 330kW'!$E$68:$E$76,MATCH($C62,'Input_4x2_Trac 330kW'!$C$68:$C$76,0)),Y$6,0)) -> 0 | Z62: =IF(Y62>0,Y62,IF(Z20>INDEX('Input_4x2_Trac 330kW'!$E$68:$E$76,MATCH($C62,'Input_4x2_Trac 330kW'!$C$68:$C$76,0)),Z$6,0)) -> 0 | AA62: =IF(Z62>0,Z62,IF(AA20>INDEX('Input_4x2_Trac 330kW'!$E$68:$E$76,MATCH($C62,'Input_4x2_Trac 330kW'!$C$68:$C$76,0)),AA$6,0)) -> 0 | AB62: =IF(AA62>0,AA62,IF(AB20>INDEX('Input_4x2_Trac 330kW'!$E$68:$E$76,MATCH($C62,'Input_4x2_Trac 330kW'!$C$68:$C$76,0)),AB$6,0)) -> 0 | AC62: =IF(AB62>0,AB62,IF(AC20>INDEX('Input_4x2_Trac 330kW'!$E$68:$E$76,MATCH($C62,'Input_4x2_Trac 330kW'!$C$68:$C$76,0)),AC$6,0)) -> 0 | AE62: =C8 -> Diesel | AH62: 2028 | AJ62: Diesel2028
C63: =Terms!$E$9 -> E-Drive | D63: =D57 -> 0 | F63: =C8 -> Diesel | G63: 2029 | K63: 0 | L63: =IF(K63>0,K63,IF(L21>INDEX('Input_4x2_Trac 330kW'!$E$68:$E$76,MATCH($C63,'Input_4x2_Trac 330kW'!$C$68:$C$76,0)),L$6,0)) -> 0 | M63: =IF(L63>0,L63,IF(M21>INDEX('Input_4x2_Trac 330kW'!$E$68:$E$76,MATCH($C63,'Input_4x2_Trac 330kW'!$C$68:$C$76,0)),M$6,0)) -> 0 | N63: =IF(M63>0,M63,IF(N21>INDEX('Input_4x2_Trac 330kW'!$E$68:$E$76,MATCH($C63,'Input_4x2_Trac 330kW'!$C$68:$C$76,0)),N$6,0)) -> 0 | O63: =IF(N63>0,N63,IF(O21>INDEX('Input_4x2_Trac 330kW'!$E$68:$E$76,MATCH($C63,'Input_4x2_Trac 330kW'!$C$68:$C$76,0)),O$6,0)) -> 0 | P63: =IF(O63>0,O63,IF(P21>INDEX('Input_4x2_Trac 330kW'!$E$68:$E$76,MATCH($C63,'Input_4x2_Trac 330kW'!$C$68:$C$76,0)),P$6,0)) -> 0 | Q63: =IF(P63>0,P63,IF(Q21>INDEX('Input_4x2_Trac 330kW'!$E$68:$E$76,MATCH($C63,'Input_4x2_Trac 330kW'!$C$68:$C$76,0)),Q$6,0)) -> 0 | R63: =IF(Q63>0,Q63,IF(R21>INDEX('Input_4x2_Trac 330kW'!$E$68:$E$76,MATCH($C63,'Input_4x2_Trac 330kW'!$C$68:$C$76,0)),R$6,0)) -> 0 | S63: =IF(R63>0,R63,IF(S21>INDEX('Input_4x2_Trac 330kW'!$E$68:$E$76,MATCH($C63,'Input_4x2_Trac 330kW'!$C$68:$C$76,0)),S$6,0)) -> 0 | T63: =IF(S63>0,S63,IF(T21>INDEX('Input_4x2_Trac 330kW'!$E$68:$E$76,MATCH($C63,'Input_4x2_Trac 330kW'!$C$68:$C$76,0)),T$6,0)) -> 0 | U63: =IF(T63>0,T63,IF(U21>INDEX('Input_4x2_Trac 330kW'!$E$68:$E$76,MATCH($C63,'Input_4x2_Trac 330kW'!$C$68:$C$76,0)),U$6,0)) -> 0 | V63: =IF(U63>0,U63,IF(V21>INDEX('Input_4x2_Trac 330kW'!$E$68:$E$76,MATCH($C63,'Input_4x2_Trac 330kW'!$C$68:$C$76,0)),V$6,0)) -> 0 | W63: =IF(V63>0,V63,IF(W21>INDEX('Input_4x2_Trac 330kW'!$E$68:$E$76,MATCH($C63,'Input_4x2_Trac 330kW'!$C$68:$C$76,0)),W$6,0)) -> 0 | X63: =IF(W63>0,W63,IF(X21>INDEX('Input_4x2_Trac 330kW'!$E$68:$E$76,MATCH($C63,'Input_4x2_Trac 330kW'!$C$68:$C$76,0)),X$6,0)) -> 0 | Y63: =IF(X63>0,X63,IF(Y21>INDEX('Input_4x2_Trac 330kW'!$E$68:$E$76,MATCH($C63,'Input_4x2_Trac 330kW'!$C$68:$C$76,0)),Y$6,0)) -> 0 | Z63: =IF(Y63>0,Y63,IF(Z21>INDEX('Input_4x2_Trac 330kW'!$E$68:$E$76,MATCH($C63,'Input_4x2_Trac 330kW'!$C$68:$C$76,0)),Z$6,0)) -> 0 | AA63: =IF(Z63>0,Z63,IF(AA21>INDEX('Input_4x2_Trac 330kW'!$E$68:$E$76,MATCH($C63,'Input_4x2_Trac 330kW'!$C$68:$C$76,0)),AA$6,0)) -> 0 | AB63: =IF(AA63>0,AA63,IF(AB21>INDEX('Input_4x2_Trac 330kW'!$E$68:$E$76,MATCH($C63,'Input_4x2_Trac 330kW'!$C$68:$C$76,0)),AB$6,0)) -> 0 | AC63: =IF(AB63>0,AB63,IF(AC21>INDEX('Input_4x2_Trac 330kW'!$E$68:$E$76,MATCH($C63,'Input_4x2_Trac 330kW'!$C$68:$C$76,0)),AC$6,0)) -> 0 | AE63: =C8 -> Diesel | AH63: 2029 | AJ63: Diesel2029
C64: =Terms!$E$9 -> E-Drive | D64: =D57 -> 0 | F64: =C8 -> Diesel | G64: 2030 | K64: 0 | L64: =IF(K64>0,K64,IF(L22>INDEX('Input_4x2_Trac 330kW'!$E$68:$E$76,MATCH($C64,'Input_4x2_Trac 330kW'!$C$68:$C$76,0)),L$6,0)) -> 0 | M64: =IF(L64>0,L64,IF(M22>INDEX('Input_4x2_Trac 330kW'!$E$68:$E$76,MATCH($C64,'Input_4x2_Trac 330kW'!$C$68:$C$76,0)),M$6,0)) -> 0 | N64: =IF(M64>0,M64,IF(N22>INDEX('Input_4x2_Trac 330kW'!$E$68:$E$76,MATCH($C64,'Input_4x2_Trac 330kW'!$C$68:$C$76,0)),N$6,0)) -> 0 | O64: =IF(N64>0,N64,IF(O22>INDEX('Input_4x2_Trac 330kW'!$E$68:$E$76,MATCH($C64,'Input_4x2_Trac 330kW'!$C$68:$C$76,0)),O$6,0)) -> 0 | P64: =IF(O64>0,O64,IF(P22>INDEX('Input_4x2_Trac 330kW'!$E$68:$E$76,MATCH($C64,'Input_4x2_Trac 330kW'!$C$68:$C$76,0)),P$6,0)) -> 0 | Q64: =IF(P64>0,P64,IF(Q22>INDEX('Input_4x2_Trac 330kW'!$E$68:$E$76,MATCH($C64,'Input_4x2_Trac 330kW'!$C$68:$C$76,0)),Q$6,0)) -> 0 | R64: =IF(Q64>0,Q64,IF(R22>INDEX('Input_4x2_Trac 330kW'!$E$68:$E$76,MATCH($C64,'Input_4x2_Trac 330kW'!$C$68:$C$76,0)),R$6,0)) -> 0 | S64: =IF(R64>0,R64,IF(S22>INDEX('Input_4x2_Trac 330kW'!$E$68:$E$76,MATCH($C64,'Input_4x2_Trac 330kW'!$C$68:$C$76,0)),S$6,0)) -> 0 | T64: =IF(S64>0,S64,IF(T22>INDEX('Input_4x2_Trac 330kW'!$E$68:$E$76,MATCH($C64,'Input_4x2_Trac 330kW'!$C$68:$C$76,0)),T$6,0)) -> 0 | U64: =IF(T64>0,T64,IF(U22>INDEX('Input_4x2_Trac 330kW'!$E$68:$E$76,MATCH($C64,'Input_4x2_Trac 330kW'!$C$68:$C$76,0)),U$6,0)) -> 0 | V64: =IF(U64>0,U64,IF(V22>INDEX('Input_4x2_Trac 330kW'!$E$68:$E$76,MATCH($C64,'Input_4x2_Trac 330kW'!$C$68:$C$76,0)),V$6,0)) -> 0 | W64: =IF(V64>0,V64,IF(W22>INDEX('Input_4x2_Trac 330kW'!$E$68:$E$76,MATCH($C64,'Input_4x2_Trac 330kW'!$C$68:$C$76,0)),W$6,0)) -> 0 | X64: =IF(W64>0,W64,IF(X22>INDEX('Input_4x2_Trac 330kW'!$E$68:$E$76,MATCH($C64,'Input_4x2_Trac 330kW'!$C$68:$C$76,0)),X$6,0)) -> 0 | Y64: =IF(X64>0,X64,IF(Y22>INDEX('Input_4x2_Trac 330kW'!$E$68:$E$76,MATCH($C64,'Input_4x2_Trac 330kW'!$C$68:$C$76,0)),Y$6,0)) -> 0 | Z64: =IF(Y64>0,Y64,IF(Z22>INDEX('Input_4x2_Trac 330kW'!$E$68:$E$76,MATCH($C64,'Input_4x2_Trac 330kW'!$C$68:$C$76,0)),Z$6,0)) -> 0 | AA64: =IF(Z64>0,Z64,IF(AA22>INDEX('Input_4x2_Trac 330kW'!$E$68:$E$76,MATCH($C64,'Input_4x2_Trac 330kW'!$C$68:$C$76,0)),AA$6,0)) -> 0 | AB64: =IF(AA64>0,AA64,IF(AB22>INDEX('Input_4x2_Trac 330kW'!$E$68:$E$76,MATCH($C64,'Input_4x2_Trac 330kW'!$C$68:$C$76,0)),AB$6,0)) -> 0 | AC64: =IF(AB64>0,AB64,IF(AC22>INDEX('Input_4x2_Trac 330kW'!$E$68:$E$76,MATCH($C64,'Input_4x2_Trac 330kW'!$C$68:$C$76,0)),AC$6,0)) -> 0 | AE64: =C8 -> Diesel | AH64: 2030 | AJ64: Diesel2030
AE65: =C8 -> Diesel | AH65: 0 | AJ65: Diesel0
C66: ="Year of original "&C67 -> Year of original FC Stack | AE66: =C8 -> Diesel | AH66: 0 | AJ66: Diesel0
C67: =Terms!$E$10 -> FC Stack | D67: =INDEX(Allocations!$R$21:$U$28,MATCH(F67,Allocations!$R$21:$R$28,0),MATCH(C67,Allocations!$R$21:$U$21,0)) -> 0 | F67: =C8 -> Diesel | G67: 2023 | K67: 0 | L67: =IF($D67=0,0,IF(L$6>=$G67,IF(L77=0,$G67,0),0)) -> 0 | M67: =IF($D67=0,0,IF(M$6>=$G67,IF(M435=0,$G67,0),0)) -> 0 | N67: 0 | O67: 0 | P67: 0 | Q67: 0 | R67: 0 | S67: 0 | T67: 0 | U67: 0 | V67: 0 | W67: 0 | X67: 0 | Y67: 0 | Z67: 0 | AA67: 0 | AB67: 0 | AC67: 0 | AE67: =C8 -> Diesel | AH67: 2023 | AJ67: Diesel2023
C68: =Terms!$E$10 -> FC Stack | D68: =D67 -> 0 | F68: =C8 -> Diesel | G68: 2024 | K68: 0 | L68: =IF($D68=0,0,IF(L$6>=$G68,IF(L436=0,$G68,0),0)) -> 0 | M68: =IF($D68=0,0,IF(M$6>=$G68,IF(M436=0,$G68,0),0)) -> 0 | N68: 0 | O68: 0 | P68: 0 | Q68: 0 | R68: 0 | S68: 0 | T68: 0 | U68: 0 | V68: 0 | W68: 0 | X68: 0 | Y68: 0 | Z68: 0 | AA68: 0 | AB68: 0 | AC68: 0 | AE68: =C8 -> Diesel | AH68: 2024 | AJ68: Diesel2024
C69: =Terms!$E$10 -> FC Stack | D69: =D67 -> 0 | F69: =C8 -> Diesel | G69: 2025 | K69: 0 | L69: 0 | M69: =IF($D69=0,0,IF(M$6>=$G69,IF(M437=0,$G69,0),0)) -> 0 | N69: 0 | O69: 0 | P69: 0 | Q69: 0 | R69: 0 | S69: 0 | T69: 0 | U69: 0 | V69: 0 | W69: 0 | X69: 0 | Y69: 0 | Z69: 0 | AA69: 0 | AB69: 0 | AC69: 0 | AE69: =C8 -> Diesel | AH69: 2025 | AJ69: Diesel2025
C70: =Terms!$E$10 -> FC Stack | D70: =D67 -> 0 | F70: =C8 -> Diesel | G70: 2026 | K70: 0 | L70: 0 | M70: =IF($D70=0,0,IF(M$6>=$G70,IF(M438=0,$G70,0),0)) -> 0 | N70: 0 | O70: 0 | P70: 0 | Q70: 0 | R70: 0 | S70: 0 | T70: 0 | U70: 0 | V70: 0 | W70: 0 | X70: 0 | Y70: 0 | Z70: 0 | AA70: 0 | AB70: 0 | AC70: 0 | AE70: =C8 -> Diesel | AH70: 2026 | AJ70: Diesel2026
C71: =Terms!$E$10 -> FC Stack | D71: =D67 -> 0 | F71: =C8 -> Diesel | G71: 2027 | K71: 0 | L71: 0 | M71: =IF($D71=0,0,IF(M$6>=$G71,IF(M439=0,$G71,0),0)) -> 0 | N71: 0 | O71: 0 | P71: 0 | Q71: 0 | R71: 0 | S71: 0 | T71: 0 | U71: 0 | V71: 0 | W71: 0 | X71: 0 | Y71: 0 | Z71: 0 | AA71: 0 | AB71: 0 | AC71: 0 | AE71: =C8 -> Diesel | AH71: 2027 | AJ71: Diesel2027
C72: =Terms!$E$10 -> FC Stack | D72: =D67 -> 0 | F72: =C8 -> Diesel | G72: 2028 | K72: 0 | L72: 0 | M72: =IF($D72=0,0,IF(M$6>=$G72,IF(M440=0,$G72,0),0)) -> 0 | N72: 0 | O72: 0 | P72: 0 | Q72: 0 | R72: 0 | S72: 0 | T72: 0 | U72: 0 | V72: 0 | W72: 0 | X72: 0 | Y72: 0 | Z72: 0 | AA72: 0 | AB72: 0 | AC72: 0 | AE72: =C8 -> Diesel | AH72: 2028 | AJ72: Diesel2028
C73: =Terms!$E$10 -> FC Stack | D73: =D67 -> 0 | F73: =C8 -> Diesel | G73: 2029 | K73: 0 | L73: 0 | M73: =IF($D73=0,0,IF(M$6>=$G73,IF(M441=0,$G73,0),0)) -> 0 | N73: 0 | O73: 0 | P73: 0 | Q73: 0 | R73: 0 | S73: 0 | T73: 0 | U73: 0 | V73: 0 | W73: 0 | X73: 0 | Y73: 0 | Z73: 0 | AA73: 0 | AB73: 0 | AC73: 0 | AE73: =C8 -> Diesel | AH73: =G73 -> 2029 | AJ73: =AE73&AF73&AH73 -> Diesel2029
C74: =Terms!$E$10 -> FC Stack | D74: =D67 -> 0 | F74: =C8 -> Diesel | G74: 2030 | K74: 0 | L74: 0 | M74: =IF($D74=0,0,IF(M$6>=$G74,IF(M442=0,$G74,0),0)) -> 0 | N74: 0 | O74: 0 | P74: 0 | Q74: 0 | R74: 0 | S74: 0 | T74: 0 | U74: 0 | V74: 0 | W74: 0 | X74: 0 | Y74: 0 | Z74: 0 | AA74: 0 | AB74: 0 | AC74: 0 | AE74: =C8 -> Diesel | AH74: 2030 | AJ74: Diesel2030
AE75: =C8 -> Diesel | AH75: 0 | AJ75: Diesel0
C76: ="Year of replacement "&C77 -> Year of replacement FC Stack | AE76: =C8 -> Diesel | AH76: 0 | AJ76: Diesel0
C77: =Terms!$E$10 -> FC Stack | D77: =INDEX(Allocations!$R$21:$U$28,MATCH(F77,Allocations!$R$21:$R$28,0),MATCH(C77,Allocations!$R$21:$U$21,0)) -> 0 | F77: =C8 -> Diesel | G77: 2023 | K77: 0 | L77: =IF(K77>0,K77,IF(L15>INDEX('Input_4x2_Trac 330kW'!$E$68:$E$76,MATCH($C77,'Input_4x2_Trac 330kW'!$C$68:$C$76,0)),L$6,0)) -> 0 | M77: =IF(L77>0,L77,IF(M15>INDEX('Input_4x2_Trac 330kW'!$E$68:$E$76,MATCH($C77,'Input_4x2_Trac 330kW'!$C$68:$C$76,0)),M$6,0)) -> 0 | N77: =IF(M77>0,M77,IF(N15>INDEX('Input_4x2_Trac 330kW'!$E$68:$E$76,MATCH($C77,'Input_4x2_Trac 330kW'!$C$68:$C$76,0)),N$6,0)) -> 0 | O77: =IF(N77>0,N77,IF(O15>INDEX('Input_4x2_Trac 330kW'!$E$68:$E$76,MATCH($C77,'Input_4x2_Trac 330kW'!$C$68:$C$76,0)),O$6,0)) -> 0 | P77: =IF(O77>0,O77,IF(P15>INDEX('Input_4x2_Trac 330kW'!$E$68:$E$76,MATCH($C77,'Input_4x2_Trac 330kW'!$C$68:$C$76,0)),P$6,0)) -> 0 | Q77: =IF(P77>0,P77,IF(Q15>INDEX('Input_4x2_Trac 330kW'!$E$68:$E$76,MATCH($C77,'Input_4x2_Trac 330kW'!$C$68:$C$76,0)),Q$6,0)) -> 0 | R77: =IF(Q77>0,Q77,IF(R15>INDEX('Input_4x2_Trac 330kW'!$E$68:$E$76,MATCH($C77,'Input_4x2_Trac 330kW'!$C$68:$C$76,0)),R$6,0)) -> 0 | S77: =IF(R77>0,R77,IF(S15>INDEX('Input_4x2_Trac 330kW'!$E$68:$E$76,MATCH($C77,'Input_4x2_Trac 330kW'!$C$68:$C$76,0)),S$6,0)) -> 0 | T77: =IF(S77>0,S77,IF(T15>INDEX('Input_4x2_Trac 330kW'!$E$68:$E$76,MATCH($C77,'Input_4x2_Trac 330kW'!$C$68:$C$76,0)),T$6,0)) -> 0 | U77: =IF(T77>0,T77,IF(U15>INDEX('Input_4x2_Trac 330kW'!$E$68:$E$76,MATCH($C77,'Input_4x2_Trac 330kW'!$C$68:$C$76,0)),U$6,0)) -> 0 | V77: =IF(U77>0,U77,IF(V15>INDEX('Input_4x2_Trac 330kW'!$E$68:$E$76,MATCH($C77,'Input_4x2_Trac 330kW'!$C$68:$C$76,0)),V$6,0)) -> 0 | W77: =IF(V77>0,V77,IF(W15>INDEX('Input_4x2_Trac 330kW'!$E$68:$E$76,MATCH($C77,'Input_4x2_Trac 330kW'!$C$68:$C$76,0)),W$6,0)) -> 0 | X77: =IF(W77>0,W77,IF(X15>INDEX('Input_4x2_Trac 330kW'!$E$68:$E$76,MATCH($C77,'Input_4x2_Trac 330kW'!$C$68:$C$76,0)),X$6,0)) -> 0 | Y77: =IF(X77>0,X77,IF(Y15>INDEX('Input_4x2_Trac 330kW'!$E$68:$E$76,MATCH($C77,'Input_4x2_Trac 330kW'!$C$68:$C$76,0)),Y$6,0)) -> 0 | Z77: =IF(Y77>0,Y77,IF(Z15>INDEX('Input_4x2_Trac 330kW'!$E$68:$E$76,MATCH($C77,'Input_4x2_Trac 330kW'!$C$68:$C$76,0)),Z$6,0)) -> 0 | AA77: =IF(Z77>0,Z77,IF(AA15>INDEX('Input_4x2_Trac 330kW'!$E$68:$E$76,MATCH($C77,'Input_4x2_Trac 330kW'!$C$68:$C$76,0)),AA$6,0)) -> 0 | AB77: =IF(AA77>0,AA77,IF(AB15>INDEX('Input_4x2_Trac 330kW'!$E$68:$E$76,MATCH($C77,'Input_4x2_Trac 330kW'!$C$68:$C$76,0)),AB$6,0)) -> 0 | AC77: =IF(AB77>0,AB77,IF(AC15>INDEX('Input_4x2_Trac 330kW'!$E$68:$E$76,MATCH($C77,'Input_4x2_Trac 330kW'!$C$68:$C$76,0)),AC$6,0)) -> 0 | AE77: =C8 -> Diesel | AH77: 2023 | AJ77: Diesel2023
C78: =Terms!$E$10 -> FC Stack | D78: =D77 -> 0 | F78: =C8 -> Diesel | G78: 2024 | K78: 0 | L78: =IF(K78>0,K78,IF(L16>INDEX('Input_4x2_Trac 330kW'!$E$68:$E$76,MATCH($C78,'Input_4x2_Trac 330kW'!$C$68:$C$76,0)),L$6,0)) -> 0 | M78: =IF(L78>0,L78,IF(M16>INDEX('Input_4x2_Trac 330kW'!$E$68:$E$76,MATCH($C78,'Input_4x2_Trac 330kW'!$C$68:$C$76,0)),M$6,0)) -> 0 | N78: =IF(M78>0,M78,IF(N16>INDEX('Input_4x2_Trac 330kW'!$E$68:$E$76,MATCH($C78,'Input_4x2_Trac 330kW'!$C$68:$C$76,0)),N$6,0)) -> 0 | O78: =IF(N78>0,N78,IF(O16>INDEX('Input_4x2_Trac 330kW'!$E$68:$E$76,MATCH($C78,'Input_4x2_Trac 330kW'!$C$68:$C$76,0)),O$6,0)) -> 0 | P78: =IF(O78>0,O78,IF(P16>INDEX('Input_4x2_Trac 330kW'!$E$68:$E$76,MATCH($C78,'Input_4x2_Trac 330kW'!$C$68:$C$76,0)),P$6,0)) -> 0 | Q78: =IF(P78>0,P78,IF(Q16>INDEX('Input_4x2_Trac 330kW'!$E$68:$E$76,MATCH($C78,'Input_4x2_Trac 330kW'!$C$68:$C$76,0)),Q$6,0)) -> 0 | R78: =IF(Q78>0,Q78,IF(R16>INDEX('Input_4x2_Trac 330kW'!$E$68:$E$76,MATCH($C78,'Input_4x2_Trac 330kW'!$C$68:$C$76,0)),R$6,0)) -> 0 | S78: =IF(R78>0,R78,IF(S16>INDEX('Input_4x2_Trac 330kW'!$E$68:$E$76,MATCH($C78,'Input_4x2_Trac 330kW'!$C$68:$C$76,0)),S$6,0)) -> 0 | T78: =IF(S78>0,S78,IF(T16>INDEX('Input_4x2_Trac 330kW'!$E$68:$E$76,MATCH($C78,'Input_4x2_Trac 330kW'!$C$68:$C$76,0)),T$6,0)) -> 0 | U78: =IF(T78>0,T78,IF(U16>INDEX('Input_4x2_Trac 330kW'!$E$68:$E$76,MATCH($C78,'Input_4x2_Trac 330kW'!$C$68:$C$76,0)),U$6,0)) -> 0 | V78: =IF(U78>0,U78,IF(V16>INDEX('Input_4x2_Trac 330kW'!$E$68:$E$76,MATCH($C78,'Input_4x2_Trac 330kW'!$C$68:$C$76,0)),V$6,0)) -> 0 | W78: =IF(V78>0,V78,IF(W16>INDEX('Input_4x2_Trac 330kW'!$E$68:$E$76,MATCH($C78,'Input_4x2_Trac 330kW'!$C$68:$C$76,0)),W$6,0)) -> 0 | X78: =IF(W78>0,W78,IF(X16>INDEX('Input_4x2_Trac 330kW'!$E$68:$E$76,MATCH($C78,'Input_4x2_Trac 330kW'!$C$68:$C$76,0)),X$6,0)) -> 0 | Y78: =IF(X78>0,X78,IF(Y16>INDEX('Input_4x2_Trac 330kW'!$E$68:$E$76,MATCH($C78,'Input_4x2_Trac 330kW'!$C$68:$C$76,0)),Y$6,0)) -> 0 | Z78: =IF(Y78>0,Y78,IF(Z16>INDEX('Input_4x2_Trac 330kW'!$E$68:$E$76,MATCH($C78,'Input_4x2_Trac 330kW'!$C$68:$C$76,0)),Z$6,0)) -> 0 | AA78: =IF(Z78>0,Z78,IF(AA16>INDEX('Input_4x2_Trac 330kW'!$E$68:$E$76,MATCH($C78,'Input_4x2_Trac 330kW'!$C$68:$C$76,0)),AA$6,0)) -> 0 | AB78: =IF(AA78>0,AA78,IF(AB16>INDEX('Input_4x2_Trac 330kW'!$E$68:$E$76,MATCH($C78,'Input_4x2_Trac 330kW'!$C$68:$C$76,0)),AB$6,0)) -> 0 | AC78: =IF(AB78>0,AB78,IF(AC16>INDEX('Input_4x2_Trac 330kW'!$E$68:$E$76,MATCH($C78,'Input_4x2_Trac 330kW'!$C$68:$C$76,0)),AC$6,0)) -> 0 | AE78: =C8 -> Diesel | AH78: 2024 | AJ78: Diesel2024
C79: =Terms!$E$10 -> FC Stack | D79: =D77 -> 0 | F79: =C8 -> Diesel | G79: 2025 | K79: 0 | L79: =IF(K79>0,K79,IF(L17>INDEX('Input_4x2_Trac 330kW'!$E$68:$E$76,MATCH($C79,'Input_4x2_Trac 330kW'!$C$68:$C$76,0)),L$6,0)) -> 0 | M79: =IF(L79>0,L79,IF(M17>INDEX('Input_4x2_Trac 330kW'!$E$68:$E$76,MATCH($C79,'Input_4x2_Trac 330kW'!$C$68:$C$76,0)),M$6,0)) -> 0 | N79: =IF(M79>0,M79,IF(N17>INDEX('Input_4x2_Trac 330kW'!$E$68:$E$76,MATCH($C79,'Input_4x2_Trac 330kW'!$C$68:$C$76,0)),N$6,0)) -> 0 | O79: =IF(N79>0,N79,IF(O17>INDEX('Input_4x2_Trac 330kW'!$E$68:$E$76,MATCH($C79,'Input_4x2_Trac 330kW'!$C$68:$C$76,0)),O$6,0)) -> 0 | P79: =IF(O79>0,O79,IF(P17>INDEX('Input_4x2_Trac 330kW'!$E$68:$E$76,MATCH($C79,'Input_4x2_Trac 330kW'!$C$68:$C$76,0)),P$6,0)) -> 0 | Q79: =IF(P79>0,P79,IF(Q17>INDEX('Input_4x2_Trac 330kW'!$E$68:$E$76,MATCH($C79,'Input_4x2_Trac 330kW'!$C$68:$C$76,0)),Q$6,0)) -> 0 | R79: =IF(Q79>0,Q79,IF(R17>INDEX('Input_4x2_Trac 330kW'!$E$68:$E$76,MATCH($C79,'Input_4x2_Trac 330kW'!$C$68:$C$76,0)),R$6,0)) -> 0 | S79: =IF(R79>0,R79,IF(S17>INDEX('Input_4x2_Trac 330kW'!$E$68:$E$76,MATCH($C79,'Input_4x2_Trac 330kW'!$C$68:$C$76,0)),S$6,0)) -> 0 | T79: =IF(S79>0,S79,IF(T17>INDEX('Input_4x2_Trac 330kW'!$E$68:$E$76,MATCH($C79,'Input_4x2_Trac 330kW'!$C$68:$C$76,0)),T$6,0)) -> 0 | U79: =IF(T79>0,T79,IF(U17>INDEX('Input_4x2_Trac 330kW'!$E$68:$E$76,MATCH($C79,'Input_4x2_Trac 330kW'!$C$68:$C$76,0)),U$6,0)) -> 0 | V79: =IF(U79>0,U79,IF(V17>INDEX('Input_4x2_Trac 330kW'!$E$68:$E$76,MATCH($C79,'Input_4x2_Trac 330kW'!$C$68:$C$76,0)),V$6,0)) -> 0 | W79: =IF(V79>0,V79,IF(W17>INDEX('Input_4x2_Trac 330kW'!$E$68:$E$76,MATCH($C79,'Input_4x2_Trac 330kW'!$C$68:$C$76,0)),W$6,0)) -> 0 | X79: =IF(W79>0,W79,IF(X17>INDEX('Input_4x2_Trac 330kW'!$E$68:$E$76,MATCH($C79,'Input_4x2_Trac 330kW'!$C$68:$C$76,0)),X$6,0)) -> 0 | Y79: =IF(X79>0,X79,IF(Y17>INDEX('Input_4x2_Trac 330kW'!$E$68:$E$76,MATCH($C79,'Input_4x2_Trac 330kW'!$C$68:$C$76,0)),Y$6,0)) -> 0 | Z79: =IF(Y79>0,Y79,IF(Z17>INDEX('Input_4x2_Trac 330kW'!$E$68:$E$76,MATCH($C79,'Input_4x2_Trac 330kW'!$C$68:$C$76,0)),Z$6,0)) -> 0 | AA79: =IF(Z79>0,Z79,IF(AA17>INDEX('Input_4x2_Trac 330kW'!$E$68:$E$76,MATCH($C79,'Input_4x2_Trac 330kW'!$C$68:$C$76,0)),AA$6,0)) -> 0 | AB79: =IF(AA79>0,AA79,IF(AB17>INDEX('Input_4x2_Trac 330kW'!$E$68:$E$76,MATCH($C79,'Input_4x2_Trac 330kW'!$C$68:$C$76,0)),AB$6,0)) -> 0 | AC79: =IF(AB79>0,AB79,IF(AC17>INDEX('Input_4x2_Trac 330kW'!$E$68:$E$76,MATCH($C79,'Input_4x2_Trac 330kW'!$C$68:$C$76,0)),AC$6,0)) -> 0 | AE79: =C8 -> Diesel | AH79: 2025 | AJ79: Diesel2025
C80: =Terms!$E$10 -> FC Stack | D80: =D77 -> 0 | F80: =C8 -> Diesel | G80: 2026 | K80: 0 | L80: =IF(K80>0,K80,IF(L18>INDEX('Input_4x2_Trac 330kW'!$E$68:$E$76,MATCH($C80,'Input_4x2_Trac 330kW'!$C$68:$C$76,0)),L$6,0)) -> 0 | M80: =IF(L80>0,L80,IF(M18>INDEX('Input_4x2_Trac 330kW'!$E$68:$E$76,MATCH($C80,'Input_4x2_Trac 330kW'!$C$68:$C$76,0)),M$6,0)) -> 0 | N80: =IF(M80>0,M80,IF(N18>INDEX('Input_4x2_Trac 330kW'!$E$68:$E$76,MATCH($C80,'Input_4x2_Trac 330kW'!$C$68:$C$76,0)),N$6,0)) -> 0 | O80: =IF(N80>0,N80,IF(O18>INDEX('Input_4x2_Trac 330kW'!$E$68:$E$76,MATCH($C80,'Input_4x2_Trac 330kW'!$C$68:$C$76,0)),O$6,0)) -> 0 | P80: =IF(O80>0,O80,IF(P18>INDEX('Input_4x2_Trac 330kW'!$E$68:$E$76,MATCH($C80,'Input_4x2_Trac 330kW'!$C$68:$C$76,0)),P$6,0)) -> 0 | Q80: =IF(P80>0,P80,IF(Q18>INDEX('Input_4x2_Trac 330kW'!$E$68:$E$76,MATCH($C80,'Input_4x2_Trac 330kW'!$C$68:$C$76,0)),Q$6,0)) -> 0 | R80: =IF(Q80>0,Q80,IF(R18>INDEX('Input_4x2_Trac 330kW'!$E$68:$E$76,MATCH($C80,'Input_4x2_Trac 330kW'!$C$68:$C$76,0)),R$6,0)) -> 0 | S80: =IF(R80>0,R80,IF(S18>INDEX('Input_4x2_Trac 330kW'!$E$68:$E$76,MATCH($C80,'Input_4x2_Trac 330kW'!$C$68:$C$76,0)),S$6,0)) -> 0 | T80: =IF(S80>0,S80,IF(T18>INDEX('Input_4x2_Trac 330kW'!$E$68:$E$76,MATCH($C80,'Input_4x2_Trac 330kW'!$C$68:$C$76,0)),T$6,0)) -> 0 | U80: =IF(T80>0,T80,IF(U18>INDEX('Input_4x2_Trac 330kW'!$E$68:$E$76,MATCH($C80,'Input_4x2_Trac 330kW'!$C$68:$C$76,0)),U$6,0)) -> 0 | V80: =IF(U80>0,U80,IF(V18>INDEX('Input_4x2_Trac 330kW'!$E$68:$E$76,MATCH($C80,'Input_4x2_Trac 330kW'!$C$68:$C$76,0)),V$6,0)) -> 0 | W80: =IF(V80>0,V80,IF(W18>INDEX('Input_4x2_Trac 330kW'!$E$68:$E$76,MATCH($C80,'Input_4x2_Trac 330kW'!$C$68:$C$76,0)),W$6,0)) -> 0 | X80: =IF(W80>0,W80,IF(X18>INDEX('Input_4x2_Trac 330kW'!$E$68:$E$76,MATCH($C80,'Input_4x2_Trac 330kW'!$C$68:$C$76,0)),X$6,0)) -> 0 | Y80: =IF(X80>0,X80,IF(Y18>INDEX('Input_4x2_Trac 330kW'!$E$68:$E$76,MATCH($C80,'Input_4x2_Trac 330kW'!$C$68:$C$76,0)),Y$6,0)) -> 0 | Z80: =IF(Y80>0,Y80,IF(Z18>INDEX('Input_4x2_Trac 330kW'!$E$68:$E$76,MATCH($C80,'Input_4x2_Trac 330kW'!$C$68:$C$76,0)),Z$6,0)) -> 0 | AA80: =IF(Z80>0,Z80,IF(AA18>INDEX('Input_4x2_Trac 330kW'!$E$68:$E$76,MATCH($C80,'Input_4x2_Trac 330kW'!$C$68:$C$76,0)),AA$6,0)) -> 0 | AB80: =IF(AA80>0,AA80,IF(AB18>INDEX('Input_4x2_Trac 330kW'!$E$68:$E$76,MATCH($C80,'Input_4x2_Trac 330kW'!$C$68:$C$76,0)),AB$6,0)) -> 0 | AC80: =IF(AB80>0,AB80,IF(AC18>INDEX('Input_4x2_Trac 330kW'!$E$68:$E$76,MATCH($C80,'Input_4x2_Trac 330kW'!$C$68:$C$76,0)),AC$6,0)) -> 0 | AE80: =C8 -> Diesel | AH80: 2026 | AJ80: Diesel2026
C81: =Terms!$E$10 -> FC Stack | D81: =D77 -> 0 | F81: =C8 -> Diesel | G81: 2027 | K81: 0 | L81: =IF(K81>0,K81,IF(L19>INDEX('Input_4x2_Trac 330kW'!$E$68:$E$76,MATCH($C81,'Input_4x2_Trac 330kW'!$C$68:$C$76,0)),L$6,0)) -> 0 | M81: =IF(L81>0,L81,IF(M19>INDEX('Input_4x2_Trac 330kW'!$E$68:$E$76,MATCH($C81,'Input_4x2_Trac 330kW'!$C$68:$C$76,0)),M$6,0)) -> 0 | N81: =IF(M81>0,M81,IF(N19>INDEX('Input_4x2_Trac 330kW'!$E$68:$E$76,MATCH($C81,'Input_4x2_Trac 330kW'!$C$68:$C$76,0)),N$6,0)) -> 0 | O81: =IF(N81>0,N81,IF(O19>INDEX('Input_4x2_Trac 330kW'!$E$68:$E$76,MATCH($C81,'Input_4x2_Trac 330kW'!$C$68:$C$76,0)),O$6,0)) -> 0 | P81: =IF(O81>0,O81,IF(P19>INDEX('Input_4x2_Trac 330kW'!$E$68:$E$76,MATCH($C81,'Input_4x2_Trac 330kW'!$C$68:$C$76,0)),P$6,0)) -> 0 | Q81: =IF(P81>0,P81,IF(Q19>INDEX('Input_4x2_Trac 330kW'!$E$68:$E$76,MATCH($C81,'Input_4x2_Trac 330kW'!$C$68:$C$76,0)),Q$6,0)) -> 0 | R81: =IF(Q81>0,Q81,IF(R19>INDEX('Input_4x2_Trac 330kW'!$E$68:$E$76,MATCH($C81,'Input_4x2_Trac 330kW'!$C$68:$C$76,0)),R$6,0)) -> 0 | S81: =IF(R81>0,R81,IF(S19>INDEX('Input_4x2_Trac 330kW'!$E$68:$E$76,MATCH($C81,'Input_4x2_Trac 330kW'!$C$68:$C$76,0)),S$6,0)) -> 0 | T81: =IF(S81>0,S81,IF(T19>INDEX('Input_4x2_Trac 330kW'!$E$68:$E$76,MATCH($C81,'Input_4x2_Trac 330kW'!$C$68:$C$76,0)),T$6,0)) -> 0 | U81: =IF(T81>0,T81,IF(U19>INDEX('Input_4x2_Trac 330kW'!$E$68:$E$76,MATCH($C81,'Input_4x2_Trac 330kW'!$C$68:$C$76,0)),U$6,0)) -> 0 | V81: =IF(U81>0,U81,IF(V19>INDEX('Input_4x2_Trac 330kW'!$E$68:$E$76,MATCH($C81,'Input_4x2_Trac 330kW'!$C$68:$C$76,0)),V$6,0)) -> 0 | W81: =IF(V81>0,V81,IF(W19>INDEX('Input_4x2_Trac 330kW'!$E$68:$E$76,MATCH($C81,'Input_4x2_Trac 330kW'!$C$68:$C$76,0)),W$6,0)) -> 0 | X81: =IF(W81>0,W81,IF(X19>INDEX('Input_4x2_Trac 330kW'!$E$68:$E$76,MATCH($C81,'Input_4x2_Trac 330kW'!$C$68:$C$76,0)),X$6,0)) -> 0 | Y81: =IF(X81>0,X81,IF(Y19>INDEX('Input_4x2_Trac 330kW'!$E$68:$E$76,MATCH($C81,'Input_4x2_Trac 330kW'!$C$68:$C$76,0)),Y$6,0)) -> 0 | Z81: =IF(Y81>0,Y81,IF(Z19>INDEX('Input_4x2_Trac 330kW'!$E$68:$E$76,MATCH($C81,'Input_4x2_Trac 330kW'!$C$68:$C$76,0)),Z$6,0)) -> 0 | AA81: =IF(Z81>0,Z81,IF(AA19>INDEX('Input_4x2_Trac 330kW'!$E$68:$E$76,MATCH($C81,'Input_4x2_Trac 330kW'!$C$68:$C$76,0)),AA$6,0)) -> 0 | AB81: =IF(AA81>0,AA81,IF(AB19>INDEX('Input_4x2_Trac 330kW'!$E$68:$E$76,MATCH($C81,'Input_4x2_Trac 330kW'!$C$68:$C$76,0)),AB$6,0)) -> 0 | AC81: =IF(AB81>0,AB81,IF(AC19>INDEX('Input_4x2_Trac 330kW'!$E$68:$E$76,MATCH($C81,'Input_4x2_Trac 330kW'!$C$68:$C$76,0)),AC$6,0)) -> 0 | AE81: =C8 -> Diesel | AH81: 2027 | AJ81: Diesel2027
C82: =Terms!$E$10 -> FC Stack | D82: =D77 -> 0 | F82: =C8 -> Diesel | G82: 2028 | K82: 0 | L82: =IF(K82>0,K82,IF(L20>INDEX('Input_4x2_Trac 330kW'!$E$68:$E$76,MATCH($C82,'Input_4x2_Trac 330kW'!$C$68:$C$76,0)),L$6,0)) -> 0 | M82: =IF(L82>0,L82,IF(M20>INDEX('Input_4x2_Trac 330kW'!$E$68:$E$76,MATCH($C82,'Input_4x2_Trac 330kW'!$C$68:$C$76,0)),M$6,0)) -> 0 | N82: =IF(M82>0,M82,IF(N20>INDEX('Input_4x2_Trac 330kW'!$E$68:$E$76,MATCH($C82,'Input_4x2_Trac 330kW'!$C$68:$C$76,0)),N$6,0)) -> 0 | O82: =IF(N82>0,N82,IF(O20>INDEX('Input_4x2_Trac 330kW'!$E$68:$E$76,MATCH($C82,'Input_4x2_Trac 330kW'!$C$68:$C$76,0)),O$6,0)) -> 0 | P82: =IF(O82>0,O82,IF(P20>INDEX('Input_4x2_Trac 330kW'!$E$68:$E$76,MATCH($C82,'Input_4x2_Trac 330kW'!$C$68:$C$76,0)),P$6,0)) -> 0 | Q82: =IF(P82>0,P82,IF(Q20>INDEX('Input_4x2_Trac 330kW'!$E$68:$E$76,MATCH($C82,'Input_4x2_Trac 330kW'!$C$68:$C$76,0)),Q$6,0)) -> 0 | R82: =IF(Q82>0,Q82,IF(R20>INDEX('Input_4x2_Trac 330kW'!$E$68:$E$76,MATCH($C82,'Input_4x2_Trac 330kW'!$C$68:$C$76,0)),R$6,0)) -> 0 | S82: =IF(R82>0,R82,IF(S20>INDEX('Input_4x2_Trac 330kW'!$E$68:$E$76,MATCH($C82,'Input_4x2_Trac 330kW'!$C$68:$C$76,0)),S$6,0)) -> 0 | T82: =IF(S82>0,S82,IF(T20>INDEX('Input_4x2_Trac 330kW'!$E$68:$E$76,MATCH($C82,'Input_4x2_Trac 330kW'!$C$68:$C$76,0)),T$6,0)) -> 0 | U82: =IF(T82>0,T82,IF(U20>INDEX('Input_4x2_Trac 330kW'!$E$68:$E$76,MATCH($C82,'Input_4x2_Trac 330kW'!$C$68:$C$76,0)),U$6,0)) -> 0 | V82: =IF(U82>0,U82,IF(V20>INDEX('Input_4x2_Trac 330kW'!$E$68:$E$76,MATCH($C82,'Input_4x2_Trac 330kW'!$C$68:$C$76,0)),V$6,0)) -> 0 | W82: =IF(V82>0,V82,IF(W20>INDEX('Input_4x2_Trac 330kW'!$E$68:$E$76,MATCH($C82,'Input_4x2_Trac 330kW'!$C$68:$C$76,0)),W$6,0)) -> 0 | X82: =IF(W82>0,W82,IF(X20>INDEX('Input_4x2_Trac 330kW'!$E$68:$E$76,MATCH($C82,'Input_4x2_Trac 330kW'!$C$68:$C$76,0)),X$6,0)) -> 0 | Y82: =IF(X82>0,X82,IF(Y20>INDEX('Input_4x2_Trac 330kW'!$E$68:$E$76,MATCH($C82,'Input_4x2_Trac 330kW'!$C$68:$C$76,0)),Y$6,0)) -> 0 | Z82: =IF(Y82>0,Y82,IF(Z20>INDEX('Input_4x2_Trac 330kW'!$E$68:$E$76,MATCH($C82,'Input_4x2_Trac 330kW'!$C$68:$C$76,0)),Z$6,0)) -> 0 | AA82: =IF(Z82>0,Z82,IF(AA20>INDEX('Input_4x2_Trac 330kW'!$E$68:$E$76,MATCH($C82,'Input_4x2_Trac 330kW'!$C$68:$C$76,0)),AA$6,0)) -> 0 | AB82: =IF(AA82>0,AA82,IF(AB20>INDEX('Input_4x2_Trac 330kW'!$E$68:$E$76,MATCH($C82,'Input_4x2_Trac 330kW'!$C$68:$C$76,0)),AB$6,0)) -> 0 | AC82: =IF(AB82>0,AB82,IF(AC20>INDEX('Input_4x2_Trac 330kW'!$E$68:$E$76,MATCH($C82,'Input_4x2_Trac 330kW'!$C$68:$C$76,0)),AC$6,0)) -> 0 | AE82: =C8 -> Diesel | AH82: 2028 | AJ82: Diesel2028
C83: =Terms!$E$10 -> FC Stack | D83: =D77 -> 0 | F83: =C8 -> Diesel | G83: 2029 | K83: 0 | L83: =IF(K83>0,K83,IF(L21>INDEX('Input_4x2_Trac 330kW'!$E$68:$E$76,MATCH($C83,'Input_4x2_Trac 330kW'!$C$68:$C$76,0)),L$6,0)) -> 0 | M83: =IF(L83>0,L83,IF(M21>INDEX('Input_4x2_Trac 330kW'!$E$68:$E$76,MATCH($C83,'Input_4x2_Trac 330kW'!$C$68:$C$76,0)),M$6,0)) -> 0 | N83: =IF(M83>0,M83,IF(N21>INDEX('Input_4x2_Trac 330kW'!$E$68:$E$76,MATCH($C83,'Input_4x2_Trac 330kW'!$C$68:$C$76,0)),N$6,0)) -> 0 | O83: =IF(N83>0,N83,IF(O21>INDEX('Input_4x2_Trac 330kW'!$E$68:$E$76,MATCH($C83,'Input_4x2_Trac 330kW'!$C$68:$C$76,0)),O$6,0)) -> 0 | P83: =IF(O83>0,O83,IF(P21>INDEX('Input_4x2_Trac 330kW'!$E$68:$E$76,MATCH($C83,'Input_4x2_Trac 330kW'!$C$68:$C$76,0)),P$6,0)) -> 0 | Q83: =IF(P83>0,P83,IF(Q21>INDEX('Input_4x2_Trac 330kW'!$E$68:$E$76,MATCH($C83,'Input_4x2_Trac 330kW'!$C$68:$C$76,0)),Q$6,0)) -> 0 | R83: =IF(Q83>0,Q83,IF(R21>INDEX('Input_4x2_Trac 330kW'!$E$68:$E$76,MATCH($C83,'Input_4x2_Trac 330kW'!$C$68:$C$76,0)),R$6,0)) -> 0 | S83: =IF(R83>0,R83,IF(S21>INDEX('Input_4x2_Trac 330kW'!$E$68:$E$76,MATCH($C83,'Input_4x2_Trac 330kW'!$C$68:$C$76,0)),S$6,0)) -> 0 | T83: =IF(S83>0,S83,IF(T21>INDEX('Input_4x2_Trac 330kW'!$E$68:$E$76,MATCH($C83,'Input_4x2_Trac 330kW'!$C$68:$C$76,0)),T$6,0)) -> 0 | U83: =IF(T83>0,T83,IF(U21>INDEX('Input_4x2_Trac 330kW'!$E$68:$E$76,MATCH($C83,'Input_4x2_Trac 330kW'!$C$68:$C$76,0)),U$6,0)) -> 0 | V83: =IF(U83>0,U83,IF(V21>INDEX('Input_4x2_Trac 330kW'!$E$68:$E$76,MATCH($C83,'Input_4x2_Trac 330kW'!$C$68:$C$76,0)),V$6,0)) -> 0 | W83: =IF(V83>0,V83,IF(W21>INDEX('Input_4x2_Trac 330kW'!$E$68:$E$76,MATCH($C83,'Input_4x2_Trac 330kW'!$C$68:$C$76,0)),W$6,0)) -> 0 | X83: =IF(W83>0,W83,IF(X21>INDEX('Input_4x2_Trac 330kW'!$E$68:$E$76,MATCH($C83,'Input_4x2_Trac 330kW'!$C$68:$C$76,0)),X$6,0)) -> 0 | Y83: =IF(X83>0,X83,IF(Y21>INDEX('Input_4x2_Trac 330kW'!$E$68:$E$76,MATCH($C83,'Input_4x2_Trac 330kW'!$C$68:$C$76,0)),Y$6,0)) -> 0 | Z83: =IF(Y83>0,Y83,IF(Z21>INDEX('Input_4x2_Trac 330kW'!$E$68:$E$76,MATCH($C83,'Input_4x2_Trac 330kW'!$C$68:$C$76,0)),Z$6,0)) -> 0 | AA83: =IF(Z83>0,Z83,IF(AA21>INDEX('Input_4x2_Trac 330kW'!$E$68:$E$76,MATCH($C83,'Input_4x2_Trac 330kW'!$C$68:$C$76,0)),AA$6,0)) -> 0 | AB83: =IF(AA83>0,AA83,IF(AB21>INDEX('Input_4x2_Trac 330kW'!$E$68:$E$76,MATCH($C83,'Input_4x2_Trac 330kW'!$C$68:$C$76,0)),AB$6,0)) -> 0 | AC83: =IF(AB83>0,AB83,IF(AC21>INDEX('Input_4x2_Trac 330kW'!$E$68:$E$76,MATCH($C83,'Input_4x2_Trac 330kW'!$C$68:$C$76,0)),AC$6,0)) -> 0 | AE83: =C8 -> Diesel | AH83: 2029 | AJ83: Diesel2029
C84: =Terms!$E$10 -> FC Stack | D84: =D77 -> 0 | F84: =C8 -> Diesel | G84: 2030 | K84: 0 | L84: =IF(K84>0,K84,IF(L22>INDEX('Input_4x2_Trac 330kW'!$E$68:$E$76,MATCH($C84,'Input_4x2_Trac 330kW'!$C$68:$C$76,0)),L$6,0)) -> 0 | M84: =IF(L84>0,L84,IF(M22>INDEX('Input_4x2_Trac 330kW'!$E$68:$E$76,MATCH($C84,'Input_4x2_Trac 330kW'!$C$68:$C$76,0)),M$6,0)) -> 0 | N84: =IF(M84>0,M84,IF(N22>INDEX('Input_4x2_Trac 330kW'!$E$68:$E$76,MATCH($C84,'Input_4x2_Trac 330kW'!$C$68:$C$76,0)),N$6,0)) -> 0 | O84: =IF(N84>0,N84,IF(O22>INDEX('Input_4x2_Trac 330kW'!$E$68:$E$76,MATCH($C84,'Input_4x2_Trac 330kW'!$C$68:$C$76,0)),O$6,0)) -> 0 | P84: =IF(O84>0,O84,IF(P22>INDEX('Input_4x2_Trac 330kW'!$E$68:$E$76,MATCH($C84,'Input_4x2_Trac 330kW'!$C$68:$C$76,0)),P$6,0)) -> 0 | Q84: =IF(P84>0,P84,IF(Q22>INDEX('Input_4x2_Trac 330kW'!$E$68:$E$76,MATCH($C84,'Input_4x2_Trac 330kW'!$C$68:$C$76,0)),Q$6,0)) -> 0 | R84: =IF(Q84>0,Q84,IF(R22>INDEX('Input_4x2_Trac 330kW'!$E$68:$E$76,MATCH($C84,'Input_4x2_Trac 330kW'!$C$68:$C$76,0)),R$6,0)) -> 0 | S84: =IF(R84>0,R84,IF(S22>INDEX('Input_4x2_Trac 330kW'!$E$68:$E$76,MATCH($C84,'Input_4x2_Trac 330kW'!$C$68:$C$76,0)),S$6,0)) -> 0 | T84: =IF(S84>0,S84,IF(T22>INDEX('Input_4x2_Trac 330kW'!$E$68:$E$76,MATCH($C84,'Input_4x2_Trac 330kW'!$C$68:$C$76,0)),T$6,0)) -> 0 | U84: =IF(T84>0,T84,IF(U22>INDEX('Input_4x2_Trac 330kW'!$E$68:$E$76,MATCH($C84,'Input_4x2_Trac 330kW'!$C$68:$C$76,0)),U$6,0)) -> 0 | V84: =IF(U84>0,U84,IF(V22>INDEX('Input_4x2_Trac 330kW'!$E$68:$E$76,MATCH($C84,'Input_4x2_Trac 330kW'!$C$68:$C$76,0)),V$6,0)) -> 0 | W84: =IF(V84>0,V84,IF(W22>INDEX('Input_4x2_Trac 330kW'!$E$68:$E$76,MATCH($C84,'Input_4x2_Trac 330kW'!$C$68:$C$76,0)),W$6,0)) -> 0 | X84: =IF(W84>0,W84,IF(X22>INDEX('Input_4x2_Trac 330kW'!$E$68:$E$76,MATCH($C84,'Input_4x2_Trac 330kW'!$C$68:$C$76,0)),X$6,0)) -> 0 | Y84: =IF(X84>0,X84,IF(Y22>INDEX('Input_4x2_Trac 330kW'!$E$68:$E$76,MATCH($C84,'Input_4x2_Trac 330kW'!$C$68:$C$76,0)),Y$6,0)) -> 0 | Z84: =IF(Y84>0,Y84,IF(Z22>INDEX('Input_4x2_Trac 330kW'!$E$68:$E$76,MATCH($C84,'Input_4x2_Trac 330kW'!$C$68:$C$76,0)),Z$6,0)) -> 0 | AA84: =IF(Z84>0,Z84,IF(AA22>INDEX('Input_4x2_Trac 330kW'!$E$68:$E$76,MATCH($C84,'Input_4x2_Trac 330kW'!$C$68:$C$76,0)),AA$6,0)) -> 0 | AB84: =IF(AA84>0,AA84,IF(AB22>INDEX('Input_4x2_Trac 330kW'!$E$68:$E$76,MATCH($C84,'Input_4x2_Trac 330kW'!$C$68:$C$76,0)),AB$6,0)) -> 0 | AC84: =IF(AB84>0,AB84,IF(AC22>INDEX('Input_4x2_Trac 330kW'!$E$68:$E$76,MATCH($C84,'Input_4x2_Trac 330kW'!$C$68:$C$76,0)),AC$6,0)) -> 0 | AE84: =C8 -> Diesel | AH84: 2030 | AJ84: Diesel2030
AE85: =C8 -> Diesel | AH85: 0 | AJ85: Diesel0
C86: ="Year of original "&C87 -> Year of original Small Battery | AE86: =C8 -> Diesel | AH86: 0 | AJ86: Diesel0
C87: =Terms!$E$11 -> Small Battery | D87: =INDEX(Allocations!$C$21:$P$28,MATCH(F87,Allocations!$C$21:$C$28,0),MATCH(C87,Allocations!$C$21:$P$21,0)) -> 0 | F87: =C8 -> Diesel | G87: 2023 | K87: 0 | L87: =IF($D87=0,0,IF(L$6>=$G87,IF(L97=0,$G87,0),0)) -> 0 | M87: 0 | N87: 0 | O87: 0 | P87: 0 | Q87: 0 | R87: 0 | S87: 0 | T87: 0 | U87: 0 | V87: 0 | W87: 0 | X87: 0 | Y87: 0 | Z87: 0 | AA87: 0 | AB87: 0 | AC87: 0 | AE87: =C8 -> Diesel | AH87: 2023 | AJ87: Diesel2023
C88: =Terms!$E$11 -> Small Battery | D88: =D87 -> 0 | F88: =C8 -> Diesel | G88: 2024 | K88: 0 | L88: =IF($D88=0,0,IF(L$6>=$G88,IF(L98=0,$G88,0),0)) -> 0 | M88: 0 | N88: 0 | O88: 0 | P88: 0 | Q88: 0 | R88: 0 | S88: 0 | T88: 0 | U88: 0 | V88: 0 | W88: 0 | X88: 0 | Y88: 0 | Z88: 0 | AA88: 0 | AB88: 0 | AC88: 0 | AE88: =C8 -> Diesel | AH88: 2024 | AJ88: Diesel2024
C89: =Terms!$E$11 -> Small Battery | D89: =D87 -> 0 | F89: =C8 -> Diesel | G89: 2025 | K89: 0 | L89: =IF($D89=0,0,IF(L$6>=$G89,IF(L99=0,$G89,0),0)) -> 0 | M89: 0 | N89: 0 | O89: 0 | P89: 0 | Q89: 0 | R89: 0 | S89: 0 | T89: 0 | U89: 0 | V89: 0 | W89: 0 | X89: 0 | Y89: 0 | Z89: 0 | AA89: 0 | AB89: 0 | AC89: 0 | AE89: =C8 -> Diesel | AH89: 2025 | AJ89: Diesel2025
C90: =Terms!$E$11 -> Small Battery | D90: =D87 -> 0 | F90: =C8 -> Diesel | G90: 2026 | K90: 0 | L90: =IF($D90=0,0,IF(L$6>=$G90,IF(L100=0,$G90,0),0)) -> 0 | M90: 0 | N90: 0 | O90: 0 | P90: 0 | Q90: 0 | R90: 0 | S90: 0 | T90: 0 | U90: 0 | V90: 0 | W90: 0 | X90: 0 | Y90: 0 | Z90: 0 | AA90: 0 | AB90: 0 | AC90: 0 | AE90: =C8 -> Diesel | AH90: 2026 | AJ90: Diesel2026
C91: =Terms!$E$11 -> Small Battery | D91: =D87 -> 0 | F91: =C8 -> Diesel | G91: 2027 | K91: 0 | L91: =IF($D91=0,0,IF(L$6>=$G91,IF(L101=0,$G91,0),0)) -> 0 | M91: 0 | N91: 0 | O91: 0 | P91: 0 | Q91: 0 | R91: 0 | S91: 0 | T91: 0 | U91: 0 | V91: 0 | W91: 0 | X91: 0 | Y91: 0 | Z91: 0 | AA91: 0 | AB91: 0 | AC91: 0 | AE91: =C8 -> Diesel | AH91: 2027 | AJ91: Diesel2027
C92: =Terms!$E$11 -> Small Battery | D92: =D87 -> 0 | F92: =C8 -> Diesel | G92: 2028 | K92: 0 | L92: =IF($D92=0,0,IF(L$6>=$G92,IF(L102=0,$G92,0),0)) -> 0 | M92: 0 | N92: 0 | O92: 0 | P92: 0 | Q92: 0 | R92: 0 | S92: 0 | T92: 0 | U92: 0 | V92: 0 | W92: 0 | X92: 0 | Y92: 0 | Z92: 0 | AA92: 0 | AB92: 0 | AC92: 0 | AE92: =C8 -> Diesel | AH92: 2028 | AJ92: Diesel2028
C93: =Terms!$E$11 -> Small Battery | D93: =D87 -> 0 | F93: =C8 -> Diesel | G93: 2029 | K93: 0 | L93: =IF($D93=0,0,IF(L$6>=$G93,IF(L103=0,$G93,0),0)) -> 0 | M93: 0 | N93: 0 | O93: 0 | P93: 0 | Q93: 0 | R93: 0 | S93: 0 | T93: 0 | U93: 0 | V93: 0 | W93: 0 | X93: 0 | Y93: 0 | Z93: 0 | AA93: 0 | AB93: 0 | AC93: 0 | AE93: =C8 -> Diesel | AH93: 2029 | AJ93: Diesel2029
C94: =Terms!$E$11 -> Small Battery | D94: =D87 -> 0 | F94: =C8 -> Diesel | G94: 2030 | K94: 0 | L94: =IF($D94=0,0,IF(L$6>=$G94,IF(L104=0,$G94,0),0)) -> 0 | M94: 0 | N94: 0 | O94: 0 | P94: 0 | Q94: 0 | R94: 0 | S94: 0 | T94: 0 | U94: 0 | V94: 0 | W94: 0 | X94: 0 | Y94: 0 | Z94: 0 | AA94: 0 | AB94: 0 | AC94: 0 | AE94: =C8 -> Diesel | AH94: 2030 | AJ94: Diesel2030
AE95: =C8 -> Diesel | AH95: 0 | AJ95: Diesel0
C96: ="Year of replacement "&C97 -> Year of replacement Small Battery | AE96: =C8 -> Diesel | AH96: 0 | AJ96: Diesel0
C97: =Terms!$E$11 -> Small Battery | D97: =INDEX(Allocations!$C$21:$P$28,MATCH(F97,Allocations!$C$21:$C$28,0),MATCH(C97,Allocations!$C$21:$P$21,0)) -> 0 | F97: =C8 -> Diesel | G97: 2023 | K97: 0 | L97: =IF(K97>0,K97,IF(L15>INDEX('Input_4x2_Trac 330kW'!$E$68:$E$76,MATCH($C97,'Input_4x2_Trac 330kW'!$C$68:$C$76,0)),L$6,0)) -> 0 | M97: =IF(L97>0,L97,IF(M15>INDEX('Input_4x2_Trac 330kW'!$E$68:$E$76,MATCH($C97,'Input_4x2_Trac 330kW'!$C$68:$C$76,0)),M$6,0)) -> 0 | N97: =IF(M97>0,M97,IF(N15>INDEX('Input_4x2_Trac 330kW'!$E$68:$E$76,MATCH($C97,'Input_4x2_Trac 330kW'!$C$68:$C$76,0)),N$6,0)) -> 0 | O97: =IF(N97>0,N97,IF(O15>INDEX('Input_4x2_Trac 330kW'!$E$68:$E$76,MATCH($C97,'Input_4x2_Trac 330kW'!$C$68:$C$76,0)),O$6,0)) -> 0 | P97: =IF(O97>0,O97,IF(P15>INDEX('Input_4x2_Trac 330kW'!$E$68:$E$76,MATCH($C97,'Input_4x2_Trac 330kW'!$C$68:$C$76,0)),P$6,0)) -> 0 | Q97: =IF(P97>0,P97,IF(Q15>INDEX('Input_4x2_Trac 330kW'!$E$68:$E$76,MATCH($C97,'Input_4x2_Trac 330kW'!$C$68:$C$76,0)),Q$6,0)) -> 0 | R97: =IF(Q97>0,Q97,IF(R15>INDEX('Input_4x2_Trac 330kW'!$E$68:$E$76,MATCH($C97,'Input_4x2_Trac 330kW'!$C$68:$C$76,0)),R$6,0)) -> 0 | S97: =IF(R97>0,R97,IF(S15>INDEX('Input_4x2_Trac 330kW'!$E$68:$E$76,MATCH($C97,'Input_4x2_Trac 330kW'!$C$68:$C$76,0)),S$6,0)) -> 0 | T97: =IF(S97>0,S97,IF(T15>INDEX('Input_4x2_Trac 330kW'!$E$68:$E$76,MATCH($C97,'Input_4x2_Trac 330kW'!$C$68:$C$76,0)),T$6,0)) -> 0 | U97: =IF(T97>0,T97,IF(U15>INDEX('Input_4x2_Trac 330kW'!$E$68:$E$76,MATCH($C97,'Input_4x2_Trac 330kW'!$C$68:$C$76,0)),U$6,0)) -> 0 | V97: =IF(U97>0,U97,IF(V15>INDEX('Input_4x2_Trac 330kW'!$E$68:$E$76,MATCH($C97,'Input_4x2_Trac 330kW'!$C$68:$C$76,0)),V$6,0)) -> 0 | W97: =IF(V97>0,V97,IF(W15>INDEX('Input_4x2_Trac 330kW'!$E$68:$E$76,MATCH($C97,'Input_4x2_Trac 330kW'!$C$68:$C$76,0)),W$6,0)) -> 0 | X97: =IF(W97>0,W97,IF(X15>INDEX('Input_4x2_Trac 330kW'!$E$68:$E$76,MATCH($C97,'Input_4x2_Trac 330kW'!$C$68:$C$76,0)),X$6,0)) -> 0 | Y97: =IF(X97>0,X97,IF(Y15>INDEX('Input_4x2_Trac 330kW'!$E$68:$E$76,MATCH($C97,'Input_4x2_Trac 330kW'!$C$68:$C$76,0)),Y$6,0)) -> 0 | Z97: =IF(Y97>0,Y97,IF(Z15>INDEX('Input_4x2_Trac 330kW'!$E$68:$E$76,MATCH($C97,'Input_4x2_Trac 330kW'!$C$68:$C$76,0)),Z$6,0)) -> 0 | AA97: =IF(Z97>0,Z97,IF(AA15>INDEX('Input_4x2_Trac 330kW'!$E$68:$E$76,MATCH($C97,'Input_4x2_Trac 330kW'!$C$68:$C$76,0)),AA$6,0)) -> 0 | AB97: =IF(AA97>0,AA97,IF(AB15>INDEX('Input_4x2_Trac 330kW'!$E$68:$E$76,MATCH($C97,'Input_4x2_Trac 330kW'!$C$68:$C$76,0)),AB$6,0)) -> 0 | AC97: =IF(AB97>0,AB97,IF(AC15>INDEX('Input_4x2_Trac 330kW'!$E$68:$E$76,MATCH($C97,'Input_4x2_Trac 330kW'!$C$68:$C$76,0)),AC$6,0)) -> 0 | AE97: =C8 -> Diesel | AH97: 2023 | AJ97: Diesel2023
C98: =Terms!$E$11 -> Small Battery | D98: =D97 -> 0 | F98: =C8 -> Diesel | G98: 2024 | K98: 0 | L98: =IF(K98>0,K98,IF(L16>INDEX('Input_4x2_Trac 330kW'!$E$68:$E$76,MATCH($C98,'Input_4x2_Trac 330kW'!$C$68:$C$76,0)),L$6,0)) -> 0 | M98: =IF(L98>0,L98,IF(M16>INDEX('Input_4x2_Trac 330kW'!$E$68:$E$76,MATCH($C98,'Input_4x2_Trac 330kW'!$C$68:$C$76,0)),M$6,0)) -> 0 | N98: =IF(M98>0,M98,IF(N16>INDEX('Input_4x2_Trac 330kW'!$E$68:$E$76,MATCH($C98,'Input_4x2_Trac 330kW'!$C$68:$C$76,0)),N$6,0)) -> 0 | O98: =IF(N98>0,N98,IF(O16>INDEX('Input_4x2_Trac 330kW'!$E$68:$E$76,MATCH($C98,'Input_4x2_Trac 330kW'!$C$68:$C$76,0)),O$6,0)) -> 0 | P98: =IF(O98>0,O98,IF(P16>INDEX('Input_4x2_Trac 330kW'!$E$68:$E$76,MATCH($C98,'Input_4x2_Trac 330kW'!$C$68:$C$76,0)),P$6,0)) -> 0 | Q98: =IF(P98>0,P98,IF(Q16>INDEX('Input_4x2_Trac 330kW'!$E$68:$E$76,MATCH($C98,'Input_4x2_Trac 330kW'!$C$68:$C$76,0)),Q$6,0)) -> 0 | R98: =IF(Q98>0,Q98,IF(R16>INDEX('Input_4x2_Trac 330kW'!$E$68:$E$76,MATCH($C98,'Input_4x2_Trac 330kW'!$C$68:$C$76,0)),R$6,0)) -> 0 | S98: =IF(R98>0,R98,IF(S16>INDEX('Input_4x2_Trac 330kW'!$E$68:$E$76,MATCH($C98,'Input_4x2_Trac 330kW'!$C$68:$C$76,0)),S$6,0)) -> 0 | T98: =IF(S98>0,S98,IF(T16>INDEX('Input_4x2_Trac 330kW'!$E$68:$E$76,MATCH($C98,'Input_4x2_Trac 330kW'!$C$68:$C$76,0)),T$6,0)) -> 0 | U98: =IF(T98>0,T98,IF(U16>INDEX('Input_4x2_Trac 330kW'!$E$68:$E$76,MATCH($C98,'Input_4x2_Trac 330kW'!$C$68:$C$76,0)),U$6,0)) -> 0 | V98: =IF(U98>0,U98,IF(V16>INDEX('Input_4x2_Trac 330kW'!$E$68:$E$76,MATCH($C98,'Input_4x2_Trac 330kW'!$C$68:$C$76,0)),V$6,0)) -> 0 | W98: =IF(V98>0,V98,IF(W16>INDEX('Input_4x2_Trac 330kW'!$E$68:$E$76,MATCH($C98,'Input_4x2_Trac 330kW'!$C$68:$C$76,0)),W$6,0)) -> 0 | X98: =IF(W98>0,W98,IF(X16>INDEX('Input_4x2_Trac 330kW'!$E$68:$E$76,MATCH($C98,'Input_4x2_Trac 330kW'!$C$68:$C$76,0)),X$6,0)) -> 0 | Y98: =IF(X98>0,X98,IF(Y16>INDEX('Input_4x2_Trac 330kW'!$E$68:$E$76,MATCH($C98,'Input_4x2_Trac 330kW'!$C$68:$C$76,0)),Y$6,0)) -> 0 | Z98: =IF(Y98>0,Y98,IF(Z16>INDEX('Input_4x2_Trac 330kW'!$E$68:$E$76,MATCH($C98,'Input_4x2_Trac 330kW'!$C$68:$C$76,0)),Z$6,0)) -> 0 | AA98: =IF(Z98>0,Z98,IF(AA16>INDEX('Input_4x2_Trac 330kW'!$E$68:$E$76,MATCH($C98,'Input_4x2_Trac 330kW'!$C$68:$C$76,0)),AA$6,0)) -> 0 | AB98: =IF(AA98>0,AA98,IF(AB16>INDEX('Input_4x2_Trac 330kW'!$E$68:$E$76,MATCH($C98,'Input_4x2_Trac 330kW'!$C$68:$C$76,0)),AB$6,0)) -> 0 | AC98: =IF(AB98>0,AB98,IF(AC16>INDEX('Input_4x2_Trac 330kW'!$E$68:$E$76,MATCH($C98,'Input_4x2_Trac 330kW'!$C$68:$C$76,0)),AC$6,0)) -> 0 | AE98: =C8 -> Diesel | AH98: 2024 | AJ98: Diesel2024
C99: =Terms!$E$11 -> Small Battery | D99: =D97 -> 0 | F99: =C8 -> Diesel | G99: 2025 | K99: 0 | L99: =IF(K99>0,K99,IF(L17>INDEX('Input_4x2_Trac 330kW'!$E$68:$E$76,MATCH($C99,'Input_4x2_Trac 330kW'!$C$68:$C$76,0)),L$6,0)) -> 0 | M99: =IF(L99>0,L99,IF(M17>INDEX('Input_4x2_Trac 330kW'!$E$68:$E$76,MATCH($C99,'Input_4x2_Trac 330kW'!$C$68:$C$76,0)),M$6,0)) -> 0 | N99: =IF(M99>0,M99,IF(N17>INDEX('Input_4x2_Trac 330kW'!$E$68:$E$76,MATCH($C99,'Input_4x2_Trac 330kW'!$C$68:$C$76,0)),N$6,0)) -> 0 | O99: =IF(N99>0,N99,IF(O17>INDEX('Input_4x2_Trac 330kW'!$E$68:$E$76,MATCH($C99,'Input_4x2_Trac 330kW'!$C$68:$C$76,0)),O$6,0)) -> 0 | P99: =IF(O99>0,O99,IF(P17>INDEX('Input_4x2_Trac 330kW'!$E$68:$E$76,MATCH($C99,'Input_4x2_Trac 330kW'!$C$68:$C$76,0)),P$6,0)) -> 0 | Q99: =IF(P99>0,P99,IF(Q17>INDEX('Input_4x2_Trac 330kW'!$E$68:$E$76,MATCH($C99,'Input_4x2_Trac 330kW'!$C$68:$C$76,0)),Q$6,0)) -> 0 | R99: =IF(Q99>0,Q99,IF(R17>INDEX('Input_4x2_Trac 330kW'!$E$68:$E$76,MATCH($C99,'Input_4x2_Trac 330kW'!$C$68:$C$76,0)),R$6,0)) -> 0 | S99: =IF(R99>0,R99,IF(S17>INDEX('Input_4x2_Trac 330kW'!$E$68:$E$76,MATCH($C99,'Input_4x2_Trac 330kW'!$C$68:$C$76,0)),S$6,0)) -> 0 | T99: =IF(S99>0,S99,IF(T17>INDEX('Input_4x2_Trac 330kW'!$E$68:$E$76,MATCH($C99,'Input_4x2_Trac 330kW'!$C$68:$C$76,0)),T$6,0)) -> 0 | U99: =IF(T99>0,T99,IF(U17>INDEX('Input_4x2_Trac 330kW'!$E$68:$E$76,MATCH($C99,'Input_4x2_Trac 330kW'!$C$68:$C$76,0)),U$6,0)) -> 0 | V99: =IF(U99>0,U99,IF(V17>INDEX('Input_4x2_Trac 330kW'!$E$68:$E$76,MATCH($C99,'Input_4x2_Trac 330kW'!$C$68:$C$76,0)),V$6,0)) -> 0 | W99: =IF(V99>0,V99,IF(W17>INDEX('Input_4x2_Trac 330kW'!$E$68:$E$76,MATCH($C99,'Input_4x2_Trac 330kW'!$C$68:$C$76,0)),W$6,0)) -> 0 | X99: =IF(W99>0,W99,IF(X17>INDEX('Input_4x2_Trac 330kW'!$E$68:$E$76,MATCH($C99,'Input_4x2_Trac 330kW'!$C$68:$C$76,0)),X$6,0)) -> 0 | Y99: =IF(X99>0,X99,IF(Y17>INDEX('Input_4x2_Trac 330kW'!$E$68:$E$76,MATCH($C99,'Input_4x2_Trac 330kW'!$C$68:$C$76,0)),Y$6,0)) -> 0 | Z99: =IF(Y99>0,Y99,IF(Z17>INDEX('Input_4x2_Trac 330kW'!$E$68:$E$76,MATCH($C99,'Input_4x2_Trac 330kW'!$C$68:$C$76,0)),Z$6,0)) -> 0 | AA99: =IF(Z99>0,Z99,IF(AA17>INDEX('Input_4x2_Trac 330kW'!$E$68:$E$76,MATCH($C99,'Input_4x2_Trac 330kW'!$C$68:$C$76,0)),AA$6,0)) -> 0 | AB99: =IF(AA99>0,AA99,IF(AB17>INDEX('Input_4x2_Trac 330kW'!$E$68:$E$76,MATCH($C99,'Input_4x2_Trac 330kW'!$C$68:$C$76,0)),AB$6,0)) -> 0 | AC99: =IF(AB99>0,AB99,IF(AC17>INDEX('Input_4x2_Trac 330kW'!$E$68:$E$76,MATCH($C99,'Input_4x2_Trac 330kW'!$C$68:$C$76,0)),AC$6,0)) -> 0 | AE99: =C8 -> Diesel | AH99: 2025 | AJ99: Diesel2025
C100: =Terms!$E$11 -> Small Battery | D100: =D97 -> 0 | F100: =C8 -> Diesel | G100: 2026 | K100: 0 | L100: =IF(K100>0,K100,IF(L18>INDEX('Input_4x2_Trac 330kW'!$E$68:$E$76,MATCH($C100,'Input_4x2_Trac 330kW'!$C$68:$C$76,0)),L$6,0)) -> 0 | M100: =IF(L100>0,L100,IF(M18>INDEX('Input_4x2_Trac 330kW'!$E$68:$E$76,MATCH($C100,'Input_4x2_Trac 330kW'!$C$68:$C$76,0)),M$6,0)) -> 0 | N100: =IF(M100>0,M100,IF(N18>INDEX('Input_4x2_Trac 330kW'!$E$68:$E$76,MATCH($C100,'Input_4x2_Trac 330kW'!$C$68:$C$76,0)),N$6,0)) -> 0 | O100: =IF(N100>0,N100,IF(O18>INDEX('Input_4x2_Trac 330kW'!$E$68:$E$76,MATCH($C100,'Input_4x2_Trac 330kW'!$C$68:$C$76,0)),O$6,0)) -> 0 | P100: =IF(O100>0,O100,IF(P18>INDEX('Input_4x2_Trac 330kW'!$E$68:$E$76,MATCH($C100,'Input_4x2_Trac 330kW'!$C$68:$C$76,0)),P$6,0)) -> 0 | Q100: =IF(P100>0,P100,IF(Q18>INDEX('Input_4x2_Trac 330kW'!$E$68:$E$76,MATCH($C100,'Input_4x2_Trac 330kW'!$C$68:$C$76,0)),Q$6,0)) -> 0 | R100: =IF(Q100>0,Q100,IF(R18>INDEX('Input_4x2_Trac 330kW'!$E$68:$E$76,MATCH($C100,'Input_4x2_Trac 330kW'!$C$68:$C$76,0)),R$6,0)) -> 0 | S100: =IF(R100>0,R100,IF(S18>INDEX('Input_4x2_Trac 330kW'!$E$68:$E$76,MATCH($C100,'Input_4x2_Trac 330kW'!$C$68:$C$76,0)),S$6,0)) -> 0 | T100: =IF(S100>0,S100,IF(T18>INDEX('Input_4x2_Trac 330kW'!$E$68:$E$76,MATCH($C100,'Input_4x2_Trac 330kW'!$C$68:$C$76,0)),T$6,0)) -> 0 | U100: =IF(T100>0,T100,IF(U18>INDEX('Input_4x2_Trac 330kW'!$E$68:$E$76,MATCH($C100,'Input_4x2_Trac 330kW'!$C$68:$C$76,0)),U$6,0)) -> 0 | V100: =IF(U100>0,U100,IF(V18>INDEX('Input_4x2_Trac 330kW'!$E$68:$E$76,MATCH($C100,'Input_4x2_Trac 330kW'!$C$68:$C$76,0)),V$6,0)) -> 0 | W100: =IF(V100>0,V100,IF(W18>INDEX('Input_4x2_Trac 330kW'!$E$68:$E$76,MATCH($C100,'Input_4x2_Trac 330kW'!$C$68:$C$76,0)),W$6,0)) -> 0 | X100: =IF(W100>0,W100,IF(X18>INDEX('Input_4x2_Trac 330kW'!$E$68:$E$76,MATCH($C100,'Input_4x2_Trac 330kW'!$C$68:$C$76,0)),X$6,0)) -> 0 | Y100: =IF(X100>0,X100,IF(Y18>INDEX('Input_4x2_Trac 330kW'!$E$68:$E$76,MATCH($C100,'Input_4x2_Trac 330kW'!$C$68:$C$76,0)),Y$6,0)) -> 0 | Z100: =IF(Y100>0,Y100,IF(Z18>INDEX('Input_4x2_Trac 330kW'!$E$68:$E$76,MATCH($C100,'Input_4x2_Trac 330kW'!$C$68:$C$76,0)),Z$6,0)) -> 0 | AA100: =IF(Z100>0,Z100,IF(AA18>INDEX('Input_4x2_Trac 330kW'!$E$68:$E$76,MATCH($C100,'Input_4x2_Trac 330kW'!$C$68:$C$76,0)),AA$6,0)) -> 0 | AB100: =IF(AA100>0,AA100,IF(AB18>INDEX('Input_4x2_Trac 330kW'!$E$68:$E$76,MATCH($C100,'Input_4x2_Trac 330kW'!$C$68:$C$76,0)),AB$6,0)) -> 0 | AC100: =IF(AB100>0,AB100,IF(AC18>INDEX('Input_4x2_Trac 330kW'!$E$68:$E$76,MATCH($C100,'Input_4x2_Trac 330kW'!$C$68:$C$76,0)),AC$6,0)) -> 0 | AE100: =C8 -> Diesel | AH100: 2026 | AJ100: Diesel2026
C101: =Terms!$E$11 -> Small Battery | D101: =D97 -> 0 | F101: =C8 -> Diesel | G101: 2027 | K101: 0 | L101: =IF(K101>0,K101,IF(L19>INDEX('Input_4x2_Trac 330kW'!$E$68:$E$76,MATCH($C101,'Input_4x2_Trac 330kW'!$C$68:$C$76,0)),L$6,0)) -> 0 | M101: =IF(L101>0,L101,IF(M19>INDEX('Input_4x2_Trac 330kW'!$E$68:$E$76,MATCH($C101,'Input_4x2_Trac 330kW'!$C$68:$C$76,0)),M$6,0)) -> 0 | N101: =IF(M101>0,M101,IF(N19>INDEX('Input_4x2_Trac 330kW'!$E$68:$E$76,MATCH($C101,'Input_4x2_Trac 330kW'!$C$68:$C$76,0)),N$6,0)) -> 0 | O101: =IF(N101>0,N101,IF(O19>INDEX('Input_4x2_Trac 330kW'!$E$68:$E$76,MATCH($C101,'Input_4x2_Trac 330kW'!$C$68:$C$76,0)),O$6,0)) -> 0 | P101: =IF(O101>0,O101,IF(P19>INDEX('Input_4x2_Trac 330kW'!$E$68:$E$76,MATCH($C101,'Input_4x2_Trac 330kW'!$C$68:$C$76,0)),P$6,0)) -> 0 | Q101: =IF(P101>0,P101,IF(Q19>INDEX('Input_4x2_Trac 330kW'!$E$68:$E$76,MATCH($C101,'Input_4x2_Trac 330kW'!$C$68:$C$76,0)),Q$6,0)) -> 0 | R101: =IF(Q101>0,Q101,IF(R19>INDEX('Input_4x2_Trac 330kW'!$E$68:$E$76,MATCH($C101,'Input_4x2_Trac 330kW'!$C$68:$C$76,0)),R$6,0)) -> 0 | S101: =IF(R101>0,R101,IF(S19>INDEX('Input_4x2_Trac 330kW'!$E$68:$E$76,MATCH($C101,'Input_4x2_Trac 330kW'!$C$68:$C$76,0)),S$6,0)) -> 0 | T101: =IF(S101>0,S101,IF(T19>INDEX('Input_4x2_Trac 330kW'!$E$68:$E$76,MATCH($C101,'Input_4x2_Trac 330kW'!$C$68:$C$76,0)),T$6,0)) -> 0 | U101: =IF(T101>0,T101,IF(U19>INDEX('Input_4x2_Trac 330kW'!$E$68:$E$76,MATCH($C101,'Input_4x2_Trac 330kW'!$C$68:$C$76,0)),U$6,0)) -> 0 | V101: =IF(U101>0,U101,IF(V19>INDEX('Input_4x2_Trac 330kW'!$E$68:$E$76,MATCH($C101,'Input_4x2_Trac 330kW'!$C$68:$C$76,0)),V$6,0)) -> 0 | W101: =IF(V101>0,V101,IF(W19>INDEX('Input_4x2_Trac 330kW'!$E$68:$E$76,MATCH($C101,'Input_4x2_Trac 330kW'!$C$68:$C$76,0)),W$6,0)) -> 0 | X101: =IF(W101>0,W101,IF(X19>INDEX('Input_4x2_Trac 330kW'!$E$68:$E$76,MATCH($C101,'Input_4x2_Trac 330kW'!$C$68:$C$76,0)),X$6,0)) -> 0 | Y101: =IF(X101>0,X101,IF(Y19>INDEX('Input_4x2_Trac 330kW'!$E$68:$E$76,MATCH($C101,'Input_4x2_Trac 330kW'!$C$68:$C$76,0)),Y$6,0)) -> 0 | Z101: =IF(Y101>0,Y101,IF(Z19>INDEX('Input_4x2_Trac 330kW'!$E$68:$E$76,MATCH($C101,'Input_4x2_Trac 330kW'!$C$68:$C$76,0)),Z$6,0)) -> 0 | AA101: =IF(Z101>0,Z101,IF(AA19>INDEX('Input_4x2_Trac 330kW'!$E$68:$E$76,MATCH($C101,'Input_4x2_Trac 330kW'!$C$68:$C$76,0)),AA$6,0)) -> 0 | AB101: =IF(AA101>0,AA101,IF(AB19>INDEX('Input_4x2_Trac 330kW'!$E$68:$E$76,MATCH($C101,'Input_4x2_Trac 330kW'!$C$68:$C$76,0)),AB$6,0)) -> 0 | AC101: =IF(AB101>0,AB101,IF(AC19>INDEX('Input_4x2_Trac 330kW'!$E$68:$E$76,MATCH($C101,'Input_4x2_Trac 330kW'!$C$68:$C$76,0)),AC$6,0)) -> 0 | AE101: =C8 -> Diesel | AH101: 2027 | AJ101: Diesel2027
C102: =Terms!$E$11 -> Small Battery | D102: =D97 -> 0 | F102: =C8 -> Diesel | G102: 2028 | K102: 0 | L102: =IF(K102>0,K102,IF(L20>INDEX('Input_4x2_Trac 330kW'!$E$68:$E$76,MATCH($C102,'Input_4x2_Trac 330kW'!$C$68:$C$76,0)),L$6,0)) -> 0 | M102: =IF(L102>0,L102,IF(M20>INDEX('Input_4x2_Trac 330kW'!$E$68:$E$76,MATCH($C102,'Input_4x2_Trac 330kW'!$C$68:$C$76,0)),M$6,0)) -> 0 | N102: =IF(M102>0,M102,IF(N20>INDEX('Input_4x2_Trac 330kW'!$E$68:$E$76,MATCH($C102,'Input_4x2_Trac 330kW'!$C$68:$C$76,0)),N$6,0)) -> 0 | O102: =IF(N102>0,N102,IF(O20>INDEX('Input_4x2_Trac 330kW'!$E$68:$E$76,MATCH($C102,'Input_4x2_Trac 330kW'!$C$68:$C$76,0)),O$6,0)) -> 0 | P102: =IF(O102>0,O102,IF(P20>INDEX('Input_4x2_Trac 330kW'!$E$68:$E$76,MATCH($C102,'Input_4x2_Trac 330kW'!$C$68:$C$76,0)),P$6,0)) -> 0 | Q102: =IF(P102>0,P102,IF(Q20>INDEX('Input_4x2_Trac 330kW'!$E$68:$E$76,MATCH($C102,'Input_4x2_Trac 330kW'!$C$68:$C$76,0)),Q$6,0)) -> 0 | R102: =IF(Q102>0,Q102,IF(R20>INDEX('Input_4x2_Trac 330kW'!$E$68:$E$76,MATCH($C102,'Input_4x2_Trac 330kW'!$C$68:$C$76,0)),R$6,0)) -> 0 | S102: =IF(R102>0,R102,IF(S20>INDEX('Input_4x2_Trac 330kW'!$E$68:$E$76,MATCH($C102,'Input_4x2_Trac 330kW'!$C$68:$C$76,0)),S$6,0)) -> 0 | T102: =IF(S102>0,S102,IF(T20>INDEX('Input_4x2_Trac 330kW'!$E$68:$E$76,MATCH($C102,'Input_4x2_Trac 330kW'!$C$68:$C$76,0)),T$6,0)) -> 0 | U102: =IF(T102>0,T102,IF(U20>INDEX('Input_4x2_Trac 330kW'!$E$68:$E$76,MATCH($C102,'Input_4x2_Trac 330kW'!$C$68:$C$76,0)),U$6,0)) -> 0 | V102: =IF(U102>0,U102,IF(V20>INDEX('Input_4x2_Trac 330kW'!$E$68:$E$76,MATCH($C102,'Input_4x2_Trac 330kW'!$C$68:$C$76,0)),V$6,0)) -> 0 | W102: =IF(V102>0,V102,IF(W20>INDEX('Input_4x2_Trac 330kW'!$E$68:$E$76,MATCH($C102,'Input_4x2_Trac 330kW'!$C$68:$C$76,0)),W$6,0)) -> 0 | X102: =IF(W102>0,W102,IF(X20>INDEX('Input_4x2_Trac 330kW'!$E$68:$E$76,MATCH($C102,'Input_4x2_Trac 330kW'!$C$68:$C$76,0)),X$6,0)) -> 0 | Y102: =IF(X102>0,X102,IF(Y20>INDEX('Input_4x2_Trac 330kW'!$E$68:$E$76,MATCH($C102,'Input_4x2_Trac 330kW'!$C$68:$C$76,0)),Y$6,0)) -> 0 | Z102: =IF(Y102>0,Y102,IF(Z20>INDEX('Input_4x2_Trac 330kW'!$E$68:$E$76,MATCH($C102,'Input_4x2_Trac 330kW'!$C$68:$C$76,0)),Z$6,0)) -> 0 | AA102: =IF(Z102>0,Z102,IF(AA20>INDEX('Input_4x2_Trac 330kW'!$E$68:$E$76,MATCH($C102,'Input_4x2_Trac 330kW'!$C$68:$C$76,0)),AA$6,0)) -> 0 | AB102: =IF(AA102>0,AA102,IF(AB20>INDEX('Input_4x2_Trac 330kW'!$E$68:$E$76,MATCH($C102,'Input_4x2_Trac 330kW'!$C$68:$C$76,0)),AB$6,0)) -> 0 | AC102: =IF(AB102>0,AB102,IF(AC20>INDEX('Input_4x2_Trac 330kW'!$E$68:$E$76,MATCH($C102,'Input_4x2_Trac 330kW'!$C$68:$C$76,0)),AC$6,0)) -> 0 | AE102: =C8 -> Diesel | AH102: 2028 | AJ102: Diesel2028
C103: =Terms!$E$11 -> Small Battery | D103: =D97 -> 0 | F103: =C8 -> Diesel | G103: 2029 | K103: 0 | L103: =IF(K103>0,K103,IF(L21>INDEX('Input_4x2_Trac 330kW'!$E$68:$E$76,MATCH($C103,'Input_4x2_Trac 330kW'!$C$68:$C$76,0)),L$6,0)) -> 0 | M103: =IF(L103>0,L103,IF(M21>INDEX('Input_4x2_Trac 330kW'!$E$68:$E$76,MATCH($C103,'Input_4x2_Trac 330kW'!$C$68:$C$76,0)),M$6,0)) -> 0 | N103: =IF(M103>0,M103,IF(N21>INDEX('Input_4x2_Trac 330kW'!$E$68:$E$76,MATCH($C103,'Input_4x2_Trac 330kW'!$C$68:$C$76,0)),N$6,0)) -> 0 | O103: =IF(N103>0,N103,IF(O21>INDEX('Input_4x2_Trac 330kW'!$E$68:$E$76,MATCH($C103,'Input_4x2_Trac 330kW'!$C$68:$C$76,0)),O$6,0)) -> 0 | P103: =IF(O103>0,O103,IF(P21>INDEX('Input_4x2_Trac 330kW'!$E$68:$E$76,MATCH($C103,'Input_4x2_Trac 330kW'!$C$68:$C$76,0)),P$6,0)) -> 0 | Q103: =IF(P103>0,P103,IF(Q21>INDEX('Input_4x2_Trac 330kW'!$E$68:$E$76,MATCH($C103,'Input_4x2_Trac 330kW'!$C$68:$C$76,0)),Q$6,0)) -> 0 | R103: =IF(Q103>0,Q103,IF(R21>INDEX('Input_4x2_Trac 330kW'!$E$68:$E$76,MATCH($C103,'Input_4x2_Trac 330kW'!$C$68:$C$76,0)),R$6,0)) -> 0 | S103: =IF(R103>0,R103,IF(S21>INDEX('Input_4x2_Trac 330kW'!$E$68:$E$76,MATCH($C103,'Input_4x2_Trac 330kW'!$C$68:$C$76,0)),S$6,0)) -> 0 | T103: =IF(S103>0,S103,IF(T21>INDEX('Input_4x2_Trac 330kW'!$E$68:$E$76,MATCH($C103,'Input_4x2_Trac 330kW'!$C$68:$C$76,0)),T$6,0)) -> 0 | U103: =IF(T103>0,T103,IF(U21>INDEX('Input_4x2_Trac 330kW'!$E$68:$E$76,MATCH($C103,'Input_4x2_Trac 330kW'!$C$68:$C$76,0)),U$6,0)) -> 0 | V103: =IF(U103>0,U103,IF(V21>INDEX('Input_4x2_Trac 330kW'!$E$68:$E$76,MATCH($C103,'Input_4x2_Trac 330kW'!$C$68:$C$76,0)),V$6,0)) -> 0 | W103: =IF(V103>0,V103,IF(W21>INDEX('Input_4x2_Trac 330kW'!$E$68:$E$76,MATCH($C103,'Input_4x2_Trac 330kW'!$C$68:$C$76,0)),W$6,0)) -> 0 | X103: =IF(W103>0,W103,IF(X21>INDEX('Input_4x2_Trac 330kW'!$E$68:$E$76,MATCH($C103,'Input_4x2_Trac 330kW'!$C$68:$C$76,0)),X$6,0)) -> 0 | Y103: =IF(X103>0,X103,IF(Y21>INDEX('Input_4x2_Trac 330kW'!$E$68:$E$76,MATCH($C103,'Input_4x2_Trac 330kW'!$C$68:$C$76,0)),Y$6,0)) -> 0 | Z103: =IF(Y103>0,Y103,IF(Z21>INDEX('Input_4x2_Trac 330kW'!$E$68:$E$76,MATCH($C103,'Input_4x2_Trac 330kW'!$C$68:$C$76,0)),Z$6,0)) -> 0 | AA103: =IF(Z103>0,Z103,IF(AA21>INDEX('Input_4x2_Trac 330kW'!$E$68:$E$76,MATCH($C103,'Input_4x2_Trac 330kW'!$C$68:$C$76,0)),AA$6,0)) -> 0 | AB103: =IF(AA103>0,AA103,IF(AB21>INDEX('Input_4x2_Trac 330kW'!$E$68:$E$76,MATCH($C103,'Input_4x2_Trac 330kW'!$C$68:$C$76,0)),AB$6,0)) -> 0 | AC103: =IF(AB103>0,AB103,IF(AC21>INDEX('Input_4x2_Trac 330kW'!$E$68:$E$76,MATCH($C103,'Input_4x2_Trac 330kW'!$C$68:$C$76,0)),AC$6,0)) -> 0 | AE103: =C8 -> Diesel | AH103: 2029 | AJ103: Diesel2029
C104: =Terms!$E$11 -> Small Battery | D104: =D97 -> 0 | F104: =C8 -> Diesel | G104: 2030 | K104: 0 | L104: =IF(K104>0,K104,IF(L22>INDEX('Input_4x2_Trac 330kW'!$E$68:$E$76,MATCH($C104,'Input_4x2_Trac 330kW'!$C$68:$C$76,0)),L$6,0)) -> 0 | M104: =IF(L104>0,L104,IF(M22>INDEX('Input_4x2_Trac 330kW'!$E$68:$E$76,MATCH($C104,'Input_4x2_Trac 330kW'!$C$68:$C$76,0)),M$6,0)) -> 0 | N104: =IF(M104>0,M104,IF(N22>INDEX('Input_4x2_Trac 330kW'!$E$68:$E$76,MATCH($C104,'Input_4x2_Trac 330kW'!$C$68:$C$76,0)),N$6,0)) -> 0 | O104: =IF(N104>0,N104,IF(O22>INDEX('Input_4x2_Trac 330kW'!$E$68:$E$76,MATCH($C104,'Input_4x2_Trac 330kW'!$C$68:$C$76,0)),O$6,0)) -> 0 | P104: =IF(O104>0,O104,IF(P22>INDEX('Input_4x2_Trac 330kW'!$E$68:$E$76,MATCH($C104,'Input_4x2_Trac 330kW'!$C$68:$C$76,0)),P$6,0)) -> 0 | Q104: =IF(P104>0,P104,IF(Q22>INDEX('Input_4x2_Trac 330kW'!$E$68:$E$76,MATCH($C104,'Input_4x2_Trac 330kW'!$C$68:$C$76,0)),Q$6,0)) -> 0 | R104: =IF(Q104>0,Q104,IF(R22>INDEX('Input_4x2_Trac 330kW'!$E$68:$E$76,MATCH($C104,'Input_4x2_Trac 330kW'!$C$68:$C$76,0)),R$6,0)) -> 0 | S104: =IF(R104>0,R104,IF(S22>INDEX('Input_4x2_Trac 330kW'!$E$68:$E$76,MATCH($C104,'Input_4x2_Trac 330kW'!$C$68:$C$76,0)),S$6,0)) -> 0 | T104: =IF(S104>0,S104,IF(T22>INDEX('Input_4x2_Trac 330kW'!$E$68:$E$76,MATCH($C104,'Input_4x2_Trac 330kW'!$C$68:$C$76,0)),T$6,0)) -> 0 | U104: =IF(T104>0,T104,IF(U22>INDEX('Input_4x2_Trac 330kW'!$E$68:$E$76,MATCH($C104,'Input_4x2_Trac 330kW'!$C$68:$C$76,0)),U$6,0)) -> 0 | V104: =IF(U104>0,U104,IF(V22>INDEX('Input_4x2_Trac 330kW'!$E$68:$E$76,MATCH($C104,'Input_4x2_Trac 330kW'!$C$68:$C$76,0)),V$6,0)) -> 0 | W104: =IF(V104>0,V104,IF(W22>INDEX('Input_4x2_Trac 330kW'!$E$68:$E$76,MATCH($C104,'Input_4x2_Trac 330kW'!$C$68:$C$76,0)),W$6,0)) -> 0 | X104: =IF(W104>0,W104,IF(X22>INDEX('Input_4x2_Trac 330kW'!$E$68:$E$76,MATCH($C104,'Input_4x2_Trac 330kW'!$C$68:$C$76,0)),X$6,0)) -> 0 | Y104: =IF(X104>0,X104,IF(Y22>INDEX('Input_4x2_Trac 330kW'!$E$68:$E$76,MATCH($C104,'Input_4x2_Trac 330kW'!$C$68:$C$76,0)),Y$6,0)) -> 0 | Z104: =IF(Y104>0,Y104,IF(Z22>INDEX('Input_4x2_Trac 330kW'!$E$68:$E$76,MATCH($C104,'Input_4x2_Trac 330kW'!$C$68:$C$76,0)),Z$6,0)) -> 0 | AA104: =IF(Z104>0,Z104,IF(AA22>INDEX('Input_4x2_Trac 330kW'!$E$68:$E$76,MATCH($C104,'Input_4x2_Trac 330kW'!$C$68:$C$76,0)),AA$6,0)) -> 0 | AB104: =IF(AA104>0,AA104,IF(AB22>INDEX('Input_4x2_Trac 330kW'!$E$68:$E$76,MATCH($C104,'Input_4x2_Trac 330kW'!$C$68:$C$76,0)),AB$6,0)) -> 0 | AC104: =IF(AB104>0,AB104,IF(AC22>INDEX('Input_4x2_Trac 330kW'!$E$68:$E$76,MATCH($C104,'Input_4x2_Trac 330kW'!$C$68:$C$76,0)),AC$6,0)) -> 0 | AE104: =C8 -> Diesel | AH104: 2030 | AJ104: Diesel2030
AE105: =C8 -> Diesel | AH105: 0 | AJ105: Diesel0
C106: ="Year of original "&C107 -> Year of original H2 Tank 350 bar | AE106: =C8 -> Diesel | AH106: 0 | AJ106: Diesel0
C107: =Terms!$E$12 -> H2 Tank 350 bar | D107: =INDEX(Allocations!$C$21:$P$28,MATCH(F107,Allocations!$C$21:$C$28,0),MATCH(C107,Allocations!$C$21:$P$21,0)) -> 0 | F107: =C8 -> Diesel | G107: 2023 | K107: 0 | L107: =IF($D107=0,0,IF(L$6>=$G107,IF(L117=0,$G107,0),0)) -> 0 | M107: 0 | N107: 0 | O107: 0 | P107: 0 | Q107: 0 | R107: 0 | S107: 0 | T107: 0 | U107: 0 | V107: 0 | W107: 0 | X107: 0 | Y107: 0 | Z107: 0 | AA107: 0 | AB107: 0 | AC107: 0 | AE107: =C8 -> Diesel | AH107: 2023 | AJ107: Diesel2023
C108: =Terms!$E$12 -> H2 Tank 350 bar | D108: =D107 -> 0 | F108: =C8 -> Diesel | G108: 2024 | K108: 0 | L108: =IF($D108=0,0,IF(L$6>=$G108,IF(L118=0,$G108,0),0)) -> 0 | M108: 0 | N108: 0 | O108: 0 | P108: 0 | Q108: 0 | R108: 0 | S108: 0 | T108: 0 | U108: 0 | V108: 0 | W108: 0 | X108: 0 | Y108: 0 | Z108: 0 | AA108: 0 | AB108: 0 | AC108: 0 | AE108: =C8 -> Diesel | AH108: 2024 | AJ108: Diesel2024
C109: =Terms!$E$12 -> H2 Tank 350 bar | D109: =D107 -> 0 | F109: =C8 -> Diesel | G109: 2025 | K109: 0 | L109: =IF($D109=0,0,IF(L$6>=$G109,IF(L119=0,$G109,0),0)) -> 0 | M109: 0 | N109: 0 | O109: 0 | P109: 0 | Q109: 0 | R109: 0 | S109: 0 | T109: 0 | U109: 0 | V109: 0 | W109: 0 | X109: 0 | Y109: 0 | Z109: 0 | AA109: 0 | AB109: 0 | AC109: 0 | AE109: =C8 -> Diesel | AH109: 2025 | AJ109: Diesel2025
C110: =Terms!$E$12 -> H2 Tank 350 bar | D110: =D107 -> 0 | F110: =C8 -> Diesel | G110: 2026 | K110: 0 | L110: =IF($D110=0,0,IF(L$6>=$G110,IF(L120=0,$G110,0),0)) -> 0 | M110: 0 | N110: 0 | O110: 0 | P110: 0 | Q110: 0 | R110: 0 | S110: 0 | T110: 0 | U110: 0 | V110: 0 | W110: 0 | X110: 0 | Y110: 0 | Z110: 0 | AA110: 0 | AB110: 0 | AC110: 0 | AE110: =C8 -> Diesel | AH110: 2026 | AJ110: Diesel2026
C111: =Terms!$E$12 -> H2 Tank 350 bar | D111: =D107 -> 0 | F111: =C8 -> Diesel | G111: 2027 | K111: 0 | L111: =IF($D111=0,0,IF(L$6>=$G111,IF(L121=0,$G111,0),0)) -> 0 | M111: 0 | N111: 0 | O111: 0 | P111: 0 | Q111: 0 | R111: 0 | S111: 0 | T111: 0 | U111: 0 | V111: 0 | W111: 0 | X111: 0 | Y111: 0 | Z111: 0 | AA111: 0 | AB111: 0 | AC111: 0 | AE111: =C8 -> Diesel | AH111: 2027 | AJ111: Diesel2027
C112: =Terms!$E$12 -> H2 Tank 350 bar | D112: =D107 -> 0 | F112: =C8 -> Diesel | G112: 2028 | K112: 0 | L112: =IF($D112=0,0,IF(L$6>=$G112,IF(L122=0,$G112,0),0)) -> 0 | M112: 0 | N112: 0 | O112: 0 | P112: 0 | Q112: 0 | R112: 0 | S112: 0 | T112: 0 | U112: 0 | V112: 0 | W112: 0 | X112: 0 | Y112: 0 | Z112: 0 | AA112: 0 | AB112: 0 | AC112: 0 | AE112: =C8 -> Diesel | AH112: 2028 | AJ112: Diesel2028
C113: =Terms!$E$12 -> H2 Tank 350 bar | D113: =D107 -> 0 | F113: =C8 -> Diesel | G113: 2029 | K113: 0 | L113: =IF($D113=0,0,IF(L$6>=$G113,IF(L123=0,$G113,0),0)) -> 0 | M113: 0 | N113: 0 | O113: 0 | P113: 0 | Q113: 0 | R113: 0 | S113: 0 | T113: 0 | U113: 0 | V113: 0 | W113: 0 | X113: 0 | Y113: 0 | Z113: 0 | AA113: 0 | AB113: 0 | AC113: 0 | AE113: =C8 -> Diesel | AH113: 2029 | AJ113: Diesel2029
C114: =Terms!$E$12 -> H2 Tank 350 bar | D114: =D107 -> 0 | F114: =C8 -> Diesel | G114: 2030 | K114: 0 | L114: =IF($D114=0,0,IF(L$6>=$G114,IF(L124=0,$G114,0),0)) -> 0 | M114: 0 | N114: 0 | O114: 0 | P114: 0 | Q114: 0 | R114: 0 | S114: 0 | T114: 0 | U114: 0 | V114: 0 | W114: 0 | X114: 0 | Y114: 0 | Z114: 0 | AA114: 0 | AB114: 0 | AC114: 0 | AE114: =C8 -> Diesel | AH114: 2030 | AJ114: Diesel2030
AE115: =C8 -> Diesel | AH115: 0 | AJ115: Diesel0
C116: ="Year of replacement "&C117 -> Year of replacement H2 Tank 350 bar | AE116: =C8 -> Diesel | AH116: 0 | AJ116: Diesel0
C117: =Terms!$E$12 -> H2 Tank 350 bar | D117: =INDEX(Allocations!$C$21:$P$28,MATCH(F117,Allocations!$C$21:$C$28,0),MATCH(C117,Allocations!$C$21:$P$21,0)) -> 0 | F117: =C8 -> Diesel | G117: 2023 | K117: 0 | L117: =IF(K117>0,K117,IF(L15>INDEX('Input_4x2_Trac 330kW'!$E$68:$E$76,MATCH($C117,'Input_4x2_Trac 330kW'!$C$68:$C$76,0)),L$6,0)) -> 0 | M117: =IF(L117>0,L117,IF(M15>INDEX('Input_4x2_Trac 330kW'!$E$68:$E$76,MATCH($C117,'Input_4x2_Trac 330kW'!$C$68:$C$76,0)),M$6,0)) -> 0 | N117: =IF(M117>0,M117,IF(N15>INDEX('Input_4x2_Trac 330kW'!$E$68:$E$76,MATCH($C117,'Input_4x2_Trac 330kW'!$C$68:$C$76,0)),N$6,0)) -> 0 | O117: =IF(N117>0,N117,IF(O15>INDEX('Input_4x2_Trac 330kW'!$E$68:$E$76,MATCH($C117,'Input_4x2_Trac 330kW'!$C$68:$C$76,0)),O$6,0)) -> 0 | P117: =IF(O117>0,O117,IF(P15>INDEX('Input_4x2_Trac 330kW'!$E$68:$E$76,MATCH($C117,'Input_4x2_Trac 330kW'!$C$68:$C$76,0)),P$6,0)) -> 0 | Q117: =IF(P117>0,P117,IF(Q15>INDEX('Input_4x2_Trac 330kW'!$E$68:$E$76,MATCH($C117,'Input_4x2_Trac 330kW'!$C$68:$C$76,0)),Q$6,0)) -> 0 | R117: =IF(Q117>0,Q117,IF(R15>INDEX('Input_4x2_Trac 330kW'!$E$68:$E$76,MATCH($C117,'Input_4x2_Trac 330kW'!$C$68:$C$76,0)),R$6,0)) -> 0 | S117: =IF(R117>0,R117,IF(S15>INDEX('Input_4x2_Trac 330kW'!$E$68:$E$76,MATCH($C117,'Input_4x2_Trac 330kW'!$C$68:$C$76,0)),S$6,0)) -> 0 | T117: =IF(S117>0,S117,IF(T15>INDEX('Input_4x2_Trac 330kW'!$E$68:$E$76,MATCH($C117,'Input_4x2_Trac 330kW'!$C$68:$C$76,0)),T$6,0)) -> 0 | U117: =IF(T117>0,T117,IF(U15>INDEX('Input_4x2_Trac 330kW'!$E$68:$E$76,MATCH($C117,'Input_4x2_Trac 330kW'!$C$68:$C$76,0)),U$6,0)) -> 0 | V117: =IF(U117>0,U117,IF(V15>INDEX('Input_4x2_Trac 330kW'!$E$68:$E$76,MATCH($C117,'Input_4x2_Trac 330kW'!$C$68:$C$76,0)),V$6,0)) -> 0 | W117: =IF(V117>0,V117,IF(W15>INDEX('Input_4x2_Trac 330kW'!$E$68:$E$76,MATCH($C117,'Input_4x2_Trac 330kW'!$C$68:$C$76,0)),W$6,0)) -> 0 | X117: =IF(W117>0,W117,IF(X15>INDEX('Input_4x2_Trac 330kW'!$E$68:$E$76,MATCH($C117,'Input_4x2_Trac 330kW'!$C$68:$C$76,0)),X$6,0)) -> 0 | Y117: =IF(X117>0,X117,IF(Y15>INDEX('Input_4x2_Trac 330kW'!$E$68:$E$76,MATCH($C117,'Input_4x2_Trac 330kW'!$C$68:$C$76,0)),Y$6,0)) -> 0 | Z117: =IF(Y117>0,Y117,IF(Z15>INDEX('Input_4x2_Trac 330kW'!$E$68:$E$76,MATCH($C117,'Input_4x2_Trac 330kW'!$C$68:$C$76,0)),Z$6,0)) -> 0 | AA117: =IF(Z117>0,Z117,IF(AA15>INDEX('Input_4x2_Trac 330kW'!$E$68:$E$76,MATCH($C117,'Input_4x2_Trac 330kW'!$C$68:$C$76,0)),AA$6,0)) -> 0 | AB117: =IF(AA117>0,AA117,IF(AB15>INDEX('Input_4x2_Trac 330kW'!$E$68:$E$76,MATCH($C117,'Input_4x2_Trac 330kW'!$C$68:$C$76,0)),AB$6,0)) -> 0 | AC117: =IF(AB117>0,AB117,IF(AC15>INDEX('Input_4x2_Trac 330kW'!$E$68:$E$76,MATCH($C117,'Input_4x2_Trac 330kW'!$C$68:$C$76,0)),AC$6,0)) -> 0 | AE117: =C8 -> Diesel | AH117: 2023 | AJ117: Diesel2023
C118: =Terms!$E$12 -> H2 Tank 350 bar | D118: =D117 -> 0 | F118: =C8 -> Diesel | G118: 2024 | K118: 0 | L118: =IF(K118>0,K118,IF(L16>INDEX('Input_4x2_Trac 330kW'!$E$68:$E$76,MATCH($C118,'Input_4x2_Trac 330kW'!$C$68:$C$76,0)),L$6,0)) -> 0 | M118: =IF(L118>0,L118,IF(M16>INDEX('Input_4x2_Trac 330kW'!$E$68:$E$76,MATCH($C118,'Input_4x2_Trac 330kW'!$C$68:$C$76,0)),M$6,0)) -> 0 | N118: =IF(M118>0,M118,IF(N16>INDEX('Input_4x2_Trac 330kW'!$E$68:$E$76,MATCH($C118,'Input_4x2_Trac 330kW'!$C$68:$C$76,0)),N$6,0)) -> 0 | O118: =IF(N118>0,N118,IF(O16>INDEX('Input_4x2_Trac 330kW'!$E$68:$E$76,MATCH($C118,'Input_4x2_Trac 330kW'!$C$68:$C$76,0)),O$6,0)) -> 0 | P118: =IF(O118>0,O118,IF(P16>INDEX('Input_4x2_Trac 330kW'!$E$68:$E$76,MATCH($C118,'Input_4x2_Trac 330kW'!$C$68:$C$76,0)),P$6,0)) -> 0 | Q118: =IF(P118>0,P118,IF(Q16>INDEX('Input_4x2_Trac 330kW'!$E$68:$E$76,MATCH($C118,'Input_4x2_Trac 330kW'!$C$68:$C$76,0)),Q$6,0)) -> 0 | R118: =IF(Q118>0,Q118,IF(R16>INDEX('Input_4x2_Trac 330kW'!$E$68:$E$76,MATCH($C118,'Input_4x2_Trac 330kW'!$C$68:$C$76,0)),R$6,0)) -> 0 | S118: =IF(R118>0,R118,IF(S16>INDEX('Input_4x2_Trac 330kW'!$E$68:$E$76,MATCH($C118,'Input_4x2_Trac 330kW'!$C$68:$C$76,0)),S$6,0)) -> 0 | T118: =IF(S118>0,S118,IF(T16>INDEX('Input_4x2_Trac 330kW'!$E$68:$E$76,MATCH($C118,'Input_4x2_Trac 330kW'!$C$68:$C$76,0)),T$6,0)) -> 0 | U118: =IF(T118>0,T118,IF(U16>INDEX('Input_4x2_Trac 330kW'!$E$68:$E$76,MATCH($C118,'Input_4x2_Trac 330kW'!$C$68:$C$76,0)),U$6,0)) -> 0 | V118: =IF(U118>0,U118,IF(V16>INDEX('Input_4x2_Trac 330kW'!$E$68:$E$76,MATCH($C118,'Input_4x2_Trac 330kW'!$C$68:$C$76,0)),V$6,0)) -> 0 | W118: =IF(V118>0,V118,IF(W16>INDEX('Input_4x2_Trac 330kW'!$E$68:$E$76,MATCH($C118,'Input_4x2_Trac 330kW'!$C$68:$C$76,0)),W$6,0)) -> 0 | X118: =IF(W118>0,W118,IF(X16>INDEX('Input_4x2_Trac 330kW'!$E$68:$E$76,MATCH($C118,'Input_4x2_Trac 330kW'!$C$68:$C$76,0)),X$6,0)) -> 0 | Y118: =IF(X118>0,X118,IF(Y16>INDEX('Input_4x2_Trac 330kW'!$E$68:$E$76,MATCH($C118,'Input_4x2_Trac 330kW'!$C$68:$C$76,0)),Y$6,0)) -> 0 | Z118: =IF(Y118>0,Y118,IF(Z16>INDEX('Input_4x2_Trac 330kW'!$E$68:$E$76,MATCH($C118,'Input_4x2_Trac 330kW'!$C$68:$C$76,0)),Z$6,0)) -> 0 | AA118: =IF(Z118>0,Z118,IF(AA16>INDEX('Input_4x2_Trac 330kW'!$E$68:$E$76,MATCH($C118,'Input_4x2_Trac 330kW'!$C$68:$C$76,0)),AA$6,0)) -> 0 | AB118: =IF(AA118>0,AA118,IF(AB16>INDEX('Input_4x2_Trac 330kW'!$E$68:$E$76,MATCH($C118,'Input_4x2_Trac 330kW'!$C$68:$C$76,0)),AB$6,0)) -> 0 | AC118: =IF(AB118>0,AB118,IF(AC16>INDEX('Input_4x2_Trac 330kW'!$E$68:$E$76,MATCH($C118,'Input_4x2_Trac 330kW'!$C$68:$C$76,0)),AC$6,0)) -> 0 | AE118: =C8 -> Diesel | AH118: 2024 | AJ118: Diesel2024
C119: =Terms!$E$12 -> H2 Tank 350 bar | D119: =D117 -> 0 | F119: =C8 -> Diesel | G119: 2025 | K119: 0 | L119: =IF(K119>0,K119,IF(L17>INDEX('Input_4x2_Trac 330kW'!$E$68:$E$76,MATCH($C119,'Input_4x2_Trac 330kW'!$C$68:$C$76,0)),L$6,0)) -> 0 | M119: =IF(L119>0,L119,IF(M17>INDEX('Input_4x2_Trac 330kW'!$E$68:$E$76,MATCH($C119,'Input_4x2_Trac 330kW'!$C$68:$C$76,0)),M$6,0)) -> 0 | N119: =IF(M119>0,M119,IF(N17>INDEX('Input_4x2_Trac 330kW'!$E$68:$E$76,MATCH($C119,'Input_4x2_Trac 330kW'!$C$68:$C$76,0)),N$6,0)) -> 0 | O119: =IF(N119>0,N119,IF(O17>INDEX('Input_4x2_Trac 330kW'!$E$68:$E$76,MATCH($C119,'Input_4x2_Trac 330kW'!$C$68:$C$76,0)),O$6,0)) -> 0 | P119: =IF(O119>0,O119,IF(P17>INDEX('Input_4x2_Trac 330kW'!$E$68:$E$76,MATCH($C119,'Input_4x2_Trac 330kW'!$C$68:$C$76,0)),P$6,0)) -> 0 | Q119: =IF(P119>0,P119,IF(Q17>INDEX('Input_4x2_Trac 330kW'!$E$68:$E$76,MATCH($C119,'Input_4x2_Trac 330kW'!$C$68:$C$76,0)),Q$6,0)) -> 0 | R119: =IF(Q119>0,Q119,IF(R17>INDEX('Input_4x2_Trac 330kW'!$E$68:$E$76,MATCH($C119,'Input_4x2_Trac 330kW'!$C$68:$C$76,0)),R$6,0)) -> 0 | S119: =IF(R119>0,R119,IF(S17>INDEX('Input_4x2_Trac 330kW'!$E$68:$E$76,MATCH($C119,'Input_4x2_Trac 330kW'!$C$68:$C$76,0)),S$6,0)) -> 0 | T119: =IF(S119>0,S119,IF(T17>INDEX('Input_4x2_Trac 330kW'!$E$68:$E$76,MATCH($C119,'Input_4x2_Trac 330kW'!$C$68:$C$76,0)),T$6,0)) -> 0 | U119: =IF(T119>0,T119,IF(U17>INDEX('Input_4x2_Trac 330kW'!$E$68:$E$76,MATCH($C119,'Input_4x2_Trac 330kW'!$C$68:$C$76,0)),U$6,0)) -> 0 | V119: =IF(U119>0,U119,IF(V17>INDEX('Input_4x2_Trac 330kW'!$E$68:$E$76,MATCH($C119,'Input_4x2_Trac 330kW'!$C$68:$C$76,0)),V$6,0)) -> 0 | W119: =IF(V119>0,V119,IF(W17>INDEX('Input_4x2_Trac 330kW'!$E$68:$E$76,MATCH($C119,'Input_4x2_Trac 330kW'!$C$68:$C$76,0)),W$6,0)) -> 0 | X119: =IF(W119>0,W119,IF(X17>INDEX('Input_4x2_Trac 330kW'!$E$68:$E$76,MATCH($C119,'Input_4x2_Trac 330kW'!$C$68:$C$76,0)),X$6,0)) -> 0 | Y119: =IF(X119>0,X119,IF(Y17>INDEX('Input_4x2_Trac 330kW'!$E$68:$E$76,MATCH($C119,'Input_4x2_Trac 330kW'!$C$68:$C$76,0)),Y$6,0)) -> 0 | Z119: =IF(Y119>0,Y119,IF(Z17>INDEX('Input_4x2_Trac 330kW'!$E$68:$E$76,MATCH($C119,'Input_4x2_Trac 330kW'!$C$68:$C$76,0)),Z$6,0)) -> 0 | AA119: =IF(Z119>0,Z119,IF(AA17>INDEX('Input_4x2_Trac 330kW'!$E$68:$E$76,MATCH($C119,'Input_4x2_Trac 330kW'!$C$68:$C$76,0)),AA$6,0)) -> 0 | AB119: =IF(AA119>0,AA119,IF(AB17>INDEX('Input_4x2_Trac 330kW'!$E$68:$E$76,MATCH($C119,'Input_4x2_Trac 330kW'!$C$68:$C$76,0)),AB$6,0)) -> 0 | AC119: =IF(AB119>0,AB119,IF(AC17>INDEX('Input_4x2_Trac 330kW'!$E$68:$E$76,MATCH($C119,'Input_4x2_Trac 330kW'!$C$68:$C$76,0)),AC$6,0)) -> 0 | AE119: =C8 -> Diesel | AH119: 2025 | AJ119: Diesel2025
C120: =Terms!$E$12 -> H2 Tank 350 bar | D120: =D117 -> 0 | F120: =C8 -> Diesel | G120: 2026 | K120: 0 | L120: =IF(K120>0,K120,IF(L18>INDEX('Input_4x2_Trac 330kW'!$E$68:$E$76,MATCH($C120,'Input_4x2_Trac 330kW'!$C$68:$C$76,0)),L$6,0)) -> 0 | M120: =IF(L120>0,L120,IF(M18>INDEX('Input_4x2_Trac 330kW'!$E$68:$E$76,MATCH($C120,'Input_4x2_Trac 330kW'!$C$68:$C$76,0)),M$6,0)) -> 0 | N120: =IF(M120>0,M120,IF(N18>INDEX('Input_4x2_Trac 330kW'!$E$68:$E$76,MATCH($C120,'Input_4x2_Trac 330kW'!$C$68:$C$76,0)),N$6,0)) -> 0 | O120: =IF(N120>0,N120,IF(O18>INDEX('Input_4x2_Trac 330kW'!$E$68:$E$76,MATCH($C120,'Input_4x2_Trac 330kW'!$C$68:$C$76,0)),O$6,0)) -> 0 | P120: =IF(O120>0,O120,IF(P18>INDEX('Input_4x2_Trac 330kW'!$E$68:$E$76,MATCH($C120,'Input_4x2_Trac 330kW'!$C$68:$C$76,0)),P$6,0)) -> 0 | Q120: =IF(P120>0,P120,IF(Q18>INDEX('Input_4x2_Trac 330kW'!$E$68:$E$76,MATCH($C120,'Input_4x2_Trac 330kW'!$C$68:$C$76,0)),Q$6,0)) -> 0 | R120: =IF(Q120>0,Q120,IF(R18>INDEX('Input_4x2_Trac 330kW'!$E$68:$E$76,MATCH($C120,'Input_4x2_Trac 330kW'!$C$68:$C$76,0)),R$6,0)) -> 0 | S120: =IF(R120>0,R120,IF(S18>INDEX('Input_4x2_Trac 330kW'!$E$68:$E$76,MATCH($C120,'Input_4x2_Trac 330kW'!$C$68:$C$76,0)),S$6,0)) -> 0 | T120: =IF(S120>0,S120,IF(T18>INDEX('Input_4x2_Trac 330kW'!$E$68:$E$76,MATCH($C120,'Input_4x2_Trac 330kW'!$C$68:$C$76,0)),T$6,0)) -> 0 | U120: =IF(T120>0,T120,IF(U18>INDEX('Input_4x2_Trac 330kW'!$E$68:$E$76,MATCH($C120,'Input_4x2_Trac 330kW'!$C$68:$C$76,0)),U$6,0)) -> 0 | V120: =IF(U120>0,U120,IF(V18>INDEX('Input_4x2_Trac 330kW'!$E$68:$E$76,MATCH($C120,'Input_4x2_Trac 330kW'!$C$68:$C$76,0)),V$6,0)) -> 0 | W120: =IF(V120>0,V120,IF(W18>INDEX('Input_4x2_Trac 330kW'!$E$68:$E$76,MATCH($C120,'Input_4x2_Trac 330kW'!$C$68:$C$76,0)),W$6,0)) -> 0 | X120: =IF(W120>0,W120,IF(X18>INDEX('Input_4x2_Trac 330kW'!$E$68:$E$76,MATCH($C120,'Input_4x2_Trac 330kW'!$C$68:$C$76,0)),X$6,0)) -> 0 | Y120: =IF(X120>0,X120,IF(Y18>INDEX('Input_4x2_Trac 330kW'!$E$68:$E$76,MATCH($C120,'Input_4x2_Trac 330kW'!$C$68:$C$76,0)),Y$6,0)) -> 0 | Z120: =IF(Y120>0,Y120,IF(Z18>INDEX('Input_4x2_Trac 330kW'!$E$68:$E$76,MATCH($C120,'Input_4x2_Trac 330kW'!$C$68:$C$76,0)),Z$6,0)) -> 0 | AA120: =IF(Z120>0,Z120,IF(AA18>INDEX('Input_4x2_Trac 330kW'!$E$68:$E$76,MATCH($C120,'Input_4x2_Trac 330kW'!$C$68:$C$76,0)),AA$6,0)) -> 0 | AB120: =IF(AA120>0,AA120,IF(AB18>INDEX('Input_4x2_Trac 330kW'!$E$68:$E$76,MATCH($C120,'Input_4x2_Trac 330kW'!$C$68:$C$76,0)),AB$6,0)) -> 0 | AC120: =IF(AB120>0,AB120,IF(AC18>INDEX('Input_4x2_Trac 330kW'!$E$68:$E$76,MATCH($C120,'Input_4x2_Trac 330kW'!$C$68:$C$76,0)),AC$6,0)) -> 0 | AE120: =C8 -> Diesel | AH120: 2026 | AJ120: Diesel2026
C121: =Terms!$E$12 -> H2 Tank 350 bar | D121: =D117 -> 0 | F121: =C8 -> Diesel | G121: 2027 | K121: 0 | L121: =IF(K121>0,K121,IF(L19>INDEX('Input_4x2_Trac 330kW'!$E$68:$E$76,MATCH($C121,'Input_4x2_Trac 330kW'!$C$68:$C$76,0)),L$6,0)) -> 0 | M121: =IF(L121>0,L121,IF(M19>INDEX('Input_4x2_Trac 330kW'!$E$68:$E$76,MATCH($C121,'Input_4x2_Trac 330kW'!$C$68:$C$76,0)),M$6,0)) -> 0 | N121: =IF(M121>0,M121,IF(N19>INDEX('Input_4x2_Trac 330kW'!$E$68:$E$76,MATCH($C121,'Input_4x2_Trac 330kW'!$C$68:$C$76,0)),N$6,0)) -> 0 | O121: =IF(N121>0,N121,IF(O19>INDEX('Input_4x2_Trac 330kW'!$E$68:$E$76,MATCH($C121,'Input_4x2_Trac 330kW'!$C$68:$C$76,0)),O$6,0)) -> 0 | P121: =IF(O121>0,O121,IF(P19>INDEX('Input_4x2_Trac 330kW'!$E$68:$E$76,MATCH($C121,'Input_4x2_Trac 330kW'!$C$68:$C$76,0)),P$6,0)) -> 0 | Q121: =IF(P121>0,P121,IF(Q19>INDEX('Input_4x2_Trac 330kW'!$E$68:$E$76,MATCH($C121,'Input_4x2_Trac 330kW'!$C$68:$C$76,0)),Q$6,0)) -> 0 | R121: =IF(Q121>0,Q121,IF(R19>INDEX('Input_4x2_Trac 330kW'!$E$68:$E$76,MATCH($C121,'Input_4x2_Trac 330kW'!$C$68:$C$76,0)),R$6,0)) -> 0 | S121: =IF(R121>0,R121,IF(S19>INDEX('Input_4x2_Trac 330kW'!$E$68:$E$76,MATCH($C121,'Input_4x2_Trac 330kW'!$C$68:$C$76,0)),S$6,0)) -> 0 | T121: =IF(S121>0,S121,IF(T19>INDEX('Input_4x2_Trac 330kW'!$E$68:$E$76,MATCH($C121,'Input_4x2_Trac 330kW'!$C$68:$C$76,0)),T$6,0)) -> 0 | U121: =IF(T121>0,T121,IF(U19>INDEX('Input_4x2_Trac 330kW'!$E$68:$E$76,MATCH($C121,'Input_4x2_Trac 330kW'!$C$68:$C$76,0)),U$6,0)) -> 0 | V121: =IF(U121>0,U121,IF(V19>INDEX('Input_4x2_Trac 330kW'!$E$68:$E$76,MATCH($C121,'Input_4x2_Trac 330kW'!$C$68:$C$76,0)),V$6,0)) -> 0 | W121: =IF(V121>0,V121,IF(W19>INDEX('Input_4x2_Trac 330kW'!$E$68:$E$76,MATCH($C121,'Input_4x2_Trac 330kW'!$C$68:$C$76,0)),W$6,0)) -> 0 | X121: =IF(W121>0,W121,IF(X19>INDEX('Input_4x2_Trac 330kW'!$E$68:$E$76,MATCH($C121,'Input_4x2_Trac 330kW'!$C$68:$C$76,0)),X$6,0)) -> 0 | Y121: =IF(X121>0,X121,IF(Y19>INDEX('Input_4x2_Trac 330kW'!$E$68:$E$76,MATCH($C121,'Input_4x2_Trac 330kW'!$C$68:$C$76,0)),Y$6,0)) -> 0 | Z121: =IF(Y121>0,Y121,IF(Z19>INDEX('Input_4x2_Trac 330kW'!$E$68:$E$76,MATCH($C121,'Input_4x2_Trac 330kW'!$C$68:$C$76,0)),Z$6,0)) -> 0 | AA121: =IF(Z121>0,Z121,IF(AA19>INDEX('Input_4x2_Trac 330kW'!$E$68:$E$76,MATCH($C121,'Input_4x2_Trac 330kW'!$C$68:$C$76,0)),AA$6,0)) -> 0 | AB121: =IF(AA121>0,AA121,IF(AB19>INDEX('Input_4x2_Trac 330kW'!$E$68:$E$76,MATCH($C121,'Input_4x2_Trac 330kW'!$C$68:$C$76,0)),AB$6,0)) -> 0 | AC121: =IF(AB121>0,AB121,IF(AC19>INDEX('Input_4x2_Trac 330kW'!$E$68:$E$76,MATCH($C121,'Input_4x2_Trac 330kW'!$C$68:$C$76,0)),AC$6,0)) -> 0 | AE121: =C8 -> Diesel | AH121: 2027 | AJ121: Diesel2027
C122: =Terms!$E$12 -> H2 Tank 350 bar | D122: =D117 -> 0 | F122: =C8 -> Diesel | G122: 2028 | K122: 0 | L122: =IF(K122>0,K122,IF(L20>INDEX('Input_4x2_Trac 330kW'!$E$68:$E$76,MATCH($C122,'Input_4x2_Trac 330kW'!$C$68:$C$76,0)),L$6,0)) -> 0 | M122: =IF(L122>0,L122,IF(M20>INDEX('Input_4x2_Trac 330kW'!$E$68:$E$76,MATCH($C122,'Input_4x2_Trac 330kW'!$C$68:$C$76,0)),M$6,0)) -> 0 | N122: =IF(M122>0,M122,IF(N20>INDEX('Input_4x2_Trac 330kW'!$E$68:$E$76,MATCH($C122,'Input_4x2_Trac 330kW'!$C$68:$C$76,0)),N$6,0)) -> 0 | O122: =IF(N122>0,N122,IF(O20>INDEX('Input_4x2_Trac 330kW'!$E$68:$E$76,MATCH($C122,'Input_4x2_Trac 330kW'!$C$68:$C$76,0)),O$6,0)) -> 0 | P122: =IF(O122>0,O122,IF(P20>INDEX('Input_4x2_Trac 330kW'!$E$68:$E$76,MATCH($C122,'Input_4x2_Trac 330kW'!$C$68:$C$76,0)),P$6,0)) -> 0 | Q122: =IF(P122>0,P122,IF(Q20>INDEX('Input_4x2_Trac 330kW'!$E$68:$E$76,MATCH($C122,'Input_4x2_Trac 330kW'!$C$68:$C$76,0)),Q$6,0)) -> 0 | R122: =IF(Q122>0,Q122,IF(R20>INDEX('Input_4x2_Trac 330kW'!$E$68:$E$76,MATCH($C122,'Input_4x2_Trac 330kW'!$C$68:$C$76,0)),R$6,0)) -> 0 | S122: =IF(R122>0,R122,IF(S20>INDEX('Input_4x2_Trac 330kW'!$E$68:$E$76,MATCH($C122,'Input_4x2_Trac 330kW'!$C$68:$C$76,0)),S$6,0)) -> 0 | T122: =IF(S122>0,S122,IF(T20>INDEX('Input_4x2_Trac 330kW'!$E$68:$E$76,MATCH($C122,'Input_4x2_Trac 330kW'!$C$68:$C$76,0)),T$6,0)) -> 0 | U122: =IF(T122>0,T122,IF(U20>INDEX('Input_4x2_Trac 330kW'!$E$68:$E$76,MATCH($C122,'Input_4x2_Trac 330kW'!$C$68:$C$76,0)),U$6,0)) -> 0 | V122: =IF(U122>0,U122,IF(V20>INDEX('Input_4x2_Trac 330kW'!$E$68:$E$76,MATCH($C122,'Input_4x2_Trac 330kW'!$C$68:$C$76,0)),V$6,0)) -> 0 | W122: =IF(V122>0,V122,IF(W20>INDEX('Input_4x2_Trac 330kW'!$E$68:$E$76,MATCH($C122,'Input_4x2_Trac 330kW'!$C$68:$C$76,0)),W$6,0)) -> 0 | X122: =IF(W122>0,W122,IF(X20>INDEX('Input_4x2_Trac 330kW'!$E$68:$E$76,MATCH($C122,'Input_4x2_Trac 330kW'!$C$68:$C$76,0)),X$6,0)) -> 0 | Y122: =IF(X122>0,X122,IF(Y20>INDEX('Input_4x2_Trac 330kW'!$E$68:$E$76,MATCH($C122,'Input_4x2_Trac 330kW'!$C$68:$C$76,0)),Y$6,0)) -> 0 | Z122: =IF(Y122>0,Y122,IF(Z20>INDEX('Input_4x2_Trac 330kW'!$E$68:$E$76,MATCH($C122,'Input_4x2_Trac 330kW'!$C$68:$C$76,0)),Z$6,0)) -> 0 | AA122: =IF(Z122>0,Z122,IF(AA20>INDEX('Input_4x2_Trac 330kW'!$E$68:$E$76,MATCH($C122,'Input_4x2_Trac 330kW'!$C$68:$C$76,0)),AA$6,0)) -> 0 | AB122: =IF(AA122>0,AA122,IF(AB20>INDEX('Input_4x2_Trac 330kW'!$E$68:$E$76,MATCH($C122,'Input_4x2_Trac 330kW'!$C$68:$C$76,0)),AB$6,0)) -> 0 | AC122: =IF(AB122>0,AB122,IF(AC20>INDEX('Input_4x2_Trac 330kW'!$E$68:$E$76,MATCH($C122,'Input_4x2_Trac 330kW'!$C$68:$C$76,0)),AC$6,0)) -> 0 | AE122: =C8 -> Diesel | AH122: 2028 | AJ122: Diesel2028
C123: =Terms!$E$12 -> H2 Tank 350 bar | D123: =D117 -> 0 | F123: =C8 -> Diesel | G123: 2029 | K123: 0 | L123: =IF(K123>0,K123,IF(L21>INDEX('Input_4x2_Trac 330kW'!$E$68:$E$76,MATCH($C123,'Input_4x2_Trac 330kW'!$C$68:$C$76,0)),L$6,0)) -> 0 | M123: =IF(L123>0,L123,IF(M21>INDEX('Input_4x2_Trac 330kW'!$E$68:$E$76,MATCH($C123,'Input_4x2_Trac 330kW'!$C$68:$C$76,0)),M$6,0)) -> 0 | N123: =IF(M123>0,M123,IF(N21>INDEX('Input_4x2_Trac 330kW'!$E$68:$E$76,MATCH($C123,'Input_4x2_Trac 330kW'!$C$68:$C$76,0)),N$6,0)) -> 0 | O123: =IF(N123>0,N123,IF(O21>INDEX('Input_4x2_Trac 330kW'!$E$68:$E$76,MATCH($C123,'Input_4x2_Trac 330kW'!$C$68:$C$76,0)),O$6,0)) -> 0 | P123: =IF(O123>0,O123,IF(P21>INDEX('Input_4x2_Trac 330kW'!$E$68:$E$76,MATCH($C123,'Input_4x2_Trac 330kW'!$C$68:$C$76,0)),P$6,0)) -> 0 | Q123: =IF(P123>0,P123,IF(Q21>INDEX('Input_4x2_Trac 330kW'!$E$68:$E$76,MATCH($C123,'Input_4x2_Trac 330kW'!$C$68:$C$76,0)),Q$6,0)) -> 0 | R123: =IF(Q123>0,Q123,IF(R21>INDEX('Input_4x2_Trac 330kW'!$E$68:$E$76,MATCH($C123,'Input_4x2_Trac 330kW'!$C$68:$C$76,0)),R$6,0)) -> 0 | S123: =IF(R123>0,R123,IF(S21>INDEX('Input_4x2_Trac 330kW'!$E$68:$E$76,MATCH($C123,'Input_4x2_Trac 330kW'!$C$68:$C$76,0)),S$6,0)) -> 0 | T123: =IF(S123>0,S123,IF(T21>INDEX('Input_4x2_Trac 330kW'!$E$68:$E$76,MATCH($C123,'Input_4x2_Trac 330kW'!$C$68:$C$76,0)),T$6,0)) -> 0 | U123: =IF(T123>0,T123,IF(U21>INDEX('Input_4x2_Trac 330kW'!$E$68:$E$76,MATCH($C123,'Input_4x2_Trac 330kW'!$C$68:$C$76,0)),U$6,0)) -> 0 | V123: =IF(U123>0,U123,IF(V21>INDEX('Input_4x2_Trac 330kW'!$E$68:$E$76,MATCH($C123,'Input_4x2_Trac 330kW'!$C$68:$C$76,0)),V$6,0)) -> 0 | W123: =IF(V123>0,V123,IF(W21>INDEX('Input_4x2_Trac 330kW'!$E$68:$E$76,MATCH($C123,'Input_4x2_Trac 330kW'!$C$68:$C$76,0)),W$6,0)) -> 0 | X123: =IF(W123>0,W123,IF(X21>INDEX('Input_4x2_Trac 330kW'!$E$68:$E$76,MATCH($C123,'Input_4x2_Trac 330kW'!$C$68:$C$76,0)),X$6,0)) -> 0 | Y123: =IF(X123>0,X123,IF(Y21>INDEX('Input_4x2_Trac 330kW'!$E$68:$E$76,MATCH($C123,'Input_4x2_Trac 330kW'!$C$68:$C$76,0)),Y$6,0)) -> 0 | Z123: =IF(Y123>0,Y123,IF(Z21>INDEX('Input_4x2_Trac 330kW'!$E$68:$E$76,MATCH($C123,'Input_4x2_Trac 330kW'!$C$68:$C$76,0)),Z$6,0)) -> 0 | AA123: =IF(Z123>0,Z123,IF(AA21>INDEX('Input_4x2_Trac 330kW'!$E$68:$E$76,MATCH($C123,'Input_4x2_Trac 330kW'!$C$68:$C$76,0)),AA$6,0)) -> 0 | AB123: =IF(AA123>0,AA123,IF(AB21>INDEX('Input_4x2_Trac 330kW'!$E$68:$E$76,MATCH($C123,'Input_4x2_Trac 330kW'!$C$68:$C$76,0)),AB$6,0)) -> 0 | AC123: =IF(AB123>0,AB123,IF(AC21>INDEX('Input_4x2_Trac 330kW'!$E$68:$E$76,MATCH($C123,'Input_4x2_Trac 330kW'!$C$68:$C$76,0)),AC$6,0)) -> 0 | AE123: =C8 -> Diesel | AH123: 2029 | AJ123: Diesel2029
C124: =Terms!$E$12 -> H2 Tank 350 bar | D124: =D117 -> 0 | F124: =C8 -> Diesel | G124: 2030 | K124: 0 | L124: =IF(K124>0,K124,IF(L22>INDEX('Input_4x2_Trac 330kW'!$E$68:$E$76,MATCH($C124,'Input_4x2_Trac 330kW'!$C$68:$C$76,0)),L$6,0)) -> 0 | M124: =IF(L124>0,L124,IF(M22>INDEX('Input_4x2_Trac 330kW'!$E$68:$E$76,MATCH($C124,'Input_4x2_Trac 330kW'!$C$68:$C$76,0)),M$6,0)) -> 0 | N124: =IF(M124>0,M124,IF(N22>INDEX('Input_4x2_Trac 330kW'!$E$68:$E$76,MATCH($C124,'Input_4x2_Trac 330kW'!$C$68:$C$76,0)),N$6,0)) -> 0 | O124: =IF(N124>0,N124,IF(O22>INDEX('Input_4x2_Trac 330kW'!$E$68:$E$76,MATCH($C124,'Input_4x2_Trac 330kW'!$C$68:$C$76,0)),O$6,0)) -> 0 | P124: =IF(O124>0,O124,IF(P22>INDEX('Input_4x2_Trac 330kW'!$E$68:$E$76,MATCH($C124,'Input_4x2_Trac 330kW'!$C$68:$C$76,0)),P$6,0)) -> 0 | Q124: =IF(P124>0,P124,IF(Q22>INDEX('Input_4x2_Trac 330kW'!$E$68:$E$76,MATCH($C124,'Input_4x2_Trac 330kW'!$C$68:$C$76,0)),Q$6,0)) -> 0 | R124: =IF(Q124>0,Q124,IF(R22>INDEX('Input_4x2_Trac 330kW'!$E$68:$E$76,MATCH($C124,'Input_4x2_Trac 330kW'!$C$68:$C$76,0)),R$6,0)) -> 0 | S124: =IF(R124>0,R124,IF(S22>INDEX('Input_4x2_Trac 330kW'!$E$68:$E$76,MATCH($C124,'Input_4x2_Trac 330kW'!$C$68:$C$76,0)),S$6,0)) -> 0 | T124: =IF(S124>0,S124,IF(T22>INDEX('Input_4x2_Trac 330kW'!$E$68:$E$76,MATCH($C124,'Input_4x2_Trac 330kW'!$C$68:$C$76,0)),T$6,0)) -> 0 | U124: =IF(T124>0,T124,IF(U22>INDEX('Input_4x2_Trac 330kW'!$E$68:$E$76,MATCH($C124,'Input_4x2_Trac 330kW'!$C$68:$C$76,0)),U$6,0)) -> 0 | V124: =IF(U124>0,U124,IF(V22>INDEX('Input_4x2_Trac 330kW'!$E$68:$E$76,MATCH($C124,'Input_4x2_Trac 330kW'!$C$68:$C$76,0)),V$6,0)) -> 0 | W124: =IF(V124>0,V124,IF(W22>INDEX('Input_4x2_Trac 330kW'!$E$68:$E$76,MATCH($C124,'Input_4x2_Trac 330kW'!$C$68:$C$76,0)),W$6,0)) -> 0 | X124: =IF(W124>0,W124,IF(X22>INDEX('Input_4x2_Trac 330kW'!$E$68:$E$76,MATCH($C124,'Input_4x2_Trac 330kW'!$C$68:$C$76,0)),X$6,0)) -> 0 | Y124: =IF(X124>0,X124,IF(Y22>INDEX('Input_4x2_Trac 330kW'!$E$68:$E$76,MATCH($C124,'Input_4x2_Trac 330kW'!$C$68:$C$76,0)),Y$6,0)) -> 0 | Z124: =IF(Y124>0,Y124,IF(Z22>INDEX('Input_4x2_Trac 330kW'!$E$68:$E$76,MATCH($C124,'Input_4x2_Trac 330kW'!$C$68:$C$76,0)),Z$6,0)) -> 0 | AA124: =IF(Z124>0,Z124,IF(AA22>INDEX('Input_4x2_Trac 330kW'!$E$68:$E$76,MATCH($C124,'Input_4x2_Trac 330kW'!$C$68:$C$76,0)),AA$6,0)) -> 0 | AB124: =IF(AA124>0,AA124,IF(AB22>INDEX('Input_4x2_Trac 330kW'!$E$68:$E$76,MATCH($C124,'Input_4x2_Trac 330kW'!$C$68:$C$76,0)),AB$6,0)) -> 0 | AC124: =IF(AB124>0,AB124,IF(AC22>INDEX('Input_4x2_Trac 330kW'!$E$68:$E$76,MATCH($C124,'Input_4x2_Trac 330kW'!$C$68:$C$76,0)),AC$6,0)) -> 0 | AE124: =C8 -> Diesel | AH124: 2030 | AJ124: Diesel2030
AE125: =C8 -> Diesel | AH125: 0 | AJ125: Diesel0
C126: ="Year of original "&C127 -> Year of original H2 Tank 700 bar | AE126: =C8 -> Diesel | AH126: 0 | AJ126: Diesel0
C127: =Terms!$E$13 -> H2 Tank 700 bar | D127: =INDEX(Allocations!$C$21:$P$28,MATCH(F127,Allocations!$C$21:$C$28,0),MATCH(C127,Allocations!$C$21:$P$21,0)) -> 0 | F127: =C8 -> Diesel | G127: 2023 | K127: 0 | L127: =IF($D127=0,0,IF(L$6>=$G127,IF(L137=0,$G127,0),0)) -> 0 | M127: 0 | N127: 0 | O127: 0 | P127: 0 | Q127: 0 | R127: 0 | S127: 0 | T127: 0 | U127: 0 | V127: 0 | W127: 0 | X127: 0 | Y127: 0 | Z127: 0 | AA127: 0 | AB127: 0 | AC127: 0 | AE127: =C8 -> Diesel | AH127: 2023 | AJ127: Diesel2023
C128: =Terms!$E$13 -> H2 Tank 700 bar | D128: =D127 -> 0 | F128: =C8 -> Diesel | G128: 2024 | K128: 0 | L128: =IF($D128=0,0,IF(L$6>=$G128,IF(L138=0,$G128,0),0)) -> 0 | M128: 0 | N128: 0 | O128: 0 | P128: 0 | Q128: 0 | R128: 0 | S128: 0 | T128: 0 | U128: 0 | V128: 0 | W128: 0 | X128: 0 | Y128: 0 | Z128: 0 | AA128: 0 | AB128: 0 | AC128: 0 | AE128: =C8 -> Diesel | AH128: 2024 | AJ128: Diesel2024
C129: =Terms!$E$13 -> H2 Tank 700 bar | D129: =D127 -> 0 | F129: =C8 -> Diesel | G129: 2025 | K129: 0 | L129: =IF($D129=0,0,IF(L$6>=$G129,IF(L139=0,$G129,0),0)) -> 0 | M129: 0 | N129: 0 | O129: 0 | P129: 0 | Q129: 0 | R129: 0 | S129: 0 | T129: 0 | U129: 0 | V129: 0 | W129: 0 | X129: 0 | Y129: 0 | Z129: 0 | AA129: 0 | AB129: 0 | AC129: 0 | AE129: =C8 -> Diesel | AH129: 2025 | AJ129: Diesel2025
C130: =Terms!$E$13 -> H2 Tank 700 bar | D130: =D127 -> 0 | F130: =C8 -> Diesel | G130: 2026 | K130: 0 | L130: =IF($D130=0,0,IF(L$6>=$G130,IF(L140=0,$G130,0),0)) -> 0 | M130: 0 | N130: 0 | O130: 0 | P130: 0 | Q130: 0 | R130: 0 | S130: 0 | T130: 0 | U130: 0 | V130: 0 | W130: 0 | X130: 0 | Y130: 0 | Z130: 0 | AA130: 0 | AB130: 0 | AC130: 0 | AE130: =C8 -> Diesel | AH130: 2026 | AJ130: Diesel2026
C131: =Terms!$E$13 -> H2 Tank 700 bar | D131: =D127 -> 0 | F131: =C8 -> Diesel | G131: 2027 | K131: 0 | L131: =IF($D131=0,0,IF(L$6>=$G131,IF(L141=0,$G131,0),0)) -> 0 | M131: 0 | N131: 0 | O131: 0 | P131: 0 | Q131: 0 | R131: 0 | S131: 0 | T131: 0 | U131: 0 | V131: 0 | W131: 0 | X131: 0 | Y131: 0 | Z131: 0 | AA131: 0 | AB131: 0 | AC131: 0 | AE131: =C8 -> Diesel | AH131: 2027 | AJ131: Diesel2027
C132: =Terms!$E$13 -> H2 Tank 700 bar | D132: =D127 -> 0 | F132: =C8 -> Diesel | G132: 2028 | K132: 0 | L132: =IF($D132=0,0,IF(L$6>=$G132,IF(L142=0,$G132,0),0)) -> 0 | M132: 0 | N132: 0 | O132: 0 | P132: 0 | Q132: 0 | R132: 0 | S132: 0 | T132: 0 | U132: 0 | V132: 0 | W132: 0 | X132: 0 | Y132: 0 | Z132: 0 | AA132: 0 | AB132: 0 | AC132: 0 | AE132: =C8 -> Diesel | AH132: 2028 | AJ132: Diesel2028
C133: =Terms!$E$13 -> H2 Tank 700 bar | D133: =D127 -> 0 | F133: =C8 -> Diesel | G133: 2029 | K133: 0 | L133: =IF($D133=0,0,IF(L$6>=$G133,IF(L143=0,$G133,0),0)) -> 0 | M133: 0 | N133: 0 | O133: 0 | P133: 0 | Q133: 0 | R133: 0 | S133: 0 | T133: 0 | U133: 0 | V133: 0 | W133: 0 | X133: 0 | Y133: 0 | Z133: 0 | AA133: 0 | AB133: 0 | AC133: 0 | AE133: =C8 -> Diesel | AH133: 2029 | AJ133: Diesel2029
C134: =Terms!$E$13 -> H2 Tank 700 bar | D134: =D127 -> 0 | F134: =C8 -> Diesel | G134: 2030 | K134: 0 | L134: =IF($D134=0,0,IF(L$6>=$G134,IF(L144=0,$G134,0),0)) -> 0 | M134: 0 | N134: 0 | O134: 0 | P134: 0 | Q134: 0 | R134: 0 | S134: 0 | T134: 0 | U134: 0 | V134: 0 | W134: 0 | X134: 0 | Y134: 0 | Z134: 0 | AA134: 0 | AB134: 0 | AC134: 0 | AE134: =C8 -> Diesel | AH134: 2030 | AJ134: Diesel2030
AE135: =C8 -> Diesel | AH135: 0 | AJ135: Diesel0
C136: ="Year of replacement "&C137 -> Year of replacement H2 Tank 700 bar | AE136: =C8 -> Diesel | AH136: 0 | AJ136: Diesel0
C137: =Terms!$E$13 -> H2 Tank 700 bar | D137: =INDEX(Allocations!$C$21:$P$28,MATCH(F137,Allocations!$C$21:$C$28,0),MATCH(C137,Allocations!$C$21:$P$21,0)) -> 0 | F137: =C8 -> Diesel | G137: 2023 | K137: 0 | L137: =IF(K137>0,K137,IF(L15>INDEX('Input_4x2_Trac 330kW'!$E$68:$E$76,MATCH($C137,'Input_4x2_Trac 330kW'!$C$68:$C$76,0)),L$6,0)) -> 0 | M137: =IF(L137>0,L137,IF(M15>INDEX('Input_4x2_Trac 330kW'!$E$68:$E$76,MATCH($C137,'Input_4x2_Trac 330kW'!$C$68:$C$76,0)),M$6,0)) -> 0 | N137: =IF(M137>0,M137,IF(N15>INDEX('Input_4x2_Trac 330kW'!$E$68:$E$76,MATCH($C137,'Input_4x2_Trac 330kW'!$C$68:$C$76,0)),N$6,0)) -> 0 | O137: =IF(N137>0,N137,IF(O15>INDEX('Input_4x2_Trac 330kW'!$E$68:$E$76,MATCH($C137,'Input_4x2_Trac 330kW'!$C$68:$C$76,0)),O$6,0)) -> 0 | P137: =IF(O137>0,O137,IF(P15>INDEX('Input_4x2_Trac 330kW'!$E$68:$E$76,MATCH($C137,'Input_4x2_Trac 330kW'!$C$68:$C$76,0)),P$6,0)) -> 0 | Q137: =IF(P137>0,P137,IF(Q15>INDEX('Input_4x2_Trac 330kW'!$E$68:$E$76,MATCH($C137,'Input_4x2_Trac 330kW'!$C$68:$C$76,0)),Q$6,0)) -> 0 | R137: =IF(Q137>0,Q137,IF(R15>INDEX('Input_4x2_Trac 330kW'!$E$68:$E$76,MATCH($C137,'Input_4x2_Trac 330kW'!$C$68:$C$76,0)),R$6,0)) -> 0 | S137: =IF(R137>0,R137,IF(S15>INDEX('Input_4x2_Trac 330kW'!$E$68:$E$76,MATCH($C137,'Input_4x2_Trac 330kW'!$C$68:$C$76,0)),S$6,0)) -> 0 | T137: =IF(S137>0,S137,IF(T15>INDEX('Input_4x2_Trac 330kW'!$E$68:$E$76,MATCH($C137,'Input_4x2_Trac 330kW'!$C$68:$C$76,0)),T$6,0)) -> 0 | U137: =IF(T137>0,T137,IF(U15>INDEX('Input_4x2_Trac 330kW'!$E$68:$E$76,MATCH($C137,'Input_4x2_Trac 330kW'!$C$68:$C$76,0)),U$6,0)) -> 0 | V137: =IF(U137>0,U137,IF(V15>INDEX('Input_4x2_Trac 330kW'!$E$68:$E$76,MATCH($C137,'Input_4x2_Trac 330kW'!$C$68:$C$76,0)),V$6,0)) -> 0 | W137: =IF(V137>0,V137,IF(W15>INDEX('Input_4x2_Trac 330kW'!$E$68:$E$76,MATCH($C137,'Input_4x2_Trac 330kW'!$C$68:$C$76,0)),W$6,0)) -> 0 | X137: =IF(W137>0,W137,IF(X15>INDEX('Input_4x2_Trac 330kW'!$E$68:$E$76,MATCH($C137,'Input_4x2_Trac 330kW'!$C$68:$C$76,0)),X$6,0)) -> 0 | Y137: =IF(X137>0,X137,IF(Y15>INDEX('Input_4x2_Trac 330kW'!$E$68:$E$76,MATCH($C137,'Input_4x2_Trac 330kW'!$C$68:$C$76,0)),Y$6,0)) -> 0 | Z137: =IF(Y137>0,Y137,IF(Z15>INDEX('Input_4x2_Trac 330kW'!$E$68:$E$76,MATCH($C137,'Input_4x2_Trac 330kW'!$C$68:$C$76,0)),Z$6,0)) -> 0 | AA137: =IF(Z137>0,Z137,IF(AA15>INDEX('Input_4x2_Trac 330kW'!$E$68:$E$76,MATCH($C137,'Input_4x2_Trac 330kW'!$C$68:$C$76,0)),AA$6,0)) -> 0 | AB137: =IF(AA137>0,AA137,IF(AB15>INDEX('Input_4x2_Trac 330kW'!$E$68:$E$76,MATCH($C137,'Input_4x2_Trac 330kW'!$C$68:$C$76,0)),AB$6,0)) -> 0 | AC137: =IF(AB137>0,AB137,IF(AC15>INDEX('Input_4x2_Trac 330kW'!$E$68:$E$76,MATCH($C137,'Input_4x2_Trac 330kW'!$C$68:$C$76,0)),AC$6,0)) -> 0 | AE137: =C8 -> Diesel | AH137: =G137 -> 2023 | AJ137: =AE137&AF137&AH137 -> Diesel2023
C138: =Terms!$E$13 -> H2 Tank 700 bar | D138: =D137 -> 0 | F138: =C8 -> Diesel | G138: 2024 | K138: 0 | L138: =IF(K138>0,K138,IF(L16>INDEX('Input_4x2_Trac 330kW'!$E$68:$E$76,MATCH($C138,'Input_4x2_Trac 330kW'!$C$68:$C$76,0)),L$6,0)) -> 0 | M138: =IF(L138>0,L138,IF(M16>INDEX('Input_4x2_Trac 330kW'!$E$68:$E$76,MATCH($C138,'Input_4x2_Trac 330kW'!$C$68:$C$76,0)),M$6,0)) -> 0 | N138: =IF(M138>0,M138,IF(N16>INDEX('Input_4x2_Trac 330kW'!$E$68:$E$76,MATCH($C138,'Input_4x2_Trac 330kW'!$C$68:$C$76,0)),N$6,0)) -> 0 | O138: =IF(N138>0,N138,IF(O16>INDEX('Input_4x2_Trac 330kW'!$E$68:$E$76,MATCH($C138,'Input_4x2_Trac 330kW'!$C$68:$C$76,0)),O$6,0)) -> 0 | P138: =IF(O138>0,O138,IF(P16>INDEX('Input_4x2_Trac 330kW'!$E$68:$E$76,MATCH($C138,'Input_4x2_Trac 330kW'!$C$68:$C$76,0)),P$6,0)) -> 0 | Q138: =IF(P138>0,P138,IF(Q16>INDEX('Input_4x2_Trac 330kW'!$E$68:$E$76,MATCH($C138,'Input_4x2_Trac 330kW'!$C$68:$C$76,0)),Q$6,0)) -> 0 | R138: =IF(Q138>0,Q138,IF(R16>INDEX('Input_4x2_Trac 330kW'!$E$68:$E$76,MATCH($C138,'Input_4x2_Trac 330kW'!$C$68:$C$76,0)),R$6,0)) -> 0 | S138: =IF(R138>0,R138,IF(S16>INDEX('Input_4x2_Trac 330kW'!$E$68:$E$76,MATCH($C138,'Input_4x2_Trac 330kW'!$C$68:$C$76,0)),S$6,0)) -> 0 | T138: =IF(S138>0,S138,IF(T16>INDEX('Input_4x2_Trac 330kW'!$E$68:$E$76,MATCH($C138,'Input_4x2_Trac 330kW'!$C$68:$C$76,0)),T$6,0)) -> 0 | U138: =IF(T138>0,T138,IF(U16>INDEX('Input_4x2_Trac 330kW'!$E$68:$E$76,MATCH($C138,'Input_4x2_Trac 330kW'!$C$68:$C$76,0)),U$6,0)) -> 0 | V138: =IF(U138>0,U138,IF(V16>INDEX('Input_4x2_Trac 330kW'!$E$68:$E$76,MATCH($C138,'Input_4x2_Trac 330kW'!$C$68:$C$76,0)),V$6,0)) -> 0 | W138: =IF(V138>0,V138,IF(W16>INDEX('Input_4x2_Trac 330kW'!$E$68:$E$76,MATCH($C138,'Input_4x2_Trac 330kW'!$C$68:$C$76,0)),W$6,0)) -> 0 | X138: =IF(W138>0,W138,IF(X16>INDEX('Input_4x2_Trac 330kW'!$E$68:$E$76,MATCH($C138,'Input_4x2_Trac 330kW'!$C$68:$C$76,0)),X$6,0)) -> 0 | Y138: =IF(X138>0,X138,IF(Y16>INDEX('Input_4x2_Trac 330kW'!$E$68:$E$76,MATCH($C138,'Input_4x2_Trac 330kW'!$C$68:$C$76,0)),Y$6,0)) -> 0 | Z138: =IF(Y138>0,Y138,IF(Z16>INDEX('Input_4x2_Trac 330kW'!$E$68:$E$76,MATCH($C138,'Input_4x2_Trac 330kW'!$C$68:$C$76,0)),Z$6,0)) -> 0 | AA138: =IF(Z138>0,Z138,IF(AA16>INDEX('Input_4x2_Trac 330kW'!$E$68:$E$76,MATCH($C138,'Input_4x2_Trac 330kW'!$C$68:$C$76,0)),AA$6,0)) -> 0 | AB138: =IF(AA138>0,AA138,IF(AB16>INDEX('Input_4x2_Trac 330kW'!$E$68:$E$76,MATCH($C138,'Input_4x2_Trac 330kW'!$C$68:$C$76,0)),AB$6,0)) -> 0 | AC138: =IF(AB138>0,AB138,IF(AC16>INDEX('Input_4x2_Trac 330kW'!$E$68:$E$76,MATCH($C138,'Input_4x2_Trac 330kW'!$C$68:$C$76,0)),AC$6,0)) -> 0 | AE138: =C8 -> Diesel | AH138: 2024 | AJ138: Diesel2024
C139: =Terms!$E$13 -> H2 Tank 700 bar | D139: =D137 -> 0 | F139: =C8 -> Diesel | G139: 2025 | K139: 0 | L139: =IF(K139>0,K139,IF(L17>INDEX('Input_4x2_Trac 330kW'!$E$68:$E$76,MATCH($C139,'Input_4x2_Trac 330kW'!$C$68:$C$76,0)),L$6,0)) -> 0 | M139: =IF(L139>0,L139,IF(M17>INDEX('Input_4x2_Trac 330kW'!$E$68:$E$76,MATCH($C139,'Input_4x2_Trac 330kW'!$C$68:$C$76,0)),M$6,0)) -> 0 | N139: =IF(M139>0,M139,IF(N17>INDEX('Input_4x2_Trac 330kW'!$E$68:$E$76,MATCH($C139,'Input_4x2_Trac 330kW'!$C$68:$C$76,0)),N$6,0)) -> 0 | O139: =IF(N139>0,N139,IF(O17>INDEX('Input_4x2_Trac 330kW'!$E$68:$E$76,MATCH($C139,'Input_4x2_Trac 330kW'!$C$68:$C$76,0)),O$6,0)) -> 0 | P139: =IF(O139>0,O139,IF(P17>INDEX('Input_4x2_Trac 330kW'!$E$68:$E$76,MATCH($C139,'Input_4x2_Trac 330kW'!$C$68:$C$76,0)),P$6,0)) -> 0 | Q139: =IF(P139>0,P139,IF(Q17>INDEX('Input_4x2_Trac 330kW'!$E$68:$E$76,MATCH($C139,'Input_4x2_Trac 330kW'!$C$68:$C$76,0)),Q$6,0)) -> 0 | R139: =IF(Q139>0,Q139,IF(R17>INDEX('Input_4x2_Trac 330kW'!$E$68:$E$76,MATCH($C139,'Input_4x2_Trac 330kW'!$C$68:$C$76,0)),R$6,0)) -> 0 | S139: =IF(R139>0,R139,IF(S17>INDEX('Input_4x2_Trac 330kW'!$E$68:$E$76,MATCH($C139,'Input_4x2_Trac 330kW'!$C$68:$C$76,0)),S$6,0)) -> 0 | T139: =IF(S139>0,S139,IF(T17>INDEX('Input_4x2_Trac 330kW'!$E$68:$E$76,MATCH($C139,'Input_4x2_Trac 330kW'!$C$68:$C$76,0)),T$6,0)) -> 0 | U139: =IF(T139>0,T139,IF(U17>INDEX('Input_4x2_Trac 330kW'!$E$68:$E$76,MATCH($C139,'Input_4x2_Trac 330kW'!$C$68:$C$76,0)),U$6,0)) -> 0 | V139: =IF(U139>0,U139,IF(V17>INDEX('Input_4x2_Trac 330kW'!$E$68:$E$76,MATCH($C139,'Input_4x2_Trac 330kW'!$C$68:$C$76,0)),V$6,0)) -> 0 | W139: =IF(V139>0,V139,IF(W17>INDEX('Input_4x2_Trac 330kW'!$E$68:$E$76,MATCH($C139,'Input_4x2_Trac 330kW'!$C$68:$C$76,0)),W$6,0)) -> 0 | X139: =IF(W139>0,W139,IF(X17>INDEX('Input_4x2_Trac 330kW'!$E$68:$E$76,MATCH($C139,'Input_4x2_Trac 330kW'!$C$68:$C$76,0)),X$6,0)) -> 0 | Y139: =IF(X139>0,X139,IF(Y17>INDEX('Input_4x2_Trac 330kW'!$E$68:$E$76,MATCH($C139,'Input_4x2_Trac 330kW'!$C$68:$C$76,0)),Y$6,0)) -> 0 | Z139: =IF(Y139>0,Y139,IF(Z17>INDEX('Input_4x2_Trac 330kW'!$E$68:$E$76,MATCH($C139,'Input_4x2_Trac 330kW'!$C$68:$C$76,0)),Z$6,0)) -> 0 | AA139: =IF(Z139>0,Z139,IF(AA17>INDEX('Input_4x2_Trac 330kW'!$E$68:$E$76,MATCH($C139,'Input_4x2_Trac 330kW'!$C$68:$C$76,0)),AA$6,0)) -> 0 | AB139: =IF(AA139>0,AA139,IF(AB17>INDEX('Input_4x2_Trac 330kW'!$E$68:$E$76,MATCH($C139,'Input_4x2_Trac 330kW'!$C$68:$C$76,0)),AB$6,0)) -> 0 | AC139: =IF(AB139>0,AB139,IF(AC17>INDEX('Input_4x2_Trac 330kW'!$E$68:$E$76,MATCH($C139,'Input_4x2_Trac 330kW'!$C$68:$C$76,0)),AC$6,0)) -> 0 | AE139: =C8 -> Diesel | AH139: 2025 | AJ139: Diesel2025
C140: =Terms!$E$13 -> H2 Tank 700 bar | D140: =D137 -> 0 | F140: =C8 -> Diesel | G140: 2026 | K140: 0 | L140: =IF(K140>0,K140,IF(L18>INDEX('Input_4x2_Trac 330kW'!$E$68:$E$76,MATCH($C140,'Input_4x2_Trac 330kW'!$C$68:$C$76,0)),L$6,0)) -> 0 | M140: =IF(L140>0,L140,IF(M18>INDEX('Input_4x2_Trac 330kW'!$E$68:$E$76,MATCH($C140,'Input_4x2_Trac 330kW'!$C$68:$C$76,0)),M$6,0)) -> 0 | N140: =IF(M140>0,M140,IF(N18>INDEX('Input_4x2_Trac 330kW'!$E$68:$E$76,MATCH($C140,'Input_4x2_Trac 330kW'!$C$68:$C$76,0)),N$6,0)) -> 0 | O140: =IF(N140>0,N140,IF(O18>INDEX('Input_4x2_Trac 330kW'!$E$68:$E$76,MATCH($C140,'Input_4x2_Trac 330kW'!$C$68:$C$76,0)),O$6,0)) -> 0 | P140: =IF(O140>0,O140,IF(P18>INDEX('Input_4x2_Trac 330kW'!$E$68:$E$76,MATCH($C140,'Input_4x2_Trac 330kW'!$C$68:$C$76,0)),P$6,0)) -> 0 | Q140: =IF(P140>0,P140,IF(Q18>INDEX('Input_4x2_Trac 330kW'!$E$68:$E$76,MATCH($C140,'Input_4x2_Trac 330kW'!$C$68:$C$76,0)),Q$6,0)) -> 0 | R140: =IF(Q140>0,Q140,IF(R18>INDEX('Input_4x2_Trac 330kW'!$E$68:$E$76,MATCH($C140,'Input_4x2_Trac 330kW'!$C$68:$C$76,0)),R$6,0)) -> 0 | S140: =IF(R140>0,R140,IF(S18>INDEX('Input_4x2_Trac 330kW'!$E$68:$E$76,MATCH($C140,'Input_4x2_Trac 330kW'!$C$68:$C$76,0)),S$6,0)) -> 0 | T140: =IF(S140>0,S140,IF(T18>INDEX('Input_4x2_Trac 330kW'!$E$68:$E$76,MATCH($C140,'Input_4x2_Trac 330kW'!$C$68:$C$76,0)),T$6,0)) -> 0 | U140: =IF(T140>0,T140,IF(U18>INDEX('Input_4x2_Trac 330kW'!$E$68:$E$76,MATCH($C140,'Input_4x2_Trac 330kW'!$C$68:$C$76,0)),U$6,0)) -> 0 | V140: =IF(U140>0,U140,IF(V18>INDEX('Input_4x2_Trac 330kW'!$E$68:$E$76,MATCH($C140,'Input_4x2_Trac 330kW'!$C$68:$C$76,0)),V$6,0)) -> 0 | W140: =IF(V140>0,V140,IF(W18>INDEX('Input_4x2_Trac 330kW'!$E$68:$E$76,MATCH($C140,'Input_4x2_Trac 330kW'!$C$68:$C$76,0)),W$6,0)) -> 0 | X140: =IF(W140>0,W140,IF(X18>INDEX('Input_4x2_Trac 330kW'!$E$68:$E$76,MATCH($C140,'Input_4x2_Trac 330kW'!$C$68:$C$76,0)),X$6,0)) -> 0 | Y140: =IF(X140>0,X140,IF(Y18>INDEX('Input_4x2_Trac 330kW'!$E$68:$E$76,MATCH($C140,'Input_4x2_Trac 330kW'!$C$68:$C$76,0)),Y$6,0)) -> 0 | Z140: =IF(Y140>0,Y140,IF(Z18>INDEX('Input_4x2_Trac 330kW'!$E$68:$E$76,MATCH($C140,'Input_4x2_Trac 330kW'!$C$68:$C$76,0)),Z$6,0)) -> 0 | AA140: =IF(Z140>0,Z140,IF(AA18>INDEX('Input_4x2_Trac 330kW'!$E$68:$E$76,MATCH($C140,'Input_4x2_Trac 330kW'!$C$68:$C$76,0)),AA$6,0)) -> 0 | AB140: =IF(AA140>0,AA140,IF(AB18>INDEX('Input_4x2_Trac 330kW'!$E$68:$E$76,MATCH($C140,'Input_4x2_Trac 330kW'!$C$68:$C$76,0)),AB$6,0)) -> 0 | AC140: =IF(AB140>0,AB140,IF(AC18>INDEX('Input_4x2_Trac 330kW'!$E$68:$E$76,MATCH($C140,'Input_4x2_Trac 330kW'!$C$68:$C$76,0)),AC$6,0)) -> 0 | AE140: =C8 -> Diesel | AH140: 2026 | AJ140: Diesel2026
C141: =Terms!$E$13 -> H2 Tank 700 bar | D141: =D137 -> 0 | F141: =C8 -> Diesel | G141: 2027 | K141: 0 | L141: =IF(K141>0,K141,IF(L19>INDEX('Input_4x2_Trac 330kW'!$E$68:$E$76,MATCH($C141,'Input_4x2_Trac 330kW'!$C$68:$C$76,0)),L$6,0)) -> 0 | M141: =IF(L141>0,L141,IF(M19>INDEX('Input_4x2_Trac 330kW'!$E$68:$E$76,MATCH($C141,'Input_4x2_Trac 330kW'!$C$68:$C$76,0)),M$6,0)) -> 0 | N141: =IF(M141>0,M141,IF(N19>INDEX('Input_4x2_Trac 330kW'!$E$68:$E$76,MATCH($C141,'Input_4x2_Trac 330kW'!$C$68:$C$76,0)),N$6,0)) -> 0 | O141: =IF(N141>0,N141,IF(O19>INDEX('Input_4x2_Trac 330kW'!$E$68:$E$76,MATCH($C141,'Input_4x2_Trac 330kW'!$C$68:$C$76,0)),O$6,0)) -> 0 | P141: =IF(O141>0,O141,IF(P19>INDEX('Input_4x2_Trac 330kW'!$E$68:$E$76,MATCH($C141,'Input_4x2_Trac 330kW'!$C$68:$C$76,0)),P$6,0)) -> 0 | Q141: =IF(P141>0,P141,IF(Q19>INDEX('Input_4x2_Trac 330kW'!$E$68:$E$76,MATCH($C141,'Input_4x2_Trac 330kW'!$C$68:$C$76,0)),Q$6,0)) -> 0 | R141: =IF(Q141>0,Q141,IF(R19>INDEX('Input_4x2_Trac 330kW'!$E$68:$E$76,MATCH($C141,'Input_4x2_Trac 330kW'!$C$68:$C$76,0)),R$6,0)) -> 0 | S141: =IF(R141>0,R141,IF(S19>INDEX('Input_4x2_Trac 330kW'!$E$68:$E$76,MATCH($C141,'Input_4x2_Trac 330kW'!$C$68:$C$76,0)),S$6,0)) -> 0 | T141: =IF(S141>0,S141,IF(T19>INDEX('Input_4x2_Trac 330kW'!$E$68:$E$76,MATCH($C141,'Input_4x2_Trac 330kW'!$C$68:$C$76,0)),T$6,0)) -> 0 | U141: =IF(T141>0,T141,IF(U19>INDEX('Input_4x2_Trac 330kW'!$E$68:$E$76,MATCH($C141,'Input_4x2_Trac 330kW'!$C$68:$C$76,0)),U$6,0)) -> 0 | V141: =IF(U141>0,U141,IF(V19>INDEX('Input_4x2_Trac 330kW'!$E$68:$E$76,MATCH($C141,'Input_4x2_Trac 330kW'!$C$68:$C$76,0)),V$6,0)) -> 0 | W141: =IF(V141>0,V141,IF(W19>INDEX('Input_4x2_Trac 330kW'!$E$68:$E$76,MATCH($C141,'Input_4x2_Trac 330kW'!$C$68:$C$76,0)),W$6,0)) -> 0 | X141: =IF(W141>0,W141,IF(X19>INDEX('Input_4x2_Trac 330kW'!$E$68:$E$76,MATCH($C141,'Input_4x2_Trac 330kW'!$C$68:$C$76,0)),X$6,0)) -> 0 | Y141: =IF(X141>0,X141,IF(Y19>INDEX('Input_4x2_Trac 330kW'!$E$68:$E$76,MATCH($C141,'Input_4x2_Trac 330kW'!$C$68:$C$76,0)),Y$6,0)) -> 0 | Z141: =IF(Y141>0,Y141,IF(Z19>INDEX('Input_4x2_Trac 330kW'!$E$68:$E$76,MATCH($C141,'Input_4x2_Trac 330kW'!$C$68:$C$76,0)),Z$6,0)) -> 0 | AA141: =IF(Z141>0,Z141,IF(AA19>INDEX('Input_4x2_Trac 330kW'!$E$68:$E$76,MATCH($C141,'Input_4x2_Trac 330kW'!$C$68:$C$76,0)),AA$6,0)) -> 0 | AB141: =IF(AA141>0,AA141,IF(AB19>INDEX('Input_4x2_Trac 330kW'!$E$68:$E$76,MATCH($C141,'Input_4x2_Trac 330kW'!$C$68:$C$76,0)),AB$6,0)) -> 0 | AC141: =IF(AB141>0,AB141,IF(AC19>INDEX('Input_4x2_Trac 330kW'!$E$68:$E$76,MATCH($C141,'Input_4x2_Trac 330kW'!$C$68:$C$76,0)),AC$6,0)) -> 0 | AE141: =C8 -> Diesel | AH141: 2027 | AJ141: Diesel2027
C142: =Terms!$E$13 -> H2 Tank 700 bar | D142: =D137 -> 0 | F142: =C8 -> Diesel | G142: 2028 | K142: 0 | L142: =IF(K142>0,K142,IF(L20>INDEX('Input_4x2_Trac 330kW'!$E$68:$E$76,MATCH($C142,'Input_4x2_Trac 330kW'!$C$68:$C$76,0)),L$6,0)) -> 0 | M142: =IF(L142>0,L142,IF(M20>INDEX('Input_4x2_Trac 330kW'!$E$68:$E$76,MATCH($C142,'Input_4x2_Trac 330kW'!$C$68:$C$76,0)),M$6,0)) -> 0 | N142: =IF(M142>0,M142,IF(N20>INDEX('Input_4x2_Trac 330kW'!$E$68:$E$76,MATCH($C142,'Input_4x2_Trac 330kW'!$C$68:$C$76,0)),N$6,0)) -> 0 | O142: =IF(N142>0,N142,IF(O20>INDEX('Input_4x2_Trac 330kW'!$E$68:$E$76,MATCH($C142,'Input_4x2_Trac 330kW'!$C$68:$C$76,0)),O$6,0)) -> 0 | P142: =IF(O142>0,O142,IF(P20>INDEX('Input_4x2_Trac 330kW'!$E$68:$E$76,MATCH($C142,'Input_4x2_Trac 330kW'!$C$68:$C$76,0)),P$6,0)) -> 0 | Q142: =IF(P142>0,P142,IF(Q20>INDEX('Input_4x2_Trac 330kW'!$E$68:$E$76,MATCH($C142,'Input_4x2_Trac 330kW'!$C$68:$C$76,0)),Q$6,0)) -> 0 | R142: =IF(Q142>0,Q142,IF(R20>INDEX('Input_4x2_Trac 330kW'!$E$68:$E$76,MATCH($C142,'Input_4x2_Trac 330kW'!$C$68:$C$76,0)),R$6,0)) -> 0 | S142: =IF(R142>0,R142,IF(S20>INDEX('Input_4x2_Trac 330kW'!$E$68:$E$76,MATCH($C142,'Input_4x2_Trac 330kW'!$C$68:$C$76,0)),S$6,0)) -> 0 | T142: =IF(S142>0,S142,IF(T20>INDEX('Input_4x2_Trac 330kW'!$E$68:$E$76,MATCH($C142,'Input_4x2_Trac 330kW'!$C$68:$C$76,0)),T$6,0)) -> 0 | U142: =IF(T142>0,T142,IF(U20>INDEX('Input_4x2_Trac 330kW'!$E$68:$E$76,MATCH($C142,'Input_4x2_Trac 330kW'!$C$68:$C$76,0)),U$6,0)) -> 0 | V142: =IF(U142>0,U142,IF(V20>INDEX('Input_4x2_Trac 330kW'!$E$68:$E$76,MATCH($C142,'Input_4x2_Trac 330kW'!$C$68:$C$76,0)),V$6,0)) -> 0 | W142: =IF(V142>0,V142,IF(W20>INDEX('Input_4x2_Trac 330kW'!$E$68:$E$76,MATCH($C142,'Input_4x2_Trac 330kW'!$C$68:$C$76,0)),W$6,0)) -> 0 | X142: =IF(W142>0,W142,IF(X20>INDEX('Input_4x2_Trac 330kW'!$E$68:$E$76,MATCH($C142,'Input_4x2_Trac 330kW'!$C$68:$C$76,0)),X$6,0)) -> 0 | Y142: =IF(X142>0,X142,IF(Y20>INDEX('Input_4x2_Trac 330kW'!$E$68:$E$76,MATCH($C142,'Input_4x2_Trac 330kW'!$C$68:$C$76,0)),Y$6,0)) -> 0 | Z142: =IF(Y142>0,Y142,IF(Z20>INDEX('Input_4x2_Trac 330kW'!$E$68:$E$76,MATCH($C142,'Input_4x2_Trac 330kW'!$C$68:$C$76,0)),Z$6,0)) -> 0 | AA142: =IF(Z142>0,Z142,IF(AA20>INDEX('Input_4x2_Trac 330kW'!$E$68:$E$76,MATCH($C142,'Input_4x2_Trac 330kW'!$C$68:$C$76,0)),AA$6,0)) -> 0 | AB142: =IF(AA142>0,AA142,IF(AB20>INDEX('Input_4x2_Trac 330kW'!$E$68:$E$76,MATCH($C142,'Input_4x2_Trac 330kW'!$C$68:$C$76,0)),AB$6,0)) -> 0 | AC142: =IF(AB142>0,AB142,IF(AC20>INDEX('Input_4x2_Trac 330kW'!$E$68:$E$76,MATCH($C142,'Input_4x2_Trac 330kW'!$C$68:$C$76,0)),AC$6,0)) -> 0 | AE142: =C8 -> Diesel | AH142: 2028 | AJ142: Diesel2028
C143: =Terms!$E$13 -> H2 Tank 700 bar | D143: =D137 -> 0 | F143: =C8 -> Diesel | G143: 2029 | K143: 0 | L143: =IF(K143>0,K143,IF(L21>INDEX('Input_4x2_Trac 330kW'!$E$68:$E$76,MATCH($C143,'Input_4x2_Trac 330kW'!$C$68:$C$76,0)),L$6,0)) -> 0 | M143: =IF(L143>0,L143,IF(M21>INDEX('Input_4x2_Trac 330kW'!$E$68:$E$76,MATCH($C143,'Input_4x2_Trac 330kW'!$C$68:$C$76,0)),M$6,0)) -> 0 | N143: =IF(M143>0,M143,IF(N21>INDEX('Input_4x2_Trac 330kW'!$E$68:$E$76,MATCH($C143,'Input_4x2_Trac 330kW'!$C$68:$C$76,0)),N$6,0)) -> 0 | O143: =IF(N143>0,N143,IF(O21>INDEX('Input_4x2_Trac 330kW'!$E$68:$E$76,MATCH($C143,'Input_4x2_Trac 330kW'!$C$68:$C$76,0)),O$6,0)) -> 0 | P143: =IF(O143>0,O143,IF(P21>INDEX('Input_4x2_Trac 330kW'!$E$68:$E$76,MATCH($C143,'Input_4x2_Trac 330kW'!$C$68:$C$76,0)),P$6,0)) -> 0 | Q143: =IF(P143>0,P143,IF(Q21>INDEX('Input_4x2_Trac 330kW'!$E$68:$E$76,MATCH($C143,'Input_4x2_Trac 330kW'!$C$68:$C$76,0)),Q$6,0)) -> 0 | R143: =IF(Q143>0,Q143,IF(R21>INDEX('Input_4x2_Trac 330kW'!$E$68:$E$76,MATCH($C143,'Input_4x2_Trac 330kW'!$C$68:$C$76,0)),R$6,0)) -> 0 | S143: =IF(R143>0,R143,IF(S21>INDEX('Input_4x2_Trac 330kW'!$E$68:$E$76,MATCH($C143,'Input_4x2_Trac 330kW'!$C$68:$C$76,0)),S$6,0)) -> 0 | T143: =IF(S143>0,S143,IF(T21>INDEX('Input_4x2_Trac 330kW'!$E$68:$E$76,MATCH($C143,'Input_4x2_Trac 330kW'!$C$68:$C$76,0)),T$6,0)) -> 0 | U143: =IF(T143>0,T143,IF(U21>INDEX('Input_4x2_Trac 330kW'!$E$68:$E$76,MATCH($C143,'Input_4x2_Trac 330kW'!$C$68:$C$76,0)),U$6,0)) -> 0 | V143: =IF(U143>0,U143,IF(V21>INDEX('Input_4x2_Trac 330kW'!$E$68:$E$76,MATCH($C143,'Input_4x2_Trac 330kW'!$C$68:$C$76,0)),V$6,0)) -> 0 | W143: =IF(V143>0,V143,IF(W21>INDEX('Input_4x2_Trac 330kW'!$E$68:$E$76,MATCH($C143,'Input_4x2_Trac 330kW'!$C$68:$C$76,0)),W$6,0)) -> 0 | X143: =IF(W143>0,W143,IF(X21>INDEX('Input_4x2_Trac 330kW'!$E$68:$E$76,MATCH($C143,'Input_4x2_Trac 330kW'!$C$68:$C$76,0)),X$6,0)) -> 0 | Y143: =IF(X143>0,X143,IF(Y21>INDEX('Input_4x2_Trac 330kW'!$E$68:$E$76,MATCH($C143,'Input_4x2_Trac 330kW'!$C$68:$C$76,0)),Y$6,0)) -> 0 | Z143: =IF(Y143>0,Y143,IF(Z21>INDEX('Input_4x2_Trac 330kW'!$E$68:$E$76,MATCH($C143,'Input_4x2_Trac 330kW'!$C$68:$C$76,0)),Z$6,0)) -> 0 | AA143: =IF(Z143>0,Z143,IF(AA21>INDEX('Input_4x2_Trac 330kW'!$E$68:$E$76,MATCH($C143,'Input_4x2_Trac 330kW'!$C$68:$C$76,0)),AA$6,0)) -> 0 | AB143: =IF(AA143>0,AA143,IF(AB21>INDEX('Input_4x2_Trac 330kW'!$E$68:$E$76,MATCH($C143,'Input_4x2_Trac 330kW'!$C$68:$C$76,0)),AB$6,0)) -> 0 | AC143: =IF(AB143>0,AB143,IF(AC21>INDEX('Input_4x2_Trac 330kW'!$E$68:$E$76,MATCH($C143,'Input_4x2_Trac 330kW'!$C$68:$C$76,0)),AC$6,0)) -> 0 | AE143: =C8 -> Diesel | AH143: 2029 | AJ143: Diesel2029
C144: =Terms!$E$13 -> H2 Tank 700 bar | D144: =D137 -> 0 | F144: =C8 -> Diesel | G144: 2030 | K144: 0 | L144: =IF(K144>0,K144,IF(L22>INDEX('Input_4x2_Trac 330kW'!$E$68:$E$76,MATCH($C144,'Input_4x2_Trac 330kW'!$C$68:$C$76,0)),L$6,0)) -> 0 | M144: =IF(L144>0,L144,IF(M22>INDEX('Input_4x2_Trac 330kW'!$E$68:$E$76,MATCH($C144,'Input_4x2_Trac 330kW'!$C$68:$C$76,0)),M$6,0)) -> 0 | N144: =IF(M144>0,M144,IF(N22>INDEX('Input_4x2_Trac 330kW'!$E$68:$E$76,MATCH($C144,'Input_4x2_Trac 330kW'!$C$68:$C$76,0)),N$6,0)) -> 0 | O144: =IF(N144>0,N144,IF(O22>INDEX('Input_4x2_Trac 330kW'!$E$68:$E$76,MATCH($C144,'Input_4x2_Trac 330kW'!$C$68:$C$76,0)),O$6,0)) -> 0 | P144: =IF(O144>0,O144,IF(P22>INDEX('Input_4x2_Trac 330kW'!$E$68:$E$76,MATCH($C144,'Input_4x2_Trac 330kW'!$C$68:$C$76,0)),P$6,0)) -> 0 | Q144: =IF(P144>0,P144,IF(Q22>INDEX('Input_4x2_Trac 330kW'!$E$68:$E$76,MATCH($C144,'Input_4x2_Trac 330kW'!$C$68:$C$76,0)),Q$6,0)) -> 0 | R144: =IF(Q144>0,Q144,IF(R22>INDEX('Input_4x2_Trac 330kW'!$E$68:$E$76,MATCH($C144,'Input_4x2_Trac 330kW'!$C$68:$C$76,0)),R$6,0)) -> 0 | S144: =IF(R144>0,R144,IF(S22>INDEX('Input_4x2_Trac 330kW'!$E$68:$E$76,MATCH($C144,'Input_4x2_Trac 330kW'!$C$68:$C$76,0)),S$6,0)) -> 0 | T144: =IF(S144>0,S144,IF(T22>INDEX('Input_4x2_Trac 330kW'!$E$68:$E$76,MATCH($C144,'Input_4x2_Trac 330kW'!$C$68:$C$76,0)),T$6,0)) -> 0 | U144: =IF(T144>0,T144,IF(U22>INDEX('Input_4x2_Trac 330kW'!$E$68:$E$76,MATCH($C144,'Input_4x2_Trac 330kW'!$C$68:$C$76,0)),U$6,0)) -> 0 | V144: =IF(U144>0,U144,IF(V22>INDEX('Input_4x2_Trac 330kW'!$E$68:$E$76,MATCH($C144,'Input_4x2_Trac 330kW'!$C$68:$C$76,0)),V$6,0)) -> 0 | W144: =IF(V144>0,V144,IF(W22>INDEX('Input_4x2_Trac 330kW'!$E$68:$E$76,MATCH($C144,'Input_4x2_Trac 330kW'!$C$68:$C$76,0)),W$6,0)) -> 0 | X144: =IF(W144>0,W144,IF(X22>INDEX('Input_4x2_Trac 330kW'!$E$68:$E$76,MATCH($C144,'Input_4x2_Trac 330kW'!$C$68:$C$76,0)),X$6,0)) -> 0 | Y144: =IF(X144>0,X144,IF(Y22>INDEX('Input_4x2_Trac 330kW'!$E$68:$E$76,MATCH($C144,'Input_4x2_Trac 330kW'!$C$68:$C$76,0)),Y$6,0)) -> 0 | Z144: =IF(Y144>0,Y144,IF(Z22>INDEX('Input_4x2_Trac 330kW'!$E$68:$E$76,MATCH($C144,'Input_4x2_Trac 330kW'!$C$68:$C$76,0)),Z$6,0)) -> 0 | AA144: =IF(Z144>0,Z144,IF(AA22>INDEX('Input_4x2_Trac 330kW'!$E$68:$E$76,MATCH($C144,'Input_4x2_Trac 330kW'!$C$68:$C$76,0)),AA$6,0)) -> 0 | AB144: =IF(AA144>0,AA144,IF(AB22>INDEX('Input_4x2_Trac 330kW'!$E$68:$E$76,MATCH($C144,'Input_4x2_Trac 330kW'!$C$68:$C$76,0)),AB$6,0)) -> 0 | AC144: =IF(AB144>0,AB144,IF(AC22>INDEX('Input_4x2_Trac 330kW'!$E$68:$E$76,MATCH($C144,'Input_4x2_Trac 330kW'!$C$68:$C$76,0)),AC$6,0)) -> 0 | AE144: =C8 -> Diesel | AH144: 2030 | AJ144: Diesel2030
AE145: =C8 -> Diesel | AH145: 0 | AJ145: Diesel0
C146: ="Year of original "&C147 -> Year of original H2 Tank LH2 | AE146: =C8 -> Diesel | AH146: 0 | AJ146: Diesel0
C147: =Terms!$E$14 -> H2 Tank LH2 | D147: =INDEX(Allocations!$C$21:$P$28,MATCH(F147,Allocations!$C$21:$C$28,0),MATCH(C147,Allocations!$C$21:$P$21,0)) -> 0 | F147: =C8 -> Diesel | G147: 2023 | K147: 0 | L147: =IF($D147=0,0,IF(L$6>=$G147,IF(L157=0,$G147,0),0)) -> 0 | M147: 0 | N147: 0 | O147: 0 | P147: 0 | Q147: 0 | R147: 0 | S147: 0 | T147: 0 | U147: 0 | V147: 0 | W147: 0 | X147: 0 | Y147: 0 | Z147: 0 | AA147: 0 | AB147: 0 | AC147: 0 | AE147: =C8 -> Diesel | AH147: 2023 | AJ147: Diesel2023
C148: =Terms!$E$14 -> H2 Tank LH2 | D148: =D147 -> 0 | F148: =C8 -> Diesel | G148: 2024 | K148: 0 | L148: =IF($D148=0,0,IF(L$6>=$G148,IF(L158=0,$G148,0),0)) -> 0 | M148: 0 | N148: 0 | O148: 0 | P148: 0 | Q148: 0 | R148: 0 | S148: 0 | T148: 0 | U148: 0 | V148: 0 | W148: 0 | X148: 0 | Y148: 0 | Z148: 0 | AA148: 0 | AB148: 0 | AC148: 0 | AE148: =C8 -> Diesel | AH148: 2024 | AJ148: Diesel2024
C149: =Terms!$E$14 -> H2 Tank LH2 | D149: =D147 -> 0 | F149: =C8 -> Diesel | G149: 2025 | K149: 0 | L149: =IF($D149=0,0,IF(L$6>=$G149,IF(L159=0,$G149,0),0)) -> 0 | M149: 0 | N149: 0 | O149: 0 | P149: 0 | Q149: 0 | R149: 0 | S149: 0 | T149: 0 | U149: 0 | V149: 0 | W149: 0 | X149: 0 | Y149: 0 | Z149: 0 | AA149: 0 | AB149: 0 | AC149: 0 | AE149: =C8 -> Diesel | AH149: 2025 | AJ149: Diesel2025
C150: =Terms!$E$14 -> H2 Tank LH2 | D150: =D147 -> 0 | F150: =C8 -> Diesel | G150: 2026 | K150: 0 | L150: =IF($D150=0,0,IF(L$6>=$G150,IF(L160=0,$G150,0),0)) -> 0 | M150: 0 | N150: 0 | O150: 0 | P150: 0 | Q150: 0 | R150: 0 | S150: 0 | T150: 0 | U150: 0 | V150: 0 | W150: 0 | X150: 0 | Y150: 0 | Z150: 0 | AA150: 0 | AB150: 0 | AC150: 0 | AE150: =C8 -> Diesel | AH150: 2026 | AJ150: Diesel2026
C151: =Terms!$E$14 -> H2 Tank LH2 | D151: =D147 -> 0 | F151: =C8 -> Diesel | G151: 2027 | K151: 0 | L151: =IF($D151=0,0,IF(L$6>=$G151,IF(L161=0,$G151,0),0)) -> 0 | M151: 0 | N151: 0 | O151: 0 | P151: 0 | Q151: 0 | R151: 0 | S151: 0 | T151: 0 | U151: 0 | V151: 0 | W151: 0 | X151: 0 | Y151: 0 | Z151: 0 | AA151: 0 | AB151: 0 | AC151: 0 | AE151: =C8 -> Diesel | AH151: 2027 | AJ151: Diesel2027
C152: =Terms!$E$14 -> H2 Tank LH2 | D152: =D147 -> 0 | F152: =C8 -> Diesel | G152: 2028 | K152: 0 | L152: =IF($D152=0,0,IF(L$6>=$G152,IF(L162=0,$G152,0),0)) -> 0 | M152: 0 | N152: 0 | O152: 0 | P152: 0 | Q152: 0 | R152: 0 | S152: 0 | T152: 0 | U152: 0 | V152: 0 | W152: 0 | X152: 0 | Y152: 0 | Z152: 0 | AA152: 0 | AB152: 0 | AC152: 0 | AE152: =C8 -> Diesel | AH152: 2028 | AJ152: Diesel2028
C153: =Terms!$E$14 -> H2 Tank LH2 | D153: =D147 -> 0 | F153: =C8 -> Diesel | G153: 2029 | K153: 0 | L153: =IF($D153=0,0,IF(L$6>=$G153,IF(L163=0,$G153,0),0)) -> 0 | M153: 0 | N153: 0 | O153: 0 | P153: 0 | Q153: 0 | R153: 0 | S153: 0 | T153: 0 | U153: 0 | V153: 0 | W153: 0 | X153: 0 | Y153: 0 | Z153: 0 | AA153: 0 | AB153: 0 | AC153: 0 | AE153: =C8 -> Diesel | AH153: 2029 | AJ153: Diesel2029
C154: =Terms!$E$14 -> H2 Tank LH2 | D154: =D147 -> 0 | F154: =C8 -> Diesel | G154: 2030 | K154: 0 | L154: =IF($D154=0,0,IF(L$6>=$G154,IF(L164=0,$G154,0),0)) -> 0 | M154: 0 | N154: 0 | O154: 0 | P154: 0 | Q154: 0 | R154: 0 | S154: 0 | T154: 0 | U154: 0 | V154: 0 | W154: 0 | X154: 0 | Y154: 0 | Z154: 0 | AA154: 0 | AB154: 0 | AC154: 0 | AE154: =C8 -> Diesel | AH154: 2030 | AJ154: Diesel2030
AE155: =C8 -> Diesel | AH155: 0 | AJ155: Diesel0
C156: ="Year of replacement "&C157 -> Year of replacement H2 Tank LH2 | AE156: =C8 -> Diesel | AH156: 0 | AJ156: Diesel0
C157: =Terms!$E$14 -> H2 Tank LH2 | D157: =INDEX(Allocations!$C$21:$P$28,MATCH(F157,Allocations!$C$21:$C$28,0),MATCH(C157,Allocations!$C$21:$P$21,0)) -> 0 | F157: =C8 -> Diesel | G157: 2023 | K157: 0 | L157: =IF(K157>0,K157,IF(L15>INDEX('Input_4x2_Trac 330kW'!$E$68:$E$76,MATCH($C157,'Input_4x2_Trac 330kW'!$C$68:$C$76,0)),L$6,0)) -> 0 | M157: =IF(L157>0,L157,IF(M15>INDEX('Input_4x2_Trac 330kW'!$E$68:$E$76,MATCH($C157,'Input_4x2_Trac 330kW'!$C$68:$C$76,0)),M$6,0)) -> 0 | N157: =IF(M157>0,M157,IF(N15>INDEX('Input_4x2_Trac 330kW'!$E$68:$E$76,MATCH($C157,'Input_4x2_Trac 330kW'!$C$68:$C$76,0)),N$6,0)) -> 0 | O157: =IF(N157>0,N157,IF(O15>INDEX('Input_4x2_Trac 330kW'!$E$68:$E$76,MATCH($C157,'Input_4x2_Trac 330kW'!$C$68:$C$76,0)),O$6,0)) -> 0 | P157: =IF(O157>0,O157,IF(P15>INDEX('Input_4x2_Trac 330kW'!$E$68:$E$76,MATCH($C157,'Input_4x2_Trac 330kW'!$C$68:$C$76,0)),P$6,0)) -> 0 | Q157: =IF(P157>0,P157,IF(Q15>INDEX('Input_4x2_Trac 330kW'!$E$68:$E$76,MATCH($C157,'Input_4x2_Trac 330kW'!$C$68:$C$76,0)),Q$6,0)) -> 0 | R157: =IF(Q157>0,Q157,IF(R15>INDEX('Input_4x2_Trac 330kW'!$E$68:$E$76,MATCH($C157,'Input_4x2_Trac 330kW'!$C$68:$C$76,0)),R$6,0)) -> 0 | S157: =IF(R157>0,R157,IF(S15>INDEX('Input_4x2_Trac 330kW'!$E$68:$E$76,MATCH($C157,'Input_4x2_Trac 330kW'!$C$68:$C$76,0)),S$6,0)) -> 0 | T157: =IF(S157>0,S157,IF(T15>INDEX('Input_4x2_Trac 330kW'!$E$68:$E$76,MATCH($C157,'Input_4x2_Trac 330kW'!$C$68:$C$76,0)),T$6,0)) -> 0 | U157: =IF(T157>0,T157,IF(U15>INDEX('Input_4x2_Trac 330kW'!$E$68:$E$76,MATCH($C157,'Input_4x2_Trac 330kW'!$C$68:$C$76,0)),U$6,0)) -> 0 | V157: =IF(U157>0,U157,IF(V15>INDEX('Input_4x2_Trac 330kW'!$E$68:$E$76,MATCH($C157,'Input_4x2_Trac 330kW'!$C$68:$C$76,0)),V$6,0)) -> 0 | W157: =IF(V157>0,V157,IF(W15>INDEX('Input_4x2_Trac 330kW'!$E$68:$E$76,MATCH($C157,'Input_4x2_Trac 330kW'!$C$68:$C$76,0)),W$6,0)) -> 0 | X157: =IF(W157>0,W157,IF(X15>INDEX('Input_4x2_Trac 330kW'!$E$68:$E$76,MATCH($C157,'Input_4x2_Trac 330kW'!$C$68:$C$76,0)),X$6,0)) -> 0 | Y157: =IF(X157>0,X157,IF(Y15>INDEX('Input_4x2_Trac 330kW'!$E$68:$E$76,MATCH($C157,'Input_4x2_Trac 330kW'!$C$68:$C$76,0)),Y$6,0)) -> 0 | Z157: =IF(Y157>0,Y157,IF(Z15>INDEX('Input_4x2_Trac 330kW'!$E$68:$E$76,MATCH($C157,'Input_4x2_Trac 330kW'!$C$68:$C$76,0)),Z$6,0)) -> 0 | AA157: =IF(Z157>0,Z157,IF(AA15>INDEX('Input_4x2_Trac 330kW'!$E$68:$E$76,MATCH($C157,'Input_4x2_Trac 330kW'!$C$68:$C$76,0)),AA$6,0)) -> 0 | AB157: =IF(AA157>0,AA157,IF(AB15>INDEX('Input_4x2_Trac 330kW'!$E$68:$E$76,MATCH($C157,'Input_4x2_Trac 330kW'!$C$68:$C$76,0)),AB$6,0)) -> 0 | AC157: =IF(AB157>0,AB157,IF(AC15>INDEX('Input_4x2_Trac 330kW'!$E$68:$E$76,MATCH($C157,'Input_4x2_Trac 330kW'!$C$68:$C$76,0)),AC$6,0)) -> 0 | AE157: =C8 -> Diesel | AH157: 2023 | AJ157: Diesel2023
C158: =Terms!$E$14 -> H2 Tank LH2 | D158: =D157 -> 0 | F158: =C8 -> Diesel | G158: 2024 | K158: 0 | L158: =IF(K158>0,K158,IF(L16>INDEX('Input_4x2_Trac 330kW'!$E$68:$E$76,MATCH($C158,'Input_4x2_Trac 330kW'!$C$68:$C$76,0)),L$6,0)) -> 0 | M158: =IF(L158>0,L158,IF(M16>INDEX('Input_4x2_Trac 330kW'!$E$68:$E$76,MATCH($C158,'Input_4x2_Trac 330kW'!$C$68:$C$76,0)),M$6,0)) -> 0 | N158: =IF(M158>0,M158,IF(N16>INDEX('Input_4x2_Trac 330kW'!$E$68:$E$76,MATCH($C158,'Input_4x2_Trac 330kW'!$C$68:$C$76,0)),N$6,0)) -> 0 | O158: =IF(N158>0,N158,IF(O16>INDEX('Input_4x2_Trac 330kW'!$E$68:$E$76,MATCH($C158,'Input_4x2_Trac 330kW'!$C$68:$C$76,0)),O$6,0)) -> 0 | P158: =IF(O158>0,O158,IF(P16>INDEX('Input_4x2_Trac 330kW'!$E$68:$E$76,MATCH($C158,'Input_4x2_Trac 330kW'!$C$68:$C$76,0)),P$6,0)) -> 0 | Q158: =IF(P158>0,P158,IF(Q16>INDEX('Input_4x2_Trac 330kW'!$E$68:$E$76,MATCH($C158,'Input_4x2_Trac 330kW'!$C$68:$C$76,0)),Q$6,0)) -> 0 | R158: =IF(Q158>0,Q158,IF(R16>INDEX('Input_4x2_Trac 330kW'!$E$68:$E$76,MATCH($C158,'Input_4x2_Trac 330kW'!$C$68:$C$76,0)),R$6,0)) -> 0 | S158: =IF(R158>0,R158,IF(S16>INDEX('Input_4x2_Trac 330kW'!$E$68:$E$76,MATCH($C158,'Input_4x2_Trac 330kW'!$C$68:$C$76,0)),S$6,0)) -> 0 | T158: =IF(S158>0,S158,IF(T16>INDEX('Input_4x2_Trac 330kW'!$E$68:$E$76,MATCH($C158,'Input_4x2_Trac 330kW'!$C$68:$C$76,0)),T$6,0)) -> 0 | U158: =IF(T158>0,T158,IF(U16>INDEX('Input_4x2_Trac 330kW'!$E$68:$E$76,MATCH($C158,'Input_4x2_Trac 330kW'!$C$68:$C$76,0)),U$6,0)) -> 0 | V158: =IF(U158>0,U158,IF(V16>INDEX('Input_4x2_Trac 330kW'!$E$68:$E$76,MATCH($C158,'Input_4x2_Trac 330kW'!$C$68:$C$76,0)),V$6,0)) -> 0 | W158: =IF(V158>0,V158,IF(W16>INDEX('Input_4x2_Trac 330kW'!$E$68:$E$76,MATCH($C158,'Input_4x2_Trac 330kW'!$C$68:$C$76,0)),W$6,0)) -> 0 | X158: =IF(W158>0,W158,IF(X16>INDEX('Input_4x2_Trac 330kW'!$E$68:$E$76,MATCH($C158,'Input_4x2_Trac 330kW'!$C$68:$C$76,0)),X$6,0)) -> 0 | Y158: =IF(X158>0,X158,IF(Y16>INDEX('Input_4x2_Trac 330kW'!$E$68:$E$76,MATCH($C158,'Input_4x2_Trac 330kW'!$C$68:$C$76,0)),Y$6,0)) -> 0 | Z158: =IF(Y158>0,Y158,IF(Z16>INDEX('Input_4x2_Trac 330kW'!$E$68:$E$76,MATCH($C158,'Input_4x2_Trac 330kW'!$C$68:$C$76,0)),Z$6,0)) -> 0 | AA158: =IF(Z158>0,Z158,IF(AA16>INDEX('Input_4x2_Trac 330kW'!$E$68:$E$76,MATCH($C158,'Input_4x2_Trac 330kW'!$C$68:$C$76,0)),AA$6,0)) -> 0 | AB158: =IF(AA158>0,AA158,IF(AB16>INDEX('Input_4x2_Trac 330kW'!$E$68:$E$76,MATCH($C158,'Input_4x2_Trac 330kW'!$C$68:$C$76,0)),AB$6,0)) -> 0 | AC158: =IF(AB158>0,AB158,IF(AC16>INDEX('Input_4x2_Trac 330kW'!$E$68:$E$76,MATCH($C158,'Input_4x2_Trac 330kW'!$C$68:$C$76,0)),AC$6,0)) -> 0 | AE158: =C8 -> Diesel | AH158: 2024 | AJ158: Diesel2024
C159: =Terms!$E$14 -> H2 Tank LH2 | D159: =D157 -> 0 | F159: =C8 -> Diesel | G159: 2025 | K159: 0 | L159: =IF(K159>0,K159,IF(L17>INDEX('Input_4x2_Trac 330kW'!$E$68:$E$76,MATCH($C159,'Input_4x2_Trac 330kW'!$C$68:$C$76,0)),L$6,0)) -> 0 | M159: =IF(L159>0,L159,IF(M17>INDEX('Input_4x2_Trac 330kW'!$E$68:$E$76,MATCH($C159,'Input_4x2_Trac 330kW'!$C$68:$C$76,0)),M$6,0)) -> 0 | N159: =IF(M159>0,M159,IF(N17>INDEX('Input_4x2_Trac 330kW'!$E$68:$E$76,MATCH($C159,'Input_4x2_Trac 330kW'!$C$68:$C$76,0)),N$6,0)) -> 0 | O159: =IF(N159>0,N159,IF(O17>INDEX('Input_4x2_Trac 330kW'!$E$68:$E$76,MATCH($C159,'Input_4x2_Trac 330kW'!$C$68:$C$76,0)),O$6,0)) -> 0 | P159: =IF(O159>0,O159,IF(P17>INDEX('Input_4x2_Trac 330kW'!$E$68:$E$76,MATCH($C159,'Input_4x2_Trac 330kW'!$C$68:$C$76,0)),P$6,0)) -> 0 | Q159: =IF(P159>0,P159,IF(Q17>INDEX('Input_4x2_Trac 330kW'!$E$68:$E$76,MATCH($C159,'Input_4x2_Trac 330kW'!$C$68:$C$76,0)),Q$6,0)) -> 0 | R159: =IF(Q159>0,Q159,IF(R17>INDEX('Input_4x2_Trac 330kW'!$E$68:$E$76,MATCH($C159,'Input_4x2_Trac 330kW'!$C$68:$C$76,0)),R$6,0)) -> 0 | S159: =IF(R159>0,R159,IF(S17>INDEX('Input_4x2_Trac 330kW'!$E$68:$E$76,MATCH($C159,'Input_4x2_Trac 330kW'!$C$68:$C$76,0)),S$6,0)) -> 0 | T159: =IF(S159>0,S159,IF(T17>INDEX('Input_4x2_Trac 330kW'!$E$68:$E$76,MATCH($C159,'Input_4x2_Trac 330kW'!$C$68:$C$76,0)),T$6,0)) -> 0 | U159: =IF(T159>0,T159,IF(U17>INDEX('Input_4x2_Trac 330kW'!$E$68:$E$76,MATCH($C159,'Input_4x2_Trac 330kW'!$C$68:$C$76,0)),U$6,0)) -> 0 | V159: =IF(U159>0,U159,IF(V17>INDEX('Input_4x2_Trac 330kW'!$E$68:$E$76,MATCH($C159,'Input_4x2_Trac 330kW'!$C$68:$C$76,0)),V$6,0)) -> 0 | W159: =IF(V159>0,V159,IF(W17>INDEX('Input_4x2_Trac 330kW'!$E$68:$E$76,MATCH($C159,'Input_4x2_Trac 330kW'!$C$68:$C$76,0)),W$6,0)) -> 0 | X159: =IF(W159>0,W159,IF(X17>INDEX('Input_4x2_Trac 330kW'!$E$68:$E$76,MATCH($C159,'Input_4x2_Trac 330kW'!$C$68:$C$76,0)),X$6,0)) -> 0 | Y159: =IF(X159>0,X159,IF(Y17>INDEX('Input_4x2_Trac 330kW'!$E$68:$E$76,MATCH($C159,'Input_4x2_Trac 330kW'!$C$68:$C$76,0)),Y$6,0)) -> 0 | Z159: =IF(Y159>0,Y159,IF(Z17>INDEX('Input_4x2_Trac 330kW'!$E$68:$E$76,MATCH($C159,'Input_4x2_Trac 330kW'!$C$68:$C$76,0)),Z$6,0)) -> 0 | AA159: =IF(Z159>0,Z159,IF(AA17>INDEX('Input_4x2_Trac 330kW'!$E$68:$E$76,MATCH($C159,'Input_4x2_Trac 330kW'!$C$68:$C$76,0)),AA$6,0)) -> 0 | AB159: =IF(AA159>0,AA159,IF(AB17>INDEX('Input_4x2_Trac 330kW'!$E$68:$E$76,MATCH($C159,'Input_4x2_Trac 330kW'!$C$68:$C$76,0)),AB$6,0)) -> 0 | AC159: =IF(AB159>0,AB159,IF(AC17>INDEX('Input_4x2_Trac 330kW'!$E$68:$E$76,MATCH($C159,'Input_4x2_Trac 330kW'!$C$68:$C$76,0)),AC$6,0)) -> 0 | AE159: =C8 -> Diesel | AH159: 2025 | AJ159: Diesel2025
C160: =Terms!$E$14 -> H2 Tank LH2 | D160: =D157 -> 0 | F160: =C8 -> Diesel | G160: 2026 | K160: 0 | L160: =IF(K160>0,K160,IF(L18>INDEX('Input_4x2_Trac 330kW'!$E$68:$E$76,MATCH($C160,'Input_4x2_Trac 330kW'!$C$68:$C$76,0)),L$6,0)) -> 0 | M160: =IF(L160>0,L160,IF(M18>INDEX('Input_4x2_Trac 330kW'!$E$68:$E$76,MATCH($C160,'Input_4x2_Trac 330kW'!$C$68:$C$76,0)),M$6,0)) -> 0 | N160: =IF(M160>0,M160,IF(N18>INDEX('Input_4x2_Trac 330kW'!$E$68:$E$76,MATCH($C160,'Input_4x2_Trac 330kW'!$C$68:$C$76,0)),N$6,0)) -> 0 | O160: =IF(N160>0,N160,IF(O18>INDEX('Input_4x2_Trac 330kW'!$E$68:$E$76,MATCH($C160,'Input_4x2_Trac 330kW'!$C$68:$C$76,0)),O$6,0)) -> 0 | P160: =IF(O160>0,O160,IF(P18>INDEX('Input_4x2_Trac 330kW'!$E$68:$E$76,MATCH($C160,'Input_4x2_Trac 330kW'!$C$68:$C$76,0)),P$6,0)) -> 0 | Q160: =IF(P160>0,P160,IF(Q18>INDEX('Input_4x2_Trac 330kW'!$E$68:$E$76,MATCH($C160,'Input_4x2_Trac 330kW'!$C$68:$C$76,0)),Q$6,0)) -> 0 | R160: =IF(Q160>0,Q160,IF(R18>INDEX('Input_4x2_Trac 330kW'!$E$68:$E$76,MATCH($C160,'Input_4x2_Trac 330kW'!$C$68:$C$76,0)),R$6,0)) -> 0 | S160: =IF(R160>0,R160,IF(S18>INDEX('Input_4x2_Trac 330kW'!$E$68:$E$76,MATCH($C160,'Input_4x2_Trac 330kW'!$C$68:$C$76,0)),S$6,0)) -> 0 | T160: =IF(S160>0,S160,IF(T18>INDEX('Input_4x2_Trac 330kW'!$E$68:$E$76,MATCH($C160,'Input_4x2_Trac 330kW'!$C$68:$C$76,0)),T$6,0)) -> 0 | U160: =IF(T160>0,T160,IF(U18>INDEX('Input_4x2_Trac 330kW'!$E$68:$E$76,MATCH($C160,'Input_4x2_Trac 330kW'!$C$68:$C$76,0)),U$6,0)) -> 0 | V160: =IF(U160>0,U160,IF(V18>INDEX('Input_4x2_Trac 330kW'!$E$68:$E$76,MATCH($C160,'Input_4x2_Trac 330kW'!$C$68:$C$76,0)),V$6,0)) -> 0 | W160: =IF(V160>0,V160,IF(W18>INDEX('Input_4x2_Trac 330kW'!$E$68:$E$76,MATCH($C160,'Input_4x2_Trac 330kW'!$C$68:$C$76,0)),W$6,0)) -> 0 | X160: =IF(W160>0,W160,IF(X18>INDEX('Input_4x2_Trac 330kW'!$E$68:$E$76,MATCH($C160,'Input_4x2_Trac 330kW'!$C$68:$C$76,0)),X$6,0)) -> 0 | Y160: =IF(X160>0,X160,IF(Y18>INDEX('Input_4x2_Trac 330kW'!$E$68:$E$76,MATCH($C160,'Input_4x2_Trac 330kW'!$C$68:$C$76,0)),Y$6,0)) -> 0 | Z160: =IF(Y160>0,Y160,IF(Z18>INDEX('Input_4x2_Trac 330kW'!$E$68:$E$76,MATCH($C160,'Input_4x2_Trac 330kW'!$C$68:$C$76,0)),Z$6,0)) -> 0 | AA160: =IF(Z160>0,Z160,IF(AA18>INDEX('Input_4x2_Trac 330kW'!$E$68:$E$76,MATCH($C160,'Input_4x2_Trac 330kW'!$C$68:$C$76,0)),AA$6,0)) -> 0 | AB160: =IF(AA160>0,AA160,IF(AB18>INDEX('Input_4x2_Trac 330kW'!$E$68:$E$76,MATCH($C160,'Input_4x2_Trac 330kW'!$C$68:$C$76,0)),AB$6,0)) -> 0 | AC160: =IF(AB160>0,AB160,IF(AC18>INDEX('Input_4x2_Trac 330kW'!$E$68:$E$76,MATCH($C160,'Input_4x2_Trac 330kW'!$C$68:$C$76,0)),AC$6,0)) -> 0 | AE160: =C8 -> Diesel | AH160: 2026 | AJ160: Diesel2026
C161: =Terms!$E$14 -> H2 Tank LH2 | D161: =D157 -> 0 | F161: =C8 -> Diesel | G161: 2027 | K161: 0 | L161: =IF(K161>0,K161,IF(L19>INDEX('Input_4x2_Trac 330kW'!$E$68:$E$76,MATCH($C161,'Input_4x2_Trac 330kW'!$C$68:$C$76,0)),L$6,0)) -> 0 | M161: =IF(L161>0,L161,IF(M19>INDEX('Input_4x2_Trac 330kW'!$E$68:$E$76,MATCH($C161,'Input_4x2_Trac 330kW'!$C$68:$C$76,0)),M$6,0)) -> 0 | N161: =IF(M161>0,M161,IF(N19>INDEX('Input_4x2_Trac 330kW'!$E$68:$E$76,MATCH($C161,'Input_4x2_Trac 330kW'!$C$68:$C$76,0)),N$6,0)) -> 0 | O161: =IF(N161>0,N161,IF(O19>INDEX('Input_4x2_Trac 330kW'!$E$68:$E$76,MATCH($C161,'Input_4x2_Trac 330kW'!$C$68:$C$76,0)),O$6,0)) -> 0 | P161: =IF(O161>0,O161,IF(P19>INDEX('Input_4x2_Trac 330kW'!$E$68:$E$76,MATCH($C161,'Input_4x2_Trac 330kW'!$C$68:$C$76,0)),P$6,0)) -> 0 | Q161: =IF(P161>0,P161,IF(Q19>INDEX('Input_4x2_Trac 330kW'!$E$68:$E$76,MATCH($C161,'Input_4x2_Trac 330kW'!$C$68:$C$76,0)),Q$6,0)) -> 0 | R161: =IF(Q161>0,Q161,IF(R19>INDEX('Input_4x2_Trac 330kW'!$E$68:$E$76,MATCH($C161,'Input_4x2_Trac 330kW'!$C$68:$C$76,0)),R$6,0)) -> 0 | S161: =IF(R161>0,R161,IF(S19>INDEX('Input_4x2_Trac 330kW'!$E$68:$E$76,MATCH($C161,'Input_4x2_Trac 330kW'!$C$68:$C$76,0)),S$6,0)) -> 0 | T161: =IF(S161>0,S161,IF(T19>INDEX('Input_4x2_Trac 330kW'!$E$68:$E$76,MATCH($C161,'Input_4x2_Trac 330kW'!$C$68:$C$76,0)),T$6,0)) -> 0 | U161: =IF(T161>0,T161,IF(U19>INDEX('Input_4x2_Trac 330kW'!$E$68:$E$76,MATCH($C161,'Input_4x2_Trac 330kW'!$C$68:$C$76,0)),U$6,0)) -> 0 | V161: =IF(U161>0,U161,IF(V19>INDEX('Input_4x2_Trac 330kW'!$E$68:$E$76,MATCH($C161,'Input_4x2_Trac 330kW'!$C$68:$C$76,0)),V$6,0)) -> 0 | W161: =IF(V161>0,V161,IF(W19>INDEX('Input_4x2_Trac 330kW'!$E$68:$E$76,MATCH($C161,'Input_4x2_Trac 330kW'!$C$68:$C$76,0)),W$6,0)) -> 0 | X161: =IF(W161>0,W161,IF(X19>INDEX('Input_4x2_Trac 330kW'!$E$68:$E$76,MATCH($C161,'Input_4x2_Trac 330kW'!$C$68:$C$76,0)),X$6,0)) -> 0 | Y161: =IF(X161>0,X161,IF(Y19>INDEX('Input_4x2_Trac 330kW'!$E$68:$E$76,MATCH($C161,'Input_4x2_Trac 330kW'!$C$68:$C$76,0)),Y$6,0)) -> 0 | Z161: =IF(Y161>0,Y161,IF(Z19>INDEX('Input_4x2_Trac 330kW'!$E$68:$E$76,MATCH($C161,'Input_4x2_Trac 330kW'!$C$68:$C$76,0)),Z$6,0)) -> 0 | AA161: =IF(Z161>0,Z161,IF(AA19>INDEX('Input_4x2_Trac 330kW'!$E$68:$E$76,MATCH($C161,'Input_4x2_Trac 330kW'!$C$68:$C$76,0)),AA$6,0)) -> 0 | AB161: =IF(AA161>0,AA161,IF(AB19>INDEX('Input_4x2_Trac 330kW'!$E$68:$E$76,MATCH($C161,'Input_4x2_Trac 330kW'!$C$68:$C$76,0)),AB$6,0)) -> 0 | AC161: =IF(AB161>0,AB161,IF(AC19>INDEX('Input_4x2_Trac 330kW'!$E$68:$E$76,MATCH($C161,'Input_4x2_Trac 330kW'!$C$68:$C$76,0)),AC$6,0)) -> 0 | AE161: =C8 -> Diesel | AH161: 2027 | AJ161: Diesel2027
C162: =Terms!$E$14 -> H2 Tank LH2 | D162: =D157 -> 0 | F162: =C8 -> Diesel | G162: 2028 | K162: 0 | L162: =IF(K162>0,K162,IF(L20>INDEX('Input_4x2_Trac 330kW'!$E$68:$E$76,MATCH($C162,'Input_4x2_Trac 330kW'!$C$68:$C$76,0)),L$6,0)) -> 0 | M162: =IF(L162>0,L162,IF(M20>INDEX('Input_4x2_Trac 330kW'!$E$68:$E$76,MATCH($C162,'Input_4x2_Trac 330kW'!$C$68:$C$76,0)),M$6,0)) -> 0 | N162: =IF(M162>0,M162,IF(N20>INDEX('Input_4x2_Trac 330kW'!$E$68:$E$76,MATCH($C162,'Input_4x2_Trac 330kW'!$C$68:$C$76,0)),N$6,0)) -> 0 | O162: =IF(N162>0,N162,IF(O20>INDEX('Input_4x2_Trac 330kW'!$E$68:$E$76,MATCH($C162,'Input_4x2_Trac 330kW'!$C$68:$C$76,0)),O$6,0)) -> 0 | P162: =IF(O162>0,O162,IF(P20>INDEX('Input_4x2_Trac 330kW'!$E$68:$E$76,MATCH($C162,'Input_4x2_Trac 330kW'!$C$68:$C$76,0)),P$6,0)) -> 0 | Q162: =IF(P162>0,P162,IF(Q20>INDEX('Input_4x2_Trac 330kW'!$E$68:$E$76,MATCH($C162,'Input_4x2_Trac 330kW'!$C$68:$C$76,0)),Q$6,0)) -> 0 | R162: =IF(Q162>0,Q162,IF(R20>INDEX('Input_4x2_Trac 330kW'!$E$68:$E$76,MATCH($C162,'Input_4x2_Trac 330kW'!$C$68:$C$76,0)),R$6,0)) -> 0 | S162: =IF(R162>0,R162,IF(S20>INDEX('Input_4x2_Trac 330kW'!$E$68:$E$76,MATCH($C162,'Input_4x2_Trac 330kW'!$C$68:$C$76,0)),S$6,0)) -> 0 | T162: =IF(S162>0,S162,IF(T20>INDEX('Input_4x2_Trac 330kW'!$E$68:$E$76,MATCH($C162,'Input_4x2_Trac 330kW'!$C$68:$C$76,0)),T$6,0)) -> 0 | U162: =IF(T162>0,T162,IF(U20>INDEX('Input_4x2_Trac 330kW'!$E$68:$E$76,MATCH($C162,'Input_4x2_Trac 330kW'!$C$68:$C$76,0)),U$6,0)) -> 0 | V162: =IF(U162>0,U162,IF(V20>INDEX('Input_4x2_Trac 330kW'!$E$68:$E$76,MATCH($C162,'Input_4x2_Trac 330kW'!$C$68:$C$76,0)),V$6,0)) -> 0 | W162: =IF(V162>0,V162,IF(W20>INDEX('Input_4x2_Trac 330kW'!$E$68:$E$76,MATCH($C162,'Input_4x2_Trac 330kW'!$C$68:$C$76,0)),W$6,0)) -> 0 | X162: =IF(W162>0,W162,IF(X20>INDEX('Input_4x2_Trac 330kW'!$E$68:$E$76,MATCH($C162,'Input_4x2_Trac 330kW'!$C$68:$C$76,0)),X$6,0)) -> 0 | Y162: =IF(X162>0,X162,IF(Y20>INDEX('Input_4x2_Trac 330kW'!$E$68:$E$76,MATCH($C162,'Input_4x2_Trac 330kW'!$C$68:$C$76,0)),Y$6,0)) -> 0 | Z162: =IF(Y162>0,Y162,IF(Z20>INDEX('Input_4x2_Trac 330kW'!$E$68:$E$76,MATCH($C162,'Input_4x2_Trac 330kW'!$C$68:$C$76,0)),Z$6,0)) -> 0 | AA162: =IF(Z162>0,Z162,IF(AA20>INDEX('Input_4x2_Trac 330kW'!$E$68:$E$76,MATCH($C162,'Input_4x2_Trac 330kW'!$C$68:$C$76,0)),AA$6,0)) -> 0 | AB162: =IF(AA162>0,AA162,IF(AB20>INDEX('Input_4x2_Trac 330kW'!$E$68:$E$76,MATCH($C162,'Input_4x2_Trac 330kW'!$C$68:$C$76,0)),AB$6,0)) -> 0 | AC162: =IF(AB162>0,AB162,IF(AC20>INDEX('Input_4x2_Trac 330kW'!$E$68:$E$76,MATCH($C162,'Input_4x2_Trac 330kW'!$C$68:$C$76,0)),AC$6,0)) -> 0 | AE162: =C8 -> Diesel | AH162: 2028 | AJ162: Diesel2028
C163: =Terms!$E$14 -> H2 Tank LH2 | D163: =D157 -> 0 | F163: =C8 -> Diesel | G163: 2029 | K163: 0 | L163: =IF(K163>0,K163,IF(L21>INDEX('Input_4x2_Trac 330kW'!$E$68:$E$76,MATCH($C163,'Input_4x2_Trac 330kW'!$C$68:$C$76,0)),L$6,0)) -> 0 | M163: =IF(L163>0,L163,IF(M21>INDEX('Input_4x2_Trac 330kW'!$E$68:$E$76,MATCH($C163,'Input_4x2_Trac 330kW'!$C$68:$C$76,0)),M$6,0)) -> 0 | N163: =IF(M163>0,M163,IF(N21>INDEX('Input_4x2_Trac 330kW'!$E$68:$E$76,MATCH($C163,'Input_4x2_Trac 330kW'!$C$68:$C$76,0)),N$6,0)) -> 0 | O163: =IF(N163>0,N163,IF(O21>INDEX('Input_4x2_Trac 330kW'!$E$68:$E$76,MATCH($C163,'Input_4x2_Trac 330kW'!$C$68:$C$76,0)),O$6,0)) -> 0 | P163: =IF(O163>0,O163,IF(P21>INDEX('Input_4x2_Trac 330kW'!$E$68:$E$76,MATCH($C163,'Input_4x2_Trac 330kW'!$C$68:$C$76,0)),P$6,0)) -> 0 | Q163: =IF(P163>0,P163,IF(Q21>INDEX('Input_4x2_Trac 330kW'!$E$68:$E$76,MATCH($C163,'Input_4x2_Trac 330kW'!$C$68:$C$76,0)),Q$6,0)) -> 0 | R163: =IF(Q163>0,Q163,IF(R21>INDEX('Input_4x2_Trac 330kW'!$E$68:$E$76,MATCH($C163,'Input_4x2_Trac 330kW'!$C$68:$C$76,0)),R$6,0)) -> 0 | S163: =IF(R163>0,R163,IF(S21>INDEX('Input_4x2_Trac 330kW'!$E$68:$E$76,MATCH($C163,'Input_4x2_Trac 330kW'!$C$68:$C$76,0)),S$6,0)) -> 0 | T163: =IF(S163>0,S163,IF(T21>INDEX('Input_4x2_Trac 330kW'!$E$68:$E$76,MATCH($C163,'Input_4x2_Trac 330kW'!$C$68:$C$76,0)),T$6,0)) -> 0 | U163: =IF(T163>0,T163,IF(U21>INDEX('Input_4x2_Trac 330kW'!$E$68:$E$76,MATCH($C163,'Input_4x2_Trac 330kW'!$C$68:$C$76,0)),U$6,0)) -> 0 | V163: =IF(U163>0,U163,IF(V21>INDEX('Input_4x2_Trac 330kW'!$E$68:$E$76,MATCH($C163,'Input_4x2_Trac 330kW'!$C$68:$C$76,0)),V$6,0)) -> 0 | W163: =IF(V163>0,V163,IF(W21>INDEX('Input_4x2_Trac 330kW'!$E$68:$E$76,MATCH($C163,'Input_4x2_Trac 330kW'!$C$68:$C$76,0)),W$6,0)) -> 0 | X163: =IF(W163>0,W163,IF(X21>INDEX('Input_4x2_Trac 330kW'!$E$68:$E$76,MATCH($C163,'Input_4x2_Trac 330kW'!$C$68:$C$76,0)),X$6,0)) -> 0 | Y163: =IF(X163>0,X163,IF(Y21>INDEX('Input_4x2_Trac 330kW'!$E$68:$E$76,MATCH($C163,'Input_4x2_Trac 330kW'!$C$68:$C$76,0)),Y$6,0)) -> 0 | Z163: =IF(Y163>0,Y163,IF(Z21>INDEX('Input_4x2_Trac 330kW'!$E$68:$E$76,MATCH($C163,'Input_4x2_Trac 330kW'!$C$68:$C$76,0)),Z$6,0)) -> 0 | AA163: =IF(Z163>0,Z163,IF(AA21>INDEX('Input_4x2_Trac 330kW'!$E$68:$E$76,MATCH($C163,'Input_4x2_Trac 330kW'!$C$68:$C$76,0)),AA$6,0)) -> 0 | AB163: =IF(AA163>0,AA163,IF(AB21>INDEX('Input_4x2_Trac 330kW'!$E$68:$E$76,MATCH($C163,'Input_4x2_Trac 330kW'!$C$68:$C$76,0)),AB$6,0)) -> 0 | AC163: =IF(AB163>0,AB163,IF(AC21>INDEX('Input_4x2_Trac 330kW'!$E$68:$E$76,MATCH($C163,'Input_4x2_Trac 330kW'!$C$68:$C$76,0)),AC$6,0)) -> 0 | AE163: =C8 -> Diesel | AH163: 2029 | AJ163: Diesel2029
C164: =Terms!$E$14 -> H2 Tank LH2 | D164: =D157 -> 0 | F164: =C8 -> Diesel | G164: 2030 | K164: 0 | L164: =IF(K164>0,K164,IF(L22>INDEX('Input_4x2_Trac 330kW'!$E$68:$E$76,MATCH($C164,'Input_4x2_Trac 330kW'!$C$68:$C$76,0)),L$6,0)) -> 0 | M164: =IF(L164>0,L164,IF(M22>INDEX('Input_4x2_Trac 330kW'!$E$68:$E$76,MATCH($C164,'Input_4x2_Trac 330kW'!$C$68:$C$76,0)),M$6,0)) -> 0 | N164: =IF(M164>0,M164,IF(N22>INDEX('Input_4x2_Trac 330kW'!$E$68:$E$76,MATCH($C164,'Input_4x2_Trac 330kW'!$C$68:$C$76,0)),N$6,0)) -> 0 | O164: =IF(N164>0,N164,IF(O22>INDEX('Input_4x2_Trac 330kW'!$E$68:$E$76,MATCH($C164,'Input_4x2_Trac 330kW'!$C$68:$C$76,0)),O$6,0)) -> 0 | P164: =IF(O164>0,O164,IF(P22>INDEX('Input_4x2_Trac 330kW'!$E$68:$E$76,MATCH($C164,'Input_4x2_Trac 330kW'!$C$68:$C$76,0)),P$6,0)) -> 0 | Q164: =IF(P164>0,P164,IF(Q22>INDEX('Input_4x2_Trac 330kW'!$E$68:$E$76,MATCH($C164,'Input_4x2_Trac 330kW'!$C$68:$C$76,0)),Q$6,0)) -> 0 | R164: =IF(Q164>0,Q164,IF(R22>INDEX('Input_4x2_Trac 330kW'!$E$68:$E$76,MATCH($C164,'Input_4x2_Trac 330kW'!$C$68:$C$76,0)),R$6,0)) -> 0 | S164: =IF(R164>0,R164,IF(S22>INDEX('Input_4x2_Trac 330kW'!$E$68:$E$76,MATCH($C164,'Input_4x2_Trac 330kW'!$C$68:$C$76,0)),S$6,0)) -> 0 | T164: =IF(S164>0,S164,IF(T22>INDEX('Input_4x2_Trac 330kW'!$E$68:$E$76,MATCH($C164,'Input_4x2_Trac 330kW'!$C$68:$C$76,0)),T$6,0)) -> 0 | U164: =IF(T164>0,T164,IF(U22>INDEX('Input_4x2_Trac 330kW'!$E$68:$E$76,MATCH($C164,'Input_4x2_Trac 330kW'!$C$68:$C$76,0)),U$6,0)) -> 0 | V164: =IF(U164>0,U164,IF(V22>INDEX('Input_4x2_Trac 330kW'!$E$68:$E$76,MATCH($C164,'Input_4x2_Trac 330kW'!$C$68:$C$76,0)),V$6,0)) -> 0 | W164: =IF(V164>0,V164,IF(W22>INDEX('Input_4x2_Trac 330kW'!$E$68:$E$76,MATCH($C164,'Input_4x2_Trac 330kW'!$C$68:$C$76,0)),W$6,0)) -> 0 | X164: =IF(W164>0,W164,IF(X22>INDEX('Input_4x2_Trac 330kW'!$E$68:$E$76,MATCH($C164,'Input_4x2_Trac 330kW'!$C$68:$C$76,0)),X$6,0)) -> 0 | Y164: =IF(X164>0,X164,IF(Y22>INDEX('Input_4x2_Trac 330kW'!$E$68:$E$76,MATCH($C164,'Input_4x2_Trac 330kW'!$C$68:$C$76,0)),Y$6,0)) -> 0 | Z164: =IF(Y164>0,Y164,IF(Z22>INDEX('Input_4x2_Trac 330kW'!$E$68:$E$76,MATCH($C164,'Input_4x2_Trac 330kW'!$C$68:$C$76,0)),Z$6,0)) -> 0 | AA164: =IF(Z164>0,Z164,IF(AA22>INDEX('Input_4x2_Trac 330kW'!$E$68:$E$76,MATCH($C164,'Input_4x2_Trac 330kW'!$C$68:$C$76,0)),AA$6,0)) -> 0 | AB164: =IF(AA164>0,AA164,IF(AB22>INDEX('Input_4x2_Trac 330kW'!$E$68:$E$76,MATCH($C164,'Input_4x2_Trac 330kW'!$C$68:$C$76,0)),AB$6,0)) -> 0 | AC164: =IF(AB164>0,AB164,IF(AC22>INDEX('Input_4x2_Trac 330kW'!$E$68:$E$76,MATCH($C164,'Input_4x2_Trac 330kW'!$C$68:$C$76,0)),AC$6,0)) -> 0 | AE164: =C8 -> Diesel | AH164: 2030 | AJ164: Diesel2030
AE165: =C8 -> Diesel | AH165: 0 | AJ165: Diesel0
C166: ="Year of original "&C167 -> Year of original Large Battery | AE166: =C8 -> Diesel | AH166: 0 | AJ166: Diesel0
C167: =Terms!$E$15 -> Large Battery | D167: =INDEX(Allocations!$C$21:$P$28,MATCH(F167,Allocations!$C$21:$C$28,0),MATCH(C167,Allocations!$C$21:$P$21,0)) -> 0 | F167: =C8 -> Diesel | G167: 2023 | K167: 0 | L167: =IF($D167=0,0,IF(L$6>=$G167,IF(L177=0,$G167,0),0)) -> 0 | M167: 0 | N167: 0 | O167: 0 | P167: 0 | Q167: 0 | R167: 0 | S167: 0 | T167: 0 | U167: 0 | V167: 0 | W167: 0 | X167: 0 | Y167: 0 | Z167: 0 | AA167: 0 | AB167: 0 | AC167: 0 | AE167: =C8 -> Diesel | AH167: 2023 | AJ167: Diesel2023
C168: =Terms!$E$15 -> Large Battery | D168: =D167 -> 0 | F168: =C8 -> Diesel | G168: 2024 | K168: 0 | L168: =IF($D168=0,0,IF(L$6>=$G168,IF(L178=0,$G168,0),0)) -> 0 | M168: 0 | N168: 0 | O168: 0 | P168: 0 | Q168: 0 | R168: 0 | S168: 0 | T168: 0 | U168: 0 | V168: 0 | W168: 0 | X168: 0 | Y168: 0 | Z168: 0 | AA168: 0 | AB168: 0 | AC168: 0 | AE168: =C8 -> Diesel | AH168: 2024 | AJ168: Diesel2024
C169: =Terms!$E$15 -> Large Battery | D169: =D167 -> 0 | F169: =C8 -> Diesel | G169: 2025 | K169: 0 | L169: =IF($D169=0,0,IF(L$6>=$G169,IF(L179=0,$G169,0),0)) -> 0 | M169: 0 | N169: 0 | O169: 0 | P169: 0 | Q169: 0 | R169: 0 | S169: 0 | T169: 0 | U169: 0 | V169: 0 | W169: 0 | X169: 0 | Y169: 0 | Z169: 0 | AA169: 0 | AB169: 0 | AC169: 0 | AE169: =C8 -> Diesel | AH169: 2025 | AJ169: Diesel2025
C170: =Terms!$E$15 -> Large Battery | D170: =D167 -> 0 | F170: =C8 -> Diesel | G170: 2026 | K170: 0 | L170: =IF($D170=0,0,IF(L$6>=$G170,IF(L180=0,$G170,0),0)) -> 0 | M170: 0 | N170: 0 | O170: 0 | P170: 0 | Q170: 0 | R170: 0 | S170: 0 | T170: 0 | U170: 0 | V170: 0 | W170: 0 | X170: 0 | Y170: 0 | Z170: 0 | AA170: 0 | AB170: 0 | AC170: 0 | AE170: =C8 -> Diesel | AH170: 2026 | AJ170: Diesel2026
C171: =Terms!$E$15 -> Large Battery | D171: =D167 -> 0 | F171: =C8 -> Diesel | G171: 2027 | K171: 0 | L171: =IF($D171=0,0,IF(L$6>=$G171,IF(L181=0,$G171,0),0)) -> 0 | M171: 0 | N171: 0 | O171: 0 | P171: 0 | Q171: 0 | R171: 0 | S171: 0 | T171: 0 | U171: 0 | V171: 0 | W171: 0 | X171: 0 | Y171: 0 | Z171: 0 | AA171: 0 | AB171: 0 | AC171: 0 | AE171: =C8 -> Diesel | AH171: 2027 | AJ171: Diesel2027
C172: =Terms!$E$15 -> Large Battery | D172: =D167 -> 0 | F172: =C8 -> Diesel | G172: 2028 | K172: 0 | L172: =IF($D172=0,0,IF(L$6>=$G172,IF(L182=0,$G172,0),0)) -> 0 | M172: 0 | N172: 0 | O172: 0 | P172: 0 | Q172: 0 | R172: 0 | S172: 0 | T172: 0 | U172: 0 | V172: 0 | W172: 0 | X172: 0 | Y172: 0 | Z172: 0 | AA172: 0 | AB172: 0 | AC172: 0 | AE172: =C8 -> Diesel | AH172: 2028 | AJ172: Diesel2028
C173: =Terms!$E$15 -> Large Battery | D173: =D167 -> 0 | F173: =C8 -> Diesel | G173: 2029 | K173: 0 | L173: =IF($D173=0,0,IF(L$6>=$G173,IF(L183=0,$G173,0),0)) -> 0 | M173: 0 | N173: 0 | O173: 0 | P173: 0 | Q173: 0 | R173: 0 | S173: 0 | T173: 0 | U173: 0 | V173: 0 | W173: 0 | X173: 0 | Y173: 0 | Z173: 0 | AA173: 0 | AB173: 0 | AC173: 0 | AE173: =C8 -> Diesel | AH173: 2029 | AJ173: Diesel2029
C174: =Terms!$E$15 -> Large Battery | D174: =D167 -> 0 | F174: =C8 -> Diesel | G174: 2030 | K174: 0 | L174: =IF($D174=0,0,IF(L$6>=$G174,IF(L184=0,$G174,0),0)) -> 0 | M174: 0 | N174: 0 | O174: 0 | P174: 0 | Q174: 0 | R174: 0 | S174: 0 | T174: 0 | U174: 0 | V174: 0 | W174: 0 | X174: 0 | Y174: 0 | Z174: 0 | AA174: 0 | AB174: 0 | AC174: 0 | AE174: =C8 -> Diesel | AH174: 2030 | AJ174: Diesel2030
AE175: =C8 -> Diesel | AH175: 0 | AJ175: Diesel0
C176: ="Year of replacement "&C177 -> Year of replacement Large Battery | AE176: =C8 -> Diesel | AH176: 0 | AJ176: Diesel0
C177: =Terms!$E$15 -> Large Battery | D177: =INDEX(Allocations!$C$21:$P$28,MATCH(F177,Allocations!$C$21:$C$28,0),MATCH(C177,Allocations!$C$21:$P$21,0)) -> 0 | F177: =C8 -> Diesel | G177: 2023 | K177: 0 | L177: =IF(K177>0,K177,IF(L15>INDEX('Input_4x2_Trac 330kW'!$E$68:$E$76,MATCH($C177,'Input_4x2_Trac 330kW'!$C$68:$C$76,0)),L$6,0)) -> 0 | M177: =IF(L177>0,L177,IF(M15>INDEX('Input_4x2_Trac 330kW'!$E$68:$E$76,MATCH($C177,'Input_4x2_Trac 330kW'!$C$68:$C$76,0)),M$6,0)) -> 0 | N177: =IF(M177>0,M177,IF(N15>INDEX('Input_4x2_Trac 330kW'!$E$68:$E$76,MATCH($C177,'Input_4x2_Trac 330kW'!$C$68:$C$76,0)),N$6,0)) -> 0 | O177: =IF(N177>0,N177,IF(O15>INDEX('Input_4x2_Trac 330kW'!$E$68:$E$76,MATCH($C177,'Input_4x2_Trac 330kW'!$C$68:$C$76,0)),O$6,0)) -> 0 | P177: =IF(O177>0,O177,IF(P15>INDEX('Input_4x2_Trac 330kW'!$E$68:$E$76,MATCH($C177,'Input_4x2_Trac 330kW'!$C$68:$C$76,0)),P$6,0)) -> 0 | Q177: =IF(P177>0,P177,IF(Q15>INDEX('Input_4x2_Trac 330kW'!$E$68:$E$76,MATCH($C177,'Input_4x2_Trac 330kW'!$C$68:$C$76,0)),Q$6,0)) -> 2028 | R177: =IF(Q177>0,Q177,IF(R15>INDEX('Input_4x2_Trac 330kW'!$E$68:$E$76,MATCH($C177,'Input_4x2_Trac 330kW'!$C$68:$C$76,0)),R$6,0)) -> 2028 | S177: =IF(R177>0,R177,IF(S15>INDEX('Input_4x2_Trac 330kW'!$E$68:$E$76,MATCH($C177,'Input_4x2_Trac 330kW'!$C$68:$C$76,0)),S$6,0)) -> 2028 | T177: =IF(S177>0,S177,IF(T15>INDEX('Input_4x2_Trac 330kW'!$E$68:$E$76,MATCH($C177,'Input_4x2_Trac 330kW'!$C$68:$C$76,0)),T$6,0)) -> 2028 | U177: =IF(T177>0,T177,IF(U15>INDEX('Input_4x2_Trac 330kW'!$E$68:$E$76,MATCH($C177,'Input_4x2_Trac 330kW'!$C$68:$C$76,0)),U$6,0)) -> 2028 | V177: =IF(U177>0,U177,IF(V15>INDEX('Input_4x2_Trac 330kW'!$E$68:$E$76,MATCH($C177,'Input_4x2_Trac 330kW'!$C$68:$C$76,0)),V$6,0)) -> 2028 | W177: =IF(V177>0,V177,IF(W15>INDEX('Input_4x2_Trac 330kW'!$E$68:$E$76,MATCH($C177,'Input_4x2_Trac 330kW'!$C$68:$C$76,0)),W$6,0)) -> 2028 | X177: =IF(W177>0,W177,IF(X15>INDEX('Input_4x2_Trac 330kW'!$E$68:$E$76,MATCH($C177,'Input_4x2_Trac 330kW'!$C$68:$C$76,0)),X$6,0)) -> 2028 | Y177: =IF(X177>0,X177,IF(Y15>INDEX('Input_4x2_Trac 330kW'!$E$68:$E$76,MATCH($C177,'Input_4x2_Trac 330kW'!$C$68:$C$76,0)),Y$6,0)) -> 2028 | Z177: =IF(Y177>0,Y177,IF(Z15>INDEX('Input_4x2_Trac 330kW'!$E$68:$E$76,MATCH($C177,'Input_4x2_Trac 330kW'!$C$68:$C$76,0)),Z$6,0)) -> 2028 | AA177: =IF(Z177>0,Z177,IF(AA15>INDEX('Input_4x2_Trac 330kW'!$E$68:$E$76,MATCH($C177,'Input_4x2_Trac 330kW'!$C$68:$C$76,0)),AA$6,0)) -> 2028 | AB177: =IF(AA177>0,AA177,IF(AB15>INDEX('Input_4x2_Trac 330kW'!$E$68:$E$76,MATCH($C177,'Input_4x2_Trac 330kW'!$C$68:$C$76,0)),AB$6,0)) -> 2028 | AC177: =IF(AB177>0,AB177,IF(AC15>INDEX('Input_4x2_Trac 330kW'!$E$68:$E$76,MATCH($C177,'Input_4x2_Trac 330kW'!$C$68:$C$76,0)),AC$6,0)) -> 2028 | AE177: =C8 -> Diesel | AH177: 2023 | AJ177: Diesel2023
C178: =Terms!$E$15 -> Large Battery | D178: =D177 -> 0 | F178: =C8 -> Diesel | G178: 2024 | K178: 0 | L178: =IF(K178>0,K178,IF(L16>INDEX('Input_4x2_Trac 330kW'!$E$68:$E$76,MATCH($C178,'Input_4x2_Trac 330kW'!$C$68:$C$76,0)),L$6,0)) -> 0 | M178: =IF(L178>0,L178,IF(M16>INDEX('Input_4x2_Trac 330kW'!$E$68:$E$76,MATCH($C178,'Input_4x2_Trac 330kW'!$C$68:$C$76,0)),M$6,0)) -> 0 | N178: =IF(M178>0,M178,IF(N16>INDEX('Input_4x2_Trac 330kW'!$E$68:$E$76,MATCH($C178,'Input_4x2_Trac 330kW'!$C$68:$C$76,0)),N$6,0)) -> 0 | O178: =IF(N178>0,N178,IF(O16>INDEX('Input_4x2_Trac 330kW'!$E$68:$E$76,MATCH($C178,'Input_4x2_Trac 330kW'!$C$68:$C$76,0)),O$6,0)) -> 0 | P178: =IF(O178>0,O178,IF(P16>INDEX('Input_4x2_Trac 330kW'!$E$68:$E$76,MATCH($C178,'Input_4x2_Trac 330kW'!$C$68:$C$76,0)),P$6,0)) -> 0 | Q178: =IF(P178>0,P178,IF(Q16>INDEX('Input_4x2_Trac 330kW'!$E$68:$E$76,MATCH($C178,'Input_4x2_Trac 330kW'!$C$68:$C$76,0)),Q$6,0)) -> 0 | R178: =IF(Q178>0,Q178,IF(R16>INDEX('Input_4x2_Trac 330kW'!$E$68:$E$76,MATCH($C178,'Input_4x2_Trac 330kW'!$C$68:$C$76,0)),R$6,0)) -> 2029 | S178: =IF(R178>0,R178,IF(S16>INDEX('Input_4x2_Trac 330kW'!$E$68:$E$76,MATCH($C178,'Input_4x2_Trac 330kW'!$C$68:$C$76,0)),S$6,0)) -> 2029 | T178: =IF(S178>0,S178,IF(T16>INDEX('Input_4x2_Trac 330kW'!$E$68:$E$76,MATCH($C178,'Input_4x2_Trac 330kW'!$C$68:$C$76,0)),T$6,0)) -> 2029 | U178: =IF(T178>0,T178,IF(U16>INDEX('Input_4x2_Trac 330kW'!$E$68:$E$76,MATCH($C178,'Input_4x2_Trac 330kW'!$C$68:$C$76,0)),U$6,0)) -> 2029 | V178: =IF(U178>0,U178,IF(V16>INDEX('Input_4x2_Trac 330kW'!$E$68:$E$76,MATCH($C178,'Input_4x2_Trac 330kW'!$C$68:$C$76,0)),V$6,0)) -> 2029 | W178: =IF(V178>0,V178,IF(W16>INDEX('Input_4x2_Trac 330kW'!$E$68:$E$76,MATCH($C178,'Input_4x2_Trac 330kW'!$C$68:$C$76,0)),W$6,0)) -> 2029 | X178: =IF(W178>0,W178,IF(X16>INDEX('Input_4x2_Trac 330kW'!$E$68:$E$76,MATCH($C178,'Input_4x2_Trac 330kW'!$C$68:$C$76,0)),X$6,0)) -> 2029 | Y178: =IF(X178>0,X178,IF(Y16>INDEX('Input_4x2_Trac 330kW'!$E$68:$E$76,MATCH($C178,'Input_4x2_Trac 330kW'!$C$68:$C$76,0)),Y$6,0)) -> 2029 | Z178: =IF(Y178>0,Y178,IF(Z16>INDEX('Input_4x2_Trac 330kW'!$E$68:$E$76,MATCH($C178,'Input_4x2_Trac 330kW'!$C$68:$C$76,0)),Z$6,0)) -> 2029 | AA178: =IF(Z178>0,Z178,IF(AA16>INDEX('Input_4x2_Trac 330kW'!$E$68:$E$76,MATCH($C178,'Input_4x2_Trac 330kW'!$C$68:$C$76,0)),AA$6,0)) -> 2029 | AB178: =IF(AA178>0,AA178,IF(AB16>INDEX('Input_4x2_Trac 330kW'!$E$68:$E$76,MATCH($C178,'Input_4x2_Trac 330kW'!$C$68:$C$76,0)),AB$6,0)) -> 2029 | AC178: =IF(AB178>0,AB178,IF(AC16>INDEX('Input_4x2_Trac 330kW'!$E$68:$E$76,MATCH($C178,'Input_4x2_Trac 330kW'!$C$68:$C$76,0)),AC$6,0)) -> 2029 | AE178: =C8 -> Diesel | AH178: 2024 | AJ178: Diesel2024
C179: =Terms!$E$15 -> Large Battery | D179: =D177 -> 0 | F179: =C8 -> Diesel | G179: 2025 | K179: 0 | L179: =IF(K179>0,K179,IF(L17>INDEX('Input_4x2_Trac 330kW'!$E$68:$E$76,MATCH($C179,'Input_4x2_Trac 330kW'!$C$68:$C$76,0)),L$6,0)) -> 0 | M179: =IF(L179>0,L179,IF(M17>INDEX('Input_4x2_Trac 330kW'!$E$68:$E$76,MATCH($C179,'Input_4x2_Trac 330kW'!$C$68:$C$76,0)),M$6,0)) -> 0 | N179: =IF(M179>0,M179,IF(N17>INDEX('Input_4x2_Trac 330kW'!$E$68:$E$76,MATCH($C179,'Input_4x2_Trac 330kW'!$C$68:$C$76,0)),N$6,0)) -> 0 | O179: =IF(N179>0,N179,IF(O17>INDEX('Input_4x2_Trac 330kW'!$E$68:$E$76,MATCH($C179,'Input_4x2_Trac 330kW'!$C$68:$C$76,0)),O$6,0)) -> 0 | P179: =IF(O179>0,O179,IF(P17>INDEX('Input_4x2_Trac 330kW'!$E$68:$E$76,MATCH($C179,'Input_4x2_Trac 330kW'!$C$68:$C$76,0)),P$6,0)) -> 0 | Q179: =IF(P179>0,P179,IF(Q17>INDEX('Input_4x2_Trac 330kW'!$E$68:$E$76,MATCH($C179,'Input_4x2_Trac 330kW'!$C$68:$C$76,0)),Q$6,0)) -> 0 | R179: =IF(Q179>0,Q179,IF(R17>INDEX('Input_4x2_Trac 330kW'!$E$68:$E$76,MATCH($C179,'Input_4x2_Trac 330kW'!$C$68:$C$76,0)),R$6,0)) -> 0 | S179: =IF(R179>0,R179,IF(S17>INDEX('Input_4x2_Trac 330kW'!$E$68:$E$76,MATCH($C179,'Input_4x2_Trac 330kW'!$C$68:$C$76,0)),S$6,0)) -> 2030 | T179: =IF(S179>0,S179,IF(T17>INDEX('Input_4x2_Trac 330kW'!$E$68:$E$76,MATCH($C179,'Input_4x2_Trac 330kW'!$C$68:$C$76,0)),T$6,0)) -> 2030 | U179: =IF(T179>0,T179,IF(U17>INDEX('Input_4x2_Trac 330kW'!$E$68:$E$76,MATCH($C179,'Input_4x2_Trac 330kW'!$C$68:$C$76,0)),U$6,0)) -> 2030 | V179: =IF(U179>0,U179,IF(V17>INDEX('Input_4x2_Trac 330kW'!$E$68:$E$76,MATCH($C179,'Input_4x2_Trac 330kW'!$C$68:$C$76,0)),V$6,0)) -> 2030 | W179: =IF(V179>0,V179,IF(W17>INDEX('Input_4x2_Trac 330kW'!$E$68:$E$76,MATCH($C179,'Input_4x2_Trac 330kW'!$C$68:$C$76,0)),W$6,0)) -> 2030 | X179: =IF(W179>0,W179,IF(X17>INDEX('Input_4x2_Trac 330kW'!$E$68:$E$76,MATCH($C179,'Input_4x2_Trac 330kW'!$C$68:$C$76,0)),X$6,0)) -> 2030 | Y179: =IF(X179>0,X179,IF(Y17>INDEX('Input_4x2_Trac 330kW'!$E$68:$E$76,MATCH($C179,'Input_4x2_Trac 330kW'!$C$68:$C$76,0)),Y$6,0)) -> 2030 | Z179: =IF(Y179>0,Y179,IF(Z17>INDEX('Input_4x2_Trac 330kW'!$E$68:$E$76,MATCH($C179,'Input_4x2_Trac 330kW'!$C$68:$C$76,0)),Z$6,0)) -> 2030 | AA179: =IF(Z179>0,Z179,IF(AA17>INDEX('Input_4x2_Trac 330kW'!$E$68:$E$76,MATCH($C179,'Input_4x2_Trac 330kW'!$C$68:$C$76,0)),AA$6,0)) -> 2030 | AB179: =IF(AA179>0,AA179,IF(AB17>INDEX('Input_4x2_Trac 330kW'!$E$68:$E$76,MATCH($C179,'Input_4x2_Trac 330kW'!$C$68:$C$76,0)),AB$6,0)) -> 2030 | AC179: =IF(AB179>0,AB179,IF(AC17>INDEX('Input_4x2_Trac 330kW'!$E$68:$E$76,MATCH($C179,'Input_4x2_Trac 330kW'!$C$68:$C$76,0)),AC$6,0)) -> 2030 | AE179: =C8 -> Diesel | AH179: 2025 | AJ179: Diesel2025
C180: =Terms!$E$15 -> Large Battery | D180: =D177 -> 0 | F180: =C8 -> Diesel | G180: 2026 | K180: 0 | L180: =IF(K180>0,K180,IF(L18>INDEX('Input_4x2_Trac 330kW'!$E$68:$E$76,MATCH($C180,'Input_4x2_Trac 330kW'!$C$68:$C$76,0)),L$6,0)) -> 0 | M180: =IF(L180>0,L180,IF(M18>INDEX('Input_4x2_Trac 330kW'!$E$68:$E$76,MATCH($C180,'Input_4x2_Trac 330kW'!$C$68:$C$76,0)),M$6,0)) -> 0 | N180: =IF(M180>0,M180,IF(N18>INDEX('Input_4x2_Trac 330kW'!$E$68:$E$76,MATCH($C180,'Input_4x2_Trac 330kW'!$C$68:$C$76,0)),N$6,0)) -> 0 | O180: =IF(N180>0,N180,IF(O18>INDEX('Input_4x2_Trac 330kW'!$E$68:$E$76,MATCH($C180,'Input_4x2_Trac 330kW'!$C$68:$C$76,0)),O$6,0)) -> 0 | P180: =IF(O180>0,O180,IF(P18>INDEX('Input_4x2_Trac 330kW'!$E$68:$E$76,MATCH($C180,'Input_4x2_Trac 330kW'!$C$68:$C$76,0)),P$6,0)) -> 0 | Q180: =IF(P180>0,P180,IF(Q18>INDEX('Input_4x2_Trac 330kW'!$E$68:$E$76,MATCH($C180,'Input_4x2_Trac 330kW'!$C$68:$C$76,0)),Q$6,0)) -> 0 | R180: =IF(Q180>0,Q180,IF(R18>INDEX('Input_4x2_Trac 330kW'!$E$68:$E$76,MATCH($C180,'Input_4x2_Trac 330kW'!$C$68:$C$76,0)),R$6,0)) -> 0 | S180: =IF(R180>0,R180,IF(S18>INDEX('Input_4x2_Trac 330kW'!$E$68:$E$76,MATCH($C180,'Input_4x2_Trac 330kW'!$C$68:$C$76,0)),S$6,0)) -> 0 | T180: =IF(S180>0,S180,IF(T18>INDEX('Input_4x2_Trac 330kW'!$E$68:$E$76,MATCH($C180,'Input_4x2_Trac 330kW'!$C$68:$C$76,0)),T$6,0)) -> 2031 | U180: =IF(T180>0,T180,IF(U18>INDEX('Input_4x2_Trac 330kW'!$E$68:$E$76,MATCH($C180,'Input_4x2_Trac 330kW'!$C$68:$C$76,0)),U$6,0)) -> 2031 | V180: =IF(U180>0,U180,IF(V18>INDEX('Input_4x2_Trac 330kW'!$E$68:$E$76,MATCH($C180,'Input_4x2_Trac 330kW'!$C$68:$C$76,0)),V$6,0)) -> 2031 | W180: =IF(V180>0,V180,IF(W18>INDEX('Input_4x2_Trac 330kW'!$E$68:$E$76,MATCH($C180,'Input_4x2_Trac 330kW'!$C$68:$C$76,0)),W$6,0)) -> 2031 | X180: =IF(W180>0,W180,IF(X18>INDEX('Input_4x2_Trac 330kW'!$E$68:$E$76,MATCH($C180,'Input_4x2_Trac 330kW'!$C$68:$C$76,0)),X$6,0)) -> 2031 | Y180: =IF(X180>0,X180,IF(Y18>INDEX('Input_4x2_Trac 330kW'!$E$68:$E$76,MATCH($C180,'Input_4x2_Trac 330kW'!$C$68:$C$76,0)),Y$6,0)) -> 2031 | Z180: =IF(Y180>0,Y180,IF(Z18>INDEX('Input_4x2_Trac 330kW'!$E$68:$E$76,MATCH($C180,'Input_4x2_Trac 330kW'!$C$68:$C$76,0)),Z$6,0)) -> 2031 | AA180: =IF(Z180>0,Z180,IF(AA18>INDEX('Input_4x2_Trac 330kW'!$E$68:$E$76,MATCH($C180,'Input_4x2_Trac 330kW'!$C$68:$C$76,0)),AA$6,0)) -> 2031 | AB180: =IF(AA180>0,AA180,IF(AB18>INDEX('Input_4x2_Trac 330kW'!$E$68:$E$76,MATCH($C180,'Input_4x2_Trac 330kW'!$C$68:$C$76,0)),AB$6,0)) -> 2031 | AC180: =IF(AB180>0,AB180,IF(AC18>INDEX('Input_4x2_Trac 330kW'!$E$68:$E$76,MATCH($C180,'Input_4x2_Trac 330kW'!$C$68:$C$76,0)),AC$6,0)) -> 2031 | AE180: =C8 -> Diesel | AH180: 2026 | AJ180: Diesel2026
C181: =Terms!$E$15 -> Large Battery | D181: =D177 -> 0 | F181: =C8 -> Diesel | G181: 2027 | K181: 0 | L181: =IF(K181>0,K181,IF(L19>INDEX('Input_4x2_Trac 330kW'!$E$68:$E$76,MATCH($C181,'Input_4x2_Trac 330kW'!$C$68:$C$76,0)),L$6,0)) -> 0 | M181: =IF(L181>0,L181,IF(M19>INDEX('Input_4x2_Trac 330kW'!$E$68:$E$76,MATCH($C181,'Input_4x2_Trac 330kW'!$C$68:$C$76,0)),M$6,0)) -> 0 | N181: =IF(M181>0,M181,IF(N19>INDEX('Input_4x2_Trac 330kW'!$E$68:$E$76,MATCH($C181,'Input_4x2_Trac 330kW'!$C$68:$C$76,0)),N$6,0)) -> 0 | O181: =IF(N181>0,N181,IF(O19>INDEX('Input_4x2_Trac 330kW'!$E$68:$E$76,MATCH($C181,'Input_4x2_Trac 330kW'!$C$68:$C$76,0)),O$6,0)) -> 0 | P181: =IF(O181>0,O181,IF(P19>INDEX('Input_4x2_Trac 330kW'!$E$68:$E$76,MATCH($C181,'Input_4x2_Trac 330kW'!$C$68:$C$76,0)),P$6,0)) -> 0 | Q181: =IF(P181>0,P181,IF(Q19>INDEX('Input_4x2_Trac 330kW'!$E$68:$E$76,MATCH($C181,'Input_4x2_Trac 330kW'!$C$68:$C$76,0)),Q$6,0)) -> 0 | R181: =IF(Q181>0,Q181,IF(R19>INDEX('Input_4x2_Trac 330kW'!$E$68:$E$76,MATCH($C181,'Input_4x2_Trac 330kW'!$C$68:$C$76,0)),R$6,0)) -> 0 | S181: =IF(R181>0,R181,IF(S19>INDEX('Input_4x2_Trac 330kW'!$E$68:$E$76,MATCH($C181,'Input_4x2_Trac 330kW'!$C$68:$C$76,0)),S$6,0)) -> 0 | T181: =IF(S181>0,S181,IF(T19>INDEX('Input_4x2_Trac 330kW'!$E$68:$E$76,MATCH($C181,'Input_4x2_Trac 330kW'!$C$68:$C$76,0)),T$6,0)) -> 0 | U181: =IF(T181>0,T181,IF(U19>INDEX('Input_4x2_Trac 330kW'!$E$68:$E$76,MATCH($C181,'Input_4x2_Trac 330kW'!$C$68:$C$76,0)),U$6,0)) -> 2032 | V181: =IF(U181>0,U181,IF(V19>INDEX('Input_4x2_Trac 330kW'!$E$68:$E$76,MATCH($C181,'Input_4x2_Trac 330kW'!$C$68:$C$76,0)),V$6,0)) -> 2032 | W181: =IF(V181>0,V181,IF(W19>INDEX('Input_4x2_Trac 330kW'!$E$68:$E$76,MATCH($C181,'Input_4x2_Trac 330kW'!$C$68:$C$76,0)),W$6,0)) -> 2032 | X181: =IF(W181>0,W181,IF(X19>INDEX('Input_4x2_Trac 330kW'!$E$68:$E$76,MATCH($C181,'Input_4x2_Trac 330kW'!$C$68:$C$76,0)),X$6,0)) -> 2032 | Y181: =IF(X181>0,X181,IF(Y19>INDEX('Input_4x2_Trac 330kW'!$E$68:$E$76,MATCH($C181,'Input_4x2_Trac 330kW'!$C$68:$C$76,0)),Y$6,0)) -> 2032 | Z181: =IF(Y181>0,Y181,IF(Z19>INDEX('Input_4x2_Trac 330kW'!$E$68:$E$76,MATCH($C181,'Input_4x2_Trac 330kW'!$C$68:$C$76,0)),Z$6,0)) -> 2032 | AA181: =IF(Z181>0,Z181,IF(AA19>INDEX('Input_4x2_Trac 330kW'!$E$68:$E$76,MATCH($C181,'Input_4x2_Trac 330kW'!$C$68:$C$76,0)),AA$6,0)) -> 2032 | AB181: =IF(AA181>0,AA181,IF(AB19>INDEX('Input_4x2_Trac 330kW'!$E$68:$E$76,MATCH($C181,'Input_4x2_Trac 330kW'!$C$68:$C$76,0)),AB$6,0)) -> 2032 | AC181: =IF(AB181>0,AB181,IF(AC19>INDEX('Input_4x2_Trac 330kW'!$E$68:$E$76,MATCH($C181,'Input_4x2_Trac 330kW'!$C$68:$C$76,0)),AC$6,0)) -> 2032 | AE181: =C8 -> Diesel | AH181: 2027 | AJ181: Diesel2027
C182: =Terms!$E$15 -> Large Battery | D182: =D177 -> 0 | F182: =C8 -> Diesel | G182: 2028 | K182: 0 | L182: =IF(K182>0,K182,IF(L20>INDEX('Input_4x2_Trac 330kW'!$E$68:$E$76,MATCH($C182,'Input_4x2_Trac 330kW'!$C$68:$C$76,0)),L$6,0)) -> 0 | M182: =IF(L182>0,L182,IF(M20>INDEX('Input_4x2_Trac 330kW'!$E$68:$E$76,MATCH($C182,'Input_4x2_Trac 330kW'!$C$68:$C$76,0)),M$6,0)) -> 0 | N182: =IF(M182>0,M182,IF(N20>INDEX('Input_4x2_Trac 330kW'!$E$68:$E$76,MATCH($C182,'Input_4x2_Trac 330kW'!$C$68:$C$76,0)),N$6,0)) -> 0 | O182: =IF(N182>0,N182,IF(O20>INDEX('Input_4x2_Trac 330kW'!$E$68:$E$76,MATCH($C182,'Input_4x2_Trac 330kW'!$C$68:$C$76,0)),O$6,0)) -> 0 | P182: =IF(O182>0,O182,IF(P20>INDEX('Input_4x2_Trac 330kW'!$E$68:$E$76,MATCH($C182,'Input_4x2_Trac 330kW'!$C$68:$C$76,0)),P$6,0)) -> 0 | Q182: =IF(P182>0,P182,IF(Q20>INDEX('Input_4x2_Trac 330kW'!$E$68:$E$76,MATCH($C182,'Input_4x2_Trac 330kW'!$C$68:$C$76,0)),Q$6,0)) -> 0 | R182: =IF(Q182>0,Q182,IF(R20>INDEX('Input_4x2_Trac 330kW'!$E$68:$E$76,MATCH($C182,'Input_4x2_Trac 330kW'!$C$68:$C$76,0)),R$6,0)) -> 0 | S182: =IF(R182>0,R182,IF(S20>INDEX('Input_4x2_Trac 330kW'!$E$68:$E$76,MATCH($C182,'Input_4x2_Trac 330kW'!$C$68:$C$76,0)),S$6,0)) -> 0 | T182: =IF(S182>0,S182,IF(T20>INDEX('Input_4x2_Trac 330kW'!$E$68:$E$76,MATCH($C182,'Input_4x2_Trac 330kW'!$C$68:$C$76,0)),T$6,0)) -> 0 | U182: =IF(T182>0,T182,IF(U20>INDEX('Input_4x2_Trac 330kW'!$E$68:$E$76,MATCH($C182,'Input_4x2_Trac 330kW'!$C$68:$C$76,0)),U$6,0)) -> 0 | V182: =IF(U182>0,U182,IF(V20>INDEX('Input_4x2_Trac 330kW'!$E$68:$E$76,MATCH($C182,'Input_4x2_Trac 330kW'!$C$68:$C$76,0)),V$6,0)) -> 2033 | W182: =IF(V182>0,V182,IF(W20>INDEX('Input_4x2_Trac 330kW'!$E$68:$E$76,MATCH($C182,'Input_4x2_Trac 330kW'!$C$68:$C$76,0)),W$6,0)) -> 2033 | X182: =IF(W182>0,W182,IF(X20>INDEX('Input_4x2_Trac 330kW'!$E$68:$E$76,MATCH($C182,'Input_4x2_Trac 330kW'!$C$68:$C$76,0)),X$6,0)) -> 2033 | Y182: =IF(X182>0,X182,IF(Y20>INDEX('Input_4x2_Trac 330kW'!$E$68:$E$76,MATCH($C182,'Input_4x2_Trac 330kW'!$C$68:$C$76,0)),Y$6,0)) -> 2033 | Z182: =IF(Y182>0,Y182,IF(Z20>INDEX('Input_4x2_Trac 330kW'!$E$68:$E$76,MATCH($C182,'Input_4x2_Trac 330kW'!$C$68:$C$76,0)),Z$6,0)) -> 2033 | AA182: =IF(Z182>0,Z182,IF(AA20>INDEX('Input_4x2_Trac 330kW'!$E$68:$E$76,MATCH($C182,'Input_4x2_Trac 330kW'!$C$68:$C$76,0)),AA$6,0)) -> 2033 | AB182: =IF(AA182>0,AA182,IF(AB20>INDEX('Input_4x2_Trac 330kW'!$E$68:$E$76,MATCH($C182,'Input_4x2_Trac 330kW'!$C$68:$C$76,0)),AB$6,0)) -> 2033 | AC182: =IF(AB182>0,AB182,IF(AC20>INDEX('Input_4x2_Trac 330kW'!$E$68:$E$76,MATCH($C182,'Input_4x2_Trac 330kW'!$C$68:$C$76,0)),AC$6,0)) -> 2033 | AE182: =C8 -> Diesel | AH182: 2028 | AJ182: Diesel2028
C183: =Terms!$E$15 -> Large Battery | D183: =D177 -> 0 | F183: =C8 -> Diesel | G183: 2029 | K183: 0 | L183: =IF(K183>0,K183,IF(L21>INDEX('Input_4x2_Trac 330kW'!$E$68:$E$76,MATCH($C183,'Input_4x2_Trac 330kW'!$C$68:$C$76,0)),L$6,0)) -> 0 | M183: =IF(L183>0,L183,IF(M21>INDEX('Input_4x2_Trac 330kW'!$E$68:$E$76,MATCH($C183,'Input_4x2_Trac 330kW'!$C$68:$C$76,0)),M$6,0)) -> 0 | N183: =IF(M183>0,M183,IF(N21>INDEX('Input_4x2_Trac 330kW'!$E$68:$E$76,MATCH($C183,'Input_4x2_Trac 330kW'!$C$68:$C$76,0)),N$6,0)) -> 0 | O183: =IF(N183>0,N183,IF(O21>INDEX('Input_4x2_Trac 330kW'!$E$68:$E$76,MATCH($C183,'Input_4x2_Trac 330kW'!$C$68:$C$76,0)),O$6,0)) -> 0 | P183: =IF(O183>0,O183,IF(P21>INDEX('Input_4x2_Trac 330kW'!$E$68:$E$76,MATCH($C183,'Input_4x2_Trac 330kW'!$C$68:$C$76,0)),P$6,0)) -> 0 | Q183: =IF(P183>0,P183,IF(Q21>INDEX('Input_4x2_Trac 330kW'!$E$68:$E$76,MATCH($C183,'Input_4x2_Trac 330kW'!$C$68:$C$76,0)),Q$6,0)) -> 0 | R183: =IF(Q183>0,Q183,IF(R21>INDEX('Input_4x2_Trac 330kW'!$E$68:$E$76,MATCH($C183,'Input_4x2_Trac 330kW'!$C$68:$C$76,0)),R$6,0)) -> 0 | S183: =IF(R183>0,R183,IF(S21>INDEX('Input_4x2_Trac 330kW'!$E$68:$E$76,MATCH($C183,'Input_4x2_Trac 330kW'!$C$68:$C$76,0)),S$6,0)) -> 0 | T183: =IF(S183>0,S183,IF(T21>INDEX('Input_4x2_Trac 330kW'!$E$68:$E$76,MATCH($C183,'Input_4x2_Trac 330kW'!$C$68:$C$76,0)),T$6,0)) -> 0 | U183: =IF(T183>0,T183,IF(U21>INDEX('Input_4x2_Trac 330kW'!$E$68:$E$76,MATCH($C183,'Input_4x2_Trac 330kW'!$C$68:$C$76,0)),U$6,0)) -> 0 | V183: =IF(U183>0,U183,IF(V21>INDEX('Input_4x2_Trac 330kW'!$E$68:$E$76,MATCH($C183,'Input_4x2_Trac 330kW'!$C$68:$C$76,0)),V$6,0)) -> 0 | W183: =IF(V183>0,V183,IF(W21>INDEX('Input_4x2_Trac 330kW'!$E$68:$E$76,MATCH($C183,'Input_4x2_Trac 330kW'!$C$68:$C$76,0)),W$6,0)) -> 2034 | X183: =IF(W183>0,W183,IF(X21>INDEX('Input_4x2_Trac 330kW'!$E$68:$E$76,MATCH($C183,'Input_4x2_Trac 330kW'!$C$68:$C$76,0)),X$6,0)) -> 2034 | Y183: =IF(X183>0,X183,IF(Y21>INDEX('Input_4x2_Trac 330kW'!$E$68:$E$76,MATCH($C183,'Input_4x2_Trac 330kW'!$C$68:$C$76,0)),Y$6,0)) -> 2034 | Z183: =IF(Y183>0,Y183,IF(Z21>INDEX('Input_4x2_Trac 330kW'!$E$68:$E$76,MATCH($C183,'Input_4x2_Trac 330kW'!$C$68:$C$76,0)),Z$6,0)) -> 2034 | AA183: =IF(Z183>0,Z183,IF(AA21>INDEX('Input_4x2_Trac 330kW'!$E$68:$E$76,MATCH($C183,'Input_4x2_Trac 330kW'!$C$68:$C$76,0)),AA$6,0)) -> 2034 | AB183: =IF(AA183>0,AA183,IF(AB21>INDEX('Input_4x2_Trac 330kW'!$E$68:$E$76,MATCH($C183,'Input_4x2_Trac 330kW'!$C$68:$C$76,0)),AB$6,0)) -> 2034 | AC183: =IF(AB183>0,AB183,IF(AC21>INDEX('Input_4x2_Trac 330kW'!$E$68:$E$76,MATCH($C183,'Input_4x2_Trac 330kW'!$C$68:$C$76,0)),AC$6,0)) -> 2034 | AE183: =C8 -> Diesel | AH183: 2029 | AJ183: Diesel2029
